Workbook

Sheet Copyright Notice
G7: Copyright Notice: Permission is granted to use this Excel model for business purposes as long as the copyright message (Copyright © 2022 by Tandem Energy Services Inc.) is maintained on the title page. This material may not be sold, duplicated or shared with companies and/or other utilities without the permission of Tandem Energy Services Inc.

Sheet Controls
B7: R A T E F I L I N G I N P U T S
B8: Bridge Year | C8: =C9-1 -> 2026
B9: Test Year | C9: 2027
B10: Last Rebasing Year | C10: 2022
B13: C U S T O M E R C L A S S
B14: CUSTOMER CLASS | C14: STATUS | D14: BILLED BASED ON | E14: UoM
B15: Residential | C15: Existing | D15: Customer | E15: kWh
B16: General Service < 50 kW | C16: Exisitng | D16: Customer | E16: kWh
B17: General Service > 50 to 4999 kW | C17: Exisitng | D17: Customer | E17: kW
B18: Unmetered Scattered Load | C18: Exisitng | D18: Customer | E18: kWh
B19: Sentinel | C19: Exisitng | D19: Connection | E19: kW
B20: StreetLights | C20: Exisitng | D20: Connection | E20: kW
B21: other
B22: other
B23: other
B24: other

Sheet Monthly Load & Cust Input
B7: T E S T Y E A R | C7: 2027
B9: L O A D & C U S T O M E R F O R E C A S T I N P U T S
B10: Year | C10: Wholesale | D10: =Controls!B15 -> Residential | F10: =Controls!B16 -> General Service < 50 kW | H10: =Controls!B17 -> General Service > 50 to 4999 kW | K10: =Controls!B18 -> Unmetered Scattered Load | N10: =Controls!B19 -> Sentinel | Q10: =Controls!B20 -> StreetLights | U10: Retail | V10: Retail
D11: kWh | E11: Cust # | F11: kWh | G11: Cust # | H11: kWh | I11: kW | J11: Cust # | K11: kWh | L11: kW | M11: Cust # | N11: kWh | O11: kW | P11: Cust # | Q11: kWh | R11: kW | S11: Cust # | U11: kWh | V11: kW
B12: =DATE($C$7 - 11, 1, 1) -> 2016-01-01 | C12: 22128983.59 | D12: 6173647.39 | E12: 8885 | F12: 3113960.07 | G12: 1040 | H12: 10950556.71 | I12: 23773.96 | J12: 129 | K12: 49546 | L12: 0 | M12: 83 | N12: 3785.17 | O12: 9.9 | P12: 48 | Q12: 115142.99 | R12: 243.56 | S12: 2929 | U12: =D12+F12+H12+K12+N12+Q12 -> 20406638.33 | V12: =I12+L12+O12+R12 -> 24027.42
B13: =EDATE(B12, 1) -> 2016-02-01 | C13: 20791079.84 | D13: 9611096.05 | E13: 8896 | F13: 3092894.5 | G13: 1036 | H13: 11358317.11 | I13: 30344.37 | J13: 129 | K13: 51151 | L13: 0 | M13: 83 | N13: 4103.72 | O13: 9.9 | P13: 48 | Q13: 113255.4 | R13: 269.79 | S13: 2929 | U13: =D13+F13+H13+K13+N13+Q13 -> 24230817.78 | V13: =I13+L13+O13+R13 -> 30624.06
B14: =EDATE(B13, 1) -> 2016-03-01 | C14: 20729495.02 | D14: 4772425.84 | E14: 8900 | F14: 2780949.31 | G14: 1040 | H14: 11835848.95 | I14: 25606.29 | J14: 129 | K14: 51151 | L14: 0 | M14: 83 | N14: 3782.16 | O14: 9.9 | P14: 48 | Q14: 97119.55 | R14: 243.56 | S14: 2929 | U14: 19541276.81 | V14: 25859.75
B15: 2016-04-01 | C15: 18914746.61 | D15: 5326439.62 | E15: 8900 | F15: 2261773.62 | G15: 1040 | H15: 10321711.56 | I15: 22288.83 | J15: 128 | K15: 51151 | L15: 0 | M15: 80 | N15: 3655.8 | O15: 9.9 | P15: 48 | Q15: 94378.88 | R15: 243.56 | S15: 2929 | U15: 18059110.48 | V15: 22542.29
B16: 2016-05-01 | C16: 18623767.87 | D16: 5053134.48 | E16: 8915 | F16: 2412639.43 | G16: 1044 | H16: 10904195.86 | I16: 26566.68 | J16: 131 | K16: 51151 | L16: 0 | M16: 83 | N16: 3782.16 | O16: 9.9 | P16: 48 | Q16: 80374.8 | R16: 243.56 | S16: 2929 | U16: 18505277.73 | V16: 26820.14
B17: 2016-06-01 | C17: 18879367.37 | D17: 5142877.25 | E17: 8920 | F17: 2523772.37 | G17: 1053 | H17: 13834460.36 | I17: 26340.87 | J17: 134 | K17: 51151 | L17: 0 | M17: 83 | N17: 3908.52 | O17: 9.9 | P17: 48 | Q17: 73616.01 | R17: 243.56 | S17: 2929 | U17: 21629785.51 | V17: 26594.33
B18: 2016-07-01 | C18: 20415103.31 | D18: 6633708.47 | E18: 8926 | F18: 2708470.08 | G18: 1050 | H18: 7805217.62 | I18: 25822.59 | J18: 134 | K18: 51151 | L18: 0 | M18: 83 | N18: 3782.16 | O18: 9.9 | P18: 48 | Q18: 65761.2 | R18: 243.56 | S18: 2929 | U18: 17268090.53 | V18: 26076.05
B19: 2016-08-01 | C19: 22505106.31 | D19: 6932970.16 | E19: 8933 | F19: 2846199.97 | G19: 1050 | H19: 11516976.08 | I19: 35648.71 | J19: 134 | K19: 51101 | L19: 0 | M19: 83 | N19: 3690 | O19: 9.9 | P19: 48 | Q19: 69840.83 | R19: 243.56 | S19: 2929 | U19: 21420778.04 | V19: 35902.17
B20: 2016-09-01 | C20: 19119452.39 | D20: 5491716.01 | E20: 8961 | F20: 2596788.35 | G20: 1047 | H20: 11757687.96 | I20: 21065.34 | J20: 134 | K20: 50713 | L20: 0 | M20: 82 | N20: 3737.52 | O20: 9.9 | P20: 48 | Q20: 79278.16 | R20: 243.56 | S20: 2929 | U20: 19979921 | V20: 21318.8
B21: 2016-10-01 | C21: 18469062.56 | D21: 6438665.66 | E21: 8974 | F21: 2252084.04 | G21: 1047 | H21: 10531065.77 | I21: 25647.47 | J21: 134 | K21: 51489 | L21: 0 | M21: 82 | N21: 3576.96 | O21: 9.9 | P21: 48 | Q21: 85854.9 | R21: 243.56 | S21: 2929 | U21: 19362736.33 | V21: 25900.93
B22: 2016-11-01 | C22: 19212109.23 | D22: 3341597.84 | E22: 8989 | F22: 2606761.59 | G22: 1046 | H22: 10708966.55 | I22: 26206.24 | J22: 134 | K22: 51101 | L22: 0 | M22: 82 | N22: 3758.4 | O22: 9.9 | P22: 48 | Q22: 100041.96 | R22: 243.56 | S22: 2929 | U22: 16812227.34 | V22: 26459.7
B23: 2016-12-01 | C23: 21217584.99 | D23: 6154931.4 | E23: 8989 | F23: 3301507.64 | G23: 1048 | H23: 11381742.82 | I23: 29275.22 | J23: 134 | K23: 47907.04 | L23: 0 | M23: 82 | N23: 3872.99 | O23: 9.9 | P23: 48 | Q23: 105948.6 | R23: 243.56 | S23: 2929 | U23: 20995910.49 | V23: 29528.68
B24: =EDATE(B23, 1) -> 2017-01-01 | C24: 21675233.3 | D24: 6158617.75 | E24: 9000 | F24: 2746162.85 | G24: 1048 | H24: 11187584.8 | I24: 18073.32 | J24: 134 | K24: 51101 | L24: 0 | M24: 82 | N24: 3479.28 | O24: 9.9 | P24: 48 | Q24: 170292.4813 | R24: 243.56 | S24: 3082 | U24: 20317238.16 | V24: 18326.78
B25: 2017-02-01 | C25: 19655486.64 | D25: 8990998.2 | E25: 9008 | F25: 2918178.72 | G25: 1050 | H25: 10512717.71 | I25: 25998.57 | J25: 133 | K25: 51101 | L25: 0 | M25: 82 | N25: 3886.52 | O25: 9.9 | P25: 48 | Q25: 149739.0647 | R25: 243.55 | S25: 3082 | U25: 22626621.21 | V25: 26252.02
B26: 2017-03-01 | C26: 21768044.61 | D26: 5037529.06 | E26: 9012 | F26: 2616508.5 | G26: 1055 | H26: 11550737.25 | I26: 29927.99 | J26: 134 | K26: 51101 | L26: 0 | M26: 82 | N26: 3880.2 | O26: 9.9 | P26: 48 | Q26: 127520.1818 | R26: 243.56 | S26: 3082 | U26: 19387276.19 | V26: 30181.45
B27: 2017-04-01 | C27: 18282963.48 | D27: 6336225.2 | E27: 9022 | F27: 677023.24 | G27: 1061 | H27: 6510678.97 | I27: 19152.95 | J27: 134 | K27: 51101 | L27: 0 | M27: 82 | N27: 2356.56 | O27: 9.9 | P27: 48 | Q27: 189966.7933 | R27: 243.56 | S27: 3082 | U27: 13767351.76 | V27: 19406.41
B28: 2017-05-01 | C28: 18324755.43 | D28: 2636480.55 | E28: 9030 | F28: 2361878.93 | G28: 1057 | H28: 10942998.36 | I28: 27945.1 | J28: 124 | K28: 51101 | L28: 0 | M28: 82 | N28: 3792.6 | O28: 9.9 | P28: 48 | Q28: 228740.4162 | R28: 243.56 | S28: 3082 | U28: 16224991.86 | V28: 28198.56
B29: 2017-06-01 | C29: 18320340 | D29: 6578191.78 | E29: 9051 | F29: 2533501.92 | G29: 1061 | H29: 10940302.54 | I29: 24311.47 | J29: 123 | K29: 51101 | L29: 0 | M29: 82 | N29: 3908.52 | O29: 9.9 | P29: 48 | Q29: 63282.55915 | R29: 243.56 | S29: 3082 | U29: 20170288.32 | V29: 24564.93
B30: 2017-07-01 | C30: 19587017.26 | D30: 7099265.71 | E30: 9057 | F30: 4679945.15 | G30: 1063 | H30: 13903504.83 | I30: 31591.93 | J30: 121 | K30: 51101 | L30: 0 | M30: 82 | N30: 5207.76 | O30: 9.9 | P30: 48 | Q30: 343894.351 | R30: 243.56 | S30: 3082 | U30: 26082918.8 | V30: 31845.39
B31: 2017-08-01 | C31: 20134470.87 | D31: 4289143.72 | E31: 9057 | F31: 612089.66 | G31: 1063 | H31: 7728152.95 | I31: 26811.03 | J31: 121 | K31: 51101 | L31: 0 | M31: 82 | N31: 2230.2 | O31: 9.9 | P31: 48 | Q31: 79278.15631 | R31: 243.56 | S31: 3082 | U31: 12761995.69 | V31: 27064.49
B32: 2017-09-01 | C32: 18659128.71 | D32: 6505582.53 | E32: 9058 | F32: 2383052.09 | G32: 1064 | H32: 10589006.96 | I32: 27384.33 | J32: 121 | K32: 51101 | L32: 0 | M32: 82 | N32: 3908.52 | O32: 9.9 | P32: 48 | Q32: 85854.90022 | R32: 243.56 | S32: 3082 | U32: 19618506 | V32: 27637.79
B33: 2017-10-01 | C33: 18955855.38 | D33: 5320147.18 | E33: 9056 | F33: 2430612.75 | G33: 1068 | H33: 11039769.93 | I33: 26222.05 | J33: 122 | K33: 51101 | L33: 0 | M33: 82 | N33: 3782.16 | O33: 9.9 | P33: 48 | Q33: 100041.9558 | R33: 243.56 | S33: 3082 | U33: 18945454.98 | V33: 26475.51
B34: 2017-11-01 | C34: 20295421.01 | D34: 5960762.22 | E34: 9082 | F34: 4400310.59 | G34: 1067 | H34: 15489685.19 | I34: 25318.64 | J34: 124 | K34: 51101 | L34: 0 | M34: 82 | N34: 5139.36 | O34: 9.9 | P34: 48 | Q34: 105948.5957 | R34: 243.56 | S34: 3082 | U34: 26012946.96 | V34: 25572.1
B35: 2017-12-01 | C35: 22510869.11 | D35: 9438507.11 | E35: 9086 | F35: 3154258.96 | G35: 1073 | H35: 10544488.89 | I35: 21269.24 | J35: 124 | K35: 53467.35 | L35: 0 | M35: 82 | N35: 3778.2 | O35: 9.9 | P35: 48 | Q35: 115142.9839 | R35: 243.56 | S35: 3082 | U35: 23309643.49 | V35: 21522.7
B36: 2018-01-01 | C36: 23926993.53 | D36: 8903975.55 | E36: 9094 | F36: 3308102.6 | G36: 1071 | H36: 11807857.27 | I36: 30712.92 | J36: 123 | K36: 24737.5 | L36: 0 | M36: 82 | N36: 3789.84 | O36: 9.9 | P36: 49 | Q36: 113255.4099 | R36: 243.56 | S36: 3082 | U36: 24161718.17 | V36: 30966.38
B37: 2018-02-01 | C37: 20543060.89 | D37: 4567352.72 | E37: 9099 | F37: 3042311.05 | G37: 1070 | H37: 11118184.75 | I37: 21109.11 | J37: 123 | K37: 49475 | L37: 0 | M37: 82 | N37: 3782.16 | O37: 9.9 | P37: 49 | Q37: 93770.60956 | R37: 243.56 | S37: 3082 | U37: 18874876.29 | V37: 21362.57
B38: 2018-03-01 | C38: 21389943.51 | D38: 7557914.42 | E38: 9115 | F38: 2734848.68 | G38: 1069 | H38: 18354662.91 | I38: 29071.15 | J38: 123 | K38: 49475 | L38: 0 | M38: 82 | N38: 3789.72 | O38: 9.9 | P38: 49 | Q38: 94378.87738 | R38: 243.56 | S38: 3082 | U38: 28795069.61 | V38: 29324.61
B39: 2018-04-01 | C39: 20175553.09 | D39: 4241960.41 | E39: 9135 | F39: 2744054.56 | G39: 1074 | H39: 10872290.33 | I39: 27600.47 | J39: 123 | K39: 49475 | L39: 0 | M39: 82 | N39: 3733.92 | O39: 9.9 | P39: 49 | Q39: 80374.8002 | R39: 243.56 | S39: 3082 | U39: 17991889.02 | V39: 27853.93
B40: 2018-05-01 | C40: 19098635.89 | D40: 4848623.12 | E40: 9135 | F40: 2300268.51 | G40: 1080 | H40: 5076877.59 | I40: 26630.99 | J40: 123 | K40: 49475 | L40: 0 | M40: 82 | N40: 3569.76 | O40: 9.6 | P40: 49 | Q40: 73616.01178 | R40: 243.56 | S40: 3082 | U40: 12352429.99 | V40: 26884.15
B41: 2018-06-01 | C41: 19057522.98 | D41: 7490189.72 | E41: 9128 | F41: 2756566.15 | G41: 1089 | H41: 11242989.43 | I41: 27799.91 | J41: 123 | K41: 50193 | L41: 0 | M41: 82 | N41: 3820.56 | O41: 9.6 | P41: 49 | Q41: 65761.20263 | R41: 243.56 | S41: 3082 | U41: 21609520.06 | V41: 28053.07
B42: 2018-07-01 | C42: 22061034.05 | D42: 7224340.28 | E42: 9139 | F42: 3099911.89 | G42: 1088 | H42: 11746517.66 | I42: 27823.34 | J42: 116 | K42: 50193 | L42: 0 | M42: 82 | N42: 3706.56 | O42: 9.6 | P42: 49 | Q42: 69840.83 | R42: 243.56 | S42: 3082 | U42: 22194510.22 | V42: 28076.5
B43: 2018-08-01 | C43: 22539963.3 | D43: 4742950.93 | E43: 9139 | F43: 3250560 | G43: 1088 | H43: 12369459.7 | I43: 28202.64 | J43: 115 | K43: 50193 | L43: 0 | M43: 82 | N43: 3614.4 | O43: 9.6 | P43: 49 | Q43: 79278.15631 | R43: 243.56 | S43: 3082 | U43: 20496056.19 | V43: 28455.8
B44: 2018-09-01 | C44: 20358548.39 | D44: 6129201.78 | E44: 9145 | F44: 2729845.71 | G44: 1081 | H44: 11475266.72 | I44: 27486.62 | J44: 115 | K44: 50193 | L44: 0 | M44: 82 | N44: 3798.72 | O44: 9.6 | P44: 49 | Q44: 85854.90022 | R44: 243.56 | S44: 3082 | U44: 20474160.83 | V44: 27739.78
B45: 2018-10-01 | C45: 20192182.21 | D45: 6910949.84 | E45: 9144 | F45: 2603375.66 | G45: 1089 | H45: 11807466.39 | I45: 25885.7 | J45: 115 | K45: 50193 | L45: 0 | M45: 82 | N45: 3843.36 | O45: 9.6 | P45: 49 | Q45: 100041.9558 | R45: 243.56 | S45: 3082 | U45: 21475870.21 | V45: 26138.86
B46: 2018-11-01 | C46: 21148072.07 | D46: 3460883.63 | E46: 9158 | F46: 2935395.36 | G46: 1085 | H46: 11199705.22 | I46: 25655.38 | J46: 115 | K46: 50193 | L46: 0 | M46: 82 | N46: 3580.2 | O46: 9.3 | P46: 49 | Q46: 105948.5957 | R46: 243.56 | S46: 3082 | U46: 17755706.01 | V46: 25908.24
B47: 2018-12-01 | C47: 21236189.78 | D47: 7951358.17 | E47: 9158 | F47: 3168655.7 | G47: 1081 | H47: 10156580.26 | I47: 25357.33 | J47: 114 | K47: 51156.21 | L47: 0 | M47: 82 | N47: 3624.25 | O47: 9.6 | P47: 49 | Q47: 115142.9839 | R47: 243.56 | S47: 3082 | U47: 21446517.57 | V47: 25610.49
B48: 2019-01-01 | C48: 24145305.05 | D48: 9054502.12 | E48: 9184 | F48: 3345149.38 | G48: 1081 | H48: 11821924.51 | I48: 26054.23 | J48: 115 | K48: 51101 | L48: 0 | M48: 82 | N48: 3793.31 | O48: 9.6 | P48: 46 | Q48: 113255.4099 | R48: 243.56 | S48: 3082 | U48: 24389725.73 | V48: 26307.39
B49: 2019-02-01 | C49: 21398682.48 | D49: 6624277.21 | E49: 9185 | F49: 3350224.33 | G49: 1082 | H49: 11448688.44 | I49: 24796.32 | J49: 116 | K49: 51101 | L49: 0 | M49: 82 | N49: 3706.56 | O49: 9.6 | P49: 46 | Q49: 93770.60956 | R49: 243.56 | S49: 3082 | U49: 21571768.15 | V49: 25049.48
B50: 2019-03-01 | C50: 22360479.21 | D50: 6620727.02 | E50: 9187 | F50: 3075843.06 | G50: 1080 | H50: 12688895.16 | I50: 22735.64 | J50: 116 | K50: 51101 | L50: 0 | M50: 82 | N50: 3706.56 | O50: 9.6 | P50: 46 | Q50: 94378.87738 | R50: 243.56 | S50: 3082 | U50: 22534651.68 | V50: 22988.8
B51: 2019-04-01 | C51: 19544511.06 | D51: 4172699.78 | E51: 9195 | F51: 2645401.83 | G51: 1079 | H51: 10399028.32 | I51: 24352.78 | J51: 116 | K51: 51101 | L51: 0 | M51: 82 | N51: 3706.56 | O51: 9.6 | P51: 46 | Q51: 80374.8002 | R51: 243.56 | S51: 3082 | U51: 17352312.29 | V51: 24605.94
B52: 2019-05-01 | C52: 18907303.98 | D52: 5086738.71 | E52: 9208 | F52: 2571444.21 | G52: 1083 | H52: 11197135.22 | I52: 24814.59 | J52: 115 | K52: 51101 | L52: 0 | M52: 82 | N52: 3706.56 | O52: 9.6 | P52: 46 | Q52: 73616.01178 | R52: 243.56 | S52: 3082 | U52: 18983741.71 | V52: 25067.75
B53: 2019-06-01 | C53: 18667603.25 | D53: 7050507.79 | E53: 9215 | F53: 2449421.59 | G53: 1089 | H53: 10934991.24 | I53: 26309.83 | J53: 113 | K53: 51101 | L53: 0 | M53: 82 | N53: 4014.36 | O53: 9.6 | P53: 46 | Q53: 65761.20263 | R53: 243.56 | S53: 3082 | U53: 20555797.18 | V53: 26562.99
B54: 2019-07-01 | C54: 22326158.12 | D54: 7084442.33 | E54: 9217 | F54: 3073939.25 | G54: 1086 | H54: 12062258.04 | I54: 26838.97 | J54: 112 | K54: 51101 | L54: 0 | M54: 82 | N54: 4014.36 | O54: 9.6 | P54: 46 | Q54: 69840.83 | R54: 243.56 | S54: 3082 | U54: 22345595.81 | V54: 27092.13
B55: 2019-08-01 | C55: 20794420.88 | D55: 4343614.79 | E55: 9217 | F55: 2958703.27 | G55: 1085 | H55: 11395235.69 | I55: 32395.11 | J55: 111 | K55: 51101 | L55: 0 | M55: 82 | N55: 3090.96 | O55: 9.6 | P55: 46 | Q55: 70740.44922 | R55: 269.79 | S55: 3082 | U55: 18822486.16 | V55: 32674.5
B56: 2019-09-01 | C56: 18971022.19 | D56: 6405743.29 | E56: 9214 | F56: 2626451 | G56: 1093 | H56: 11267112.6 | I56: 25733.53 | J56: 110 | K56: 51101 | L56: 0 | M56: 82 | N56: 3706.56 | O56: 9.6 | P56: 46 | Q56: 85854.90022 | R56: 243.56 | S56: 3082 | U56: 20439969.35 | V56: 25986.69
B57: 2019-10-01 | C57: 19012970.61 | D57: 5362117.9 | E57: 9216 | F57: 2659443.42 | G57: 1093 | H57: 10976401.88 | I57: 24525.26 | J57: 109 | K57: 51050 | L57: 0 | M57: 81 | N57: 3706.56 | O57: 9.6 | P57: 46 | Q57: 100041.9558 | R57: 243.56 | S57: 3082 | U57: 19152761.72 | V57: 24778.42
B58: 2019-11-01 | C58: 21236823.85 | D58: 5025384.63 | E58: 9256 | F58: 2825979.44 | G58: 1086 | H58: 11330354.27 | I58: 25140.3 | J58: 109 | K58: 51050 | L58: 0 | M58: 81 | N58: 3638.16 | O58: 9.6 | P58: 46 | Q58: 105948.5957 | R58: 243.56 | S58: 3082 | U58: 19342355.1 | V58: 25393.46
B59: 2019-12-01 | C59: 21526414.43 | D59: 7766288.41 | E59: 9267 | F59: 2934321.93 | G59: 1088 | H59: 10299974.47 | I59: 27376.67 | J59: 109 | K59: 50599.33 | L59: 0 | M59: 81 | N59: 3822.82 | O59: 9.3 | P59: 46 | Q59: 115142.9839 | R59: 243.56 | S59: 3082 | U59: 21170149.94 | V59: 27629.53
B60: 2020-01-01 | C60: 22690646.3 | D60: 8021736.81 | E60: 9269 | F60: 3400391.25 | G60: 1085 | H60: 11164191.02 | I60: 25462.49 | J60: 108 | K60: 51747.64 | L60: 0 | M60: 81 | N60: 3733.99 | O60: 9.3 | P60: 50 | Q60: 113255.4099 | R60: 243.56 | S60: 3082 | U60: 22755056.12 | V60: 25715.35
B61: 2020-02-01 | C61: 21296233.15 | D61: 6625860.73 | E61: 9285 | F61: 2982556.46 | G61: 1088 | H61: 10864909.18 | I61: 25394.31 | J61: 108 | K61: 51050 | L61: 0 | M61: 81 | N61: 3638.16 | O61: 9.3 | P61: 50 | Q61: 97119.54492 | R61: 243.56 | S61: 3082 | U61: 20625134.07 | V61: 25647.17
B62: 2020-03-01 | C62: 20694662.95 | D62: 6661648.76 | E62: 9289 | F62: 2777147.83 | G62: 1087 | H62: 10556459.64 | I62: 24774.52 | J62: 108 | K62: 51050 | L62: 0 | M62: 81 | N62: 3638.16 | O62: 9.3 | P62: 50 | Q62: 94378.87738 | R62: 243.56 | S62: 3082 | U62: 20144323.27 | V62: 25027.38
B63: 2020-04-01 | C63: 17448835.34 | D63: 4330220.67 | E63: 9291 | F63: 2263630.34 | G63: 1084 | H63: 9362122.3 | I63: 24119.24 | J63: 108 | K63: 51050 | L63: 0 | M63: 81 | N63: 3638.16 | O63: 9.3 | P63: 50 | Q63: 80374.8002 | R63: 243.56 | S63: 3082 | U63: 16091036.27 | V63: 24372.1
B64: 2020-05-01 | C64: 17603802.59 | D64: 5752328.01 | E64: 9306 | F64: 2053457.85 | G64: 1084 | H64: 9778941.94 | I64: 26896.29 | J64: 108 | K64: 51050 | L64: 0 | M64: 81 | N64: 3638.16 | O64: 9.3 | P64: 50 | Q64: 73616.01178 | R64: 243.56 | S64: 3082 | U64: 17713031.97 | V64: 27149.15
B65: 2020-06-01 | C65: 19834351.97 | D65: 6530444.3 | E65: 9321 | F65: 2341737.43 | G65: 1073 | H65: 10982409.27 | I65: 25577.41 | J65: 108 | K65: 50812 | L65: 0 | M65: 81 | N65: 3638.16 | O65: 9.3 | P65: 50 | Q65: 65761.20263 | R65: 243.56 | S65: 3082 | U65: 19974802.36 | V65: 25830.27
B66: 2020-07-01 | C66: 22948221.18 | D66: 8597311.43 | E66: 9332 | F66: 2987439.48 | G66: 1072 | H66: 11540582.63 | I66: 27120.89 | J66: 108 | K66: 50812 | L66: 0 | M66: 81 | N66: 3638.16 | O66: 9.3 | P66: 50 | Q66: 69840.83 | R66: 243.56 | S66: 3082 | U66: 23249624.53 | V66: 27373.75
B67: 2020-08-01 | C67: 21134527.23 | D67: 6664045.35 | E67: 9347 | F67: 2683397.81 | G67: 1070 | H67: 10941029.78 | I67: 27676.79 | J67: 108 | K67: 50812 | L67: 0 | M67: 82 | N67: 3638.16 | O67: 9.3 | P67: 50 | Q67: 79278.15631 | R67: 243.56 | S67: 3082 | U67: 20422201.26 | V67: 27929.65
B68: 2020-09-01 | C68: 18933263.59 | D68: 5717707.65 | E68: 9358 | F68: 2405098.43 | G68: 1073 | H68: 11037312.15 | I68: 27490.15 | J68: 108 | K68: 51647.83 | L68: 0 | M68: 82 | N68: 2478.96 | O68: 9.3 | P68: 50 | Q68: 85854.90022 | R68: 243.56 | S68: 3082 | U68: 19300099.92 | V68: 27743.01
B69: 2020-10-01 | C69: 19378191.99 | D69: 5724671.18 | E69: 9383 | F69: 2430475.97 | G69: 1079 | H69: 10912680.15 | I69: 26692.73 | J69: 108 | K69: 50530 | L69: 0 | M69: 82 | N69: 3920.4 | O69: 9.6 | P69: 50 | Q69: 100041.9558 | R69: 243.56 | S69: 3082 | U69: 19222319.66 | V69: 26945.89
B70: 2020-11-01 | C70: 19806512.16 | D70: 6160499.66 | E70: 9401 | F70: 2586974.57 | G70: 1080 | H70: 10530328.71 | I70: 26210.73 | J70: 108 | K70: 50530 | L70: 0 | M70: 82 | N70: 3920.4 | O70: 9.6 | P70: 50 | Q70: 105948.5957 | R70: 243.56 | S70: 3082 | U70: 19438201.94 | V70: 26463.89
B71: 2020-12-01 | C71: 21476405.56 | D71: 7733623.88 | E71: 9402 | F71: 2953172.24 | G71: 1077 | H71: 10100136.97 | I71: 26490.29 | J71: 109 | K71: 51639.83 | L71: 0 | M71: 82 | N71: 3701.23 | O71: 9.6 | P71: 50 | Q71: 115142.9839 | R71: 243.56 | S71: 3082 | U71: 20957417.13 | V71: 26743.45
B72: 2021-01-01 | C72: 22520739.91 | D72: 7502984.45 | E72: 9405 | F72: 3186452.22 | G72: 1084 | H72: 11095114.08 | I72: 26684.04 | J72: 109 | K72: 50696.36 | L72: 0 | M72: 82 | N72: 3946.32 | O72: 9.6 | P72: 51 | Q72: 113255.4099 | R72: 243.56 | S72: 3082 | U72: 21952448.84 | V72: 26937.2
B73: 2021-02-01 | C73: 21419071.58 | D73: 7359688.68 | E73: 9419 | F73: 3082699.36 | G73: 1084 | H73: 10998854.9 | I73: 26320.78 | J73: 109 | K73: 51394 | L73: 0 | M73: 82 | N73: 3920.4 | O73: 9.6 | P73: 51 | Q73: 93770.59811 | R73: 243.56 | S73: 3082 | U73: 21590327.94 | V73: 26573.94
B74: 2021-03-01 | C74: 21323024.3 | D74: 7108442.54 | E74: 9416 | F74: 2981330.17 | G74: 1080 | H74: 11415496 | I74: 27003.35 | J74: 109 | K74: 51394 | L74: 0 | M74: 82 | N74: 3920.4 | O74: 9.6 | P74: 51 | Q74: 94683.35194 | R74: 243.56 | S74: 3082 | U74: 21655266.46 | V74: 27256.51
B75: 2021-04-01 | C75: 18500418.87 | D75: 5604022.94 | E75: 9425 | F75: 2465598.99 | G75: 1088 | H75: 10397907.43 | I75: 25859.98 | J75: 109 | K75: 51394 | L75: 0 | M75: 82 | N75: 3920.4 | O75: 9.6 | P75: 51 | Q75: 80374.8002 | R75: 243.56 | S75: 3082 | U75: 18603218.56 | V75: 26113.14
B76: 2021-05-01 | C76: 18183990.48 | D76: 5385438.97 | E76: 9433 | F76: 2250169.48 | G76: 1084 | H76: 10384777.5 | I76: 26458.59 | J76: 109 | K76: 51394 | L76: 0 | M76: 82 | N76: 3920.4 | O76: 9.6 | P76: 51 | Q76: 73616.01178 | R76: 243.56 | S76: 3082 | U76: 18149316.36 | V76: 26711.75
B77: 2021-06-01 | C77: 19233839.84 | D77: 6330607.01 | E77: 9443 | F77: 2442368.2 | G77: 1094 | H77: 10690193.25 | I77: 27341.11 | J77: 109 | K77: 51394 | L77: 0 | M77: 82 | N77: 3920.4 | O77: 9.6 | P77: 51 | Q77: 65761.20263 | R77: 243.56 | S77: 3082 | U77: =D77+F77+H77+K77+N77+Q77 -> 19584244.06 | V77: =I77+L77+O77+R77 -> 27594.27
B78: =EDATE(B77, 1) -> 2021-07-01 | C78: 20455070.15 | D78: 7057462.75 | E78: 9447 | F78: 4996734.3 | G78: 1095 | H78: 10761992 | I78: 28000.24 | J78: 109 | K78: 51394 | L78: 0 | M78: 82 | N78: 5673.96 | O78: 9.6 | P78: 51 | Q78: 69840.83 | R78: 243.56 | S78: 3082 | U78: 22943097.84 | V78: 28253.4
B79: 2021-08-01 | C79: 22711582.54 | D79: 7628317.95 | E79: 9447 | F79: 2962114.98 | G79: 1094 | H79: 10851593.12 | I79: 28552.99 | J79: 109 | K79: 51394 | L79: 0 | M79: 82 | N79: 3956.4 | O79: 9.6 | P79: 51 | Q79: 79278.15631 | R79: 243.56 | S79: 3082 | U79: 21576654.61 | V79: 28806.15
B80: 2021-09-01 | C80: 18577062.69 | D80: 5284072.74 | E80: 9441 | F80: 519504.18 | G80: 1095 | H80: 10761992 | I80: 26328.83 | J80: 110 | K80: 54098.17 | L80: 0 | M80: 82 | N80: -580.68 | O80: 9.6 | P80: 51 | Q80: 85854.90022 | R80: 243.56 | S80: 3082 | U80: 16704941.31 | V80: 26581.99
B81: 2021-10-01 | C81: 19050459 | D81: 4203461.55 | E81: 9456 | F81: 2478268.07 | G81: 1096 | H81: 10435764.04 | I81: 28646.77 | J81: 110 | K81: 51689 | L81: 0 | M81: 82 | N81: 3511.8 | O81: 9.3 | P81: 51 | Q81: 100041.9558 | R81: 243.56 | S81: 3082 | U81: 17272736.42 | V81: 28899.63
B82: 2021-11-01 | C82: 20073180.63 | D82: 7457046.2 | E82: 9473 | F82: 2813268.95 | G82: 1098 | H82: 10515283.25 | I82: 26157.47 | J82: 110 | K82: 51689 | L82: 0 | M82: 82 | N82: 3892.32 | O82: 9.3 | P82: 51 | Q82: 105948.5957 | R82: 243.56 | S82: 3082 | U82: 20947128.32 | V82: 26410.33
B83: 2021-12-01 | C83: 21571148.6 | D83: 7760253.84 | E83: 9498 | F83: 4056571.24 | G83: 1098 | H83: 9820304.15 | I83: 27076.79 | J83: 110 | K83: 51783.84 | L83: 0 | M83: 82 | N83: 4021.85 | O83: 9.3 | P83: 51 | Q83: 115526.1502 | R83: 244.37 | S83: 3082 | U83: 21808461.07 | V83: 27330.46
B84: 2022-01-01 | C84: 24417231.32 | D84: 8243192.44 | E84: 9497 | F84: 5199743.56 | G84: 1099 | H84: 12131528.64 | I84: 28375.64 | J84: 110 | K84: 51689 | L84: 0 | M84: 86 | N84: 4169.7 | O84: 9.3 | P84: 51 | Q84: 113632.0483 | R84: 244.37 | S84: 3082 | U84: 25743955.39 | V84: 28629.31
B85: 2022-02-01 | C85: 21919603.43 | D85: 7156433.4 | E85: 9510 | F85: 3003384.62 | G85: 1102 | H85: 10872470.68 | I85: 28527.62 | J85: 110 | K85: 51757 | L85: 0 | M85: 86 | N85: 3774.24 | O85: 9.3 | P85: 51 | Q85: 94082.79639 | R85: 244.37 | S85: 3082 | U85: 21181902.74 | V85: 28781.29
B86: 2022-03-01 | C86: 22889653.74 | D86: 7045907.26 | E86: 9518 | F86: 2940096.94 | G86: 1103 | H86: 11955241 | I86: 27258.12 | J86: 111 | K86: 51757 | L86: 0 | M86: 86 | N86: 3637.44 | O86: 3.9 | P86: 51 | Q86: 94998.99516 | R86: 244.37 | S86: 3082 | U86: 22091638.64 | V86: 27506.39
B87: 2022-04-01 | C87: 19534291.81 | D87: 5602222.36 | E87: 9527 | F87: 617276.95 | G87: 1103 | H87: 10091835.4 | I87: 26551.04 | J87: 111 | K87: 51757 | L87: 0 | M87: 86 | N87: 2681.64 | O87: 7.5 | P87: 51 | Q87: 80642.1001 | R87: 244.37 | S87: 3082 | U87: 16446415.45 | V87: 26802.91
B88: 2022-05-01 | C88: 19074156.39 | D88: 5272784.93 | E88: 9543 | F88: 4514926.57 | G88: 1100 | H88: 11160655 | I88: 28251.03 | J88: 111 | K88: 51757 | L88: 0 | M88: 86 | N88: 5370.84 | O88: 9.3 | P88: 51 | Q88: 73861.22323 | R88: 244.37 | S88: 3082 | U88: 21079355.56 | V88: 28504.7
B89: 2022-06-01 | C89: 19283498.63 | D89: 5955494 | E89: 9557 | F89: 2719708.53 | G89: 1103 | H89: 11160655 | I89: 28151.18 | J89: 112 | K89: 51757 | L89: 0 | M89: 86 | N89: 2859.84 | O89: 9.3 | P89: 51 | Q89: 65979.90072 | R89: 244.37 | S89: 3082 | U89: 19956454.27 | V89: 28404.85
B90: 2022-07-01 | C90: 20809203.44 | D90: 7026071.71 | E90: 9569 | F90: 3156586.21 | G90: 1100 | H90: 10750273.08 | I90: 27628.57 | J90: 112 | K90: 51757 | L90: 0 | M90: 86 | N90: 3637.44 | O90: 9.3 | P90: 51 | Q90: 70073.33517 | R90: 244.37 | S90: 3082 | U90: 21058398.78 | V90: 27882.24
B91: 2022-08-01 | C91: 22213048.16 | D91: 7374970.65 | E91: 9570 | F91: 2753822.44 | G91: 1102 | H91: 11272320.72 | I91: 28214.16 | J91: 112 | K91: 51757 | L91: 0 | M91: 86 | N91: 3637.44 | O91: 9.3 | P91: 51 | Q91: 79542.59027 | R91: 244.37 | S91: 3082 | U91: 21536050.84 | V91: 28467.83
B92: 2022-09-01 | C92: 19217568.52 | D92: 5664758.52 | E92: 9578 | F92: 2422703.5 | G92: 1103 | H92: 10920697.93 | I92: 27657.34 | J92: 112 | K92: 51757 | L92: 0 | M92: 86 | N92: 3637.44 | O92: 9.3 | P92: 51 | Q92: 86140.80653 | R92: 244.37 | S92: 3082 | U92: 19149695.2 | V92: 27911.01
B93: 2022-10-01 | C93: 18769593.14 | D93: 5226044.28 | E93: 9604 | F93: 2702303.16 | G93: 1110 | H93: 10369264.41 | I93: 26251.76 | J93: 113 | K93: 51757 | L93: 0 | M93: 86 | N93: 3637.44 | O93: 9.3 | P93: 51 | Q93: 100375.208 | R93: 244.37 | S93: 3082 | U93: 18453381.5 | V93: 26505.43
B94: 2022-11-01 | C94: 20457408.48 | D94: 6350479.03 | E94: 9607 | F94: 635218.34 | G94: 1112 | H94: 10806883.66 | I94: 26995.8 | J94: 113 | K94: 51774 | L94: 0 | M94: 87 | N94: 2681.64 | O94: 9.3 | P94: 51 | Q94: 106301.1058 | R94: 244.37 | S94: 3082 | U94: 17953337.78 | V94: 27249.47
B95: 2022-12-01 | C95: 21382190.12 | D95: 7796854.23 | E95: 9614 | F95: 4861219.92 | G95: 1112 | H95: 8475415.88 | I95: 27740.88 | J95: 112 | K95: 51898.33 | L95: 0 | M95: 87 | N95: 4281.38 | O95: 9.3 | P95: 51 | Q95: 115526.1488 | R95: 244.37 | S95: 3082 | U95: 21305195.89 | V95: 27994.55
B96: 2023-01-01 | C96: 23197281.51 | D96: 7730985.51 | E96: 9619 | F96: 3707824.42 | G96: 1108 | H96: 11509812.85 | I96: 27259.3 | J96: 112 | K96: 51825 | L96: 0 | M96: 90 | N96: 3637.44 | O96: 9.3 | P96: 51 | Q96: 113632.0483 | R96: 244.37 | S96: 3082 | U96: 23117717.27 | V96: 27512.97
B97: 2023-02-01 | C97: 21182250.55 | D97: 6821875.58 | E97: 9639 | F97: 720550.35 | G97: 1110 | H97: 10519220.22 | I97: 27361.9 | J97: 112 | K97: 51825 | L97: 0 | M97: 90 | N97: 2681.64 | O97: 9.3 | P97: 51 | Q97: 94082.79639 | R97: 244.37 | S97: 3082 | U97: 18210235.59 | V97: 27615.57
B98: 2023-03-01 | C98: 22364072.37 | D98: 6857683.91 | E98: 9650 | F98: 3296629.78 | G98: 1108 | H98: 11654420 | I98: 26775.49 | J98: 112 | K98: 51825 | L98: 0 | M98: 90 | N98: 3637.44 | O98: 9.3 | P98: 51 | Q98: 94998.99516 | R98: 244.37 | S98: 3082 | U98: 21959195.13 | V98: 27029.16
B99: 2023-04-01 | C99: 18641615 | D99: 5571379.63 | E99: 9650 | F99: 2753384.68 | G99: 1107 | H99: 10255470.57 | I99: 27161.85 | J99: 112 | K99: 51825 | L99: 0 | M99: 90 | N99: 3637.44 | O99: 9.3 | P99: 51 | Q99: 80642.1001 | R99: 244.37 | S99: 3082 | U99: 18716339.42 | V99: 27415.52
B100: 2023-05-01 | C100: 18228640.12 | D100: 5100887.57 | E100: 9676 | F100: 2533252.28 | G100: 1110 | H100: 10606555.01 | I100: 27431.11 | J100: 112 | K100: 51825 | L100: 0 | M100: 90 | N100: 3637.44 | O100: 9.3 | P100: 51 | Q100: 73861.22323 | R100: 244.37 | S100: 3082 | U100: 18370018.52 | V100: 27684.78
B101: 2023-06-01 | C101: 18814559.75 | D101: 5987718.17 | E101: 9683 | F101: 2661690.71 | G101: 1109 | H101: 10202445.92 | I101: 27806.01 | J101: 111 | K101: 51825 | L101: 0 | M101: 90 | N101: 3637.44 | O101: 9.3 | P101: 51 | Q101: 65979.90072 | R101: 244.37 | S101: 3082 | U101: 18973297.14 | V101: 28059.68
B102: 2023-07-01 | C102: 20557221.62 | D102: 7297248.51 | E102: 9689 | F102: 3080422.35 | G102: 1109 | H102: 9963787.32 | I102: 27878.45 | J102: 111 | K102: 51825 | L102: 0 | M102: 90 | N102: 3637.44 | O102: 9.3 | P102: 51 | Q102: 70073.33517 | R102: 244.37 | S102: 3082 | U102: 20466993.96 | V102: 28132.12
B103: 2023-08-01 | C103: 19639476.5 | D103: 6464555.42 | E103: 9700 | F103: 2867283.06 | G103: 1111 | H103: 10066245.59 | I103: 27732.08 | J103: 111 | K103: 51825 | L103: 0 | M103: 90 | N103: 3545.28 | O103: 9.3 | P103: 51 | Q103: 79542.59027 | R103: 244.37 | S103: 3082 | U103: 19532996.94 | V103: 27985.75
B104: 2023-09-01 | C104: 18056113.69 | D104: 5998190 | E104: 9705 | F104: 2653044.71 | G104: 1116 | H104: 9502426.14 | I104: 28175.44 | J104: 111 | K104: 51825 | L104: 0 | M104: 90 | N104: 3729.6 | O104: 9.3 | P104: 51 | Q104: 86140.80653 | R104: 244.37 | S104: 3082 | U104: 18295356.26 | V104: 28429.11
B105: 2023-10-01 | C105: 18035612.18 | D105: 5609194.77 | E105: 9704 | F105: 2581211.35 | G105: 1113 | H105: 9464029.15 | I105: 27274.12 | J105: 111 | K105: 51825 | L105: 0 | M105: 90 | N105: 3637.44 | O105: 9.3 | P105: 51 | Q105: 100375.208 | R105: 244.37 | S105: 3082 | U105: 17810272.92 | V105: 27527.79
B106: 2023-11-01 | C106: 19262692.75 | D106: 6322623.87 | E106: 9729 | F106: 2876824.7 | G106: 1118 | H106: 9496198.07 | I106: 26312.2 | J106: 111 | K106: 51825 | L106: 0 | M106: 92 | N106: 3637.44 | O106: 9.3 | P106: 51 | Q106: 106301.1058 | R106: 244.37 | S106: 3082 | U106: 18857410.19 | V106: 26565.87
B107: 2023-12-01 | C107: 19526810.25 | D107: 8072175.96 | E107: 9783 | F107: 3228369.02 | G107: 1115 | H107: 8887821.84 | I107: 25729.91 | J107: 111 | K107: 51861 | L107: 0 | M107: 92 | N107: 3911.04 | O107: 9.3 | P107: 51 | Q107: 115526.1488 | R107: 244.37 | S107: 3082 | U107: 20359665.01 | V107: 25983.58
B108: 2024-01-01 | C108: 22396390.63 | D108: 7859837.59 | E108: 9835 | F108: 3465283.15 | G108: 1118 | H108: 10233647.22 | I108: 27479.33 | J108: 111 | K108: 51859 | L108: 0 | M108: 92 | N108: 3363.84 | O108: 9.3 | P108: 50 | Q108: 113632.0483 | R108: 244.37 | S108: 3082 | U108: 21727622.85 | V108: 27733
B109: 2024-02-01 | C109: 19553177.37 | D109: 6761448.47 | E109: 9841 | F109: 3102627.98 | G109: 1117 | H109: 10201622.27 | I109: 27043.32 | J109: 111 | K109: 51910 | L109: 0 | M109: 95 | N109: 3569.04 | O109: 9.3 | P109: 50 | Q109: 97442.90372 | R109: 244.37 | S109: 3082 | U109: 20218620.66 | V109: 27296.99
B110: 2024-03-01 | C110: 19698219.58 | D110: 6588331.33 | E110: 9849 | F110: 3035278.73 | G110: 1115 | H110: 9669574.41 | I110: 32945.79 | J110: 111 | K110: 51910 | L110: 0 | M110: 95 | N110: 3705.84 | O110: 9.3 | P110: 50 | Q110: 94326.97697 | R110: 244.37 | S110: 3082 | U110: 19443127.29 | V110: 33199.46
B111: 2024-04-01 | C111: 18436891.92 | D111: 5798971.65 | E111: 9869 | F111: 2657949.83 | G111: 1117 | H111: 9006627 | I111: 23819.04 | J111: 111 | K111: 51910 | L111: 0 | M111: 95 | N111: 3637.44 | O111: 9.3 | P111: 50 | Q111: 80642.1001 | R111: 244.37 | S111: 3082 | U111: 17599738.02 | V111: 24072.71
B112: 2024-05-01 | C112: 17851572.36 | D112: 5392589.65 | E112: 9933 | F112: 2532473.72 | G112: 1117 | H112: 9877281.53 | I112: 27190.58 | J112: 111 | K112: 51960 | L112: 0 | M112: 95 | N112: 3637.44 | O112: 9.3 | P112: 49 | Q112: 73861.22323 | R112: 244.37 | S112: 3082 | U112: 17931803.56 | V112: 27444.25
B113: 2024-06-01 | C113: 18941335.35 | D113: 6356872.06 | E113: 9946 | F113: 2678069.61 | G113: 1114 | H113: 9877374.06 | I113: 28455.33 | J113: 111 | K113: 51860 | L113: 0 | M113: 95 | N113: 3637.44 | O113: 9.3 | P113: 49 | Q113: 65979.90072 | R113: 244.37 | S113: 3082 | U113: 19033793.07 | V113: 28709
B114: 2024-07-01 | C114: 21853500.65 | D114: 8031252 | E114: 9974 | F114: 3223318.19 | G114: 1114 | H114: 10618817.84 | I114: 28887.56 | J114: 111 | K114: 51910 | L114: 0 | M114: 94 | N114: 3637.44 | O114: 9.3 | P114: 49 | Q114: 70073.33517 | R114: 244.37 | S114: 3082 | U114: 21999008.81 | V114: 29141.23
B115: 2024-08-01 | C115: 20676973.63 | D115: 7379699.93 | E115: 10027 | F115: 3079811.21 | G115: 1111 | H115: 10080870.06 | I115: 29254.48 | J115: 111 | K115: 51810 | L115: 0 | M115: 94 | N115: 3637.44 | O115: 9.3 | P115: 49 | Q115: 79542.59027 | R115: 244.37 | S115: 3082 | U115: 20675371.23 | V115: 29508.15
B116: 2024-09-01 | C116: 18614608.05 | D116: 6003255.69 | E116: 10030 | F116: 2699291.87 | G116: 1112 | H116: 9756457.97 | I116: 27770.27 | J116: 111 | K116: 51810 | L116: 0 | M116: 93 | N116: 3637.44 | O116: 9.3 | P116: 49 | Q116: 86140.80653 | R116: 244.37 | S116: 3082 | U116: 18600593.78 | V116: 28023.94
B117: 2024-10-01 | C117: 18469100.78 | D117: 5638941.54 | E117: 10063 | F117: 2668391.13 | G117: 1111 | H117: 9936979.29 | I117: 27613.15 | J117: 112 | K117: 51861 | L117: 0 | M117: 96 | N117: 3638.58 | O117: 9.3 | P117: 49 | Q117: 100375.208 | R117: 244.37 | S117: 3082 | U117: 18400186.75 | V117: 27866.82
B118: 2024-11-01 | C118: 19078281.94 | D118: 6128062.57 | E118: 10083 | F118: 2696306.5 | G118: 1113 | H118: 9667659.86 | I118: 26916.59 | J118: 112 | K118: 51861 | L118: 0 | M118: 96 | N118: 3637.44 | O118: 9.3 | P118: 49 | Q118: 106301.1058 | R118: 244.37 | S118: 3082 | U118: 18653828.48 | V118: 27170.26
B119: 2024-12-01 | C119: 21023641.42 | D119: 8681626.69 | E119: 10099 | F119: 3654552.98 | G119: 1110 | H119: 9498763.94 | I119: 26361.84 | J119: 112 | K119: 51861 | L119: 0 | M119: 96 | N119: 3569.04 | O119: 9.3 | P119: 49 | Q119: 115526.1488 | R119: 244.37 | S119: 3082 | U119: 22005899.8 | V119: 26615.51
B120: 2025-01-01 | C120: 23603889.24 | D120: 8605472.06 | E120: 10117 | F120: 3543162.7 | G120: 1111 | H120: 10485954.93 | I120: 54160.84 | J120: 112 | K120: 51861 | L120: 0 | M120: 96 | N120: 3500.64 | O120: 9 | P120: 49 | Q120: 113632.05 | R120: 488.74 | S120: 3082 | U120: 22803583.38 | V120: 54658.58
B121: 2025-02-01 | C121: 21287860.76 | D121: 7746456.75 | E121: 10115 | F121: 3226534.86 | G121: 1117 | H121: 9412809.27 | I121: 28021.6 | J121: 112 | K121: 51861 | L121: 0 | M121: 96 | N121: 3569.04 | O121: 9 | P121: 49 | Q121: 94082.8 | R121: 244.37 | S121: 3082 | U121: 20535313.72 | V121: 28274.97
B122: 2025-03-01 | C122: 20693391.39 | D122: 7208641.21 | E122: 10132 | F122: 3091434.48 | G122: 1117 | H122: 9991166.77 | I122: 27734.23 | J122: 112 | K122: 51861 | L122: 0 | M122: 96 | N122: 3637.44 | O122: 9 | P122: 49 | Q122: 94999 | R122: 244.37 | S122: 3082 | U122: 20441739.9 | V122: 27987.6
B123: 2025-04-01 | C123: 18413521.39 | D123: 6200770.92 | E123: 10142 | F123: 2728878.36 | G123: 1109 | H123: 9250098.32 | I123: 27614.6 | J123: 112 | K123: 51861 | L123: 0 | M123: 96 | N123: 3569.04 | O123: 9 | P123: 49 | Q123: 80642.1 | R123: 244.37 | S123: 3082 | U123: 18315819.74 | V123: 27867.97
B124: 2025-05-01 | C124: 17389835.35 | D124: 5527282.3 | E124: 10155 | F124: 2550527.01 | G124: 1116 | H124: 9172552.73 | I124: 26624.38 | J124: 112 | K124: 51861 | L124: 0 | M124: 96 | N124: 3569.04 | O124: 9 | P124: 49 | Q124: 73861.22 | R124: 244.37 | S124: 3082 | U124: 17379653.3 | V124: 26877.75
B125: 2025-06-01 | C125: 18896927.21 | D125: 6568096.08 | E125: 10157 | F125: 2872725.16 | G125: 1116 | H125: 9501085.69 | I125: 28441.21 | J125: 112 | K125: 51861 | L125: 0 | M125: 96 | N125: 3569.04 | O125: 9 | P125: 49 | Q125: 65979.9 | R125: 244.37 | S125: 3082 | U125: 19063316.87 | V125: 28694.58
B126: 2025-07-01 | C126: 22838218.4 | D126: 8628653.33 | E126: 10191 | F126: 3710134.61 | G126: 1115 | H126: 10445279.2 | I126: 29721.93 | J126: 112 | K126: 51861 | L126: 0 | M126: 96 | N126: 3569.04 | O126: 9 | P126: 49 | Q126: 70073.33 | R126: 244.37 | S126: 3082 | U126: 22909570.51 | V126: 29975.3
B127: 2025-08-01 | C127: 21173810.05 | D127: 7632572.24 | E127: 10194 | F127: 3267478.5 | G127: 1115 | H127: 10182701.34 | I127: 30170.61 | J127: 112 | K127: 51861 | L127: 0 | M127: 96 | N127: 3569.04 | O127: 9 | P127: 49 | Q127: 79542.59 | R127: 244.37 | S127: 3082 | U127: 21217724.71 | V127: 30423.98
B128: 2025-09-01 | C128: 18709263.22 | D128: 5811182.7 | E128: 10194 | F128: 2741816.55 | G128: 1109 | H128: 10075205.53 | I128: 28578.71 | J128: 112 | K128: 51861 | L128: 0 | M128: 96 | N128: 3519.89 | O128: 9 | P128: 49 | Q128: 86140.8 | R128: 244.37 | S128: 3082 | U128: 18769726.47 | V128: 28832.08
B129: 2025-10-01 | C129: 18956675.88 | D129: 5803450.13 | E129: 10203 | F129: 2876891.61 | G129: 1114 | H129: 10006415.93 | I129: 28651.15 | J129: 113 | K129: 51861 | L129: 0 | M129: 96 | N129: 3621.26 | O129: 9 | P129: 49 | Q129: 100375.21 | R129: 244.37 | S129: 3082 | U129: 18842615.14 | V129: 28904.52
B130: 2025-11-01 | C130: 20411470.79 | D130: 6864794.34 | E130: 10210 | F130: 3063667.68 | G130: 1121 | H130: 9769267.35 | I130: 27423.39 | J130: 113 | K130: 51861 | L130: 0 | M130: 96 | N130: 3569.04 | O130: 9 | P130: 49 | Q130: 106301.1 | R130: 244.37 | S130: 3082 | U130: 19859460.51 | V130: 27676.76
B131: 2025-12-01 | C131: 22740746.48 | D131: 8682845.72 | E131: 10210 | F131: 3654552.98 | G131: 1121 | H131: 9468224.31 | I131: 26176.69 | J131: 113 | K131: 51861 | L131: 0 | M131: 96 | N131: 3569.04 | O131: 9 | P131: 49 | Q131: 115526.15 | R131: 244.37 | S131: 3082 | U131: 21976579.2 | V131: 26430.06
B134: W H O L E S A L E T O T A L
C135: ="" &$C$7-11 -> 2016 | D135: ="" &$C$7-10 -> 2017 | E135: ="" &$C$7-9 -> 2018 | F135: ="" &$C$7-8 -> 2019 | G135: ="" &$C$7-7 -> 2020 | H135: ="" &$C$7-6 -> 2021 | I135: ="" &$C$7-5 -> 2022 | J135: ="" &$C$7-4 -> 2023 | K135: ="" &$C$7-3 -> 2024 | L135: ="" &$C$7-2 -> 2025
B136: January | C136: =C12 -> 22128983.59 | D136: =C24 -> 21675233.3 | E136: =C36 -> 23926993.53 | F136: =C48 -> 24145305.05 | G136: =C60 -> 22690646.3 | H136: =C72 -> 22520739.91 | I136: =C84 -> 24417231.32 | J136: =C96 -> 23197281.51 | K136: =C108 -> 22396390.63 | L136: =C120 -> 23603889.24
B137: February | C137: 20791079.84 | D137: 19655486.64 | E137: 20543060.89 | F137: 21398682.48 | G137: 21296233.15 | H137: 21419071.58 | I137: 21919603.43 | J137: 21182250.55 | K137: 19553177.37 | L137: 21287860.76
B138: March | C138: 20729495.02 | D138: 21768044.61 | E138: 21389943.51 | F138: 22360479.21 | G138: 20694662.95 | H138: 21323024.3 | I138: 22889653.74 | J138: 22364072.37 | K138: 19698219.58 | L138: 20693391.39
B139: April | C139: 18914746.61 | D139: 18282963.48 | E139: 20175553.09 | F139: 19544511.06 | G139: 17448835.34 | H139: 18500418.87 | I139: 19534291.81 | J139: 18641615 | K139: 18436891.92 | L139: 18413521.39
B140: May | C140: 18623767.87 | D140: 18324755.43 | E140: 19098635.89 | F140: 18907303.98 | G140: 17603802.59 | H140: 18183990.48 | I140: 19074156.39 | J140: 18228640.12 | K140: 17851572.36 | L140: 17389835.35
B141: June | C141: 18879367.37 | D141: 18320340 | E141: 19057522.98 | F141: 18667603.25 | G141: 19834351.97 | H141: 19233839.84 | I141: 19283498.63 | J141: 18814559.75 | K141: 18941335.35 | L141: 18896927.21
B142: July | C142: 20415103.31 | D142: 19587017.26 | E142: 22061034.05 | F142: 22326158.12 | G142: 22948221.18 | H142: 20455070.15 | I142: 20809203.44 | J142: 20557221.62 | K142: 21853500.65 | L142: 22838218.4
B143: August | C143: 22505106.31 | D143: 20134470.87 | E143: 22539963.3 | F143: 20794420.88 | G143: 21134527.23 | H143: 22711582.54 | I143: 22213048.16 | J143: 19639476.5 | K143: 20676973.63 | L143: 21173810.05
B144: September | C144: 19119452.39 | D144: 18659128.71 | E144: 20358548.39 | F144: 18971022.19 | G144: 18933263.59 | H144: 18577062.69 | I144: 19217568.52 | J144: 18056113.69 | K144: 18614608.05 | L144: 18709263.22
B145: October | C145: 18469062.56 | D145: 18955855.38 | E145: 20192182.21 | F145: 19012970.61 | G145: 19378191.99 | H145: 19050459 | I145: 18769593.14 | J145: 18035612.18 | K145: 18469100.78 | L145: 18956675.88
B146: November | C146: 19212109.23 | D146: 20295421.01 | E146: 21148072.07 | F146: 21236823.85 | G146: 19806512.16 | H146: 20073180.63 | I146: 20457408.48 | J146: 19262692.75 | K146: 19078281.94 | L146: 20411470.79
B147: December | C147: 21217584.99 | D147: 22510869.11 | E147: 21236189.78 | F147: 21526414.43 | G147: 21476405.56 | H147: 21571148.6 | I147: 21382190.12 | J147: 19526810.25 | K147: 21023641.42 | L147: 22740746.48
B148: Total | C148: =SUM(C136:C147) -> 241005859.1 | D148: =SUM(D136:D147) -> 238169585.8 | E148: 251727699.7 | F148: 248891695.1 | G148: 243245654 | H148: 243619588.6 | I148: 249967447.2 | J148: 237506346.3 | K148: =SUM(K136:K147) -> 236593693.7 | L148: =SUM(L136:L147) -> 245115610.2
B149: Percent Change | D149: =(D148-C148)/C148 -> -0.01176848273 | E149: 0.05692630251 | F149: -0.01126616015 | G149: -0.02268473079 | H149: 0.001537271371 | I149: 0.02605643753 | J149: -0.04985089471 | K149: -0.003842645151 | L149: 0.03601920384
B152: R E T A I L T O T A L
B153: Retail | C153: =C135 -> 2016 | D153: =D135 -> 2017 | E153: 2018 | F153: 2019 | G153: 2020 | H153: 2021 | I153: 2022 | J153: 2023 | K153: =K135 -> 2024 | L153: =L135 -> 2025
B154: =Controls!B15 -> Residential
B155: kWh | C155: =SUM($D$12:$D$23) -> 71073210.17 | D155: =SUM($D$24:$D$35) -> 74351451.01 | E155: =SUM($D$36:$D$47) -> 74029700.57 | F155: =SUM($D$48:$D$59) -> 74597043.98 | G155: =SUM($D$60:$D$71) -> 78520098.43 | H155: =SUM($D$72:$D$83) -> 78681799.62 | I155: =SUM($D$84:$D$95) -> 78715212.81 | J155: =SUM($D$96:$D$107) -> 77834518.9 | K155: =SUM($D$108:$D$119) -> 80620889.17 | L155: =SUM($D$120:$D$131) -> 85280217.78
B156: Cust Count | C156: =AVERAGE($E$12:$E$23) -> 8932.333333 | D156: =AVERAGE($E$24:$E$35) -> 9043.25 | E156: =AVERAGE($E$36:$E$47) -> 9132.416667 | F156: =AVERAGE($E$48:$E$59) -> 9213.416667 | G156: =AVERAGE($E$60:$E$71) -> 9332 | H156: =AVERAGE($E$72:$E$83) -> 9441.916667 | I156: =AVERAGE($E$84:$E$95) -> 9557.833333 | J156: =AVERAGE($E$96:$E$107) -> 9685.583333 | K156: =AVERAGE($E$108:$E$119) -> 9962.416667 | L156: =AVERAGE($E$120:$E$131) -> 10168.33333
B158: =Controls!B16 -> General Service < 50 kW
B159: kWh | C159: =SUM($F$12:$F$23) -> 32497800.97 | D159: =SUM($F$24:$F$35) -> 31513523.36 | E159: =SUM($F$36:$F$47) -> 34673895.87 | F159: =SUM($F$48:$F$59) -> 34516322.71 | G159: =SUM($F$60:$F$71) -> 31865479.66 | H159: =SUM($F$72:$F$83) -> 34235080.14 | I159: =SUM($F$84:$F$95) -> 35526990.74 | J159: =SUM($F$96:$F$107) -> 32960487.41 | K159: =SUM($F$108:$F$119) -> 35493354.9 | L159: =SUM($F$120:$F$131) -> 37327804.5
B160: Cust Count | C160: =AVERAGE($G$12:$G$23) -> 1045.083333 | D160: =AVERAGE($G$24:$G$35) -> 1060.833333 | E160: =AVERAGE($G$36:$G$47) -> 1080.416667 | F160: =AVERAGE($G$48:$G$59) -> 1085.416667 | G160: =AVERAGE($G$60:$G$71) -> 1079.333333 | H160: =AVERAGE($G$72:$G$83) -> 1090.833333 | I160: =AVERAGE($G$84:$G$95) -> 1104.083333 | J160: =AVERAGE($G$96:$G$107) -> 1111.166667 | K160: =AVERAGE($G$108:$G$119) -> 1114.083333 | L160: =AVERAGE($G$120:$G$131) -> 1115.083333
B162: =Controls!B17 -> General Service > 50 to 4999 kW
B163: kWh | C163: =SUM($H$12:$H$23) -> 132906747.3 | D163: =SUM($H$24:$H$35) -> 130939628.4 | E163: =SUM($H$36:$H$47) -> 137227858.2 | F163: =SUM($H$48:$H$59) -> 135821999.8 | G163: =SUM($H$60:$H$71) -> 127771103.7 | H163: =SUM($H$72:$H$83) -> 128129271.7 | I163: =SUM($H$84:$H$95) -> 129967241.4 | J163: =SUM($H$96:$H$107) -> 122128432.7 | K163: =SUM($H$108:$H$119) -> 118425675.5 | L163: =SUM($H$120:$H$131) -> 117760761.4
B164: kW | C164: =SUM($I$12:$I$23) -> 318586.57 | D164: =SUM($I$24:$I$35) -> 304006.62 | E164: =SUM($I$36:$I$47) -> 323335.56 | F164: =SUM($I$48:$I$59) -> 311073.23 | G164: =SUM($I$60:$I$71) -> 313905.84 | H164: =SUM($I$72:$I$83) -> 324430.94 | I164: =SUM($I$84:$I$95) -> 331603.14 | J164: =SUM($I$96:$I$107) -> 326897.86 | K164: =SUM($I$108:$I$119) -> 333737.28 | L164: =SUM($I$120:$I$131) -> 363319.34
B165: Cust Count | C165: =AVERAGE($J$12:$J$23) -> 132 | D165: =AVERAGE($J$24:$J$35) -> 126.25 | E165: =AVERAGE($J$36:$J$47) -> 119 | F165: =AVERAGE($J$48:$J$59) -> 112.5833333 | G165: =AVERAGE($J$60:$J$71) -> 108.0833333 | H165: =AVERAGE($J$72:$J$83) -> 109.3333333 | I165: =AVERAGE($J$84:$J$95) -> 111.5833333 | J165: =AVERAGE($J$96:$J$107) -> 111.4166667 | K165: =AVERAGE($J$108:$J$119) -> 111.25 | L165: =AVERAGE($J$120:$J$131) -> 112.25
B167: =Controls!B18 -> Unmetered Scattered Load
B168: kWh | C168: =SUM($K$12:$K$23) -> 608763.04 | D168: =SUM($K$24:$K$35) -> 615578.35 | E168: =SUM($K$36:$K$47) -> 574951.71 | F168: =SUM($K$48:$K$59) -> 612608.33 | G168: =SUM($K$60:$K$71) -> 612731.3 | H168: =SUM($K$72:$K$83) -> 619714.37 | I168: =SUM($K$84:$K$95) -> 621174.33 | J168: =SUM($K$96:$K$107) -> 621936 | K168: =SUM($K$108:$K$119) -> 622522 | L168: =SUM($K$120:$K$131) -> 622332
B169: kW | C169: =SUM($L$12:$L$23) -> 0 | D169: =SUM($L$24:$L$35) -> 0 | E169: =SUM($L$36:$L$47) -> 0 | F169: =SUM($L$48:$L$59) -> 0 | G169: =SUM($L$60:$L$71) -> 0 | H169: =SUM($L$72:$L$83) -> 0 | I169: =SUM($L$84:$L$95) -> 0 | J169: =SUM($L$96:$L$107) -> 0 | K169: =SUM($L$108:$L$119) -> 0 | L169: =SUM($L$120:$L$131) -> 0
B170: Cust Count | C170: =AVERAGE($M$12:$M$23) -> 82.41666667 | D170: =AVERAGE($M$24:$M$35) -> 82 | E170: =AVERAGE($M$36:$M$47) -> 82 | F170: =AVERAGE($M$48:$M$59) -> 81.75 | G170: =AVERAGE($M$60:$M$71) -> 81.41666667 | H170: =AVERAGE($M$72:$M$83) -> 82 | I170: =AVERAGE($M$84:$M$95) -> 86.16666667 | J170: =AVERAGE($M$96:$M$107) -> 90.33333333 | K170: =AVERAGE($M$108:$M$119) -> 94.66666667 | L170: =AVERAGE($M$120:$M$131) -> 96
B172: =Controls!B19 -> Sentinel
B173: kWh | C173: =SUM($N$12:$N$23) -> 45435.56 | D173: =SUM($N$24:$N$35) -> 45349.88 | E173: =SUM($N$36:$N$47) -> 44653.45 | F173: =SUM($N$48:$N$59) -> 44613.33 | G173: =SUM($N$60:$N$71) -> 43222.1 | H173: =SUM($N$72:$N$83) -> 44023.97 | I173: =SUM($N$84:$N$95) -> 44006.48 | J173: =SUM($N$96:$N$107) -> 42967.08 | K173: =SUM($N$108:$N$119) -> 43308.42 | L173: =SUM($N$120:$N$131) -> 42831.55
B174: kW | C174: =SUM($O$12:$O$23) -> 118.8 | D174: =SUM($O$24:$O$35) -> 118.8 | E174: =SUM($O$36:$O$47) -> 116.1 | F174: =SUM($O$48:$O$59) -> 114.9 | G174: =SUM($O$60:$O$71) -> 112.5 | H174: =SUM($O$72:$O$83) -> 114.3 | I174: =SUM($O$84:$O$95) -> 104.4 | J174: =SUM($O$96:$O$107) -> 111.6 | K174: =SUM($O$108:$O$119) -> 111.6 | L174: =SUM($O$120:$O$131) -> 108
B175: Cust Count | C175: =AVERAGE($P$12:$P$23) -> 48 | D175: =AVERAGE($P$24:$P$35) -> 48 | E175: =AVERAGE($P$36:$P$47) -> 49 | F175: =AVERAGE($P$48:$P$59) -> 46 | G175: =AVERAGE($P$60:$P$71) -> 50 | H175: =AVERAGE($P$72:$P$83) -> 51 | I175: =AVERAGE($P$84:$P$95) -> 51 | J175: =AVERAGE($P$96:$P$107) -> 51 | K175: =AVERAGE($P$108:$P$119) -> 49.33333333 | L175: =AVERAGE($P$120:$P$131) -> 49
B177: =Controls!B20 -> StreetLights
B178: kWh | C178: =SUM($Q$12:$Q$23) -> 1080613.28 | D178: =SUM($Q$24:$Q$35) -> 1759702.439 | E178: =SUM($Q$36:$Q$47) -> 1077264.333 | F178: =SUM($Q$48:$Q$59) -> 1068726.626 | G178: =SUM($Q$60:$Q$71) -> 1080613.269 | H178: =SUM($Q$72:$Q$83) -> 1077951.963 | I178: =SUM($Q$84:$Q$95) -> 1081156.258 | J178: =SUM($Q$96:$Q$107) -> 1081156.258 | K178: =SUM($Q$108:$Q$119) -> 1083844.348 | L178: =SUM($Q$120:$Q$131) -> 1081156.25
B179: kW | C179: =SUM($R$12:$R$23) -> 2948.95 | D179: =SUM($R$24:$R$35) -> 2922.71 | E179: =SUM($R$36:$R$47) -> 2922.72 | F179: =SUM($R$48:$R$59) -> 2948.95 | G179: =SUM($R$60:$R$71) -> 2922.72 | H179: =SUM($R$72:$R$83) -> 2923.53 | I179: =SUM($R$84:$R$95) -> 2932.44 | J179: =SUM($R$96:$R$107) -> 2932.44 | K179: =SUM($R$108:$R$119) -> 2932.44 | L179: =SUM($R$120:$R$131) -> 3176.81
B180: Cust Count | C180: =AVERAGE($S$12:$S$23) -> 2929 | D180: =AVERAGE($S$24:$S$35) -> 3082 | E180: =AVERAGE($S$36:$S$47) -> 3082 | F180: =AVERAGE($S$48:$S$59) -> 3082 | G180: =AVERAGE($S$60:$S$71) -> 3082 | H180: =AVERAGE($S$72:$S$83) -> 3082 | I180: =AVERAGE($S$84:$S$95) -> 3082 | J180: =AVERAGE($S$96:$S$107) -> 3082 | K180: =AVERAGE($S$108:$S$119) -> 3082 | L180: =AVERAGE($S$120:$S$131) -> 3082
B182: Total
B183: kWh | C183: =C155+C159+C163+C168+C173+C178 -> 238212570.4 | D183: =D155+D159+D163+D168+D173+D178 -> 239225233.4 | E183: 247628324.2 | F183: 246661314.8 | G183: 239893248.5 | H183: 242787841.8 | I183: 245955782 | J183: 234669498.3 | K183: 236289594.3 | L183: =L155+L159+L163+L168+L173+L178 -> 242115103.5
B184: kW | C184: =C156+C160+C164+C169+C174+C179 -> 331631.7367 | D184: 317152.2133 | E184: 336587.2133 | F184: 324435.9133 | G184: 327352.3933 | H184: 338001.52 | I184: 345301.8967 | J184: 340738.65 | K184: 347857.82 | L184: 377887.5667
B185: Cust Count | C185: 3191.416667 | D185: 3338.25 | E185: 3332 | F185: 3322.333333 | G185: 3321.5 | H185: 3324.333333 | I185: 3330.75 | J185: 3334.75 | K185: 3337.25 | L185: 3339.25
B187: kWh | D187: =(D183-C183)/C183 -> 0.004251089889 | E187: 0.03512627253 | F187: -0.00390508376 | G187: -0.02743870202 | H187: 0.01206617236 | I187: 0.01304818319 | J187: -0.04588745016 | K187: 0.006903734702 | L187: 0.02465410794
B188: kW | D188: -0.04366145255 | E188: 0.06127972369 | F188: -0.03610149025 | G188: 0.008989387057 | H188: 0.0325310793 | I188: 0.0215986504 | J188: -0.01321523777 | K188: 0.0208933445 | L188: 0.08632764578
B189: Cust Count | D189: 0.04600882576 | E189: -0.001872238448 | F189: -0.002901160464 | G189: -0.0002508277315 | H189: 0.0008530282503 | I189: 0.001930211571 | J189: 0.001200930721 | K189: 0.0007496813854 | L189: 0.0005992958274
B193: C U S T O M E R F O R E C A S T S U M M A R Y
C194: =D10 -> Residential | E194: =F10 -> General Service < 50 kW | G194: =H10 -> General Service > 50 to 4999 kW | I194: =K10 -> Unmetered Scattered Load | K194: =N10 -> Sentinel | M194: =Controls!B20 -> StreetLights
B195: Date | C195: Cust# | D195: Growth Rate | E195: Cust# | F195: Growth Rate | G195: Cust# | H195: Growth Rate | I195: Cust# | J195: Growth Rate | K195: Cust# | L195: Growth Rate | M195: Cust# | N195: Growth Rate
B196: =$C$7-11 -> 2016 | C196: =AVERAGE(E12:E23) -> 8932.333333 | E196: =AVERAGE(G12:G23) -> 1045.083333 | G196: =AVERAGE(J12:J23) -> 132 | I196: =AVERAGE(M12:M23) -> 82.41666667 | K196: =AVERAGE(P12:P23) -> 48 | M196: =AVERAGE(S12:S23) -> 2929
B197: =$C$7-10 -> 2017 | C197: =AVERAGE(E24:E35) -> 9043.25 | D197: =C197/C196 -> 1.012417435 | E197: =AVERAGE(G24:G35) -> 1060.833333 | F197: 1.015070569 | G197: =AVERAGE(J24:J35) -> 126.25 | H197: =G197/G196 -> 0.9564393939 | I197: =AVERAGE(M24:M35) -> 82 | J197: =I197/I196 -> 0.9949443883 | K197: =AVERAGE(P24:P35) -> 48 | L197: =K197/K196 -> 1 | M197: =AVERAGE(S24:S35) -> 3082 | N197: 1.052236258
B198: =$C$7-9 -> 2018 | C198: =AVERAGE(E36:E47) -> 9132.416667 | D198: 1.009860025 | E198: =AVERAGE(G36:G47) -> 1080.416667 | F198: 1.01846033 | G198: =AVERAGE(J36:J47) -> 119 | H198: 0.9425742574 | I198: =AVERAGE(M36:M47) -> 82 | J198: 1 | K198: =AVERAGE(P36:P47) -> 49 | L198: 1.020833333 | M198: =AVERAGE(S36:S47) -> 3082 | N198: 1
B199: =$C$7-8 -> 2019 | C199: =AVERAGE(E48:E59) -> 9213.416667 | D199: 1.008869503 | E199: =AVERAGE(G48:G59) -> 1085.416667 | F199: 1.004627844 | G199: =AVERAGE(J48:J59) -> 112.5833333 | H199: 0.9460784314 | I199: =AVERAGE(M48:M59) -> 81.75 | J199: 0.9969512195 | K199: =AVERAGE(P48:P59) -> 46 | L199: 0.9387755102 | M199: =AVERAGE(S48:S59) -> 3082 | N199: 1
B200: =$C$7-7 -> 2020 | C200: =AVERAGE(E60:E71) -> 9332 | D200: 1.012870723 | E200: =AVERAGE(G60:G71) -> 1079.333333 | F200: 0.9943953935 | G200: =AVERAGE(J60:J71) -> 108.0833333 | H200: 0.9600296077 | I200: =AVERAGE(M60:M71) -> 81.41666667 | J200: 0.995922528 | K200: =AVERAGE(P60:P71) -> 50 | L200: 1.086956522 | M200: =AVERAGE(S60:S71) -> 3082 | N200: 1
B201: =$C$7-6 -> 2021 | C201: =AVERAGE(E72:E83) -> 9441.916667 | D201: 1.011778468 | E201: =AVERAGE(G72:G83) -> 1090.833333 | F201: 1.010654725 | G201: =AVERAGE(J72:J83) -> 109.3333333 | H201: 1.01156515 | I201: =AVERAGE(M72:M83) -> 82 | J201: 1.00716479 | K201: =AVERAGE(P72:P83) -> 51 | L201: 1.02 | M201: =AVERAGE(S72:S83) -> 3082 | N201: 1
B202: =$C$7-5 -> 2022 | C202: =AVERAGE(E84:E95) -> 9557.833333 | D202: 1.012276815 | E202: =AVERAGE(G84:G95) -> 1104.083333 | F202: 1.012146677 | G202: =AVERAGE(J84:J95) -> 111.5833333 | H202: 1.020579268 | I202: =AVERAGE(M84:M95) -> 86.16666667 | J202: 1.050813008 | K202: =AVERAGE(P84:P95) -> 51 | L202: 1 | M202: =AVERAGE(S84:S95) -> 3082 | N202: 1
B203: =$C$7-4 -> 2023 | C203: =AVERAGE(E96:E107) -> 9685.583333 | D203: 1.013366 | E203: =AVERAGE(G96:G107) -> 1111.166667 | F203: 1.006415579 | G203: =AVERAGE(J96:J107) -> 111.4166667 | H203: 0.998506348 | I203: =AVERAGE(M96:M107) -> 90.33333333 | J203: 1.048355899 | K203: =AVERAGE(P96:P107) -> 51 | L203: 1 | M203: =AVERAGE(S96:S107) -> 3082 | N203: 1
B204: =$C$7-3 -> 2024 | C204: =AVERAGE(E108:E119) -> 9962.416667 | D204: 1.028581999 | E204: =AVERAGE(G108:G119) -> 1114.083333 | F204: 1.002624869 | G204: =AVERAGE(J108:J119) -> 111.25 | H204: 0.9985041137 | I204: =AVERAGE(M108:M119) -> 94.66666667 | J204: 1.04797048 | K204: =AVERAGE(P108:P119) -> 49.33333333 | L204: 0.9673202614 | M204: =AVERAGE(S108:S119) -> 3082 | N204: 1
B205: =$C$7-2 -> 2025 | C205: =AVERAGE(E120:E131) -> 10168.33333 | D205: 1.020669349 | E205: =AVERAGE(G120:G131) -> 1115.083333 | F205: 1.000897599 | G205: =AVERAGE(J120:J131) -> 112.25 | H205: 1.008988764 | I205: =AVERAGE(M120:M131) -> 96 | J205: 1.014084507 | K205: =AVERAGE(P120:P131) -> 49 | L205: 0.9932432432 | M205: =AVERAGE(S120:S131) -> 3082 | N205: 1
B207: Geomean | D207: =GEOMEAN(IF(D197:D205>0,D197:D205)) -> 1.014504254 | F207: =GEOMEAN(IF(F197:F205>0,F197:F205)) -> 1.007229621 | H207: =GEOMEAN(IF(H197:H205>0,H197:H205)) -> 0.9821530228 | J207: =GEOMEAN(IF(J197:J205>0,J197:J205)) -> 1.017095654 | L207: =GEOMEAN(IF(L197:L205>0,L197:L205)) -> 1.002293658 | N207: =GEOMEAN(IF(N197:N205>0,N197:N205)) -> 1.005673553
B209: =$C$7-1 -> 2026 | C209: =C205*D207 -> 10315.81743 | E209: =E205*F207 -> 1123.144963 | G209: =G205*H207 -> 110.2466768 | I209: =I205*J207 -> 97.64118279 | K209: =K205*L207 -> 49.11238926 | M209: =M205*N207 -> 3099.48589
B210: =$C$7 -> 2027 | C210: =C209*D207 -> 10465.44066 | E210: =E209*F207 -> 1131.264876 | G210: =G209*H207 -> 108.2791069 | I210: =I209*J207 -> 99.31042267 | K210: =K209*L207 -> 49.2250363 | M210: =M209*N207 -> 3117.070986

Sheet Adjustments and Var
B9: A D J U S T E D W H O L E S A L E | K9: V A R I A B L E S U S E D I N R E G R E S S I O N
C10: Unadjusted Wholesale Purchases kWh | D10: Weetablx | E10: Load Adjustments | F10: Load Adjustments | G10: Load Adjustments | H10: Load Adjustments | I10: Revised Wholesale Purchases | K10: HDD (TO) | L10: CDD (TO) | M10: NoD in Month | N10: Spring Fall | O10: Cust Count | P10: Covid Intensity
B11: ='Monthly Load & Cust Input'!B12 -> 2016-01-01 | C11: 22128983.59 | D11: 3507090 | I11: =C11-D11 -> 18621893.59 | K11: 670.4 | L11: 0 | M11: 31 | N11: 0 | O11: ='Monthly Load & Cust Input'!E12+'Monthly Load & Cust Input'!G12+'Monthly Load & Cust Input'!J12 -> 10054 | P11: 0
B12: ='Monthly Load & Cust Input'!B13 -> 2016-02-01 | C12: 20791079.84 | D12: 3024482 | I12: 17766597.84 | K12: 588.4 | L12: 0 | M12: 29 | N12: 0 | O12: ='Monthly Load & Cust Input'!E13+'Monthly Load & Cust Input'!G13+'Monthly Load & Cust Input'!J13 -> 10061 | P12: 0
B13: ='Monthly Load & Cust Input'!B14 -> 2016-03-01 | C13: 20729495.02 | D13: 3414048 | I13: 17315447.02 | K13: 476.1 | L13: 0 | M13: 31 | N13: 0 | O13: ='Monthly Load & Cust Input'!E14+'Monthly Load & Cust Input'!G14+'Monthly Load & Cust Input'!J14 -> 10069 | P13: 0
B14: ='Monthly Load & Cust Input'!B15 -> 2016-04-01 | C14: 18914746.61 | D14: 3285249 | I14: 15629497.61 | K14: 394.8 | L14: 0 | M14: 30 | N14: 1 | O14: ='Monthly Load & Cust Input'!E15+'Monthly Load & Cust Input'!G15+'Monthly Load & Cust Input'!J15 -> 10068 | P14: 0
B15: ='Monthly Load & Cust Input'!B16 -> 2016-05-01 | C15: 18623767.87 | D15: 3520631 | I15: 15103136.87 | K15: 142.5 | L15: 36.9 | M15: 31 | N15: 1 | O15: ='Monthly Load & Cust Input'!E16+'Monthly Load & Cust Input'!G16+'Monthly Load & Cust Input'!J16 -> 10090 | P15: 0
B16: ='Monthly Load & Cust Input'!B17 -> 2016-06-01 | C16: 18879367.37 | D16: 3973406 | I16: 14905961.37 | K16: 24.2 | L16: 83.7 | M16: 30 | N16: 1 | O16: ='Monthly Load & Cust Input'!E17+'Monthly Load & Cust Input'!G17+'Monthly Load & Cust Input'!J17 -> 10107 | P16: 0
B17: ='Monthly Load & Cust Input'!B18 -> 2016-07-01 | C17: 20415103.31 | D17: 2180543 | I17: 18234560.31 | K17: 0 | L17: 176.9 | M17: 31 | N17: 0 | O17: ='Monthly Load & Cust Input'!E18+'Monthly Load & Cust Input'!G18+'Monthly Load & Cust Input'!J18 -> 10110 | P17: 0
B18: ='Monthly Load & Cust Input'!B19 -> 2016-08-01 | C18: 22505106.31 | D18: 4342388 | I18: 18162718.31 | K18: 0 | L18: 195.4 | M18: 31 | N18: 0 | O18: ='Monthly Load & Cust Input'!E19+'Monthly Load & Cust Input'!G19+'Monthly Load & Cust Input'!J19 -> 10117 | P18: 0
B19: ='Monthly Load & Cust Input'!B20 -> 2016-09-01 | C19: 19119452.39 | D19: 3743625 | I19: 15375827.39 | K19: 25.9 | L19: 69.4 | M19: 30 | N19: 1 | O19: ='Monthly Load & Cust Input'!E20+'Monthly Load & Cust Input'!G20+'Monthly Load & Cust Input'!J20 -> 10142 | P19: 0
B20: ='Monthly Load & Cust Input'!B21 -> 2016-10-01 | C20: 18469062.56 | D20: 3460236 | I20: 15008826.56 | K20: 194.2 | L20: 4.1 | M20: 31 | N20: 1 | O20: ='Monthly Load & Cust Input'!E21+'Monthly Load & Cust Input'!G21+'Monthly Load & Cust Input'!J21 -> 10155 | P20: 0
B21: ='Monthly Load & Cust Input'!B22 -> 2016-11-01 | C21: 19212109.23 | D21: 3389492 | I21: 15822617.23 | K21: 337.8 | L21: 0 | M21: 30 | N21: 1 | O21: ='Monthly Load & Cust Input'!E22+'Monthly Load & Cust Input'!G22+'Monthly Load & Cust Input'!J22 -> 10169 | P21: 0
B22: ='Monthly Load & Cust Input'!B23 -> 2016-12-01 | C22: 21217584.99 | D22: 3165661 | I22: 18051923.99 | K22: 608 | L22: 0 | M22: 31 | N22: 0 | O22: ='Monthly Load & Cust Input'!E23+'Monthly Load & Cust Input'!G23+'Monthly Load & Cust Input'!J23 -> 10171 | P22: 0
B23: ='Monthly Load & Cust Input'!B24 -> 2017-01-01 | C23: 21675233.3 | D23: 3200134 | I23: 18475099.3 | K23: 608.9 | L23: 0 | M23: 31 | N23: 0 | O23: ='Monthly Load & Cust Input'!E24+'Monthly Load & Cust Input'!G24+'Monthly Load & Cust Input'!J24 -> 10182 | P23: 0
B24: ='Monthly Load & Cust Input'!B25 -> 2017-02-01 | C24: 19655486.64 | D24: 2819515 | I24: 16835971.64 | K24: 510.4 | L24: 0 | M24: 28 | N24: 0 | O24: ='Monthly Load & Cust Input'!E25+'Monthly Load & Cust Input'!G25+'Monthly Load & Cust Input'!J25 -> 10191 | P24: 0
B25: ='Monthly Load & Cust Input'!B26 -> 2017-03-01 | C25: 21768044.61 | D25: 3049689 | I25: 18718355.61 | K25: 574 | L25: 0 | M25: 31 | N25: 0 | O25: ='Monthly Load & Cust Input'!E26+'Monthly Load & Cust Input'!G26+'Monthly Load & Cust Input'!J26 -> 10201 | P25: 0
B26: ='Monthly Load & Cust Input'!B27 -> 2017-04-01 | C26: 18282963.48 | D26: 2688220 | I26: 15594743.48 | K26: 257.5 | L26: 0 | M26: 30 | N26: 1 | O26: ='Monthly Load & Cust Input'!E27+'Monthly Load & Cust Input'!G27+'Monthly Load & Cust Input'!J27 -> 10217 | P26: 0
B27: ='Monthly Load & Cust Input'!B28 -> 2017-05-01 | C27: 18324755.43 | D27: 3501154 | I27: 14823601.43 | K27: 177 | L27: 9 | M27: 31 | N27: 1 | O27: ='Monthly Load & Cust Input'!E28+'Monthly Load & Cust Input'!G28+'Monthly Load & Cust Input'!J28 -> 10211 | P27: 0
B28: ='Monthly Load & Cust Input'!B29 -> 2017-06-01 | C28: 18320340 | D28: 3563216 | I28: 14757124 | K28: 26.7 | L28: 68.2 | M28: 30 | N28: 1 | O28: ='Monthly Load & Cust Input'!E29+'Monthly Load & Cust Input'!G29+'Monthly Load & Cust Input'!J29 -> 10235 | P28: 0
B29: ='Monthly Load & Cust Input'!B30 -> 2017-07-01 | C29: 19587017.26 | D29: 1991093 | I29: 17595924.26 | K29: 0 | L29: 116.5 | M29: 31 | N29: 0 | O29: ='Monthly Load & Cust Input'!E30+'Monthly Load & Cust Input'!G30+'Monthly Load & Cust Input'!J30 -> 10241 | P29: 0
B30: ='Monthly Load & Cust Input'!B31 -> 2017-08-01 | C30: 20134470.87 | D30: 3727629 | I30: 16406841.87 | K30: 11.6 | L30: 75.2 | M30: 31 | N30: 0 | O30: ='Monthly Load & Cust Input'!E31+'Monthly Load & Cust Input'!G31+'Monthly Load & Cust Input'!J31 -> 10241 | P30: 0
B31: ='Monthly Load & Cust Input'!B32 -> 2017-09-01 | C31: 18659128.71 | D31: 3822654 | I31: 14836474.71 | K31: 49.1 | L31: 71.5 | M31: 30 | N31: 1 | O31: ='Monthly Load & Cust Input'!E32+'Monthly Load & Cust Input'!G32+'Monthly Load & Cust Input'!J32 -> 10243 | P31: 0
B32: ='Monthly Load & Cust Input'!B33 -> 2017-10-01 | C32: 18955855.38 | D32: 3721818 | I32: 15234037.38 | K32: 154 | L32: 8.1 | M32: 31 | N32: 1 | O32: ='Monthly Load & Cust Input'!E33+'Monthly Load & Cust Input'!G33+'Monthly Load & Cust Input'!J33 -> 10246 | P32: 0
B33: ='Monthly Load & Cust Input'!B34 -> 2017-11-01 | C33: 20295421.01 | D33: 3567830 | I33: 16727591.01 | K33: 414.2 | L33: 0 | M33: 30 | N33: 1 | O33: ='Monthly Load & Cust Input'!E34+'Monthly Load & Cust Input'!G34+'Monthly Load & Cust Input'!J34 -> 10273 | P33: 0
B34: ='Monthly Load & Cust Input'!B35 -> 2017-12-01 | C34: 22510869.11 | D34: 2180868 | I34: 20330001.11 | K34: 718.5 | L34: 0 | M34: 31 | N34: 0 | O34: ='Monthly Load & Cust Input'!E35+'Monthly Load & Cust Input'!G35+'Monthly Load & Cust Input'!J35 -> 10283 | P34: 0
B35: ='Monthly Load & Cust Input'!B36 -> 2018-01-01 | C35: 23926993.53 | D35: 3545205 | I35: 20381788.53 | K35: 732.3 | L35: 0 | M35: 31 | N35: 0 | O35: ='Monthly Load & Cust Input'!E36+'Monthly Load & Cust Input'!G36+'Monthly Load & Cust Input'!J36 -> 10288 | P35: 0
B36: ='Monthly Load & Cust Input'!B37 -> 2018-02-01 | C36: 20543060.89 | D36: 3004875 | I36: 17538185.89 | K36: 555 | L36: 0 | M36: 28 | N36: 0 | O36: ='Monthly Load & Cust Input'!E37+'Monthly Load & Cust Input'!G37+'Monthly Load & Cust Input'!J37 -> 10292 | P36: 0
B37: ='Monthly Load & Cust Input'!B38 -> 2018-03-01 | C37: 21389943.51 | D37: 3340415 | I37: 18049528.51 | K37: 554 | L37: 0 | M37: 31 | N37: 0 | O37: ='Monthly Load & Cust Input'!E38+'Monthly Load & Cust Input'!G38+'Monthly Load & Cust Input'!J38 -> 10307 | P37: 0
B38: ='Monthly Load & Cust Input'!B39 -> 2018-04-01 | C38: 20175553.09 | D38: 3116781 | I38: 17058772.09 | K38: 418.9 | L38: 0 | M38: 30 | N38: 1 | O38: ='Monthly Load & Cust Input'!E39+'Monthly Load & Cust Input'!G39+'Monthly Load & Cust Input'!J39 -> 10332 | P38: 0
B39: ='Monthly Load & Cust Input'!B40 -> 2018-05-01 | C39: 19098635.89 | D39: 3809300 | I39: 15289335.89 | K39: 75.3 | L39: 43.4 | M39: 31 | N39: 1 | O39: ='Monthly Load & Cust Input'!E40+'Monthly Load & Cust Input'!G40+'Monthly Load & Cust Input'!J40 -> 10338 | P39: 0
B40: ='Monthly Load & Cust Input'!B41 -> 2018-06-01 | C40: 19057522.98 | D40: 3708544 | I40: 15348978.98 | K40: 14.8 | L40: 60.5 | M40: 30 | N40: 1 | O40: ='Monthly Load & Cust Input'!E41+'Monthly Load & Cust Input'!G41+'Monthly Load & Cust Input'!J41 -> 10340 | P40: 0
B41: ='Monthly Load & Cust Input'!B42 -> 2018-07-01 | C41: 22061034.05 | D41: 2242314 | I41: 19818720.05 | K41: 0 | L41: 167.8 | M41: 31 | N41: 0 | O41: ='Monthly Load & Cust Input'!E42+'Monthly Load & Cust Input'!G42+'Monthly Load & Cust Input'!J42 -> 10343 | P41: 0
B42: ='Monthly Load & Cust Input'!B43 -> 2018-08-01 | C42: 22539963.3 | D42: 3956549 | I42: 18583414.3 | K42: 1.2 | L42: 162.4 | M42: 31 | N42: 0 | O42: ='Monthly Load & Cust Input'!E43+'Monthly Load & Cust Input'!G43+'Monthly Load & Cust Input'!J43 -> 10342 | P42: 0
B43: ='Monthly Load & Cust Input'!B44 -> 2018-09-01 | C43: 20358548.39 | D43: 3810317 | I43: 16548231.39 | K43: 41.4 | L43: 76.4 | M43: 30 | N43: 1 | O43: ='Monthly Load & Cust Input'!E44+'Monthly Load & Cust Input'!G44+'Monthly Load & Cust Input'!J44 -> 10341 | P43: 0
B44: ='Monthly Load & Cust Input'!B45 -> 2018-10-01 | C44: 20192182.21 | D44: 3841426 | I44: 16350756.21 | K44: 289.4 | L44: 8.2 | M44: 31 | N44: 1 | O44: ='Monthly Load & Cust Input'!E45+'Monthly Load & Cust Input'!G45+'Monthly Load & Cust Input'!J45 -> 10348 | P44: 0
B45: ='Monthly Load & Cust Input'!B46 -> 2018-11-01 | C45: 21148072.07 | D45: 3666484 | I45: 17481588.07 | K45: 494.1 | L45: 0 | M45: 30 | N45: 1 | O45: ='Monthly Load & Cust Input'!E46+'Monthly Load & Cust Input'!G46+'Monthly Load & Cust Input'!J46 -> 10358 | P45: 0
B46: ='Monthly Load & Cust Input'!B47 -> 2018-12-01 | C46: 21236189.78 | D46: 2643825 | I46: 18592364.78 | K46: 563.6 | L46: 0 | M46: 31 | N46: 0 | O46: ='Monthly Load & Cust Input'!E47+'Monthly Load & Cust Input'!G47+'Monthly Load & Cust Input'!J47 -> 10353 | P46: 0
B47: ='Monthly Load & Cust Input'!B48 -> 2019-01-01 | C47: 24145305.05 | D47: 4139978 | I47: 20005327.05 | K47: 764.5 | L47: 0 | M47: 31 | N47: 0 | O47: ='Monthly Load & Cust Input'!E48+'Monthly Load & Cust Input'!G48+'Monthly Load & Cust Input'!J48 -> 10380 | P47: 0
B48: ='Monthly Load & Cust Input'!B49 -> 2019-02-01 | C48: 21398682.48 | D48: 3398614 | I48: 18000068.48 | K48: 621.7 | L48: 0 | M48: 28 | N48: 0 | O48: ='Monthly Load & Cust Input'!E49+'Monthly Load & Cust Input'!G49+'Monthly Load & Cust Input'!J49 -> 10383 | P48: 0
B49: ='Monthly Load & Cust Input'!B50 -> 2019-03-01 | C49: 22360479.21 | D49: 4105287 | I49: 18255192.21 | K49: 593.9 | L49: 0 | M49: 31 | N49: 0 | O49: ='Monthly Load & Cust Input'!E50+'Monthly Load & Cust Input'!G50+'Monthly Load & Cust Input'!J50 -> 10383 | P49: 0
B50: ='Monthly Load & Cust Input'!B51 -> 2019-04-01 | C50: 19544511.06 | D50: 3750606 | I50: 15793905.06 | K50: 346.8 | L50: 0 | M50: 30 | N50: 1 | O50: ='Monthly Load & Cust Input'!E51+'Monthly Load & Cust Input'!G51+'Monthly Load & Cust Input'!J51 -> 10390 | P50: 0
B51: ='Monthly Load & Cust Input'!B52 -> 2019-05-01 | C51: 18907303.98 | D51: 4079829 | I51: 14827474.98 | K51: 181 | L51: 0 | M51: 31 | N51: 1 | O51: ='Monthly Load & Cust Input'!E52+'Monthly Load & Cust Input'!G52+'Monthly Load & Cust Input'!J52 -> 10406 | P51: 0
B52: ='Monthly Load & Cust Input'!B53 -> 2019-06-01 | C52: 18667603.25 | D52: 4553968 | I52: 14113635.25 | K52: 35.5 | L52: 41.3 | M52: 30 | N52: 1 | O52: ='Monthly Load & Cust Input'!E53+'Monthly Load & Cust Input'!G53+'Monthly Load & Cust Input'!J53 -> 10417 | P52: 0
B53: ='Monthly Load & Cust Input'!B54 -> 2019-07-01 | C53: 22326158.12 | D53: 4734879 | I53: 17591279.12 | K53: 0 | L53: 166.9 | M53: 31 | N53: 0 | O53: ='Monthly Load & Cust Input'!E54+'Monthly Load & Cust Input'!G54+'Monthly Load & Cust Input'!J54 -> 10415 | P53: 0
B54: ='Monthly Load & Cust Input'!B55 -> 2019-08-01 | C54: 20794420.88 | D54: 4335606 | I54: 16458814.88 | K54: 0.9 | L54: 103.3 | M54: 31 | N54: 0 | O54: ='Monthly Load & Cust Input'!E55+'Monthly Load & Cust Input'!G55+'Monthly Load & Cust Input'!J55 -> 10413 | P54: 0
B55: ='Monthly Load & Cust Input'!B56 -> 2019-09-01 | C55: 18971022.19 | D55: 4488927 | I55: 14482095.19 | K55: 38.4 | L55: 25.4 | M55: 30 | N55: 1 | O55: ='Monthly Load & Cust Input'!E56+'Monthly Load & Cust Input'!G56+'Monthly Load & Cust Input'!J56 -> 10417 | P55: 0
B56: ='Monthly Load & Cust Input'!B57 -> 2019-10-01 | C56: 19012970.61 | D56: 3979895 | I56: 15033075.61 | K56: 236.5 | L56: 5.1 | M56: 31 | N56: 1 | O56: ='Monthly Load & Cust Input'!E57+'Monthly Load & Cust Input'!G57+'Monthly Load & Cust Input'!J57 -> 10418 | P56: 0
B57: ='Monthly Load & Cust Input'!B58 -> 2019-11-01 | C57: 21236823.85 | D57: 4077725 | I57: 17159098.85 | K57: 513.3 | L57: 0 | M57: 30 | N57: 1 | O57: ='Monthly Load & Cust Input'!E58+'Monthly Load & Cust Input'!G58+'Monthly Load & Cust Input'!J58 -> 10451 | P57: 0
B58: ='Monthly Load & Cust Input'!B59 -> 2019-12-01 | C58: 21526414.43 | D58: 2216353 | I58: 19310061.43 | K58: 582.4 | L58: 0 | M58: 31 | N58: 0 | O58: ='Monthly Load & Cust Input'!E59+'Monthly Load & Cust Input'!G59+'Monthly Load & Cust Input'!J59 -> 10464 | P58: 0
B59: ='Monthly Load & Cust Input'!B60 -> 2020-01-01 | C59: 22690646.3 | D59: 3628396 | I59: 19062250.3 | K59: 605 | L59: 0 | M59: 31 | N59: 0 | O59: ='Monthly Load & Cust Input'!E60+'Monthly Load & Cust Input'!G60+'Monthly Load & Cust Input'!J60 -> 10462 | P59: 0
B60: ='Monthly Load & Cust Input'!B61 -> 2020-02-01 | C60: 21296233.15 | D60: 3242047 | I60: 18054186.15 | K60: 611.8 | L60: 0 | M60: 29 | N60: 0 | O60: ='Monthly Load & Cust Input'!E61+'Monthly Load & Cust Input'!G61+'Monthly Load & Cust Input'!J61 -> 10481 | P60: 0
B61: ='Monthly Load & Cust Input'!B62 -> 2020-03-01 | C61: 20694662.95 | D61: 3614262 | I61: 17080400.95 | K61: 458.7 | L61: 0 | M61: 31 | N61: 0 | O61: ='Monthly Load & Cust Input'!E62+'Monthly Load & Cust Input'!G62+'Monthly Load & Cust Input'!J62 -> 10484 | P61: 0.5
B62: ='Monthly Load & Cust Input'!B63 -> 2020-04-01 | C62: 17448835.34 | D62: 3870417 | I62: 13578418.34 | K62: 362.3 | L62: 0 | M62: 30 | N62: 1 | O62: ='Monthly Load & Cust Input'!E63+'Monthly Load & Cust Input'!G63+'Monthly Load & Cust Input'!J63 -> 10483 | P62: 1
B63: ='Monthly Load & Cust Input'!B64 -> 2020-05-01 | C63: 17603802.59 | D63: 3833290 | I63: 13770512.59 | K63: 208.1 | L63: 24.2 | M63: 31 | N63: 1 | O63: ='Monthly Load & Cust Input'!E64+'Monthly Load & Cust Input'!G64+'Monthly Load & Cust Input'!J64 -> 10498 | P63: 0.75
B64: ='Monthly Load & Cust Input'!B65 -> 2020-06-01 | C64: 19834351.97 | D64: 3905169 | I64: 15929182.97 | K64: 23.8 | L64: 97.7 | M64: 30 | N64: 1 | O64: ='Monthly Load & Cust Input'!E65+'Monthly Load & Cust Input'!G65+'Monthly Load & Cust Input'!J65 -> 10502 | P64: 0.5
B65: ='Monthly Load & Cust Input'!B66 -> 2020-07-01 | C65: 22948221.18 | D65: 4370052 | I65: 18578169.18 | K65: 0 | L65: 215.7 | M65: 31 | N65: 0 | O65: ='Monthly Load & Cust Input'!E66+'Monthly Load & Cust Input'!G66+'Monthly Load & Cust Input'!J66 -> 10512 | P65: 0.25
B66: ='Monthly Load & Cust Input'!B67 -> 2020-08-01 | C66: 21134527.23 | D66: 3614831 | I66: 17519696.23 | K66: 0.8 | L66: 126.7 | M66: 31 | N66: 0 | O66: ='Monthly Load & Cust Input'!E67+'Monthly Load & Cust Input'!G67+'Monthly Load & Cust Input'!J67 -> 10525 | P66: 0.25
B67: ='Monthly Load & Cust Input'!B68 -> 2020-09-01 | C67: 18933263.59 | D67: 3783296 | I67: 15149967.59 | K67: 69.1 | L67: 33.3 | M67: 30 | N67: 1 | O67: ='Monthly Load & Cust Input'!E68+'Monthly Load & Cust Input'!G68+'Monthly Load & Cust Input'!J68 -> 10539 | P67: 0.25
B68: ='Monthly Load & Cust Input'!B69 -> 2020-10-01 | C68: 19378191.99 | D68: 3426947 | I68: 15951244.99 | K68: 270.3 | L68: 0 | M68: 31 | N68: 1 | O68: ='Monthly Load & Cust Input'!E69+'Monthly Load & Cust Input'!G69+'Monthly Load & Cust Input'!J69 -> 10570 | P68: 0.5
B69: ='Monthly Load & Cust Input'!B70 -> 2020-11-01 | C69: 19806512.16 | D69: 3379694 | I69: 16426818.16 | K69: 334.8 | L69: 0 | M69: 30 | N69: 1 | O69: ='Monthly Load & Cust Input'!E70+'Monthly Load & Cust Input'!G70+'Monthly Load & Cust Input'!J70 -> 10589 | P69: 0.75
B70: ='Monthly Load & Cust Input'!B71 -> 2020-12-01 | C70: 21476405.56 | D70: 3196989 | I70: 18279416.56 | K70: 567.3 | L70: 0 | M70: 31 | N70: 0 | O70: ='Monthly Load & Cust Input'!E71+'Monthly Load & Cust Input'!G71+'Monthly Load & Cust Input'!J71 -> 10588 | P70: 1
B71: ='Monthly Load & Cust Input'!B72 -> 2021-01-01 | C71: 22520739.91 | D71: 3846907 | I71: =C71-D71 -> 18673832.91 | K71: 621.2 | L71: 0 | M71: 31 | N71: 0 | O71: ='Monthly Load & Cust Input'!E72+'Monthly Load & Cust Input'!G72+'Monthly Load & Cust Input'!J72 -> 10598 | P71: 1
B72: ='Monthly Load & Cust Input'!B73 -> 2021-02-01 | C72: 21419071.58 | D72: 3596698 | I72: 17822373.58 | K72: 600.9 | L72: 0 | M72: 28 | N72: 0 | O72: ='Monthly Load & Cust Input'!E73+'Monthly Load & Cust Input'!G73+'Monthly Load & Cust Input'!J73 -> 10612 | P72: 0.75
B73: ='Monthly Load & Cust Input'!B74 -> 2021-03-01 | C73: 21323024.3 | D73: 4219718 | I73: 17103306.3 | K73: 460.7 | L73: 0 | M73: 31 | N73: 0 | O73: ='Monthly Load & Cust Input'!E74+'Monthly Load & Cust Input'!G74+'Monthly Load & Cust Input'!J74 -> 10605 | P73: 0.5
B74: ='Monthly Load & Cust Input'!B75 -> 2021-04-01 | C74: 18500418.87 | D74: 3486108 | I74: 15014310.87 | K74: 302.4 | L74: 0 | M74: 30 | N74: 1 | O74: ='Monthly Load & Cust Input'!E75+'Monthly Load & Cust Input'!G75+'Monthly Load & Cust Input'!J75 -> 10622 | P74: 1
B75: ='Monthly Load & Cust Input'!B76 -> 2021-05-01 | C75: 18183990.48 | D75: 3360130 | I75: 14823860.48 | K75: 164.2 | L75: 27.9 | M75: 31 | N75: 1 | O75: ='Monthly Load & Cust Input'!E76+'Monthly Load & Cust Input'!G76+'Monthly Load & Cust Input'!J76 -> 10626 | P75: 0.75
B76: ='Monthly Load & Cust Input'!B77 -> 2021-06-01 | C76: 19233839.84 | D76: 3197542 | I76: 16036297.84 | K76: 7 | L76: 122 | M76: 30 | N76: 1 | O76: ='Monthly Load & Cust Input'!E77+'Monthly Load & Cust Input'!G77+'Monthly Load & Cust Input'!J77 -> 10646 | P76: 0.5
B77: ='Monthly Load & Cust Input'!B78 -> 2021-07-01 | C77: 20455070.15 | D77: 3568725 | I77: 16886345.15 | K77: 4.4 | L77: 101.7 | M77: 31 | N77: 0 | O77: ='Monthly Load & Cust Input'!E78+'Monthly Load & Cust Input'!G78+'Monthly Load & Cust Input'!J78 -> 10651 | P77: 0.25
B78: ='Monthly Load & Cust Input'!B79 -> 2021-08-01 | C78: 22711582.54 | D78: 3927828 | I78: 18783754.54 | K78: 0 | L78: 178.5 | M78: 31 | N78: 0 | O78: ='Monthly Load & Cust Input'!E79+'Monthly Load & Cust Input'!G79+'Monthly Load & Cust Input'!J79 -> 10650 | P78: 0.25
B79: ='Monthly Load & Cust Input'!B80 -> 2021-09-01 | C79: 18577062.69 | D79: 2705931 | I79: 15871131.69 | K79: 35.6 | L79: 24.9 | M79: 30 | N79: 1 | O79: ='Monthly Load & Cust Input'!E80+'Monthly Load & Cust Input'!G80+'Monthly Load & Cust Input'!J80 -> 10646 | P79: 0.25
B80: ='Monthly Load & Cust Input'!B81 -> 2021-10-01 | C80: 19050459 | D80: 3373741 | I80: 15676718 | K80: 145.2 | L80: 5.6 | M80: 31 | N80: 1 | O80: ='Monthly Load & Cust Input'!E81+'Monthly Load & Cust Input'!G81+'Monthly Load & Cust Input'!J81 -> 10662 | P80: 0.25
B81: ='Monthly Load & Cust Input'!B82 -> 2021-11-01 | C81: 20073180.63 | D81: 3273675 | I81: 16799505.63 | K81: 413.7 | L81: 0 | M81: 30 | N81: 1 | O81: ='Monthly Load & Cust Input'!E82+'Monthly Load & Cust Input'!G82+'Monthly Load & Cust Input'!J82 -> 10681 | P81: 0.25
B82: ='Monthly Load & Cust Input'!B83 -> 2021-12-01 | C82: 21571148.6 | D82: 3004892 | I82: 18566256.6 | K82: 445.8 | L82: 0 | M82: 31 | N82: 0 | O82: ='Monthly Load & Cust Input'!E83+'Monthly Load & Cust Input'!G83+'Monthly Load & Cust Input'!J83 -> 10706 | P82: 0.5
B83: ='Monthly Load & Cust Input'!B84 -> 2022-01-01 | C83: 24417231.32 | D83: 3326441 | I83: 21090790.32 | K83: 737 | L83: 0 | M83: 31 | N83: 0 | O83: ='Monthly Load & Cust Input'!E84+'Monthly Load & Cust Input'!G84+'Monthly Load & Cust Input'!J84 -> 10706 | P83: 0.75
B84: ='Monthly Load & Cust Input'!B85 -> 2022-02-01 | C84: 21919603.43 | D84: 3023751 | I84: 18895852.43 | K84: 585 | L84: 0 | M84: 28 | N84: 0 | O84: ='Monthly Load & Cust Input'!E85+'Monthly Load & Cust Input'!G85+'Monthly Load & Cust Input'!J85 -> 10722 | P84: 0.5
B85: ='Monthly Load & Cust Input'!B86 -> 2022-03-01 | C85: 22889653.74 | D85: 3335156 | I85: 19554497.74 | K85: 524 | L85: 0 | M85: 31 | N85: 0 | O85: ='Monthly Load & Cust Input'!E86+'Monthly Load & Cust Input'!G86+'Monthly Load & Cust Input'!J86 -> 10732 | P85: 0.25
B86: ='Monthly Load & Cust Input'!B87 -> 2022-04-01 | C86: 19534291.81 | D86: 3081833 | I86: 16452458.81 | K86: 328 | L86: 0 | M86: 30 | N86: 1 | O86: ='Monthly Load & Cust Input'!E87+'Monthly Load & Cust Input'!G87+'Monthly Load & Cust Input'!J87 -> 10741 | P86: 0.25
B87: ='Monthly Load & Cust Input'!B88 -> 2022-05-01 | C87: 19074156.39 | D87: 3486176 | I87: 15587980.39 | K87: 112 | L87: 35 | M87: 31 | N87: 1 | O87: ='Monthly Load & Cust Input'!E88+'Monthly Load & Cust Input'!G88+'Monthly Load & Cust Input'!J88 -> 10754 | P87: 0
B88: ='Monthly Load & Cust Input'!B89 -> 2022-06-01 | C88: 19283498.63 | D88: 3642020 | I88: 15641478.63 | K88: 18 | L88: 64 | M88: 30 | N88: 1 | O88: ='Monthly Load & Cust Input'!E89+'Monthly Load & Cust Input'!G89+'Monthly Load & Cust Input'!J89 -> 10772 | P88: 0
B89: ='Monthly Load & Cust Input'!B90 -> 2022-07-01 | C89: 20809203.44 | D89: 2860287 | I89: 17948916.44 | K89: 0 | L89: 145 | M89: 31 | N89: 0 | O89: ='Monthly Load & Cust Input'!E90+'Monthly Load & Cust Input'!G90+'Monthly Load & Cust Input'!J90 -> 10781 | P89: 0
B90: ='Monthly Load & Cust Input'!B91 -> 2022-08-01 | C90: 22213048.16 | D90: 4108120 | I90: 18104928.16 | K90: 0 | L90: 140 | M90: 31 | N90: 0 | O90: ='Monthly Load & Cust Input'!E91+'Monthly Load & Cust Input'!G91+'Monthly Load & Cust Input'!J91 -> 10784 | P90: 0
B91: ='Monthly Load & Cust Input'!B92 -> 2022-09-01 | C91: 19217568.52 | D91: 3858850 | I91: 15358718.52 | K91: 52 | L91: 46 | M91: 30 | N91: 1 | O91: ='Monthly Load & Cust Input'!E92+'Monthly Load & Cust Input'!G92+'Monthly Load & Cust Input'!J92 -> 10793 | P91: 0
B92: ='Monthly Load & Cust Input'!B93 -> 2022-10-01 | C92: 18769593.14 | D92: 3753227 | I92: 15016366.14 | K92: 237 | L92: 0 | M92: 31 | N92: 1 | O92: ='Monthly Load & Cust Input'!E93+'Monthly Load & Cust Input'!G93+'Monthly Load & Cust Input'!J93 -> 10827 | P92: 0
B93: ='Monthly Load & Cust Input'!B94 -> 2022-11-01 | C93: 20457408.48 | D93: 3488136 | I93: 16969272.48 | K93: 380 | L93: 1 | M93: 30 | N93: 1 | O93: ='Monthly Load & Cust Input'!E94+'Monthly Load & Cust Input'!G94+'Monthly Load & Cust Input'!J94 -> 10832 | P93: 0
B94: ='Monthly Load & Cust Input'!B95 -> 2022-12-01 | C94: 21382190.12 | D94: 2792954 | I94: 18589236.12 | K94: 575 | L94: 0 | M94: 31 | N94: 0 | O94: ='Monthly Load & Cust Input'!E95+'Monthly Load & Cust Input'!G95+'Monthly Load & Cust Input'!J95 -> 10838 | P94: 0
B95: ='Monthly Load & Cust Input'!B96 -> 2023-01-01 | C95: 23197281.51 | D95: 3206371 | I95: 19990910.51 | K95: 585.1 | L95: 0 | M95: 31 | N95: 0 | O95: ='Monthly Load & Cust Input'!E96+'Monthly Load & Cust Input'!G96+'Monthly Load & Cust Input'!J96 -> 10839 | P95: 0
B96: ='Monthly Load & Cust Input'!B97 -> 2023-02-01 | C96: 21182250.55 | D96: 3132848 | I96: 18049402.55 | K96: 543.3 | L96: 0 | M96: 28 | N96: 0 | O96: ='Monthly Load & Cust Input'!E97+'Monthly Load & Cust Input'!G97+'Monthly Load & Cust Input'!J97 -> 10861 | P96: 0
B97: ='Monthly Load & Cust Input'!B98 -> 2023-03-01 | C97: 22364072.37 | D97: 3352774 | I97: 19011298.37 | K97: 530.9 | L97: 0 | M97: 31 | N97: 0 | O97: ='Monthly Load & Cust Input'!E98+'Monthly Load & Cust Input'!G98+'Monthly Load & Cust Input'!J98 -> 10870 | P97: 0
B98: ='Monthly Load & Cust Input'!B99 -> 2023-04-01 | C98: 18641615 | D98: 2748414 | I98: 15893201 | K98: 275.7 | L98: 7.1 | M98: 30 | N98: 1 | O98: ='Monthly Load & Cust Input'!E99+'Monthly Load & Cust Input'!G99+'Monthly Load & Cust Input'!J99 -> 10869 | P98: 0
B99: ='Monthly Load & Cust Input'!B100 -> 2023-05-01 | C99: 18228640.12 | D99: 3224573 | I99: 15004067.12 | K99: 153.9 | L99: 15 | M99: 31 | N99: 1 | O99: ='Monthly Load & Cust Input'!E100+'Monthly Load & Cust Input'!G100+'Monthly Load & Cust Input'!J100 -> 10898 | P99: 0
B100: ='Monthly Load & Cust Input'!B101 -> 2023-06-01 | C100: 18814559.75 | D100: 2889950 | I100: 15924609.75 | K100: 16.1 | L100: 59.1 | M100: 30 | N100: 1 | O100: ='Monthly Load & Cust Input'!E101+'Monthly Load & Cust Input'!G101+'Monthly Load & Cust Input'!J101 -> 10903 | P100: 0
B101: ='Monthly Load & Cust Input'!B102 -> 2023-07-01 | C101: 20557221.62 | D101: 2480738 | I101: 18076483.62 | K101: 0 | L101: 128.3 | M101: 31 | N101: 0 | O101: ='Monthly Load & Cust Input'!E102+'Monthly Load & Cust Input'!G102+'Monthly Load & Cust Input'!J102 -> 10909 | P101: 0
B102: ='Monthly Load & Cust Input'!B103 -> 2023-08-01 | C102: 19639476.5 | D102: 2323211 | I102: 17316265.5 | K102: 7 | L102: 70.8 | M102: 31 | N102: 0 | O102: ='Monthly Load & Cust Input'!E103+'Monthly Load & Cust Input'!G103+'Monthly Load & Cust Input'!J103 -> 10922 | P102: 0
B103: ='Monthly Load & Cust Input'!B104 -> 2023-09-01 | C103: 18056113.69 | D103: 2021901 | I103: 16034212.69 | K103: 26 | L103: 47 | M103: 30 | N103: 1 | O103: ='Monthly Load & Cust Input'!E104+'Monthly Load & Cust Input'!G104+'Monthly Load & Cust Input'!J104 -> 10932 | P103: 0
B104: ='Monthly Load & Cust Input'!B105 -> 2023-10-01 | C104: 18035612.18 | D104: 2894371 | I104: 15141241.18 | K104: 188.8 | L104: 21.8 | M104: 31 | N104: 1 | O104: ='Monthly Load & Cust Input'!E105+'Monthly Load & Cust Input'!G105+'Monthly Load & Cust Input'!J105 -> 10928 | P104: 0
B105: ='Monthly Load & Cust Input'!B106 -> 2023-11-01 | C105: 19262692.75 | D105: 3091673 | I105: 16171019.75 | K105: 422.1 | L105: 0 | M105: 30 | N105: 1 | O105: ='Monthly Load & Cust Input'!E106+'Monthly Load & Cust Input'!G106+'Monthly Load & Cust Input'!J106 -> 10958 | P105: 0
B106: ='Monthly Load & Cust Input'!B107 -> 2023-12-01 | C106: 19526810.25 | D106: 2195258 | I106: 17331552.25 | K106: 473.7 | L106: 0 | M106: 31 | N106: 0 | O106: ='Monthly Load & Cust Input'!E107+'Monthly Load & Cust Input'!G107+'Monthly Load & Cust Input'!J107 -> 11009 | P106: 0
B107: ='Monthly Load & Cust Input'!B108 -> 2024-01-01 | C107: 22396390.63 | D107: 3156682 | I107: 19239708.63 | K107: 623.4 | L107: 0 | M107: 31 | N107: 0 | O107: ='Monthly Load & Cust Input'!E108+'Monthly Load & Cust Input'!G108+'Monthly Load & Cust Input'!J108 -> 11064 | P107: 0
B108: ='Monthly Load & Cust Input'!B109 -> 2024-02-01 | C108: 19553177.37 | D108: 2611073 | I108: 16942104.37 | K108: 517.4 | L108: 0 | M108: 29 | N108: 0 | O108: ='Monthly Load & Cust Input'!E109+'Monthly Load & Cust Input'!G109+'Monthly Load & Cust Input'!J109 -> 11069 | P108: 0
B109: ='Monthly Load & Cust Input'!B110 -> 2024-03-01 | C109: 19698219.58 | D109: 3079961 | I109: 16618258.58 | K109: 443.6 | L109: 0 | M109: 31 | N109: 0 | O109: ='Monthly Load & Cust Input'!E110+'Monthly Load & Cust Input'!G110+'Monthly Load & Cust Input'!J110 -> 11075 | P109: 0
B110: ='Monthly Load & Cust Input'!B111 -> 2024-04-01 | C110: 18436891.92 | D110: 3426623 | I110: 15010268.92 | K110: 284.7 | L110: 0 | M110: 30 | N110: 1 | O110: ='Monthly Load & Cust Input'!E111+'Monthly Load & Cust Input'!G111+'Monthly Load & Cust Input'!J111 -> 11097 | P110: 0
B111: ='Monthly Load & Cust Input'!B112 -> 2024-05-01 | C111: 17851572.36 | D111: 3564439 | I111: 14287133.36 | K111: 70.3 | L111: 20.8 | M111: 31 | N111: 1 | O111: ='Monthly Load & Cust Input'!E112+'Monthly Load & Cust Input'!G112+'Monthly Load & Cust Input'!J112 -> 11161 | P111: 0
B112: ='Monthly Load & Cust Input'!B113 -> 2024-06-01 | C112: 18941335.35 | D112: 2712629 | I112: 16228706.35 | K112: 20.7 | L112: 82.4 | M112: 30 | N112: 1 | O112: ='Monthly Load & Cust Input'!E113+'Monthly Load & Cust Input'!G113+'Monthly Load & Cust Input'!J113 -> 11171 | P112: 0
B113: ='Monthly Load & Cust Input'!B114 -> 2024-07-01 | C113: 21853500.65 | D113: 3590739 | I113: 18262761.65 | K113: 0.4 | L113: 140.5 | M113: 31 | N113: 0 | O113: ='Monthly Load & Cust Input'!E114+'Monthly Load & Cust Input'!G114+'Monthly Load & Cust Input'!J114 -> 11199 | P113: 0
B114: ='Monthly Load & Cust Input'!B115 -> 2024-08-01 | C114: 20676973.63 | D114: 3282548 | I114: 17394425.63 | K114: 6.8 | L114: 97.4 | M114: 31 | N114: 0 | O114: ='Monthly Load & Cust Input'!E115+'Monthly Load & Cust Input'!G115+'Monthly Load & Cust Input'!J115 -> 11249 | P114: 0
B115: ='Monthly Load & Cust Input'!B116 -> 2024-09-01 | C115: 18614608.05 | D115: 3278715 | I115: 15335893.05 | K115: 19.3 | L115: 43.8 | M115: 30 | N115: 1 | O115: ='Monthly Load & Cust Input'!E116+'Monthly Load & Cust Input'!G116+'Monthly Load & Cust Input'!J116 -> 11253 | P115: 0
B116: ='Monthly Load & Cust Input'!B117 -> 2024-10-01 | C116: 18469100.78 | D116: 3197291 | I116: 15271809.78 | K116: 194.6 | L116: 3 | M116: 31 | N116: 1 | O116: ='Monthly Load & Cust Input'!E117+'Monthly Load & Cust Input'!G117+'Monthly Load & Cust Input'!J117 -> 11286 | P116: 0
B117: ='Monthly Load & Cust Input'!B118 -> 2024-11-01 | C117: 19078281.94 | D117: 2604560 | I117: 16473721.94 | K117: 353.4 | L117: 1.7 | M117: 30 | N117: 1 | O117: ='Monthly Load & Cust Input'!E118+'Monthly Load & Cust Input'!G118+'Monthly Load & Cust Input'!J118 -> 11308 | P117: 0
B118: ='Monthly Load & Cust Input'!B119 -> 2024-12-01 | C118: 21023641.42 | D118: 1332302 | I118: 19691339.42 | K118: 577 | L118: 0 | M118: 31 | N118: 0 | O118: ='Monthly Load & Cust Input'!E119+'Monthly Load & Cust Input'!G119+'Monthly Load & Cust Input'!J119 -> 11321 | P118: 0
B119: ='Monthly Load & Cust Input'!B120 -> 2025-01-01 | C119: 23603889.24 | D119: 2294310 | I119: 21309579.24 | K119: 726.2 | L119: 0 | M119: 31 | N119: 0 | O119: ='Monthly Load & Cust Input'!E120+'Monthly Load & Cust Input'!G120+'Monthly Load & Cust Input'!J120 -> 11340 | P119: 0
B120: ='Monthly Load & Cust Input'!B121 -> 2025-02-01 | C120: 21287860.76 | D120: 1924712 | I120: 19363148.76 | K120: 643.5 | L120: 0 | M120: 28 | N120: 0 | O120: ='Monthly Load & Cust Input'!E121+'Monthly Load & Cust Input'!G121+'Monthly Load & Cust Input'!J121 -> 11344 | P120: 0
B121: ='Monthly Load & Cust Input'!B122 -> 2025-03-01 | C121: 20693391.39 | D121: 2252747 | I121: 18440644.39 | K121: 486.7 | L121: 0 | M121: 31 | N121: 0 | O121: ='Monthly Load & Cust Input'!E122+'Monthly Load & Cust Input'!G122+'Monthly Load & Cust Input'!J122 -> 11361 | P121: 0
B122: ='Monthly Load & Cust Input'!B123 -> 2025-04-01 | C122: 18413521.39 | D122: 2317935 | I122: 16095586.39 | K122: 319.6 | L122: 0 | M122: 30 | N122: 1 | O122: ='Monthly Load & Cust Input'!E123+'Monthly Load & Cust Input'!G123+'Monthly Load & Cust Input'!J123 -> 11363 | P122: 0
B123: ='Monthly Load & Cust Input'!B124 -> 2025-05-01 | C123: 17389835.35 | D123: 2512475 | I123: 14877360.35 | K123: 154.2 | L123: 5.1 | M123: 31 | N123: 1 | O123: ='Monthly Load & Cust Input'!E124+'Monthly Load & Cust Input'!G124+'Monthly Load & Cust Input'!J124 -> 11383 | P123: 0
B124: ='Monthly Load & Cust Input'!B125 -> 2025-06-01 | C124: 18896927.21 | D124: 2863885 | I124: 16033042.21 | K124: 12.8 | L124: 98.8 | M124: 30 | N124: 1 | O124: ='Monthly Load & Cust Input'!E125+'Monthly Load & Cust Input'!G125+'Monthly Load & Cust Input'!J125 -> 11385 | P124: 0
B125: ='Monthly Load & Cust Input'!B126 -> 2025-07-01 | C125: 22838218.4 | D125: 3204461 | I125: 19633757.4 | K125: 0 | L125: 183.6 | M125: 31 | N125: 0 | O125: ='Monthly Load & Cust Input'!E126+'Monthly Load & Cust Input'!G126+'Monthly Load & Cust Input'!J126 -> 11418 | P125: 0
B126: ='Monthly Load & Cust Input'!B127 -> 2025-08-01 | C126: 21173810.05 | D126: 3032101 | I126: 18141709.05 | K126: 16.3 | L126: 121 | M126: 31 | N126: 0 | O126: ='Monthly Load & Cust Input'!E127+'Monthly Load & Cust Input'!G127+'Monthly Load & Cust Input'!J127 -> 11421 | P126: 0
B127: ='Monthly Load & Cust Input'!B128 -> 2025-09-01 | C127: 18709263.22 | D127: 2686903 | I127: 16022360.22 | K127: 20.2 | L127: 35.3 | M127: 30 | N127: 1 | O127: ='Monthly Load & Cust Input'!E128+'Monthly Load & Cust Input'!G128+'Monthly Load & Cust Input'!J128 -> 11415 | P127: 0
B128: ='Monthly Load & Cust Input'!B129 -> 2025-10-01 | C128: 18956675.88 | D128: 1890861 | I128: 17065814.88 | K128: 203.7 | L128: 9.9 | M128: 31 | N128: 1 | O128: ='Monthly Load & Cust Input'!E129+'Monthly Load & Cust Input'!G129+'Monthly Load & Cust Input'!J129 -> 11430 | P128: 0
B129: ='Monthly Load & Cust Input'!B130 -> 2025-11-01 | C129: 20411470.79 | D129: 1471253 | I129: 18940217.79 | K129: 433.8 | L129: 0 | M129: 30 | N129: 1 | O129: ='Monthly Load & Cust Input'!E130+'Monthly Load & Cust Input'!G130+'Monthly Load & Cust Input'!J130 -> 11444 | P129: 0
B130: ='Monthly Load & Cust Input'!B131 -> 2025-12-01 | C130: 22740746.48 | D130: 381495 | I130: =C130-D130 -> 22359251.48 | K130: 665.2 | L130: 0 | M130: 31 | N130: 0 | O130: ='Monthly Load & Cust Input'!E131+'Monthly Load & Cust Input'!G131+'Monthly Load & Cust Input'!J131 -> 11444 | P130: 0
B133: Covid Intesity Flag
B134: Month | C134: Index | D134: Reason
B135: 2020-01-01 | C135: 0 | D135: No COVID impact
B136: 2020-02-01 | C136: 0 | D136: No restrictions
B137: 2020-03-01 | C137: 0.5 | D137: Shutdown begins Mar 17, schools closed
B138: 2020-04-01 | C138: 1 | D138: Full provincial lockdown
B139: 2020-05-01 | C139: 0.75 | D139: Restrictions easing but still severe
B140: 2020-06-01 | C140: 0.5 | D140: Stage 2 reopenings
B141: 2020-07-01 | C141: 0.25 | D141: Stage 3 reopenings
B142: 2020-08-01 | C142: 0.25 | D142: “Normal-ish” summer
B143: 2020-09-01 | C143: 0.25 | D143: Schools open with restrictions
B144: 2020-10-01 | C144: 0.5 | D144: Wave 2 begins
B145: 2020-11-01 | C145: 0.75 | D145: Ottawa in Red/Lockdown
B146: 2020-12-01 | C146: 1 | D146: Province-wide lockdown Dec 26
B147: 2021-01-01 | C147: 1 | D147: Stay-at-home order
B148: 2021-02-01 | C148: 0.75 | D148: Gradual reopening
B149: 2021-03-01 | C149: 0.5 | D149: Restrictions remain
B150: 2021-04-01 | C150: 1 | D150: Third Wave + stay-at-home order
B151: 2021-05-01 | C151: 0.75 | D151: Province still heavily restricted
B152: 2021-06-01 | C152: 0.5 | D152: Step 1 re-opening
B153: 2021-07-01 | C153: 0.25 | D153: Step 3 re-opening
B154: 2021-08-01 | C154: 0.25 | D154: Delta variant but still open
B155: 2021-09-01 | C155: 0.25 | D155: Vaccine certificate introduced
B156: 2021-10-01 | C156: 0.25 | D156: Stable but controlled
B157: 2021-11-01 | C157: 0.25 | D157: Mild restrictions
B158: 2021-12-01 | C158: 0.5 | D158: Omicron wave begins
B159: 2022-01-01 | C159: 0.75 | D159: Schools closed + restrictions
B160: 2022-02-01 | C160: 0.5 | D160: Step-by-step reopening
B161: 2022-03-01 | C161: 0.25 | D161: Most restrictions lifted
B162: 2022-04-01 | C162: 0.25 | D162: Masks remain in select settings
B163: 2022-05-01 | C163: 0 | D163: Restrictions essentially gone
B164: Jun–Dec 2022 | C164: 0 | D164: No mandated restrictions
B165: Jan–Dec 2025 | C165: 0 | D165: No restrictions; normal conditions

Sheet Input
C1: Feature Selection | E1: Minimum R-Squared | F1: 0 | R1: 1 | AU1: Add More Variable Columns | AV1: 10
E2: Variance Inflation Factor | F2: 0
A3: INCLUDE | B3: ON | C3: ON | D3: ON | E3: ON | F3: ON | G3: ON | H3: ON | I3: ON | J3: ON | K3: ON | L3: ON | M3: ON | N3: ON | O3: ON | P3: ON | Q3: ON | R3: ON | S3: ON | T3: ON | U3: ON | V3: ON | W3: ON | X3: ON | Y3: ON | Z3: ON | AA3: ON | AB3: ON | AC3: ON | AD3: ON | AE3: ON | AF3: ON | AG3: ON | AH3: ON | AI3: ON | AJ3: ON | AK3: ON | AL3: ON | AM3: ON | AN3: ON | AO3: ON | AP3: ON | AQ3: ON | AR3: ON | AS3: ON | AT3: ON | AU3: ON | AV3: ON | AW3: ON | AX3: ON | AY3: ON
A4: Wholesale | B4: HDD | C4: CDD | D4: NoD in Month | E4: Spring Fall | F4: Cust Count | G4: Covid Intensity
A5: 18621894 | B5: 670.4000244 | C5: 0 | D5: 31 | E5: 0 | F5: 10054 | G5: 0
A6: 17766598 | B6: 588.4000244 | C6: 0 | D6: 29 | E6: 0 | F6: 10061 | G6: 0
A7: 17315448 | B7: 476.1000061 | C7: 0 | D7: 31 | E7: 0 | F7: 10069 | G7: 0
A8: 15629498 | B8: 394.7999878 | C8: 0 | D8: 30 | E8: 1 | F8: 10068 | G8: 0
A9: 15103137 | B9: 142.5 | C9: 36.90000153 | D9: 31 | E9: 1 | F9: 10090 | G9: 0
A10: 14905961 | B10: 24.20000076 | C10: 83.69999695 | D10: 30 | E10: 1 | F10: 10107 | G10: 0
A11: 18234560 | B11: 0 | C11: 176.8999939 | D11: 31 | E11: 0 | F11: 10110 | G11: 0
A12: 18162718 | B12: 0 | C12: 195.3999939 | D12: 31 | E12: 0 | F12: 10117 | G12: 0
A13: 15375827 | B13: 25.89999962 | C13: 69.40000153 | D13: 30 | E13: 1 | F13: 10142 | G13: 0
A14: 15008827 | B14: 194.1999969 | C14: 4.099999905 | D14: 31 | E14: 1 | F14: 10155 | G14: 0
A15: 15822617 | B15: 337.7999878 | C15: 0 | D15: 30 | E15: 1 | F15: 10169 | G15: 0
A16: 18051924 | B16: 608 | C16: 0 | D16: 31 | E16: 0 | F16: 10171 | G16: 0
A17: 18475100 | B17: 608.9000244 | C17: 0 | D17: 31 | E17: 0 | F17: 10182 | G17: 0
A18: 16835972 | B18: 510.3999939 | C18: 0 | D18: 28 | E18: 0 | F18: 10191 | G18: 0
A19: 18718356 | B19: 574 | C19: 0 | D19: 31 | E19: 0 | F19: 10201 | G19: 0
A20: 15594743 | B20: 257.5 | C20: 0 | D20: 30 | E20: 1 | F20: 10217 | G20: 0
A21: 14823601 | B21: 177 | C21: 9 | D21: 31 | E21: 1 | F21: 10211 | G21: 0
A22: 14757124 | B22: 26.70000076 | C22: 68.19999695 | D22: 30 | E22: 1 | F22: 10235 | G22: 0
A23: 17595924 | B23: 0 | C23: 116.5 | D23: 31 | E23: 0 | F23: 10241 | G23: 0
A24: 16406842 | B24: 11.60000038 | C24: 75.19999695 | D24: 31 | E24: 0 | F24: 10241 | G24: 0
A25: 14836475 | B25: 49.09999847 | C25: 71.5 | D25: 30 | E25: 1 | F25: 10243 | G25: 0
A26: 15234037 | B26: 154 | C26: 8.100000381 | D26: 31 | E26: 1 | F26: 10246 | G26: 0
A27: 16727591 | B27: 414.2000122 | C27: 0 | D27: 30 | E27: 1 | F27: 10273 | G27: 0
A28: 20330002 | B28: 718.5 | C28: 0 | D28: 31 | E28: 0 | F28: 10283 | G28: 0
A29: 20381788 | B29: 732.2999878 | C29: 0 | D29: 31 | E29: 0 | F29: 10288 | G29: 0
A30: 17538186 | B30: 555 | C30: 0 | D30: 28 | E30: 0 | F30: 10292 | G30: 0
A31: 18049528 | B31: 554 | C31: 0 | D31: 31 | E31: 0 | F31: 10307 | G31: 0
A32: 17058772 | B32: 418.8999939 | C32: 0 | D32: 30 | E32: 1 | F32: 10332 | G32: 0
A33: 15289336 | B33: 75.30000305 | C33: 43.40000153 | D33: 31 | E33: 1 | F33: 10338 | G33: 0
A34: 15348979 | B34: 14.80000019 | C34: 60.5 | D34: 30 | E34: 1 | F34: 10340 | G34: 0
A35: 19818720 | B35: 0 | C35: 167.8000031 | D35: 31 | E35: 0 | F35: 10343 | G35: 0
A36: 18583414 | B36: 1.200000048 | C36: 162.3999939 | D36: 31 | E36: 0 | F36: 10342 | G36: 0
A37: 16548231 | B37: 41.40000153 | C37: 76.40000153 | D37: 30 | E37: 1 | F37: 10341 | G37: 0
A38: 16350756 | B38: 289.3999939 | C38: 8.199999809 | D38: 31 | E38: 1 | F38: 10348 | G38: 0
A39: 17481588 | B39: 494.1000061 | C39: 0 | D39: 30 | E39: 1 | F39: 10358 | G39: 0
A40: 18592364 | B40: 563.5999756 | C40: 0 | D40: 31 | E40: 0 | F40: 10353 | G40: 0
A41: 20005328 | B41: 764.5 | C41: 0 | D41: 31 | E41: 0 | F41: 10380 | G41: 0
A42: 18000068 | B42: 621.7000122 | C42: 0 | D42: 28 | E42: 0 | F42: 10383 | G42: 0
A43: 18255192 | B43: 593.9000244 | C43: 0 | D43: 31 | E43: 0 | F43: 10383 | G43: 0
A44: 15793905 | B44: 346.7999878 | C44: 0 | D44: 30 | E44: 1 | F44: 10390 | G44: 0
A45: 14827475 | B45: 181 | C45: 0 | D45: 31 | E45: 1 | F45: 10406 | G45: 0
A46: 14113635 | B46: 35.5 | C46: 41.29999924 | D46: 30 | E46: 1 | F46: 10419 | G46: 0
A47: 17591280 | B47: 0 | C47: 166.8999939 | D47: 31 | E47: 0 | F47: 10420 | G47: 0
A48: 16458815 | B48: 0.8999999762 | C48: 103.3000031 | D48: 31 | E48: 0 | F48: 10419 | G48: 0
A49: 14482095 | B49: 38.40000153 | C49: 25.39999962 | D49: 30 | E49: 1 | F49: 10417 | G49: 0
A50: 15033076 | B50: 236.5 | C50: 5.099999905 | D50: 31 | E50: 1 | F50: 10420 | G50: 0
A51: 17159098 | B51: 513.2999878 | C51: 0 | D51: 30 | E51: 1 | F51: 10453 | G51: 0
A52: 19310062 | B52: 582.4000244 | C52: 0 | D52: 31 | E52: 0 | F52: 10466 | G52: 0
A53: 19062250 | B53: 605 | C53: 0 | D53: 31 | E53: 0 | F53: 10465 | G53: 0
A54: 18054186 | B54: 611.7999878 | C54: 0 | D54: 29 | E54: 0 | F54: 10485 | G54: 0
A55: 17080400 | B55: 458.7000122 | C55: 0 | D55: 31 | E55: 0 | F55: 10488 | G55: 0.5
A56: 13578418 | B56: 362.2999878 | C56: 0 | D56: 30 | E56: 1 | F56: 10486 | G56: 1
A57: 13770513 | B57: 208.1000061 | C57: 24.20000076 | D57: 31 | E57: 1 | F57: 10502 | G57: 0.75
A58: 15929183 | B58: 23.79999924 | C58: 97.69999695 | D58: 30 | E58: 1 | F58: 10506 | G58: 0.5
A59: 18578170 | B59: 0 | C59: 215.6999969 | D59: 31 | E59: 0 | F59: 10516 | G59: 0.25
A60: 17519696 | B60: 0.8000000119 | C60: 126.6999969 | D60: 31 | E60: 0 | F60: 10527 | G60: 0.25
A61: 15149968 | B61: 69.09999847 | C61: 33.29999924 | D61: 30 | E61: 1 | F61: 10541 | G61: 0.25
A62: 15951245 | B62: 270.2999878 | C62: 0 | D62: 31 | E62: 1 | F62: 10573 | G62: 0.5
A63: 16426818 | B63: 334.7999878 | C63: 0 | D63: 30 | E63: 1 | F63: 10588 | G63: 0.75
A64: 18279416 | B64: 567.2999878 | C64: 0 | D64: 31 | E64: 0 | F64: 10586 | G64: 1
A65: 18673832 | B65: 621.2000122 | C65: 0 | D65: 31 | E65: 0 | F65: 10597 | G65: 1
A66: 17822374 | B66: 600.9000244 | C66: 0 | D66: 28 | E66: 0 | F66: 10611 | G66: 0.75
A67: 17103306 | B67: 460.7000122 | C67: 0 | D67: 31 | E67: 0 | F67: 10604 | G67: 0.5
A68: 15014311 | B68: 302.3999939 | C68: 0 | D68: 30 | E68: 1 | F68: 10620 | G68: 1
A69: 14823860 | B69: 164.1999969 | C69: 27.89999962 | D69: 31 | E69: 1 | F69: 10625 | G69: 0.75
A70: 16036298 | B70: 7 | C70: 122 | D70: 30 | E70: 1 | F70: 10645 | G70: 0.5
A71: 16886346 | B71: 4.400000095 | C71: 101.6999969 | D71: 31 | E71: 0 | F71: 10640 | G71: 0.25
A72: 18783754 | B72: 0 | C72: 178.5 | D72: 31 | E72: 0 | F72: 10639 | G72: 0.25
A73: 15871132 | B73: 35.59999847 | C73: 24.89999962 | D73: 30 | E73: 1 | F73: 10634 | G73: 0.25
A74: 15676718 | B74: 145.1999969 | C74: 5.599999905 | D74: 31 | E74: 1 | F74: 10651 | G74: 0.25
A75: 16799506 | B75: 413.7000122 | C75: 0 | D75: 30 | E75: 1 | F75: 10671 | G75: 0.25
A76: 18566256 | B76: 445.7999878 | C76: 0 | D76: 31 | E76: 0 | F76: 10695 | G76: 0.5
A77: 21090790 | B77: 737 | C77: 0 | D77: 31 | E77: 0 | F77: 10696 | G77: 0.75
A78: 18895852 | B78: 585 | C78: 0 | D78: 28 | E78: 0 | F78: 10713 | G78: 0.5
A79: 19554498 | B79: 524 | C79: 0 | D79: 31 | E79: 0 | F79: 10725 | G79: 0.25
A80: 16452459 | B80: 328 | C80: 0 | D80: 30 | E80: 1 | F80: 10735 | G80: 0.25
A81: 15587980 | B81: 112 | C81: 35 | D81: 31 | E81: 1 | F81: 10748 | G81: 0
A82: 15641479 | B82: 18 | C82: 64 | D82: 30 | E82: 1 | F82: 10769 | G82: 0
A83: 17948916 | B83: 0 | C83: 145 | D83: 31 | E83: 0 | F83: 10778 | G83: 0
A84: 18104928 | B84: 0 | C84: 140 | D84: 31 | E84: 0 | F84: 10781 | G84: 0
A85: 15358719 | B85: 52 | C85: 46 | D85: 30 | E85: 1 | F85: 10790 | G85: 0
A86: 15016366 | B86: 237 | C86: 0 | D86: 31 | E86: 1 | F86: 10823 | G86: 0
A87: 16969272 | B87: 380 | C87: 1 | D87: 30 | E87: 1 | F87: 10828 | G87: 0
A88: 18589236 | B88: 575 | C88: 0 | D88: 31 | E88: 0 | F88: 10833 | G88: 0
A89: 19990910 | B89: 585.0999756 | C89: 0 | D89: 31 | E89: 0 | F89: 10836 | G89: 0
A90: 18049402 | B90: 543.2999878 | C90: 0 | D90: 28 | E90: 0 | F90: 10858 | G90: 0
A91: 19011298 | B91: 530.9000244 | C91: 0 | D91: 31 | E91: 0 | F91: 10867 | G91: 0
A92: 15893201 | B92: 275.7000122 | C92: 7.099999905 | D92: 30 | E92: 1 | F92: 10867 | G92: 0
A93: 15004067 | B93: 153.8999939 | C93: 15 | D93: 31 | E93: 1 | F93: 10896 | G93: 0
A94: 15924610 | B94: 16.10000038 | C94: 59.09999847 | D94: 30 | E94: 1 | F94: 10901 | G94: 0
A95: 18076484 | B95: 0 | C95: 128.3000031 | D95: 31 | E95: 0 | F95: 10907 | G95: 0
A96: 17316266 | B96: 7 | C96: 70.80000305 | D96: 31 | E96: 0 | F96: 10920 | G96: 0
A97: 16034213 | B97: 26 | C97: 47 | D97: 30 | E97: 1 | F97: 10930 | G97: 0
A98: 15141241 | B98: 188.8000031 | C98: 21.79999924 | D98: 31 | E98: 1 | F98: 10926 | G98: 0
A99: 16171020 | B99: 422.1000061 | C99: 0 | D99: 30 | E99: 1 | F99: 10956 | G99: 0
A100: 17331552 | B100: 473.7000122 | C100: 0 | D100: 31 | E100: 0 | F100: 11007 | G100: 0
A101: 19239708 | B101: 623.4000244 | C101: 0 | D101: 31 | E101: 0 | F101: 11062 | G101: 0
A102: 16942104 | B102: 517.4000244 | C102: 0 | D102: 29 | E102: 0 | F102: 11067 | G102: 0
A103: 16618259 | B103: 443.6000061 | C103: 0 | D103: 31 | E103: 0 | F103: 11073 | G103: 0
A104: 15010269 | B104: 284.7000122 | C104: 0 | D104: 30 | E104: 1 | F104: 11095 | G104: 0
A105: 14287133 | B105: 70.30000305 | C105: 20.79999924 | D105: 31 | E105: 1 | F105: 11159 | G105: 0
A106: 16228706 | B106: 20.70000076 | C106: 82.40000153 | D106: 30 | E106: 1 | F106: 11169 | G106: 0
A107: 18262762 | B107: 0.400000006 | C107: 140.5 | D107: 31 | E107: 0 | F107: 11198 | G107: 0
A108: 17394426 | B108: 6.800000191 | C108: 97.40000153 | D108: 31 | E108: 0 | F108: 11247 | G108: 0
A109: 15335893 | B109: 19.29999924 | C109: 43.79999924 | D109: 30 | E109: 1 | F109: 11251 | G109: 0
A110: 15271810 | B110: 194.6000061 | C110: 3 | D110: 31 | E110: 1 | F110: 11286 | G110: 0
A111: 16473722 | B111: 353.3999939 | C111: 1.700000048 | D111: 30 | E111: 1 | F111: 11308 | G111: 0
A112: 19691340 | B112: 577 | C112: 0 | D112: 31 | E112: 0 | F112: 11321 | G112: 0
A113: 21309580 | B113: 726.2000122 | C113: 0 | D113: 31 | E113: 0 | F113: 11340 | G113: 0
A114: 19363148 | B114: 643.5 | C114: 0 | D114: 28 | E114: 0 | F114: 11343 | G114: 0
A115: 18440644 | B115: 486.7000122 | C115: 0 | D115: 31 | E115: 0 | F115: 11361 | G115: 0
A116: 16095586 | B116: 319.6000061 | C116: 0 | D116: 30 | E116: 1 | F116: 11362 | G116: 0
A117: 14877360 | B117: 154.1999969 | C117: 5.099999905 | D117: 31 | E117: 1 | F117: 11381 | G117: 0
A118: 16033042 | B118: 12.80000019 | C118: 98.80000305 | D118: 30 | E118: 1 | F118: 11383 | G118: 0
A119: 19633758 | B119: 0 | C119: 183.6000061 | D119: 31 | E119: 0 | F119: 11416 | G119: 0
A120: 18141710 | B120: 16.29999924 | C120: 121 | D120: 31 | E120: 0 | F120: 11420 | G120: 0
A121: 16022360 | B121: 20.20000076 | C121: 35.29999924 | D121: 30 | E121: 1 | F121: 11414 | G121: 0
A122: 17065814 | B122: 203.6999969 | C122: 9.899999619 | D122: 31 | E122: 1 | F122: 11429 | G122: 0
A123: 18940218 | B123: 433.7999878 | C123: 0 | D123: 30 | E123: 1 | F123: 11443 | G123: 0
A124: 22359252 | B124: 665.2000122 | C124: 0 | D124: 31 | E124: 0 | F124: 11443 | G124: 0

Sheet Output
BP2: =IF(A12<>"",TEXT(B12,"0.00")& "*" & A12 & " + ","") & IF(A13<>"",TEXT(B13,"0.00")& "*" & A13 & " + ","") & IF(A14<>"",TEXT(B14,"0.00")& "*" & A14 & " + ","") & IF(A15<>"",TEXT(B15,"0.00")& "*" & A15 & " + ","") & IF(A16<>"",TEXT(B16,"0.00")& "*" & A16 & " + ","") & IF(A17<>"",TEXT(B17,"0.00")& "*" & A17 & " + ","") & IF(A18<>"",TEXT(B18,"0.00")& "*" & A18 & " + ","") & IF(A19<>"",TEXT(B19,"0.00")& "*" & A19 & " + ","") & IF(A20<>"",TEXT(B20,"0.00")& "*" & A20 & " + ","") & IF(A21<>"",TEXT(B21,"0.00")& "*" & A21 & " + ","") -> 7780.46*HDD + 24917.05*CDD + 248263.16*NoD in Month + -691419.07*Spring Fall + 901.59*Cust Count + -647742.48*Covid Intensity +
A3: Equation Parameters | C3: =TEXT(B5,"00.00%") & " of the change in " & TEXT(Input!$A$4,"###") & " can be explained by the change in the " & COUNT(B12:B977) & " independent variables" -> 85.00% of the change in Wholesale can be explained by the change in the 6 independent variables | G3: 95% Confidence/Autocorrelation | L3: ="Actual versus Predicted " & TEXT(Input!A4,"###") -> Actual versus Predicted Wholesale | AE3: Average | AG3: 1.616420031 | BP3: =IF(A22<>"",TEXT(B22,"0.00")& "*" & A22 & " + ","") & IF(A23<>"",TEXT(B23,"0.00")& "*" & A23 & " + ","") & IF(A24<>"",TEXT(B24,"0.00")& "*" & A24 & " + ","") & IF(A25<>"",TEXT(B25,"0.00")& "*" & A25 & " + ","") & IF(A26<>"",TEXT(B26,"0.00")& "*" & A26 & " + ","") & IF(A45<>"",TEXT(B45,"0.00")& "*" & A45 & " + ","") & IF(A46<>"",TEXT(B46,"0.00")& "*" & A46 & " + ","") & IF(A48<>"",TEXT(B48,"0.00")& "*" & A48 & " + ","") & IF(A49<>"",TEXT(B49,"0.00")& "*" & A49 & " + ","") & IF(#REF!<>"",TEXT(#REF!,"0.00")& "*" &#REF! & " + ","") -> 
A4: R Squared | B4: 0.8575791121 | G4: 0.8868284822 | H4: Durbin-Watson Statistic | AE4: Linear | AG4: 1.78963995
A5: Adjusted R Squared | B5: 0.8500170112 | G5: =TEXT(AG3,"0.00")&" - " &TEXT(AG4,"0.00") -> 1.62 - 1.79 | H5: Positive autocorrelation detected | AE5: Exponential | AG5: 1.685310006
A6: Standard Error | B6: 684024.8125 | C6: to +/- on result of Regression Equation | G6: 2.176000118 | H6: Critical F-Statistic - 95% Confidence | AA6: No. Forecast Observations: | AE6: 2nd Ord Poly | AG6: 1.718889952
A7: F - Statistic | B7: 113.4038391 | C7: =IF(B7>M7,"Therefore analysis IS Significant","Therefore analysis IS NOT Significant") -> Therefore analysis IS Significant | G7: 0.9186999798 | H7: Confidence to which analysis holds | AA7: 24 | AE7: 3rd Ord Poly
AE8: Leave Blank
A9: MULTIPLE REGRESSION EQUATION | F9: INDEPENDENT ANALYSIS | I9: AUTO CORRELATION | J9: MULTICOLLINEARITY | N9: VARIABLE TREND ANALYSIS FOR FORECASTING | Z9: STEP 2: | AE9: Auto(New)
B10: Coefficients | C10: Standard Error | D10: t Stat | E10: p Value | F10: R Squared | G10: Coefficient | H10: Intercept | I10: ="Dl=" & TEXT(AG5,"0.00") & " Du=" &TEXT(AG6,"0.00") -> Dl=1.69 Du=1.72 | J10: Adjusted R-Squared against other Indep | K10: Variables With RSQ at > 90% | L10: Linear | O10: Exponential | R10: 2nd Order Polynomial | V10: 3rd Order Polynomial | AA10: Forecast Method
A11: Intercept | B11: -2856325.08 | C11: 3074888.172 | D11: -0.92892 | E11: 0.3549106 | I11: DW-Stat | L11: Coef | M11: Int | N11: RSQ | O11: Coef | P11: Int | Q11: RSQ | R11: Coef1 | S11: Coef2 | T11: Int | U11: RSQ | V11: Coef1 | W11: Coef2 | X11: Coef3 | Y11: Int | Z11: RSQ
A12: HDD | B12: 7780.457021 | C12: 635.4983388 | D12: 12.24308 | E12: 0 | F12: 0.3093055 | G12: 3977.715569 | H12: 15893575 | I12: 0.3473501 | J12: 0.8333565 | L12: -0.42323 | M12: 316.83344 | N12: 0.00355 | O12: 0 | P12: 0 | Q12: 0 | R12: -0.63074 | S12: 0.00169 | T12: 321.19011 | U12: 0.00361 | V12: 0.04716 | W12: -0.01193 | X12: 7e-05 | Y12: 313.82679 | Z12: 0.0037 | AA12: Average
A13: CDD | B13: 24917.05324 | C13: 2596.676733 | D13: 9.5957471 | E13: 0 | F13: 0.0037676 | G13: 1953.072557 | H13: 16979398 | I13: 0.6831065 | J13: 0.8024527 | L13: -0.03263 | M13: 38.31645 | N13: 0.00042 | O13: 0 | P13: 0 | Q13: 0 | R13: -0.1163 | S13: 0.00068 | T13: 40.07318 | U13: 0.00059 | V13: 0.19054 | W13: -0.00548 | X13: 3e-05 | Y13: 36.7403 | Z13: 0.00098 | AA13: Average
A14: NoD in Month | B14: 248263.1559 | C14: 81063.04461 | D14: 3.0625935 | E14: 0.002743 | F14: 0.01727 | G14: 287450.6264 | H14: 8299838.5 | I14: 2.9784284 | J14: 0.0420896 | L14: 0.00044 | M14: 30.41454 | N14: 0.00036 | O14: 1.00002 | P14: 30.40262 | Q14: 0.00037 | R14: -0.00066 | S14: 1e-05 | T14: 30.43764 | U14: 0.0005 | V14: 0.00327 | W14: -7e-05 | X14: 0 | Y14: 30.39499 | Z14: 0.0008 | AA14: Linear
A15: Spring Fall | B15: -691419.0689 | C15: 218455.6124 | D15: -3.1650323 | E15: 0.001993 | F15: 0.6312707 | G15: -2794933.3 | H15: 18447782 | I15: 1.3445756 | J15: 0.6588557 | L15: 0.00042 | M15: 0.47437 | N15: 0.00083 | O15: 0 | P15: 0 | Q15: 0 | R15: 0.00063 | S15: 0 | T15: 0.46989 | U15: 0.00085 | V15: 0.00678 | W15: -0.00013 | X15: 0 | Y15: 0.4031 | Z15: 0.00276 | AA15: Linear
A16: Cust Count | B16: 901.5877579 | C16: 158.4877637 | D16: 5.68869 | E16: 1e-07 | F16: 0.0182905 | G16: 597.7371194 | H16: 10684559 | I16: 0.0269293 | J16: -0.0231557 | L16: 11.26738 | M16: 9956.8147 | N16: 0.96189 | O16: 1.00105 | P16: 9975.35745 | Q16: 0.96805 | R16: 3.50194 | S16: 0.06313 | T16: 10119.84673 | U16: 0.99087 | V16: 11.20691 | W16: -0.0916 | X16: 0.00084 | Y16: 10036.15563 | Z16: 0.99561 | AA16: Linear
A17: Covid Intensity | B17: -647742.4759 | C17: 250645.3795 | D17: -2.5842985 | E17: 0.0110319 | F17: 0.0039613 | G17: -439538.0718 | H17: 17100678 | I17: 0.2303545 | J17: -0.0213364 | L17: 0.00017 | M17: 0.10428 | N17: 0.00053 | O17: 0 | P17: 0 | Q17: 0 | R17: 0.0142 | S17: -0.00011 | T17: -0.19041 | U17: 0.23695 | V17: 0.01079 | W17: -5e-05 | X17: 0 | Y17: -0.15333 | Z17: 0.23927 | AA17: Linear

Sheet Forecast
B1: FORECASTED OUTPUT
B2: Coefficients: | C2: -2856325.08 | D2: 7780.457021 | E2: 24917.05324 | F2: 248263.1559 | G2: -691419.0689 | H2: 901.5877579 | I2: -647742.4759
A3: DATE | B3: WHOLESALE | C3: PREDICTED WHOLESALE | D3: HDD | E3: CDD | F3: NoD in Month | G3: Spring Fall | H3: Cust Count | I3: Covid Intensity
A4: ='Adjustments and Var'!B11 -> 2016-01-01 | B4: 18621894 | C4: =SUMPRODUCT(D2:I2,D4:I4)+C2 -> 19120414.65 | D4: 670.4000244 | E4: 0 | F4: 31 | G4: 0 | H4: 10054 | I4: 0
A5: ='Adjustments and Var'!B12 -> 2016-02-01 | B5: 17766598 | C5: =SUMPRODUCT(D2:I2,D5:I5)+C2 -> 17992201.98 | D5: 588.4000244 | E5: 0 | F5: 29 | G5: 0 | H5: 10061 | I5: 0
A6: ='Adjustments and Var'!B13 -> 2016-03-01 | B6: 17315448 | C6: =SUMPRODUCT(D2:I2,D6:I6)+C2 -> 17622195.52 | D6: 476.1000061 | E6: 0 | F6: 31 | G6: 0 | H6: 10069 | I6: 0
A7: ='Adjustments and Var'!B14 -> 2016-04-01 | B7: 15629498 | C7: =SUMPRODUCT(D2:I2,D7:I7)+C2 -> 16049060.41 | D7: 394.7999878 | E7: 0 | F7: 30 | G7: 1 | H7: 10068 | I7: 0
A8: ='Adjustments and Var'!B15 -> 2016-05-01 | B8: 15103137 | C8: =SUMPRODUCT(D2:I2,D8:I8)+C2 -> 15273588.59 | D8: 142.5 | E8: 36.90000153 | F8: 31 | G8: 1 | H8: 10090 | I8: 0
A9: ='Adjustments and Var'!B16 -> 2016-06-01 | B9: 14905961 | C9: =SUMPRODUCT(D2:I2,D9:I9)+C2 -> 15286342.34 | D9: 24.20000076 | E9: 83.69999695 | F9: 30 | G9: 1 | H9: 10107 | I9: 0
A10: ='Adjustments and Var'!B17 -> 2016-07-01 | B10: 18234560 | C10: =SUMPRODUCT(D2:I2,D10:I10)+C2 -> 18362711.55 | D10: 0 | E10: 176.8999939 | F10: 31 | G10: 0 | H10: 10110 | I10: 0
A11: ='Adjustments and Var'!B18 -> 2016-08-01 | B11: 18162718 | C11: =SUMPRODUCT(D2:I2,D11:I11)+C2 -> 18829988.15 | D11: 0 | E11: 195.3999939 | F11: 31 | G11: 0 | H11: 10117 | I11: 0
A12: ='Adjustments and Var'!B19 -> 2016-09-01 | B12: 15375827 | C12: =SUMPRODUCT(D2:I2,D12:I12)+C2 -> 14974810.94 | D12: 25.89999962 | E12: 69.40000153 | F12: 30 | G12: 1 | H12: 10142 | I12: 0
A13: ='Adjustments and Var'!B20 -> 2016-10-01 | B13: 15008827 | C13: =SUMPRODUCT(D2:I2,D13:I13)+C2 -> 14917162.01 | D13: 194.1999969 | E13: 4.099999905 | F13: 31 | G13: 1 | H13: 10155 | I13: 0
A14: ='Adjustments and Var'!B21 -> 2016-11-01 | B14: 15822617 | C14: =SUMPRODUCT(D2:I2,D14:I14)+C2 -> 15696634.73 | D14: 337.7999878 | E14: 0 | F14: 30 | G14: 1 | H14: 10169 | I14: 0
A15: ='Adjustments and Var'!B22 -> 2016-12-01 | B15: 18051924 | C15: =SUMPRODUCT(D2:I2,D15:I15)+C2 -> 18740399.71 | D15: 608 | E15: 0 | F15: 31 | G15: 0 | H15: 10171 | I15: 0
A16: ='Adjustments and Var'!B23 -> 2017-01-01 | B16: 18475100 | C16: =SUMPRODUCT(D2:I2,D16:I16)+C2 -> 18757319.77 | D16: 608.9000244 | E16: 0 | F16: 31 | G16: 0 | H16: 10182 | I16: 0
A17: ='Adjustments and Var'!B24 -> 2017-02-01 | B17: 16835972 | C17: =SUMPRODUCT(D2:I2,D17:I17)+C2 -> 17254269.34 | D17: 510.3999939 | E17: 0 | F17: 28 | G17: 0 | H17: 10191 | I17: 0
A18: ='Adjustments and Var'!B25 -> 2017-03-01 | B18: 18718356 | C18: =SUMPRODUCT(D2:I2,D18:I18)+C2 -> 18502911.8 | D18: 574 | E18: 0 | F18: 31 | G18: 0 | H18: 10201 | I18: 0
A19: ='Adjustments and Var'!B26 -> 2017-04-01 | B19: 15594743 | C19: =SUMPRODUCT(D2:I2,D19:I19)+C2 -> 15115140.33 | D19: 257.5 | E19: 0 | F19: 30 | G19: 1 | H19: 10217 | I19: 0
A20: ='Adjustments and Var'!B27 -> 2017-05-01 | B20: 14823601 | C20: =SUMPRODUCT(D2:I2,D20:I20)+C2 -> 14955920.65 | D20: 177 | E20: 9 | F20: 31 | G20: 1 | H20: 10211 | I20: 0
A21: ='Adjustments and Var'!B28 -> 2017-06-01 | B21: 14757124 | C21: =SUMPRODUCT(D2:I2,D21:I21)+C2 -> 15034982.39 | D21: 26.70000076 | E21: 68.19999695 | F21: 30 | G21: 1 | H21: 10235 | I21: 0
A22: ='Adjustments and Var'!B29 -> 2017-07-01 | B22: 17595924 | C22: =SUMPRODUCT(D2:I2,D22:I22)+C2 -> 16975829.69 | D22: 0 | E22: 116.5 | F22: 31 | G22: 0 | H22: 10241 | I22: 0
A23: ='Adjustments and Var'!B30 -> 2017-08-01 | B23: 16406842 | C23: =SUMPRODUCT(D2:I2,D23:I23)+C2 -> 16037008.61 | D23: 11.60000038 | E23: 75.19999695 | F23: 31 | G23: 0 | H23: 10241 | I23: 0
A24: ='Adjustments and Var'!B31 -> 2017-09-01 | B24: 14836475 | C24: =SUMPRODUCT(D2:I2,D24:I24)+C2 -> 15298703.67 | D24: 49.09999847 | E24: 71.5 | F24: 30 | G24: 1 | H24: 10243 | I24: 0
A25: ='Adjustments and Var'!B32 -> 2017-10-01 | B25: 15234037 | C25: =SUMPRODUCT(D2:I2,D25:I25)+C2 -> 14786100.37 | D25: 154 | E25: 8.100000381 | F25: 31 | G25: 1 | H25: 10246 | I25: 0
A26: ='Adjustments and Var'!B33 -> 2017-11-01 | B26: 16727591 | C26: =SUMPRODUCT(D2:I2,D26:I26)+C2 -> 16384826.96 | D26: 414.2000122 | E26: 0 | F26: 30 | G26: 1 | H26: 10273 | I26: 0
A27: ='Adjustments and Var'!B34 -> 2017-12-01 | B27: 20330002 | C27: =SUMPRODUCT(D2:I2,D27:I27)+C2 -> 19701118.04 | D27: 718.5 | E27: 0 | F27: 31 | G27: 0 | H27: 10283 | I27: 0
A28: ='Adjustments and Var'!B35 -> 2018-01-01 | B28: 20381788 | C28: =SUMPRODUCT(D2:I2,D28:I28)+C2 -> 19812996.19 | D28: 732.2999878 | E28: 0 | F28: 31 | G28: 0 | H28: 10288 | I28: 0
A29: ='Adjustments and Var'!B36 -> 2018-02-01 | B29: 17538186 | C29: =SUMPRODUCT(D2:I2,D29:I29)+C2 -> 17692338.14 | D29: 555 | E29: 0 | F29: 28 | G29: 0 | H29: 10292 | I29: 0
A30: ='Adjustments and Var'!B37 -> 2018-03-01 | B30: 18049528 | C30: =SUMPRODUCT(D2:I2,D30:I30)+C2 -> 18442870.96 | D30: 554 | E30: 0 | F30: 31 | G30: 0 | H30: 10307 | I30: 0
A31: ='Adjustments and Var'!B38 -> 2018-04-01 | B31: 17058772 | C31: =SUMPRODUCT(D2:I2,D31:I31)+C2 -> 16474588.64 | D31: 418.8999939 | E31: 0 | F31: 30 | G31: 1 | H31: 10332 | I31: 0
A32: ='Adjustments and Var'!B39 -> 2018-05-01 | B32: 15289336 | C32: =SUMPRODUCT(D2:I2,D32:I32)+C2 -> 15136296.51 | D32: 75.30000305 | E32: 43.40000153 | F32: 31 | G32: 1 | H32: 10338 | I32: 0
A33: ='Adjustments and Var'!B40 -> 2018-06-01 | B33: 15348979 | C33: =SUMPRODUCT(D2:I2,D33:I33)+C2 -> 14845200.43 | D33: 14.80000019 | E33: 60.5 | F33: 30 | G33: 1 | H33: 10340 | I33: 0
A34: ='Adjustments and Var'!B41 -> 2018-07-01 | B34: 19818720 | C34: =SUMPRODUCT(D2:I2,D34:I34)+C2 -> 18346036.54 | D34: 0 | E34: 167.8000031 | F34: 31 | G34: 0 | H34: 10343 | I34: 0
A35: ='Adjustments and Var'!B42 -> 2018-08-01 | B35: 18583414 | C35: =SUMPRODUCT(D2:I2,D35:I35)+C2 -> 18219919.19 | D35: 1.200000048 | E35: 162.3999939 | F35: 31 | G35: 0 | H35: 10342 | I35: 0
A36: ='Adjustments and Var'!B43 -> 2018-09-01 | B36: 16548231 | C36: =SUMPRODUCT(D2:I2,D36:I36)+C2 -> 15449243.37 | D36: 41.40000153 | E36: 76.40000153 | F36: 30 | G36: 1 | H36: 10341 | I36: 0
A37: ='Adjustments and Var'!B44 -> 2018-10-01 | B37: 16350756 | C37: =SUMPRODUCT(D2:I2,D37:I37)+C2 -> 15934027.85 | D37: 289.3999939 | E37: 8.199999809 | F37: 31 | G37: 1 | H37: 10348 | I37: 0
A38: ='Adjustments and Var'!B45 -> 2018-11-01 | B38: 17481588 | C38: =SUMPRODUCT(D2:I2,D38:I38)+C2 -> 17083120.39 | D38: 494.1000061 | E38: 0 | F38: 30 | G38: 1 | H38: 10358 | I38: 0
A39: ='Adjustments and Var'!B46 -> 2018-12-01 | B39: 18592364 | C39: =SUMPRODUCT(D2:I2,D39:I39)+C2 -> 18559036.2 | D39: 563.5999756 | E39: 0 | F39: 31 | G39: 0 | H39: 10353 | I39: 0
A40: ='Adjustments and Var'!B47 -> 2019-01-01 | B40: 20005328 | C40: =SUMPRODUCT(D2:I2,D40:I40)+C2 -> 20146473.07 | D40: 764.5 | E40: 0 | F40: 31 | G40: 0 | H40: 10380 | I40: 0
A41: ='Adjustments and Var'!B48 -> 2019-02-01 | B41: 18000068 | C41: =SUMPRODUCT(D2:I2,D41:I41)+C2 -> 18293339.2 | D41: 621.7000122 | E41: 0 | F41: 28 | G41: 0 | H41: 10383 | I41: 0
A42: ='Adjustments and Var'!B49 -> 2019-03-01 | B42: 18255192 | C42: =SUMPRODUCT(D2:I2,D42:I42)+C2 -> 18821832.06 | D42: 593.9000244 | E42: 0 | F42: 31 | G42: 0 | H42: 10383 | I42: 0
A43: ='Adjustments and Var'!B50 -> 2019-04-01 | B43: 15793905 | C43: =SUMPRODUCT(D2:I2,D43:I43)+C2 -> 15965909.73 | D43: 346.7999878 | E43: 0 | F43: 30 | G43: 1 | H43: 10390 | I43: 0
A44: ='Adjustments and Var'!B51 -> 2019-05-01 | B44: 14827475 | C44: =SUMPRODUCT(D2:I2,D44:I44)+C2 -> 14938598.61 | D44: 181 | E44: 0 | F44: 31 | G44: 1 | H44: 10406 | I44: 0
A45: ='Adjustments and Var'!B52 -> 2019-06-01 | B45: 14113635 | C45: =SUMPRODUCT(D2:I2,D45:I45)+C2 -> 14599073.88 | D45: 35.5 | E45: 41.29999924 | F45: 30 | G45: 1 | H45: 10419 | I45: 0
A46: ='Adjustments and Var'!B53 -> 2019-07-01 | B46: 17591280 | C46: =SUMPRODUCT(D2:I2,D46:I46)+C2 -> 18393033.23 | D46: 0 | E46: 166.8999939 | F46: 31 | G46: 0 | H46: 10420 | I46: 0
A47: ='Adjustments and Var'!B54 -> 2019-08-01 | B47: 16458815 | C47: =SUMPRODUCT(D2:I2,D47:I47)+C2 -> 16814409.69 | D47: 0.8999999762 | E47: 103.3000031 | F47: 31 | G47: 0 | H47: 10419 | I47: 0
A48: ='Adjustments and Var'!B55 -> 2019-09-01 | B48: 14482095 | C48: =SUMPRODUCT(D2:I2,D48:I48)+C2 -> 14223652.91 | D48: 38.40000153 | E48: 25.39999962 | F48: 30 | G48: 1 | H48: 10417 | I48: 0
A49: ='Adjustments and Var'!B56 -> 2019-10-01 | B49: 15033076 | C49: =SUMPRODUCT(D2:I2,D49:I49)+C2 -> 15510113.18 | D49: 236.5 | E49: 5.099999905 | F49: 31 | G49: 1 | H49: 10420 | I49: 0
A50: ='Adjustments and Var'!B57 -> 2019-11-01 | B50: 17159098 | C50: =SUMPRODUCT(D2:I2,D50:I50)+C2 -> 17318155.86 | D50: 513.2999878 | E50: 0 | F50: 30 | G50: 1 | H50: 10453 | I50: 0
A51: ='Adjustments and Var'!B58 -> 2019-12-01 | B51: 19310062 | C51: =SUMPRODUCT(D2:I2,D51:I51)+C2 -> 18807188.59 | D51: 582.4000244 | E51: 0 | F51: 31 | G51: 0 | H51: 10466 | I51: 0
A52: ='Adjustments and Var'!B59 -> 2020-01-01 | B52: 19062250 | C52: =SUMPRODUCT(D2:I2,D52:I52)+C2 -> 18982125.14 | D52: 605 | E52: 0 | F52: 31 | G52: 0 | H52: 10465 | I52: 0
A53: ='Adjustments and Var'!B60 -> 2020-02-01 | B53: 18054186 | C53: =SUMPRODUCT(D2:I2,D53:I53)+C2 -> 18556537.59 | D53: 611.7999878 | E53: 0 | F53: 29 | G53: 0 | H53: 10485 | I53: 0
A54: ='Adjustments and Var'!B61 -> 2020-03-01 | B54: 17080400 | C54: =SUMPRODUCT(D2:I2,D54:I54)+C2 -> 17540709.65 | D54: 458.7000122 | E54: 0 | F54: 31 | G54: 0 | H54: 10488 | I54: 0.5
A55: ='Adjustments and Var'!B62 -> 2020-04-01 | B55: 13578418 | C55: =SUMPRODUCT(D2:I2,D55:I55)+C2 -> 15525316.77 | D55: 362.2999878 | E55: 0 | F55: 30 | G55: 1 | H55: 10486 | I55: 1
A56: ='Adjustments and Var'!B63 -> 2020-05-01 | B56: 13770513 | C56: =SUMPRODUCT(D2:I2,D56:I56)+C2 -> 15353187.32 | D56: 208.1000061 | E56: 24.20000076 | F56: 31 | G56: 1 | H56: 10502 | I56: 0.75
A57: ='Adjustments and Var'!B64 -> 2020-06-01 | B57: 15929183 | C57: =SUMPRODUCT(D2:I2,D57:I57)+C2 -> 15667931.17 | D57: 23.79999924 | E57: 97.69999695 | F57: 30 | G57: 1 | H57: 10506 | I57: 0.5
A58: ='Adjustments and Var'!B65 -> 2020-07-01 | B58: 18578170 | C58: =SUMPRODUCT(D2:I2,D58:I58)+C2 -> 19533602.31 | D58: 0 | E58: 215.6999969 | F58: 31 | G58: 0 | H58: 10516 | I58: 0.25
A59: ='Adjustments and Var'!B66 -> 2020-08-01 | B59: 17519696 | C59: =SUMPRODUCT(D2:I2,D59:I59)+C2 -> 17332126.4 | D59: 0.8000000119 | E59: 126.6999969 | F59: 31 | G59: 0 | H59: 10527 | I59: 0.25
A60: ='Adjustments and Var'!B67 -> 2020-09-01 | B60: 15149968 | C60: =SUMPRODUCT(D2:I2,D60:I60)+C2 -> 14609218.89 | D60: 69.09999847 | E60: 33.29999924 | F60: 30 | G60: 1 | H60: 10541 | I60: 0.25
A61: ='Adjustments and Var'!B68 -> 2020-10-01 | B61: 15951245 | C61: =SUMPRODUCT(D2:I2,D61:I61)+C2 -> 15460087.25 | D61: 270.2999878 | E61: 0 | F61: 31 | G61: 1 | H61: 10573 | I61: 0.5
A62: ='Adjustments and Var'!B69 -> 2020-11-01 | B62: 16426818 | C62: =SUMPRODUCT(D2:I2,D62:I62)+C2 -> 15565251.77 | D62: 334.7999878 | E62: 0 | F62: 30 | G62: 1 | H62: 10588 | I62: 0.75
A63: ='Adjustments and Var'!B70 -> 2020-12-01 | B63: 18279416 | C63: =SUMPRODUCT(D2:I2,D63:I63)+C2 -> 18150151.46 | D63: 567.2999878 | E63: 0 | F63: 31 | G63: 0 | H63: 10586 | I63: 1
A64: ='Adjustments and Var'!B71 -> 2021-01-01 | B64: 18673832 | C64: =SUMPRODUCT(D2:I2,D64:I64)+C2 -> 18579435.74 | D64: 621.2000122 | E64: 0 | F64: 31 | G64: 0 | H64: 10597 | I64: 1
A65: ='Adjustments and Var'!B72 -> 2021-02-01 | B65: 17822374 | C65: =SUMPRODUCT(D2:I2,D65:I65)+C2 -> 17851260.94 | D65: 600.9000244 | E65: 0 | F65: 28 | G65: 0 | H65: 10611 | I65: 0.75
A66: ='Adjustments and Var'!B73 -> 2021-03-01 | B66: 17103306 | C66: =SUMPRODUCT(D2:I2,D66:I66)+C2 -> 17660854.75 | D66: 460.7000122 | E66: 0 | F66: 31 | G66: 0 | H66: 10604 | I66: 0.5
A67: ='Adjustments and Var'!B74 -> 2021-04-01 | B67: 15014311 | C67: =SUMPRODUCT(D2:I2,D67:I67)+C2 -> 15180080.2 | D67: 302.3999939 | E67: 0 | F67: 30 | G67: 1 | H67: 10620 | I67: 1
A68: ='Adjustments and Var'!B75 -> 2021-05-01 | B68: 14823860 | C68: =SUMPRODUCT(D2:I2,D68:I68)+C2 -> 15214713.55 | D68: 164.1999969 | E68: 27.89999962 | F68: 31 | G68: 1 | H68: 10625 | I68: 0.75
A69: ='Adjustments and Var'!B76 -> 2021-06-01 | B69: 16036298 | C69: =SUMPRODUCT(D2:I2,D69:I69)+C2 -> 16268024.67 | D69: 7 | E69: 122 | F69: 30 | G69: 1 | H69: 10645 | I69: 0.5
A70: ='Adjustments and Var'!B77 -> 2021-07-01 | B70: 16886346 | C70: =SUMPRODUCT(D2:I2,D70:I70)+C2 -> 16839089.13 | D70: 4.400000095 | E70: 101.6999969 | F70: 31 | G70: 0 | H70: 10640 | I70: 0.25
A71: ='Adjustments and Var'!B78 -> 2021-08-01 | B71: 18783754 | C71: =SUMPRODUCT(D2:I2,D71:I71)+C2 -> 18717583.3 | D71: 0 | E71: 178.5 | F71: 31 | G71: 0 | H71: 10639 | I71: 0.25
A72: ='Adjustments and Var'!B79 -> 2021-09-01 | B72: 15871132 | C72: =SUMPRODUCT(D2:I2,D72:I72)+C2 -> 14223118 | D72: 35.59999847 | E72: 24.89999962 | F72: 30 | G72: 1 | H72: 10634 | I72: 0.25
A73: ='Adjustments and Var'!B80 -> 2021-10-01 | B73: 15676718 | C73: =SUMPRODUCT(D2:I2,D73:I73)+C2 -> 14858547.11 | D73: 145.1999969 | E73: 5.599999905 | F73: 31 | G73: 1 | H73: 10651 | I73: 0.25
A74: ='Adjustments and Var'!B81 -> 2021-11-01 | B74: 16799506 | C74: =SUMPRODUCT(D2:I2,D74:I74)+C2 -> 16577833.04 | D74: 413.7000122 | E74: 0 | F74: 30 | G74: 1 | H74: 10671 | I74: 0.25
A75: ='Adjustments and Var'!B82 -> 2021-12-01 | B75: 18566256 | C75: =SUMPRODUCT(D2:I2,D75:I75)+C2 -> 17626970.23 | D75: 445.7999878 | E75: 0 | F75: 31 | G75: 0 | H75: 10695 | I75: 0.5
A76: ='Adjustments and Var'!B83 -> 2022-01-01 | B76: 21090790 | C76: =SUMPRODUCT(D2:I2,D76:I76)+C2 -> 19731605.38 | D76: 737 | E76: 0 | F76: 31 | G76: 0 | H76: 10696 | I76: 0.75
A77: ='Adjustments and Var'!B84 -> 2022-02-01 | B77: 18895852 | C77: =SUMPRODUCT(D2:I2,D77:I77)+C2 -> 17981449.06 | D77: 585 | E77: 0 | F77: 28 | G77: 0 | H77: 10713 | I77: 0.5
A78: ='Adjustments and Var'!B85 -> 2022-03-01 | B78: 19554498 | C78: =SUMPRODUCT(D2:I2,D78:I78)+C2 -> 18424385.32 | D78: 524 | E78: 0 | F78: 31 | G78: 0 | H78: 10725 | I78: 0.25
A79: ='Adjustments and Var'!B86 -> 2022-04-01 | B79: 16452459 | C79: =SUMPRODUCT(D2:I2,D79:I79)+C2 -> 15968749.39 | D79: 328 | E79: 0 | F79: 30 | G79: 1 | H79: 10735 | I79: 0.25
A80: ='Adjustments and Var'!B87 -> 2022-05-01 | B80: 15587980 | C80: =SUMPRODUCT(D2:I2,D80:I80)+C2 -> 15582186.96 | D80: 112 | E80: 35 | F80: 31 | G80: 1 | H80: 10748 | I80: 0
A81: ='Adjustments and Var'!B88 -> 2022-06-01 | B81: 15641479 | C81: =SUMPRODUCT(D2:I2,D81:I81)+C2 -> 15344088.73 | D81: 18 | E81: 64 | F81: 30 | G81: 1 | H81: 10769 | I81: 0
A82: ='Adjustments and Var'!B89 -> 2022-07-01 | B82: 17948916 | C82: =SUMPRODUCT(D2:I2,D82:I82)+C2 -> 18170118.33 | D82: 0 | E82: 145 | F82: 31 | G82: 0 | H82: 10778 | I82: 0
A83: ='Adjustments and Var'!B90 -> 2022-08-01 | B83: 18104928 | C83: =SUMPRODUCT(D2:I2,D83:I83)+C2 -> 18048237.83 | D83: 0 | E83: 140 | F83: 31 | G83: 0 | H83: 10781 | I83: 0
A84: ='Adjustments and Var'!B91 -> 2022-09-01 | B84: 15358719 | C84: =SUMPRODUCT(D2:I2,D84:I84)+C2 -> 15179050.65 | D84: 52 | E84: 46 | F84: 30 | G84: 1 | H84: 10790 | I84: 0
A85: ='Adjustments and Var'!B92 -> 2022-10-01 | B85: 15016366 | C85: =SUMPRODUCT(D2:I2,D85:I85)+C2 -> 15750266.3 | D85: 237 | E85: 0 | F85: 31 | G85: 1 | H85: 10823 | I85: 0
A86: ='Adjustments and Var'!B93 -> 2022-11-01 | B86: 16969272 | C86: =SUMPRODUCT(D2:I2,D86:I86)+C2 -> 16644033.49 | D86: 380 | E86: 1 | F86: 30 | G86: 1 | H86: 10828 | I86: 0
A87: ='Adjustments and Var'!B94 -> 2022-12-01 | B87: 18589236 | C87: =SUMPRODUCT(D2:I2,D87:I87)+C2 -> 19080495.72 | D87: 575 | E87: 0 | F87: 31 | G87: 0 | H87: 10833 | I87: 0
A88: ='Adjustments and Var'!B95 -> 2023-01-01 | B88: 19990910 | C88: =SUMPRODUCT(D2:I2,D88:I88)+C2 -> 19161782.91 | D88: 585.0999756 | E88: 0 | F88: 31 | G88: 0 | H88: 10836 | I88: 0
A89: ='Adjustments and Var'!B96 -> 2023-02-01 | B89: 18049402 | C89: =SUMPRODUCT(D2:I2,D89:I89)+C2 -> 18111605.37 | D89: 543.2999878 | E89: 0 | F89: 28 | G89: 0 | H89: 10858 | I89: 0
A90: ='Adjustments and Var'!B97 -> 2023-03-01 | B90: 19011298 | C90: =SUMPRODUCT(D2:I2,D90:I90)+C2 -> 18768031.74 | D90: 530.9000244 | E90: 0 | F90: 31 | G90: 0 | H90: 10867 | I90: 0
A91: ='Adjustments and Var'!B98 -> 2023-04-01 | B91: 15893201 | C91: =SUMPRODUCT(D2:I2,D91:I91)+C2 -> 16019687.87 | D91: 275.7000122 | E91: 7.099999905 | F91: 30 | G91: 1 | H91: 10867 | I91: 0
A92: ='Adjustments and Var'!B99 -> 2023-05-01 | B92: 15004067 | C92: =SUMPRODUCT(D2:I2,D92:I92)+C2 -> 15543281.98 | D92: 153.8999939 | E92: 15 | F92: 31 | G92: 1 | H92: 10896 | I92: 0
A93: ='Adjustments and Var'!B100 -> 2023-06-01 | B93: 15924610 | C93: =SUMPRODUCT(D2:I2,D93:I93)+C2 -> 15326221.85 | D93: 16.10000038 | E93: 59.09999847 | F93: 30 | G93: 1 | H93: 10901 | I93: 0
A94: ='Adjustments and Var'!B101 -> 2023-07-01 | B94: 18076484 | C94: =SUMPRODUCT(D2:I2,D94:I94)+C2 -> 17870308.44 | D94: 0 | E94: 128.3000031 | F94: 31 | G94: 0 | H94: 10907 | I94: 0
A95: ='Adjustments and Var'!B102 -> 2023-08-01 | B95: 17316266 | C95: =SUMPRODUCT(D2:I2,D95:I95)+C2 -> 16503761.72 | D95: 7 | E95: 70.80000305 | F95: 31 | G95: 0 | H95: 10920 | I95: 0
A96: ='Adjustments and Var'!B103 -> 2023-09-01 | B96: 16034213 | C96: =SUMPRODUCT(D2:I2,D96:I96)+C2 -> 15127898.11 | D96: 26 | E96: 47 | F96: 30 | G96: 1 | H96: 10930 | I96: 0
A97: ='Adjustments and Var'!B104 -> 2023-10-01 | B97: 15141241 | C97: =SUMPRODUCT(D2:I2,D97:I97)+C2 -> 16011303.58 | D97: 188.8000031 | E97: 21.79999924 | F97: 31 | G97: 1 | H97: 10926 | I97: 0
A98: ='Adjustments and Var'!B105 -> 2023-11-01 | B98: 16171020 | C98: =SUMPRODUCT(D2:I2,D98:I98)+C2 -> 17062076.96 | D98: 422.1000061 | E98: 0 | F98: 30 | G98: 1 | H98: 10956 | I98: 0
A99: ='Adjustments and Var'!B106 -> 2023-12-01 | B99: 17331552 | C99: =SUMPRODUCT(D2:I2,D99:I99)+C2 -> 18449211.79 | D99: 473.7000122 | E99: 0 | F99: 31 | G99: 0 | H99: 11007 | I99: 0
A100: ='Adjustments and Var'!B107 -> 2024-01-01 | B100: 19239708 | C100: =SUMPRODUCT(D2:I2,D100:I100)+C2 -> 19663533.63 | D100: 623.4000244 | E100: 0 | F100: 31 | G100: 0 | H100: 11062 | I100: 0
A101: ='Adjustments and Var'!B108 -> 2024-02-01 | B101: 16942104 | C101: =SUMPRODUCT(D2:I2,D101:I101)+C2 -> 18346786.81 | D101: 517.4000244 | E101: 0 | F101: 29 | G101: 0 | H101: 11067 | I101: 0
A102: ='Adjustments and Var'!B109 -> 2024-03-01 | B102: 16618259 | C102: =SUMPRODUCT(D2:I2,D102:I102)+C2 -> 18274524.78 | D102: 443.6000061 | E102: 0 | F102: 31 | G102: 0 | H102: 11073 | I102: 0
A103: ='Adjustments and Var'!B110 -> 2024-04-01 | B103: 15010269 | C103: =SUMPRODUCT(D2:I2,D103:I103)+C2 -> 16118362.91 | D103: 284.7000122 | E103: 0 | F103: 30 | G103: 1 | H103: 11095 | I103: 0
A104: ='Adjustments and Var'!B111 -> 2024-05-01 | B104: 14287133 | C104: =SUMPRODUCT(D2:I2,D104:I104)+C2 -> 15274472.32 | D104: 70.30000305 | E104: 20.79999924 | F104: 31 | G104: 1 | H104: 11159 | I104: 0
A105: ='Adjustments and Var'!B112 -> 2024-06-01 | B105: 16228706 | C105: =SUMPRODUCT(D2:I2,D105:I105)+C2 -> 16184204.89 | D105: 20.70000076 | E105: 82.40000153 | F105: 30 | G105: 1 | H105: 11169 | I105: 0
A106: ='Adjustments and Var'!B113 -> 2024-07-01 | B106: 18262762 | C106: =SUMPRODUCT(D2:I2,D106:I106)+C2 -> 18439770.63 | D106: 0.400000006 | E106: 140.5 | F106: 31 | G106: 0 | H106: 11198 | I106: 0
A107: ='Adjustments and Var'!B114 -> 2024-08-01 | B107: 17394426 | C107: =SUMPRODUCT(D2:I2,D107:I107)+C2 -> 17459818.4 | D107: 6.800000191 | E107: 97.40000153 | F107: 31 | G107: 0 | H107: 11247 | I107: 0
A108: ='Adjustments and Var'!B115 -> 2024-09-01 | B108: 15335893 | C108: =SUMPRODUCT(D2:I2,D108:I108)+C2 -> 15285444.12 | D108: 19.29999924 | E108: 43.79999924 | F108: 30 | G108: 1 | H108: 11251 | I108: 0
A109: ='Adjustments and Var'!B116 -> 2024-10-01 | B109: 15271810 | C109: =SUMPRODUCT(D2:I2,D109:I109)+C2 -> 15912561.26 | D109: 194.6000061 | E109: 3 | F109: 31 | G109: 1 | H109: 11286 | I109: 0
A110: ='Adjustments and Var'!B117 -> 2024-11-01 | B110: 16473722 | C110: =SUMPRODUCT(D2:I2,D110:I110)+C2 -> 16887277.35 | D110: 353.3999939 | E110: 1.700000048 | F110: 30 | G110: 1 | H110: 11308 | I110: 0
A111: ='Adjustments and Var'!B118 -> 2024-12-01 | B111: 19691340 | C111: =SUMPRODUCT(D2:I2,D111:I111)+C2 -> 19536031.46 | D111: 577 | E111: 0 | F111: 31 | G111: 0 | H111: 11321 | I111: 0
A112: ='Adjustments and Var'!B119 -> 2025-01-01 | B112: 21309580 | C112: =SUMPRODUCT(D2:I2,D112:I112)+C2 -> 20714005.91 | D112: 726.2000122 | E112: 0 | F112: 31 | G112: 0 | H112: 11340 | I112: 0
A113: ='Adjustments and Var'!B120 -> 2025-02-01 | B113: 19363148 | C113: =SUMPRODUCT(D2:I2,D113:I113)+C2 -> 19328477.32 | D113: 643.5 | E113: 0 | F113: 28 | G113: 0 | H113: 11343 | I113: 0
A114: ='Adjustments and Var'!B121 -> 2025-03-01 | B114: 18440644 | C114: =SUMPRODUCT(D2:I2,D114:I114)+C2 -> 18869519.8 | D114: 486.7000122 | E114: 0 | F114: 31 | G114: 0 | H114: 11361 | I114: 0
A115: ='Adjustments and Var'!B122 -> 2025-04-01 | B115: 16095586 | C115: =SUMPRODUCT(D2:I2,D115:I115)+C2 -> 16630624.75 | D115: 319.6000061 | E115: 0 | F115: 30 | G115: 1 | H115: 11362 | I115: 0
A116: ='Adjustments and Var'!B123 -> 2025-05-01 | B116: 14877360 | C116: =SUMPRODUCT(D2:I2,D116:I116)+C2 -> 15736207.38 | D116: 154.1999969 | E116: 5.099999905 | F116: 31 | G116: 1 | H116: 11381 | I116: 0
A117: ='Adjustments and Var'!B124 -> 2025-06-01 | B117: 16033042 | C117: =SUMPRODUCT(D2:I2,D117:I117)+C2 -> 16724318.77 | D117: 12.80000019 | E117: 98.80000305 | F117: 30 | G117: 1 | H117: 11383 | I117: 0
A118: ='Adjustments and Var'!B125 -> 2025-07-01 | B118: 19633758 | C118: =SUMPRODUCT(D2:I2,D118:I118)+C2 -> 19707129.73 | D118: 0 | E118: 183.6000061 | F118: 31 | G118: 0 | H118: 11416 | I118: 0
A119: ='Adjustments and Var'!B126 -> 2025-08-01 | B119: 18141710 | C119: =SUMPRODUCT(D2:I2,D119:I119)+C2 -> 18277749.84 | D119: 16.29999924 | E119: 121 | F119: 31 | G119: 0 | H119: 11420 | I119: 0
A120: ='Adjustments and Var'!B127 -> 2025-09-01 | B120: 16022360 | C120: =SUMPRODUCT(D2:I2,D120:I120)+C2 -> 15227610.4 | D120: 20.20000076 | E120: 35.29999924 | F120: 30 | G120: 1 | H120: 11414 | I120: 0
A121: ='Adjustments and Var'!B128 -> 2025-10-01 | B121: 17065814 | C121: =SUMPRODUCT(D2:I2,D121:I121)+C2 -> 16284218.06 | D121: 203.6999969 | E121: 9.899999619 | F121: 31 | G121: 1 | H121: 11429 | I121: 0
A122: ='Adjustments and Var'!B129 -> 2025-11-01 | B122: 18940218 | C122: =SUMPRODUCT(D2:I2,D122:I122)+C2 -> 17592181.4 | D122: 433.7999878 | E122: 0 | F122: 30 | G122: 1 | H122: 11443 | I122: 0
A123: ='Adjustments and Var'!B130 -> 2025-12-01 | B123: 22359252 | C123: =SUMPRODUCT(D2:I2,D123:I123)+C2 -> 20332261.57 | D123: 665.2000122 | E123: 0 | F123: 31 | G123: 0 | H123: 11443 | I123: 0
C124: =SUMPRODUCT(D2:I2,D124:I124)+C2 -> 20445135.32 | D124: 667.4000061 | E124: 0 | F124: 31 | G124: 0 | H124: ='Monthly Load & Cust Input'!C209+'Monthly Load & Cust Input'!E209+'Monthly Load & Cust Input'!G209 -> 11549.20907 | I124: 0
C125: =SUMPRODUCT(D2:I2,D125:I125)+C2 -> 19002750.07 | D125: 577.7400055 | E125: 0 | F125: 28 | G125: 0 | H125: =H124 -> 11549.20907 | I125: 0
C126: =SUMPRODUCT(D2:I2,D126:I126)+C2 -> 19222514.34 | D126: 510.2600098 | E126: 0 | F126: 31 | G126: 0 | H126: =H125 -> 11549.20907 | I126: 0
C127: =SUMPRODUCT(D2:I2,D127:I127)+C2 -> 16890782.12 | D127: 329.0699982 | E127: 0.7099999905 | F127: 30 | G127: 1 | H127: 11549.20907 | I127: 0
C128: =SUMPRODUCT(D2:I2,D128:I128)+C2 -> 16221705.51 | D128: 143.85 | E128: 21.73000026 | F128: 31 | G128: 1 | H128: 11549.20907 | I128: 0
C129: =SUMPRODUCT(D2:I2,D129:I129)+C2 -> 16405873.17 | D129: 19.96000023 | E129: 77.76999931 | F129: 30 | G129: 1 | H129: 11549.20907 | I129: 0
C130: =SUMPRODUCT(D2:I2,D130:I130)+C2 -> 19100645.01 | D130: 0.4800000101 | E130: 154.2899994 | F130: 31 | G130: 0 | H130: 11549.20907 | I130: 0
C131: =SUMPRODUCT(D2:I2,D131:I131)+C2 -> 18453369.03 | D131: 4.459999985 | E131: 127.0699989 | F131: 31 | G131: 0 | H131: 11549.20907 | I131: 0
C132: =SUMPRODUCT(D2:I2,D132:I132)+C2 -> 15784675.88 | D132: 37.69999981 | E132: 47.3 | F132: 30 | G132: 1 | H132: 11549.20907 | I132: 0
C133: =SUMPRODUCT(D2:I2,D133:I133)+C2 -> 16369548.59 | D133: 211.3699982 | E133: 6.579999876 | F133: 31 | G133: 1 | H133: 11549.20907 | I133: 0
C134: =SUMPRODUCT(D2:I2,D134:I134)+C2 -> 17507312.48 | D134: 409.7199982 | E134: 0.2700000048 | F134: 30 | G134: 1 | H134: 11549.20907 | I134: 0
C135: =SUMPRODUCT(D2:I2,D135:I135)+C2 -> 19746839.26 | D135: 577.65 | E135: 0 | F135: 31 | G135: 0 | H135: 11549.20907 | I135: 0
C136: =SUMPRODUCT(D2:I2,D136:I136)+C2 -> 20585580.68 | D136: 667.4000061 | E136: 0 | F136: 31 | G136: 0 | H136: ='Monthly Load & Cust Input'!C210+'Monthly Load & Cust Input'!E210+'Monthly Load & Cust Input'!G210 -> 11704.98465 | I136: 0
C137: =SUMPRODUCT(D2:I2,D137:I137)+C2 -> 19143195.43 | D137: 577.7400055 | E137: 0 | F137: 28 | G137: 0 | H137: =H136 -> 11704.98465 | I137: 0
C138: =SUMPRODUCT(D2:I2,D138:I138)+C2 -> 19362959.69 | D138: 510.2600098 | E138: 0 | F138: 31 | G138: 0 | H138: =H137 -> 11704.98465 | I138: 0
C139: =SUMPRODUCT(D2:I2,D139:I139)+C2 -> 17031227.48 | D139: 329.0699982 | E139: 0.7099999905 | F139: 30 | G139: 1 | H139: 11704.98465 | I139: 0
C140: =SUMPRODUCT(D2:I2,D140:I140)+C2 -> 16362150.87 | D140: 143.85 | E140: 21.73000026 | F140: 31 | G140: 1 | H140: 11704.98465 | I140: 0
C141: =SUMPRODUCT(D2:I2,D141:I141)+C2 -> 16546318.53 | D141: 19.96000023 | E141: 77.76999931 | F141: 30 | G141: 1 | H141: 11704.98465 | I141: 0
C142: =SUMPRODUCT(D2:I2,D142:I142)+C2 -> 19241090.37 | D142: 0.4800000101 | E142: 154.2899994 | F142: 31 | G142: 0 | H142: 11704.98465 | I142: 0
C143: =SUMPRODUCT(D2:I2,D143:I143)+C2 -> 18593814.39 | D143: 4.459999985 | E143: 127.0699989 | F143: 31 | G143: 0 | H143: 11704.98465 | I143: 0
C144: =SUMPRODUCT(D2:I2,D144:I144)+C2 -> 15925121.24 | D144: 37.69999981 | E144: 47.3 | F144: 30 | G144: 1 | H144: 11704.98465 | I144: 0
C145: =SUMPRODUCT(D2:I2,D145:I145)+C2 -> 16509993.94 | D145: 211.3699982 | E145: 6.579999876 | F145: 31 | G145: 1 | H145: 11704.98465 | I145: 0
C146: =SUMPRODUCT(D2:I2,D146:I146)+C2 -> 17647757.83 | D146: 409.7199982 | E146: 0.2700000048 | F146: 30 | G146: 1 | H146: 11704.98465 | I146: 0
C147: =SUMPRODUCT(D2:I2,D147:I147)+C2 -> 19887284.62 | D147: 577.65 | E147: 0 | F147: 31 | G147: 0 | H147: 11704.98465 | I147: 0

Sheet Weather Sensitive Forecast
B8: WEATHER SENSITIVE
B10: =Controls!B15 -> Residential
B11: Year | C11: Residential Actual kWh | D11: Total Actual Wholesale | E11: Ratio% | F11: Predicted Wholesale | G11: Residential Weather Normal
B12: =YEAR(INDEX('Monthly Load & Cust Input'!$B:$B, 12 + 12*(ROW()-12))) -> 2016 | C12: =SUM(INDEX('Monthly Load & Cust Input'!$D:$D, 12 + 12*(ROW()-12)) : INDEX('Monthly Load & Cust Input'!$D:$D, 23 + 12*(ROW()-12))) -> 71073210.17 | D12: =SUM(INDEX('Adjustments and Var'!$I:$I, 11 + 12*(ROW()-12)) : INDEX('Adjustments and Var'!$I:$I, 22 + 12*(ROW()-12))) -> 199999008.1 | E12: =C12/D12 -> 0.3553678133 | F12: =SUM(Forecast!C4:C15) -> 202865510.6 | G12: =F12*E12 -> 72091872.89
B13: =YEAR(INDEX('Monthly Load & Cust Input'!$B:$B, 12 + 12*(ROW()-12))) -> 2017 | C13: =SUM(INDEX('Monthly Load & Cust Input'!$D:$D, 12 + 12*(ROW()-12)) : INDEX('Monthly Load & Cust Input'!$D:$D, 23 + 12*(ROW()-12))) -> 74351451.01 | D13: =SUM(INDEX('Adjustments and Var'!$I:$I, 11 + 12*(ROW()-12)) : INDEX('Adjustments and Var'!$I:$I, 22 + 12*(ROW()-12))) -> 200335765.8 | E13: =C13/D13 -> 0.3711341842 | F13: =SUM(Forecast!C16:C27) -> 198804131.6 | G13: =F13*E13 -> 73783009.22
B14: =YEAR(INDEX('Monthly Load & Cust Input'!$B:$B, 12 + 12*(ROW()-12))) -> 2018 | C14: =SUM(INDEX('Monthly Load & Cust Input'!$D:$D, 12 + 12*(ROW()-12)) : INDEX('Monthly Load & Cust Input'!$D:$D, 23 + 12*(ROW()-12))) -> 74029700.57 | D14: =SUM(INDEX('Adjustments and Var'!$I:$I, 11 + 12*(ROW()-12)) : INDEX('Adjustments and Var'!$I:$I, 22 + 12*(ROW()-12))) -> 211041664.7 | E14: =C14/D14 -> 0.3507823949 | F14: =SUM(Forecast!C28:C39) -> 205995674.4 | G14: =F14*E14 -> 72259656.02
B15: =YEAR(INDEX('Monthly Load & Cust Input'!$B:$B, 12 + 12*(ROW()-12))) -> 2019 | C15: =SUM(INDEX('Monthly Load & Cust Input'!$D:$D, 12 + 12*(ROW()-12)) : INDEX('Monthly Load & Cust Input'!$D:$D, 23 + 12*(ROW()-12))) -> 74597043.98 | D15: =SUM(INDEX('Adjustments and Var'!$I:$I, 11 + 12*(ROW()-12)) : INDEX('Adjustments and Var'!$I:$I, 22 + 12*(ROW()-12))) -> 201030028.1 | E15: =C15/D15 -> 0.3710741359 | F15: =SUM(Forecast!C40:C51) -> 203831780 | G15: =F15*E15 -> 75636701.64
B16: =YEAR(INDEX('Monthly Load & Cust Input'!$B:$B, 12 + 12*(ROW()-12))) -> 2020 | C16: =SUM(INDEX('Monthly Load & Cust Input'!$D:$D, 12 + 12*(ROW()-12)) : INDEX('Monthly Load & Cust Input'!$D:$D, 23 + 12*(ROW()-12))) -> 78520098.43 | D16: =SUM(INDEX('Adjustments and Var'!$I:$I, 11 + 12*(ROW()-12)) : INDEX('Adjustments and Var'!$I:$I, 22 + 12*(ROW()-12))) -> 199380264 | E16: 0.3938208168 | F16: =SUM(Forecast!C52:C63) -> 202276245.7 | G16: =F16*E16 -> 79660596.31
B17: =YEAR(INDEX('Monthly Load & Cust Input'!$B:$B, 12 + 12*(ROW()-12))) -> 2021 | C17: =SUM(INDEX('Monthly Load & Cust Input'!$D:$D, 12 + 12*(ROW()-12)) : INDEX('Monthly Load & Cust Input'!$D:$D, 23 + 12*(ROW()-12))) -> 78681799.62 | D17: =SUM(INDEX('Adjustments and Var'!$I:$I, 11 + 12*(ROW()-12)) : INDEX('Adjustments and Var'!$I:$I, 22 + 12*(ROW()-12))) -> 202057693.6 | E17: 0.3894026415 | F17: =SUM(Forecast!C64:C75) -> 199597510.7 | G17: 77723797.89
B18: =YEAR(INDEX('Monthly Load & Cust Input'!$B:$B, 12 + 12*(ROW()-12))) -> 2022 | C18: =SUM(INDEX('Monthly Load & Cust Input'!$D:$D, 12 + 12*(ROW()-12)) : INDEX('Monthly Load & Cust Input'!$D:$D, 23 + 12*(ROW()-12))) -> 78715212.81 | D18: =SUM(INDEX('Adjustments and Var'!$I:$I, 11 + 12*(ROW()-12)) : INDEX('Adjustments and Var'!$I:$I, 22 + 12*(ROW()-12))) -> 209210496.2 | E18: 0.3762488701 | F18: =SUM(Forecast!C76:C87) -> 205904667.2 | G18: 77471398.37
B19: =YEAR(INDEX('Monthly Load & Cust Input'!$B:$B, 12 + 12*(ROW()-12))) -> 2023 | C19: =SUM(INDEX('Monthly Load & Cust Input'!$D:$D, 12 + 12*(ROW()-12)) : INDEX('Monthly Load & Cust Input'!$D:$D, 23 + 12*(ROW()-12))) -> 77834518.9 | D19: =SUM(INDEX('Adjustments and Var'!$I:$I, 11 + 12*(ROW()-12)) : INDEX('Adjustments and Var'!$I:$I, 22 + 12*(ROW()-12))) -> 203944264.3 | E19: 0.3816460305 | F19: =SUM(Forecast!C88:C99) -> 203955172.3 | G19: 77838681.9
B20: =YEAR(INDEX('Monthly Load & Cust Input'!$B:$B, 12 + 12*(ROW()-12))) -> 2024 | C20: =SUM(INDEX('Monthly Load & Cust Input'!$D:$D, 12 + 12*(ROW()-12)) : INDEX('Monthly Load & Cust Input'!$D:$D, 23 + 12*(ROW()-12))) -> 80620889.17 | D20: =SUM(INDEX('Adjustments and Var'!$I:$I, 11 + 12*(ROW()-12)) : INDEX('Adjustments and Var'!$I:$I, 22 + 12*(ROW()-12))) -> 200756131.7 | E20: 0.4015861857 | F20: =SUM(Forecast!C100:C111) -> 207382788.6 | G20: 83282063.03
B21: =YEAR(INDEX('Monthly Load & Cust Input'!$B:$B, 12 + 12*(ROW()-12))) -> 2025 | C21: =SUM(INDEX('Monthly Load & Cust Input'!$D:$D, 12 + 12*(ROW()-12)) : INDEX('Monthly Load & Cust Input'!$D:$D, 23 + 12*(ROW()-12))) -> 85280217.78 | D21: =SUM(INDEX('Adjustments and Var'!$I:$I, 11 + 12*(ROW()-12)) : INDEX('Adjustments and Var'!$I:$I, 22 + 12*(ROW()-12))) -> 218282472.2 | E21: =C21/D21 -> 0.3906874287 | F21: =SUM(Forecast!C112:C123) -> 215424304.9 | G21: 84163567.76
B23: =Controls!C8 -> 2026 | D23: Trend | E23: =_xlfn.FORECAST.LINEAR(B$23,$E12:$E21,$B$12:$B$21) -> 0.401390542 | F23: =SUM(Forecast!C124:C135) -> 215151150.8 | G23: =F23*E23 -> 86359637.01
B24: =Controls!C9 -> 2027 | D24: Trend | E24: =_xlfn.FORECAST.LINEAR(B$24,$E12:$E21,$B$12:$B$21) -> 0.4056115405 | F24: =SUM(Forecast!C136:C147) -> 216836495.1 | G24: 87951384.79
B27: =Controls!B16 -> General Service < 50 kW
B28: Year | C28: Actual kWh | D28: Total Wholesale | E28: Ratio% | F28: Predicted Wholesale | G28: Weather Normal
B29: =B12 -> 2016 | C29: =SUM(INDEX('Monthly Load & Cust Input'!$F:$F, 12 + 12*(ROW()-29)) : INDEX('Monthly Load & Cust Input'!$F:$F, 23 + 12*(ROW()-29))) -> 32497800.97 | D29: =D12 -> 199999008.1 | E29: =C29/D29 -> 0.1624898107 | F29: =F12 -> 202865510.6 | G29: =F29*E29 -> 32963578.42
B30: 2017 | C30: =SUM(INDEX('Monthly Load & Cust Input'!$F:$F, 12 + 12*(ROW()-29)) : INDEX('Monthly Load & Cust Input'!$F:$F, 23 + 12*(ROW()-29))) -> 31513523.36 | D30: 200335765.8 | E30: =C30/D30 -> 0.1573035311 | F30: 198804131.6 | G30: 31272591.9
B31: 2018 | C31: =SUM(INDEX('Monthly Load & Cust Input'!$F:$F, 12 + 12*(ROW()-29)) : INDEX('Monthly Load & Cust Input'!$F:$F, 23 + 12*(ROW()-29))) -> 34673895.87 | D31: 211041664.7 | E31: =C31/D31 -> 0.1642988171 | F31: 205995674.4 | G31: 33844845.64
B32: 2019 | C32: =SUM(INDEX('Monthly Load & Cust Input'!$F:$F, 12 + 12*(ROW()-29)) : INDEX('Monthly Load & Cust Input'!$F:$F, 23 + 12*(ROW()-29))) -> 34516322.71 | D32: 201030028.1 | E32: =C32/D32 -> 0.1716973481 | F32: 203831780 | G32: 34997376.08
B33: 2020 | C33: =SUM(INDEX('Monthly Load & Cust Input'!$F:$F, 12 + 12*(ROW()-29)) : INDEX('Monthly Load & Cust Input'!$F:$F, 23 + 12*(ROW()-29))) -> 31865479.66 | D33: 199380264 | E33: 0.1598226375 | F33: 202276245.7 | G33: 32328323.09
B34: 2021 | C34: =SUM(INDEX('Monthly Load & Cust Input'!$F:$F, 12 + 12*(ROW()-29)) : INDEX('Monthly Load & Cust Input'!$F:$F, 23 + 12*(ROW()-29))) -> 34235080.14 | D34: 202057693.6 | E34: 0.1694322029 | F34: 199597510.7 | G34: 33818245.93
B35: 2022 | C35: =SUM(INDEX('Monthly Load & Cust Input'!$F:$F, 12 + 12*(ROW()-29)) : INDEX('Monthly Load & Cust Input'!$F:$F, 23 + 12*(ROW()-29))) -> 35526990.74 | D35: 209210496.2 | E35: 0.1698145714 | F35: 205904667.2 | G35: 34965612.8
B36: 2023 | C36: =SUM(INDEX('Monthly Load & Cust Input'!$F:$F, 12 + 12*(ROW()-29)) : INDEX('Monthly Load & Cust Input'!$F:$F, 23 + 12*(ROW()-29))) -> 32960487.41 | D36: 203944264.3 | E36: 0.1616151723 | F36: 203955172.3 | G36: 32962250.31
B37: 2024 | C37: =SUM(INDEX('Monthly Load & Cust Input'!$F:$F, 12 + 12*(ROW()-29)) : INDEX('Monthly Load & Cust Input'!$F:$F, 23 + 12*(ROW()-29))) -> 35493354.9 | D37: 200756131.7 | E37: 0.1767983603 | F37: 207382788.6 | G37: 36664936.97
B38: 2025 | C38: =SUM(INDEX('Monthly Load & Cust Input'!$F:$F, 12 + 12*(ROW()-29)) : INDEX('Monthly Load & Cust Input'!$F:$F, 23 + 12*(ROW()-29))) -> 37327804.5 | D38: 218282472.2 | E38: 0.1710068799 | F38: 215424304.9 | G38: 36839038.24
B40: 2026 | D40: Trend | E40: =_xlfn.FORECAST.LINEAR(B$23,$E29:$E38,$B$12:$B$21) -> 0.1732166144 | F40: 215151150.8 | G40: 37267753.92
B41: 2027 | D41: Trend | E41: =_xlfn.FORECAST.LINEAR(B$24,$E29:$E38,$B$12:$B$21) -> 0.1744509201 | F41: 216836495.1 | G41: 37827326.07
B44: =Controls!B17 -> General Service > 50 to 4999 kW
B45: Year | C45: Actual kWh | D45: Total Wholesale | E45: Ratio% | F45: Predicted Wholesale | G45: Weather Normal
B46: =B12 -> 2016 | C46: =SUM(INDEX('Monthly Load & Cust Input'!$H:$H, 12 + 12*(ROW()-46)) : INDEX('Monthly Load & Cust Input'!$H:$H, 23 + 12*(ROW()-46))) -> 132906747.3 | D46: =D29 -> 199999008.1 | E46: =C46/D46 -> 0.6645370326 | F46: =F29 -> 202865510.6 | G46: =F46*E46 -> 134811644.4
B47: 2017 | C47: =SUM(INDEX('Monthly Load & Cust Input'!$H:$H, 12 + 12*(ROW()-46)) : INDEX('Monthly Load & Cust Input'!$H:$H, 23 + 12*(ROW()-46))) -> 130939628.4 | D47: 200335765.8 | E47: =C47/D47 -> 0.6536008578 | F47: 198804131.6 | G47: =F47*E47 -> 129938551
B48: 2018 | C48: =SUM(INDEX('Monthly Load & Cust Input'!$H:$H, 12 + 12*(ROW()-46)) : INDEX('Monthly Load & Cust Input'!$H:$H, 23 + 12*(ROW()-46))) -> 137227858.2 | D48: 211041664.7 | E48: =C48/D48 -> 0.6502405979 | F48: 205995674.4 | G48: =F48*E48 -> 133946750.5
B49: 2019 | C49: =SUM(INDEX('Monthly Load & Cust Input'!$H:$H, 12 + 12*(ROW()-46)) : INDEX('Monthly Load & Cust Input'!$H:$H, 23 + 12*(ROW()-46))) -> 135821999.8 | D49: 201030028.1 | E49: =C49/D49 -> 0.6756304076 | F49: 203831780 | G49: =F49*E49 -> 137714948.6
B50: 2020 | C50: =SUM(INDEX('Monthly Load & Cust Input'!$H:$H, 12 + 12*(ROW()-46)) : INDEX('Monthly Load & Cust Input'!$H:$H, 23 + 12*(ROW()-46))) -> 127771103.7 | D50: 199380264 | E50: 0.6408412807 | F50: 202276245.7 | G50: 129626968.4
B51: 2021 | C51: =SUM(INDEX('Monthly Load & Cust Input'!$H:$H, 12 + 12*(ROW()-46)) : INDEX('Monthly Load & Cust Input'!$H:$H, 23 + 12*(ROW()-46))) -> 128129271.7 | D51: 202057693.6 | E51: 0.6341222125 | F51: 199597510.7 | G51: 126569215.1
B52: 2022 | C52: =SUM(INDEX('Monthly Load & Cust Input'!$H:$H, 12 + 12*(ROW()-46)) : INDEX('Monthly Load & Cust Input'!$H:$H, 23 + 12*(ROW()-46))) -> 129967241.4 | D52: 209210496.2 | E52: 0.6212271553 | F52: 205904667.2 | G52: 127913570.6
B53: 2023 | C53: =SUM(INDEX('Monthly Load & Cust Input'!$H:$H, 12 + 12*(ROW()-46)) : INDEX('Monthly Load & Cust Input'!$H:$H, 23 + 12*(ROW()-46))) -> 122128432.7 | D53: 203944264.3 | E53: 0.5988323972 | F53: 203955172.3 | G53: 122134964.8
B54: 2024 | C54: =SUM(INDEX('Monthly Load & Cust Input'!$H:$H, 12 + 12*(ROW()-46)) : INDEX('Monthly Load & Cust Input'!$H:$H, 23 + 12*(ROW()-46))) -> 118425675.5 | D54: 200756131.7 | E54: 0.5898981738 | F54: 207382788.6 | G54: 122334728.2
B55: 2025 | C55: =SUM(INDEX('Monthly Load & Cust Input'!$H:$H, 12 + 12*(ROW()-46)) : INDEX('Monthly Load & Cust Input'!$H:$H, 23 + 12*(ROW()-46))) -> 117760761.4 | D55: 218282472.2 | E55: 0.5394879406 | F55: 215424304.9 | G55: =F55*E55 -> 116218814.6
B57: 2026 | D57: Trend | E57: =_xlfn.FORECAST.LINEAR(B$23,$E46:$E55,$B$12:$B$21) -> 0.5602307908 | F57: =F40 -> 215151150.8 | G57: =F57*E57 -> 120534299.3
B58: 2027 | D58: Trend | E58: =_xlfn.FORECAST.LINEAR(B$24,$E46:$E55,$B$12:$B$21) -> 0.5481196972 | F58: 216836495.1 | G58: =F58*E58 -> 118852354
B61: =Controls!B18 -> Unmetered Scattered Load
B62: Year | C62: Actual kWh | D62: Total Wholesale | E62: Ratio% | F62: Predicted Wholesale | G62: Weather Normal
B63: =B29 -> 2016 | C63: =SUM(INDEX('Monthly Load & Cust Input'!$K:$K, 12 + 12*(ROW()-63)) : INDEX('Monthly Load & Cust Input'!$K:$K, 23 + 12*(ROW()-63))) -> 608763.04 | D63: =D46 -> 199999008.1 | E63: =C63/D63 -> 0.003043830296 | F63: =F46 -> 202865510.6 | G63: =F63*E63 -> 617488.1871
B64: 2017 | C64: =SUM(INDEX('Monthly Load & Cust Input'!$K:$K, 12 + 12*(ROW()-63)) : INDEX('Monthly Load & Cust Input'!$K:$K, 23 + 12*(ROW()-63))) -> 615578.35 | D64: 200335765.8 | E64: =C64/D64 -> 0.003072733156 | F64: 198804131.6 | G64: =F64*E64 -> 610872.0469
B65: 2018 | C65: =SUM(INDEX('Monthly Load & Cust Input'!$K:$K, 12 + 12*(ROW()-63)) : INDEX('Monthly Load & Cust Input'!$K:$K, 23 + 12*(ROW()-63))) -> 574951.71 | D65: 211041664.7 | E65: =C65/D65 -> 0.002724351662 | F65: 205995674.4 | G65: =F65*E65 -> 561204.658
B66: 2019 | C66: =SUM(INDEX('Monthly Load & Cust Input'!$K:$K, 12 + 12*(ROW()-63)) : INDEX('Monthly Load & Cust Input'!$K:$K, 23 + 12*(ROW()-63))) -> 612608.33 | D66: 201030028.1 | E66: =C66/D66 -> 0.003047347383 | F66: 203831780 | G66: =F66*E66 -> 621146.2413
B67: 2020 | C67: =SUM(INDEX('Monthly Load & Cust Input'!$K:$K, 12 + 12*(ROW()-63)) : INDEX('Monthly Load & Cust Input'!$K:$K, 23 + 12*(ROW()-63))) -> 612731.3 | D67: 199380264 | E67: 0.003073179299 | F67: 202276245.7 | G67: 621631.171
B68: 2021 | C68: =SUM(INDEX('Monthly Load & Cust Input'!$K:$K, 12 + 12*(ROW()-63)) : INDEX('Monthly Load & Cust Input'!$K:$K, 23 + 12*(ROW()-63))) -> 619714.37 | D68: 202057693.6 | E68: 0.003067016944 | F68: 199597510.7 | G68: 612168.9472
B69: 2022 | C69: =SUM(INDEX('Monthly Load & Cust Input'!$K:$K, 12 + 12*(ROW()-63)) : INDEX('Monthly Load & Cust Input'!$K:$K, 23 + 12*(ROW()-63))) -> 621174.33 | D69: 209210496.2 | E69: 0.00296913559 | F69: 205904667.2 | G69: 611358.8754
B70: 2023 | C70: =SUM(INDEX('Monthly Load & Cust Input'!$K:$K, 12 + 12*(ROW()-63)) : INDEX('Monthly Load & Cust Input'!$K:$K, 23 + 12*(ROW()-63))) -> 621936 | D70: 203944264.3 | E70: 0.00304953906 | F70: 203955172.3 | G70: 621969.2644
B71: 2024 | C71: =SUM(INDEX('Monthly Load & Cust Input'!$K:$K, 12 + 12*(ROW()-63)) : INDEX('Monthly Load & Cust Input'!$K:$K, 23 + 12*(ROW()-63))) -> 622522 | D71: 200756131.7 | E71: 0.003100886607 | F71: 207382788.6 | G71: 643070.5116
B72: 2025 | C72: =SUM(INDEX('Monthly Load & Cust Input'!$K:$K, 12 + 12*(ROW()-63)) : INDEX('Monthly Load & Cust Input'!$K:$K, 23 + 12*(ROW()-63))) -> 622332 | D72: 218282472.2 | E72: 0.002851039728 | F72: 215424304.9 | G72: =F72*E72 -> 614183.2516
B74: 2026 | D74: Trend | E74: =_xlfn.FORECAST.LINEAR(B$23,$E63:$E72,$B$12:$B$21) -> 0.002994809249 | F74: 215151150.8 | G74: =F74*E74 -> 644336.6563
B75: 2027 | D75: Trend | E75: =_xlfn.FORECAST.LINEAR(B$24,$E63:$E72,$B$12:$B$21) -> 0.002993882572 | F75: 216836495.1 | G75: =F75*E75 -> 649183.0036

Sheet Non-Weather Sensitive
B8: NON WEATHER SENSITIVE
B10: =Controls!B17 -> General Service > 50 to 4999 kW
B11: Year | C11: Demand (kW) | D11: Consumption (kWh) | E11: Ratio% | F11: Cust/Conn | G11: kW/cust | H11: kWh/cust
B12: =YEAR(INDEX('Monthly Load & Cust Input'!$B:$B, 12 + 12*(ROW()-12))) -> 2016 | C12: =SUM(INDEX('Monthly Load & Cust Input'!$I:$I, 12 + 12*(ROW()-12)) : INDEX('Monthly Load & Cust Input'!$I:$I, 23 + 12*(ROW()-12))) -> 318586.57 | D12: =SUM(INDEX('Monthly Load & Cust Input'!$H:$H, 12 + 12*(ROW()-12)) : INDEX('Monthly Load & Cust Input'!$H:$H, 23 + 12*(ROW()-12))) -> 132906747.3 | E12: =C12/D12 -> 0.002397068443 | F12: ='Monthly Load & Cust Input'!G196 -> 132 | G12: =C12/F12 -> 2413.534621 | H12: =D12/F12 -> 1006869.298
B13: =YEAR(INDEX('Monthly Load & Cust Input'!$B:$B, 12 + 12*(ROW()-12))) -> 2017 | C13: =SUM(INDEX('Monthly Load & Cust Input'!$I:$I, 12 + 12*(ROW()-12)) : INDEX('Monthly Load & Cust Input'!$I:$I, 23 + 12*(ROW()-12))) -> 304006.62 | D13: =SUM(INDEX('Monthly Load & Cust Input'!$H:$H, 12 + 12*(ROW()-12)) : INDEX('Monthly Load & Cust Input'!$H:$H, 23 + 12*(ROW()-12))) -> 130939628.4 | E13: =C13/D13 -> 0.002321731196 | F13: ='Monthly Load & Cust Input'!G197 -> 126.25 | G13: =C13/F13 -> 2407.973228 | H13: =D13/F13 -> 1037145.571
B14: =YEAR(INDEX('Monthly Load & Cust Input'!$B:$B, 12 + 12*(ROW()-12))) -> 2018 | C14: =SUM(INDEX('Monthly Load & Cust Input'!$I:$I, 12 + 12*(ROW()-12)) : INDEX('Monthly Load & Cust Input'!$I:$I, 23 + 12*(ROW()-12))) -> 323335.56 | D14: =SUM(INDEX('Monthly Load & Cust Input'!$H:$H, 12 + 12*(ROW()-12)) : INDEX('Monthly Load & Cust Input'!$H:$H, 23 + 12*(ROW()-12))) -> 137227858.2 | E14: 0.002356194756 | F14: ='Monthly Load & Cust Input'!G198 -> 119 | G14: 2717.105546 | H14: 1153175.279
B15: =YEAR(INDEX('Monthly Load & Cust Input'!$B:$B, 12 + 12*(ROW()-12))) -> 2019 | C15: =SUM(INDEX('Monthly Load & Cust Input'!$I:$I, 12 + 12*(ROW()-12)) : INDEX('Monthly Load & Cust Input'!$I:$I, 23 + 12*(ROW()-12))) -> 311073.23 | D15: =SUM(INDEX('Monthly Load & Cust Input'!$H:$H, 12 + 12*(ROW()-12)) : INDEX('Monthly Load & Cust Input'!$H:$H, 23 + 12*(ROW()-12))) -> 135821999.8 | E15: 0.002290300764 | F15: ='Monthly Load & Cust Input'!G199 -> 112.5833333 | G15: 2763.048675 | H15: 1206413.026
B16: =YEAR(INDEX('Monthly Load & Cust Input'!$B:$B, 12 + 12*(ROW()-12))) -> 2020 | C16: =SUM(INDEX('Monthly Load & Cust Input'!$I:$I, 12 + 12*(ROW()-12)) : INDEX('Monthly Load & Cust Input'!$I:$I, 23 + 12*(ROW()-12))) -> 313905.84 | D16: =SUM(INDEX('Monthly Load & Cust Input'!$H:$H, 12 + 12*(ROW()-12)) : INDEX('Monthly Load & Cust Input'!$H:$H, 23 + 12*(ROW()-12))) -> 127771103.7 | E16: 0.002456782722 | F16: ='Monthly Load & Cust Input'!G200 -> 108.0833333 | G16: 2904.294588 | H16: 1182153.62
B17: =YEAR(INDEX('Monthly Load & Cust Input'!$B:$B, 12 + 12*(ROW()-12))) -> 2021 | C17: =SUM(INDEX('Monthly Load & Cust Input'!$I:$I, 12 + 12*(ROW()-12)) : INDEX('Monthly Load & Cust Input'!$I:$I, 23 + 12*(ROW()-12))) -> 324430.94 | D17: =SUM(INDEX('Monthly Load & Cust Input'!$H:$H, 12 + 12*(ROW()-12)) : INDEX('Monthly Load & Cust Input'!$H:$H, 23 + 12*(ROW()-12))) -> 128129271.7 | E17: 0.002532059502 | F17: ='Monthly Load & Cust Input'!G201 -> 109.3333333 | G17: 2967.356159 | H17: 1171914.071
B18: =YEAR(INDEX('Monthly Load & Cust Input'!$B:$B, 12 + 12*(ROW()-12))) -> 2022 | C18: =SUM(INDEX('Monthly Load & Cust Input'!$I:$I, 12 + 12*(ROW()-12)) : INDEX('Monthly Load & Cust Input'!$I:$I, 23 + 12*(ROW()-12))) -> 331603.14 | D18: =SUM(INDEX('Monthly Load & Cust Input'!$H:$H, 12 + 12*(ROW()-12)) : INDEX('Monthly Load & Cust Input'!$H:$H, 23 + 12*(ROW()-12))) -> 129967241.4 | E18: 0.002551436319 | F18: ='Monthly Load & Cust Input'!G202 -> 111.5833333 | G18: 2971.798118 | H18: 1164754.964
B19: =YEAR(INDEX('Monthly Load & Cust Input'!$B:$B, 12 + 12*(ROW()-12))) -> 2023 | C19: =SUM(INDEX('Monthly Load & Cust Input'!$I:$I, 12 + 12*(ROW()-12)) : INDEX('Monthly Load & Cust Input'!$I:$I, 23 + 12*(ROW()-12))) -> 326897.86 | D19: =SUM(INDEX('Monthly Load & Cust Input'!$H:$H, 12 + 12*(ROW()-12)) : INDEX('Monthly Load & Cust Input'!$H:$H, 23 + 12*(ROW()-12))) -> 122128432.7 | E19: 0.00267667285 | F19: ='Monthly Load & Cust Input'!G203 -> 111.4166667 | G19: 2934.012206 | H19: 1096141.505
B20: =YEAR(INDEX('Monthly Load & Cust Input'!$B:$B, 12 + 12*(ROW()-12))) -> 2024 | C20: =SUM(INDEX('Monthly Load & Cust Input'!$I:$I, 12 + 12*(ROW()-12)) : INDEX('Monthly Load & Cust Input'!$I:$I, 23 + 12*(ROW()-12))) -> 333737.28 | D20: =SUM(INDEX('Monthly Load & Cust Input'!$H:$H, 12 + 12*(ROW()-12)) : INDEX('Monthly Load & Cust Input'!$H:$H, 23 + 12*(ROW()-12))) -> 118425675.5 | E20: 0.002818115909 | F20: ='Monthly Load & Cust Input'!G204 -> 111.25 | G20: 2999.885663 | H20: 1064500.453
B21: =YEAR(INDEX('Monthly Load & Cust Input'!$B:$B, 12 + 12*(ROW()-12))) -> 2025 | C21: =SUM(INDEX('Monthly Load & Cust Input'!$I:$I, 12 + 12*(ROW()-12)) : INDEX('Monthly Load & Cust Input'!$I:$I, 23 + 12*(ROW()-12))) -> 363319.34 | D21: =SUM(INDEX('Monthly Load & Cust Input'!$H:$H, 12 + 12*(ROW()-12)) : INDEX('Monthly Load & Cust Input'!$H:$H, 23 + 12*(ROW()-12))) -> 117760761.4 | E21: =C21/D21 -> 0.0030852326 | F21: ='Monthly Load & Cust Input'!G205 -> 112.25 | G21: 3236.697906 | H21: 1049093.642
B23: =Controls!C8 -> 2026 | C23: =F23*G25 -> 312171.2566 | D23: =F23*H25 -> 122728380.3 | E23: =AVERAGE(E12:E22) -> 0.002548559506 | F23: ='Monthly Load & Cust Input'!G209 -> 110.2466768 | G23: =AVERAGE(G12:G22) -> 2831.570671 | H23: =AVERAGE(H12:H22) -> 1113216.143
B24: =Controls!C9 -> 2027 | C24: =F24*G25 -> 306599.9433 | D24: =F24*H25 -> 120538049.7 | E24: =AVERAGE(E12:E23) -> 0.002548559506 | F24: ='Monthly Load & Cust Input'!G210 -> 108.2791069 | G24: =AVERAGE(G13:G23) -> 2873.374276 | H24: =AVERAGE(H13:H23) -> 1123850.827
F25: =AVERAGE(F12:F21) -> 115.375 | G25: =AVERAGE(G12:G21) -> 2831.570671 | H25: =AVERAGE(H12:H21) -> 1113216.143
B27: =Controls!B19 -> Sentinel
B28: Year | C28: Demand (kW) | D28: Consumption (kWh) | E28: Ratio% | F28: =F11 -> Cust/Conn | G28: kW/cust | H28: kWh/cust
B29: =B12 -> 2016 | C29: =SUM(INDEX('Monthly Load & Cust Input'!$O:$O, 12 + 12*(ROW()-29)) : INDEX('Monthly Load & Cust Input'!$O:$O, 23 + 12*(ROW()-29))) -> 118.8 | D29: =SUM(INDEX('Monthly Load & Cust Input'!$N:$N, 12 + 12*(ROW()-29)) : INDEX('Monthly Load & Cust Input'!$N:$N, 23 + 12*(ROW()-29))) -> 45435.56 | E29: =C29/D29 -> 0.002614692105 | F29: ='Monthly Load & Cust Input'!K196 -> 48 | G29: =C29/F29 -> 2.475 | H29: =D29/F29 -> 946.5741667
B30: 2017 | C30: =SUM(INDEX('Monthly Load & Cust Input'!$O:$O, 12 + 12*(ROW()-29)) : INDEX('Monthly Load & Cust Input'!$O:$O, 23 + 12*(ROW()-29))) -> 118.8 | D30: =SUM(INDEX('Monthly Load & Cust Input'!$N:$N, 12 + 12*(ROW()-29)) : INDEX('Monthly Load & Cust Input'!$N:$N, 23 + 12*(ROW()-29))) -> 45349.88 | E30: =C30/D30 -> 0.00261963207 | F30: ='Monthly Load & Cust Input'!K197 -> 48 | G30: =C30/F30 -> 2.475 | H30: =D30/F30 -> 944.7891667
B31: 2018 | C31: =SUM(INDEX('Monthly Load & Cust Input'!$O:$O, 12 + 12*(ROW()-29)) : INDEX('Monthly Load & Cust Input'!$O:$O, 23 + 12*(ROW()-29))) -> 116.1 | D31: =SUM(INDEX('Monthly Load & Cust Input'!$N:$N, 12 + 12*(ROW()-29)) : INDEX('Monthly Load & Cust Input'!$N:$N, 23 + 12*(ROW()-29))) -> 44653.45 | E31: =C31/D31 -> 0.002600023067 | F31: ='Monthly Load & Cust Input'!K198 -> 49 | G31: 2.369387755 | H31: 911.294898
B32: 2019 | C32: =SUM(INDEX('Monthly Load & Cust Input'!$O:$O, 12 + 12*(ROW()-29)) : INDEX('Monthly Load & Cust Input'!$O:$O, 23 + 12*(ROW()-29))) -> 114.9 | D32: =SUM(INDEX('Monthly Load & Cust Input'!$N:$N, 12 + 12*(ROW()-29)) : INDEX('Monthly Load & Cust Input'!$N:$N, 23 + 12*(ROW()-29))) -> 44613.33 | E32: =C32/D32 -> 0.002575463432 | F32: ='Monthly Load & Cust Input'!K199 -> 46 | G32: 2.497826087 | H32: 969.855
B33: 2020 | C33: =SUM(INDEX('Monthly Load & Cust Input'!$O:$O, 12 + 12*(ROW()-29)) : INDEX('Monthly Load & Cust Input'!$O:$O, 23 + 12*(ROW()-29))) -> 112.5 | D33: =SUM(INDEX('Monthly Load & Cust Input'!$N:$N, 12 + 12*(ROW()-29)) : INDEX('Monthly Load & Cust Input'!$N:$N, 23 + 12*(ROW()-29))) -> 43222.1 | E33: 0.002602835124 | F33: ='Monthly Load & Cust Input'!K200 -> 50 | G33: 2.25 | H33: 864.442
B34: 2021 | C34: =SUM(INDEX('Monthly Load & Cust Input'!$O:$O, 12 + 12*(ROW()-29)) : INDEX('Monthly Load & Cust Input'!$O:$O, 23 + 12*(ROW()-29))) -> 114.3 | D34: =SUM(INDEX('Monthly Load & Cust Input'!$N:$N, 12 + 12*(ROW()-29)) : INDEX('Monthly Load & Cust Input'!$N:$N, 23 + 12*(ROW()-29))) -> 44023.97 | E34: 0.002596312872 | F34: ='Monthly Load & Cust Input'!K201 -> 51 | G34: 2.241176471 | H34: 863.215098
B35: 2022 | C35: =SUM(INDEX('Monthly Load & Cust Input'!$O:$O, 12 + 12*(ROW()-29)) : INDEX('Monthly Load & Cust Input'!$O:$O, 23 + 12*(ROW()-29))) -> 104.4 | D35: =SUM(INDEX('Monthly Load & Cust Input'!$N:$N, 12 + 12*(ROW()-29)) : INDEX('Monthly Load & Cust Input'!$N:$N, 23 + 12*(ROW()-29))) -> 44006.48 | E35: 0.002372377886 | F35: ='Monthly Load & Cust Input'!K202 -> 51 | G35: 2.047058824 | H35: 862.8721569
B36: 2023 | C36: =SUM(INDEX('Monthly Load & Cust Input'!$O:$O, 12 + 12*(ROW()-29)) : INDEX('Monthly Load & Cust Input'!$O:$O, 23 + 12*(ROW()-29))) -> 111.6 | D36: =SUM(INDEX('Monthly Load & Cust Input'!$N:$N, 12 + 12*(ROW()-29)) : INDEX('Monthly Load & Cust Input'!$N:$N, 23 + 12*(ROW()-29))) -> 42967.08 | E36: 0.00259733731 | F36: ='Monthly Load & Cust Input'!K203 -> 51 | G36: 2.188235294 | H36: 842.4917647
B37: 2024 | C37: =SUM(INDEX('Monthly Load & Cust Input'!$O:$O, 12 + 12*(ROW()-29)) : INDEX('Monthly Load & Cust Input'!$O:$O, 23 + 12*(ROW()-29))) -> 111.6 | D37: =SUM(INDEX('Monthly Load & Cust Input'!$N:$N, 12 + 12*(ROW()-29)) : INDEX('Monthly Load & Cust Input'!$N:$N, 23 + 12*(ROW()-29))) -> 43308.42 | E37: 0.002576866115 | F37: ='Monthly Load & Cust Input'!K204 -> 49.33333333 | G37: 2.262162162 | H37: 877.8733784
B38: 2025 | C38: =SUM(INDEX('Monthly Load & Cust Input'!$O:$O, 12 + 12*(ROW()-29)) : INDEX('Monthly Load & Cust Input'!$O:$O, 23 + 12*(ROW()-29))) -> 108 | D38: =SUM(INDEX('Monthly Load & Cust Input'!$N:$N, 12 + 12*(ROW()-29)) : INDEX('Monthly Load & Cust Input'!$N:$N, 23 + 12*(ROW()-29))) -> 42831.55 | E38: 0.002521505759 | F38: ='Monthly Load & Cust Input'!K205 -> 49 | G38: 2.204081633 | H38: 874.1132653
B40: 2026 | C40: =F40*G42 -> 113.0072552 | D40: =F40*H42 -> 43992.5253 | E40: =AVERAGE(E29:E39) -> 0.002567704574 | F40: ='Monthly Load & Cust Input'!K209 -> 49.11238926 | G40: =AVERAGE(G29:G39) -> 2.300992823 | H40: =AVERAGE(H29:H39) -> 895.7520895
B41: 2027 | C41: =F41*G42 -> 113.2664552 | D41: =F41*H42 -> 44093.42912 | E41: =AVERAGE(E29:E39) -> 0.002567704574 | F41: ='Monthly Load & Cust Input'!K210 -> 49.2250363 | G41: =AVERAGE(G30:G40) -> 2.283592105 | H41: =AVERAGE(H30:H40) -> 890.6698817
F42: =AVERAGE(F29:F38) -> 49.23333333 | G42: =AVERAGE(G29:G38) -> 2.300992823 | H42: =AVERAGE(H29:H38) -> 895.7520895
B44: =Controls!B20 -> StreetLights
B45: Year | C45: Demand (kW) | D45: Consumption (kWh) | E45: Ratio% | F45: =F28 -> Cust/Conn | G45: kW/cust | H45: kWh/cust
B46: =B29 -> 2016 | C46: =SUM(INDEX('Monthly Load & Cust Input'!$R:$R, 12 + 12*(ROW()-46)) : INDEX('Monthly Load & Cust Input'!$R:$R, 23 + 12*(ROW()-46))) -> 2948.95 | D46: =SUM(INDEX('Monthly Load & Cust Input'!$Q:$Q, 12 + 12*(ROW()-46)) : INDEX('Monthly Load & Cust Input'!$Q:$Q, 23 + 12*(ROW()-46))) -> 1080613.28 | E46: =C46/D46 -> 0.002728959614 | F46: =ROUND('Monthly Load & Cust Input'!M196,0) -> 2929 | G46: =C46/F46 -> 1.006811198 | H46: =D46/F46 -> 368.9359099
B47: =B30 -> 2017 | C47: =SUM(INDEX('Monthly Load & Cust Input'!$R:$R, 12 + 12*(ROW()-46)) : INDEX('Monthly Load & Cust Input'!$R:$R, 23 + 12*(ROW()-46))) -> 2922.71 | D47: =SUM(INDEX('Monthly Load & Cust Input'!$Q:$Q, 12 + 12*(ROW()-46)) : INDEX('Monthly Load & Cust Input'!$Q:$Q, 23 + 12*(ROW()-46))) -> 1759702.439 | E47: =C47/D47 -> 0.00166091149 | F47: =ROUND('Monthly Load & Cust Input'!M197,0) -> 3082 | G47: =C47/F47 -> 0.9483160286 | H47: =D47/F47 -> 570.9612068
B48: 2018 | C48: =SUM(INDEX('Monthly Load & Cust Input'!$R:$R, 12 + 12*(ROW()-46)) : INDEX('Monthly Load & Cust Input'!$R:$R, 23 + 12*(ROW()-46))) -> 2922.72 | D48: =SUM(INDEX('Monthly Load & Cust Input'!$Q:$Q, 12 + 12*(ROW()-46)) : INDEX('Monthly Load & Cust Input'!$Q:$Q, 23 + 12*(ROW()-46))) -> 1077264.333 | E48: =C48/D48 -> 0.002713094558 | F48: =ROUND('Monthly Load & Cust Input'!M198,0) -> 3082 | G48: 0.9483192732 | H48: 349.534177
B49: 2019 | C49: =SUM(INDEX('Monthly Load & Cust Input'!$R:$R, 12 + 12*(ROW()-46)) : INDEX('Monthly Load & Cust Input'!$R:$R, 23 + 12*(ROW()-46))) -> 2948.95 | D49: =SUM(INDEX('Monthly Load & Cust Input'!$Q:$Q, 12 + 12*(ROW()-46)) : INDEX('Monthly Load & Cust Input'!$Q:$Q, 23 + 12*(ROW()-46))) -> 1068726.626 | E49: =C49/D49 -> 0.002759311809 | F49: =ROUND('Monthly Load & Cust Input'!M199,0) -> 3082 | G49: 0.9568299805 | H49: 346.763993
B50: 2020 | C50: =SUM(INDEX('Monthly Load & Cust Input'!$R:$R, 12 + 12*(ROW()-46)) : INDEX('Monthly Load & Cust Input'!$R:$R, 23 + 12*(ROW()-46))) -> 2922.72 | D50: =SUM(INDEX('Monthly Load & Cust Input'!$Q:$Q, 12 + 12*(ROW()-46)) : INDEX('Monthly Load & Cust Input'!$Q:$Q, 23 + 12*(ROW()-46))) -> 1080613.269 | E50: 0.002704686389 | F50: =ROUND('Monthly Load & Cust Input'!M200,0) -> 3082 | G50: 0.9483192732 | H50: 350.620788
B51: 2021 | C51: =SUM(INDEX('Monthly Load & Cust Input'!$R:$R, 12 + 12*(ROW()-46)) : INDEX('Monthly Load & Cust Input'!$R:$R, 23 + 12*(ROW()-46))) -> 2923.53 | D51: =SUM(INDEX('Monthly Load & Cust Input'!$Q:$Q, 12 + 12*(ROW()-46)) : INDEX('Monthly Load & Cust Input'!$Q:$Q, 23 + 12*(ROW()-46))) -> 1077951.963 | E51: 0.00271211529 | F51: =ROUND('Monthly Load & Cust Input'!M201,0) -> 3082 | G51: 0.9485820896 | H51: 349.7572884
B52: 2022 | C52: =SUM(INDEX('Monthly Load & Cust Input'!$R:$R, 12 + 12*(ROW()-46)) : INDEX('Monthly Load & Cust Input'!$R:$R, 23 + 12*(ROW()-46))) -> 2932.44 | D52: =SUM(INDEX('Monthly Load & Cust Input'!$Q:$Q, 12 + 12*(ROW()-46)) : INDEX('Monthly Load & Cust Input'!$Q:$Q, 23 + 12*(ROW()-46))) -> 1081156.258 | E52: 0.002712318388 | F52: =ROUND('Monthly Load & Cust Input'!M202,0) -> 3082 | G52: 0.9514730694 | H52: 350.796969
B53: 2023 | C53: =SUM(INDEX('Monthly Load & Cust Input'!$R:$R, 12 + 12*(ROW()-46)) : INDEX('Monthly Load & Cust Input'!$R:$R, 23 + 12*(ROW()-46))) -> 2932.44 | D53: =SUM(INDEX('Monthly Load & Cust Input'!$Q:$Q, 12 + 12*(ROW()-46)) : INDEX('Monthly Load & Cust Input'!$Q:$Q, 23 + 12*(ROW()-46))) -> 1081156.258 | E53: 0.002712318388 | F53: =ROUND('Monthly Load & Cust Input'!M203,0) -> 3082 | G53: 0.9514730694 | H53: 350.796969
B54: 2024 | C54: =SUM(INDEX('Monthly Load & Cust Input'!$R:$R, 12 + 12*(ROW()-46)) : INDEX('Monthly Load & Cust Input'!$R:$R, 23 + 12*(ROW()-46))) -> 2932.44 | D54: =SUM(INDEX('Monthly Load & Cust Input'!$Q:$Q, 12 + 12*(ROW()-46)) : INDEX('Monthly Load & Cust Input'!$Q:$Q, 23 + 12*(ROW()-46))) -> 1083844.348 | E54: 0.00270559145 | F54: =ROUND('Monthly Load & Cust Input'!M204,0) -> 3082 | G54: 0.9514730694 | H54: 351.6691589
B55: 2025 | C55: =SUM(INDEX('Monthly Load & Cust Input'!$R:$R, 12 + 12*(ROW()-46)) : INDEX('Monthly Load & Cust Input'!$R:$R, 23 + 12*(ROW()-46))) -> 3176.81 | D55: =SUM(INDEX('Monthly Load & Cust Input'!$Q:$Q, 12 + 12*(ROW()-46)) : INDEX('Monthly Load & Cust Input'!$Q:$Q, 23 + 12*(ROW()-46))) -> 1081156.25 | E55: =C55/D55 -> 0.002938344943 | F55: =ROUND('Monthly Load & Cust Input'!M205,0) -> 3082 | G55: 1.030762492 | H55: 350.7969663
B57: 2026 | C57: =F57*G59 -> 2988.167223 | D57: =F57*H59 -> 1159222.299 | E57: =AVERAGE(E46:E55) -> 0.002634765232 | F57: =ROUND('Monthly Load & Cust Input'!M209,0) -> 3099 | G57: =AVERAGE(G46:G56) -> 0.9642359544 | H57: =AVERAGE(H46:H56) -> 374.0633426
B58: =B41 -> 2027 | C58: =F58*G59 -> 3005.52347 | D58: =F58*H59 -> 1165955.439 | E58: =AVERAGE(E47:E56) -> 0.002624299189 | F58: =ROUND('Monthly Load & Cust Input'!M210,0) -> 3117 | G58: =AVERAGE(G47:G57) -> 0.95997843 | H58: =AVERAGE(H47:H57) -> 374.5760859
F59: =AVERAGE(F46:F55) -> 3066.7 | G59: =AVERAGE(G46:G55) -> 0.9642359544 | H59: =AVERAGE(H46:H55) -> 374.0633426

Sheet Final LF
B7: Class | C7: C U S T O M E R F O R E C A S T | H7: Geomean | I7: Geomean | K7: Excel Forecast | L7: Excel Forecast
B8: Customer Class | C8: BOARD APPR. | D8: 2022 | E8: 2023 | F8: 2024 | G8: 2025 | H8: 2026 | I8: 2027 | K8: 2026 | L8: 2027
B9: Residential | C9: 9611 | D9: ='Monthly Load & Cust Input'!C202 -> 9557.833333 | E9: ='Monthly Load & Cust Input'!C203 -> 9685.583333 | F9: ='Monthly Load & Cust Input'!C204 -> 9962.416667 | G9: ='Monthly Load & Cust Input'!C205 -> 10168.33333 | H9: ='Monthly Load & Cust Input'!C209 -> 10315.81743 | I9: ='Monthly Load & Cust Input'!C210 -> 10465.44066 | K9: =_xlfn.FORECAST.LINEAR(K$8,$D9:$G9,$D$8:$G$8) -> 10370.625 | L9: =_xlfn.FORECAST.LINEAR(L$8,$D9:$G9,$D$8:$G$8) -> 10581.45833 | W9: =I9-C9 -> 854.4406644
B10: General Service < 50 kW | C10: 1148 | D10: ='Monthly Load & Cust Input'!$E$202 -> 1104.083333 | E10: ='Monthly Load & Cust Input'!$E$203 -> 1111.166667 | F10: ='Monthly Load & Cust Input'!$E$204 -> 1114.083333 | G10: ='Monthly Load & Cust Input'!$E$205 -> 1115.083333 | H10: ='Monthly Load & Cust Input'!$E$209 -> 1123.144963 | I10: ='Monthly Load & Cust Input'!$E$210 -> 1131.264876 | K10: =_xlfn.FORECAST.LINEAR(K$8,$D10:$G10,$D$8:$G$8) -> 1120.083333 | L10: 1123.675 | W10: =I10-C10 -> -16.73512428
B11: General Service > 50 to 4999 kW | C11: 106 | D11: ='Monthly Load & Cust Input'!$G$202 -> 111.5833333 | E11: ='Monthly Load & Cust Input'!$G$203 -> 111.4166667 | F11: ='Monthly Load & Cust Input'!$G$204 -> 111.25 | G11: ='Monthly Load & Cust Input'!$G$205 -> 112.25 | H11: ='Monthly Load & Cust Input'!$G$209 -> 110.2466768 | I11: ='Monthly Load & Cust Input'!$G$210 -> 108.2791069 | K11: 112.0833333 | L11: 112.2666667 | W11: 2.279106874
B12: Unmetered Scattered Load | C12: 80 | D12: ='Monthly Load & Cust Input'!$I$202 -> 86.16666667 | E12: ='Monthly Load & Cust Input'!$I$203 -> 90.33333333 | F12: ='Monthly Load & Cust Input'!$I$204 -> 94.66666667 | G12: ='Monthly Load & Cust Input'!$I$205 -> 96 | H12: ='Monthly Load & Cust Input'!$I$209 -> 97.64118279 | I12: ='Monthly Load & Cust Input'!$I$210 -> 99.31042267 | K12: 100.25 | L12: 103.6333333 | W12: 19.31042267
B13: Sentinel | C13: 49 | D13: ='Monthly Load & Cust Input'!$K$202 -> 51 | E13: ='Monthly Load & Cust Input'!$K$203 -> 51 | F13: ='Monthly Load & Cust Input'!$K$204 -> 49.33333333 | G13: ='Monthly Load & Cust Input'!$K$205 -> 49 | H13: ='Monthly Load & Cust Input'!$K$209 -> 49.11238926 | I13: ='Monthly Load & Cust Input'!$K$210 -> 49.2250363 | K13: 48.16666667 | L13: 47.4 | W13: 0.2250362989
B14: StreetLights | C14: 3159 | D14: ='Monthly Load & Cust Input'!$M$202 -> 3082 | E14: ='Monthly Load & Cust Input'!$M$203 -> 3082 | F14: ='Monthly Load & Cust Input'!$M$204 -> 3082 | G14: ='Monthly Load & Cust Input'!$M$205 -> 3082 | H14: ='Monthly Load & Cust Input'!$M$209 -> 3099.48589 | I14: ='Monthly Load & Cust Input'!$M$210 -> 3117.070986 | K14: 3082 | L14: 3082 | W14: -41.92901363
B15: other | C15: 0 | D15: 0 | E15: 0 | F15: 0 | G15: 0 | H15: 0 | I15: 0 | K15: 0 | L15: 0 | W15: 0
B16: other | C16: 0 | D16: 0 | E16: 0 | F16: 0 | G16: 0 | H16: 0 | I16: 0 | K16: 0 | L16: 0 | W16: 0
B17: other | C17: 0 | D17: 0 | E17: 0 | F17: 0 | G17: 0 | H17: 0 | I17: 0 | K17: 0 | L17: 0 | W17: 0
B18: T O T A L | C18: =SUM(C9:C17) -> 14153 | D18: =SUM(D9:D17) -> 13992.66667 | E18: 14131.5 | F18: 14413.75 | G18: 14622.66667 | H18: 14795.44853 | I18: 14970.59109 | K18: 14833.20833 | L18: 15050.43333 | W18: 817.5910924
B21: Class | C21: C O N S U M P T I O N F O R E C A S T | H21: 10YRegr. | I21: 10YRegr. | K21: Excel Forecast | L21: Excel Forecast
B22: Customer Class | C22: BOARD APPR. | D22: =D8 -> 2022 | E22: 2023 | F22: 2024 | G22: 2025 | H22: 2026 | I22: 2027 | K22: 2026 | L22: 2027
B23: Residential | C23: 75290019 | D23: ='Weather Sensitive Forecast'!$C$18 -> 78715212.81 | E23: ='Weather Sensitive Forecast'!$C$19 -> 77834518.9 | F23: ='Weather Sensitive Forecast'!$C$20 -> 80620889.17 | G23: ='Weather Sensitive Forecast'!$C$21 -> 85280217.78 | H23: ='Weather Sensitive Forecast'!$G$23 -> 86359637.01 | I23: ='Weather Sensitive Forecast'!$G$24 -> 87951384.79 | K23: =_xlfn.FORECAST.LINEAR(K$8,$D23:$G23,$D$8:$G$8) -> 86233055.96 | L23: =_xlfn.FORECAST.LINEAR(L$8,$D23:$G23,$D$8:$G$8) -> 88481194.48 | W23: =I23-C23 -> 12661365.79
B24: General Service < 50 kW | C24: 34580902 | D24: ='Weather Sensitive Forecast'!$C$35 -> 35526990.74 | E24: ='Weather Sensitive Forecast'!$C$36 -> 32960487.41 | F24: ='Weather Sensitive Forecast'!$C$37 -> 35493354.9 | G24: ='Weather Sensitive Forecast'!$C$38 -> 37327804.5 | H24: ='Weather Sensitive Forecast'!$G$40 -> 37267753.92 | I24: ='Weather Sensitive Forecast'!$G$41 -> 37827326.07 | K24: =_xlfn.FORECAST.LINEAR(K$8,$D24:$G24,$D$8:$G$8) -> 37310986.58 | L24: 38104517.46 | W24: =I24-C24 -> 3246424.074
B25: General Service > 50 to 4999 kW | C25: 126669984 | D25: ='Weather Sensitive Forecast'!$C$52 -> 129967241.4 | E25: ='Weather Sensitive Forecast'!$C$53 -> 122128432.7 | F25: ='Weather Sensitive Forecast'!$C$54 -> 118425675.5 | G25: ='Weather Sensitive Forecast'!$C$55 -> 117760761.4 | H25: ='Weather Sensitive Forecast'!$G$57 -> 120534299.3 | I25: ='Weather Sensitive Forecast'!$G$58 -> 118852354 | K25: 111989978.4 | L25: 107957758.7 | W25: -7817629.99
B26: Unmetered Scattered Load | C26: 617799 | D26: ='Weather Sensitive Forecast'!$C$69 -> 621174.33 | E26: ='Weather Sensitive Forecast'!$C$70 -> 621936 | F26: ='Weather Sensitive Forecast'!$C$71 -> 622522 | G26: ='Weather Sensitive Forecast'!$C$72 -> 622332 | H26: ='Weather Sensitive Forecast'!$G$74 -> 644336.6563 | I26: ='Weather Sensitive Forecast'!$G$75 -> 649183.0036 | K26: 623005.835 | L26: 623411.736 | W26: 31384.00356
B27: Sentinel | C27: 44683 | D27: ='Non-Weather Sensitive'!D35 -> 44006.48 | E27: ='Non-Weather Sensitive'!D35 -> 44006.48 | F27: ='Non-Weather Sensitive'!D37 -> 43308.42 | G27: ='Non-Weather Sensitive'!D38 -> 42831.55 | H27: ='Non-Weather Sensitive'!D40 -> 43992.5253 | I27: ='Non-Weather Sensitive'!D41 -> 44093.42912 | K27: 42482.52 | L27: 42060.235 | W27: -589.5708816
B28: StreetLights | C28: 1091871 | D28: ='Non-Weather Sensitive'!D52 -> 1081156.258 | E28: ='Non-Weather Sensitive'!D53 -> 1081156.258 | F28: ='Non-Weather Sensitive'!D54 -> 1083844.348 | G28: ='Non-Weather Sensitive'!D55 -> 1081156.25 | H28: ='Non-Weather Sensitive'!D57 -> 1159222.299 | I28: ='Non-Weather Sensitive'!D58 -> 1165955.439 | K28: 1082500.295 | L28: 1082769.101 | W28: 74084.43893
B29: other | C29: 0 | D29: 0 | E29: 0 | F29: 0 | G29: 0 | H29: 0 | I29: 0 | K29: 0 | L29: 0 | W29: 0
B30: other | C30: 0 | D30: 0 | E30: 0 | F30: 0 | G30: 0 | H30: 0 | I30: 0 | K30: 0 | L30: 0 | W30: 0
B31: other | C31: 0 | D31: 0 | E31: 0 | F31: 0 | G31: 0 | H31: 0 | I31: 0 | K31: 0 | L31: 0 | W31: 0
B32: T O T A L | C32: =SUM(C23:C31) -> 238295258 | D32: 245955782 | E32: 234670537.7 | F32: 236289594.3 | G32: 242115103.5 | H32: 246009241.8 | I32: 246490296.7 | K32: =SUM(K23:K31) -> 237282009.6 | L32: =SUM(L23:L31) -> 236291711.7 | W32: 8195038.748
B35: Class | C35: D E M A N D F O R E C A S T | H35: 10YRegr. | I35: 10YRegr. | K35: Excel Forecast | L35: Excel Forecast
B36: Customer Class | C36: BOARD APPR. | D36: =D8 -> 2022 | E36: 2023 | F36: 2024 | G36: 2025 | H36: 2026 | I36: 2027 | K36: 2026 | L36: 2027
B37: Residential | C37: 0 | D37: 0 | E37: 0 | F37: 0 | G37: 0 | H37: 0 | I37: 0 | K37: =_xlfn.FORECAST.LINEAR(K$8,$D37:$G37,$D$8:$G$8) -> 0 | L37: =_xlfn.FORECAST.LINEAR(L$8,$D37:$G37,$D$8:$G$8) -> 0 | W37: =I37-C37 -> 0
B38: General Service < 50 kW | C38: 0 | D38: 0 | E38: 0 | F38: 0 | G38: 0 | H38: 0 | I38: 0 | K38: =_xlfn.FORECAST.LINEAR(K$8,$D38:$G38,$D$8:$G$8) -> 0 | L38: 0 | W38: =I38-C38 -> 0
B39: General Service > 50 to 4999 kW | C39: 329698 | D39: ='Non-Weather Sensitive'!C18 -> 331603.14 | E39: ='Non-Weather Sensitive'!C19 -> 326897.86 | F39: ='Non-Weather Sensitive'!C20 -> 333737.28 | G39: ='Non-Weather Sensitive'!C21 -> 363319.34 | H39: ='Non-Weather Sensitive'!C23 -> 312171.2566 | I39: ='Non-Weather Sensitive'!C24 -> 306599.9433 | K39: 364386.41 | L39: 374585.212 | W39: -23098.05669
B40: Unmetered Scattered Load | C40: 0 | D40: 0 | E40: 0 | F40: 0 | G40: 0 | H40: 0 | I40: 0 | K40: 0 | L40: 0 | W40: 0
B41: Sentinel | C41: 134 | D41: ='Non-Weather Sensitive'!C35 -> 104.4 | E41: ='Non-Weather Sensitive'!C36 -> 111.6 | F41: ='Non-Weather Sensitive'!C37 -> 111.6 | G41: ='Non-Weather Sensitive'!C38 -> 108 | H41: ='Non-Weather Sensitive'!C40 -> 113.0072552 | I41: ='Non-Weather Sensitive'!C41 -> 113.2664552 | K41: 111.6 | L41: 112.68 | W41: -20.73354479
B42: StreetLights | C42: 2919 | D42: ='Non-Weather Sensitive'!C52 -> 2932.44 | E42: ='Non-Weather Sensitive'!C53 -> 2932.44 | F42: ='Non-Weather Sensitive'!C54 -> 2932.44 | G42: ='Non-Weather Sensitive'!C55 -> 3176.81 | H42: ='Non-Weather Sensitive'!C57 -> 2988.167223 | I42: ='Non-Weather Sensitive'!C58 -> 3005.52347 | K42: 3176.81 | L42: 3250.121 | W42: 86.52346974
B43: other | C43: 0 | D43: 0 | E43: 0 | F43: 0 | G43: 0 | H43: 0 | I43: 0 | K43: 0 | L43: 0 | W43: 0
B44: other | C44: 0 | D44: 0 | E44: 0 | F44: 0 | G44: 0 | H44: 0 | I44: 0 | K44: 0 | L44: 0 | W44: 0
B45: other | C45: 0 | D45: 0 | E45: 0 | F45: 0 | G45: 0 | H45: 0 | I45: 0 | K45: 0 | L45: 0 | W45: 0
B46: T O T A L | C46: =SUM(C37:C45) -> 332751 | D46: 334639.98 | E46: 329941.9 | F46: 336781.32 | G46: 366604.15 | H46: 315272.4311 | I46: 309718.7332 | K46: 367674.82 | L46: 377948.013 | W46: -23032.26677

Sheet IESO & HONI Wholesale
A1: IESO-Provided Wholesale Load Data | E1: HONI-Provided Wholesale Load Data
A3: Time | B3: Non Adjusted (kWh) | C3: Loss Adjusted (kWh) | E3: Non Adjusted (kWh) | F3: Loss Adjusted (kWh)
A5: 2016-01-01 | B5: 22114153.93 | C5: 22375301.49 | E5: 22128983.59
A6: 2016-02-01 | B6: 20777606.63 | C6: 21018717.19 | E6: 20791079.84
A7: 2016-03-01 | B7: 20716837.21 | C7: 20957221.26 | E7: 20729495.02
A8: 2016-04-01 | B8: 18904445.43 | C8: 19123029.84 | E8: 18914746.61
A9: 2016-05-01 | B9: 18615143.72 | C9: 18834709.42 | E9: 18623767.87
A10: 2016-06-01 | B10: 18870302.62 | C10: 19090270.83 | E10: 18879367.37
A11: 2016-07-01 | B11: 20404756.03 | C11: 20652474.51 | E11: 20415103.31
A12: 2016-08-01 | B12: 22494024.04 | C12: 22763345 | E12: 22505106.31
A13: 2016-09-01 | B13: 19120873.16 | C13: 19345966.99 | E13: 19119452.39
A14: 2016-10-01 | B14: 18458909.43 | C14: 18681399.12 | E14: 18469062.56
A15: 2016-11-01 | B15: 19200504.51 | C15: 19432254.44 | E15: 19212109.23
A16: 2016-12-01 | B16: 21204085.06 | C16: 21463306.38 | E16: 21217584.99 | G16: =SUM(E5:E16) -> 241005859.1
A17: 2017-01-01 | B17: 21660691.04 | C17: 21925824.31 | E17: 21675233.3
A18: 2017-02-01 | B18: 19642640.27 | C18: 19880347.58 | E18: 19655486.64
A19: 2017-03-01 | B19: 21727725.21 | C19: 21990613.49 | E19: 21768044.61
A20: 2017-04-01 | B20: 18076419.31 | C20: 18291832.23 | E20: 18282963.48
A21: 2017-05-01 | B21: 18315170.98 | C21: 18534327.59 | E21: 18324755.43
A22: 2017-06-01 | B22: 18310959.86 | C22: 18529689.61 | E22: 18320340
A23: 2017-07-01 | B23: 19576837.04 | C23: 19814277.7 | E23: 19587017.26
A24: 2017-08-01 | B24: 20124132.53 | C24: 20365734.43 | E24: 20134470.87
A25: 2017-09-01 | B25: 18649795.54 | C25: 18873875.77 | E25: 18659128.71
A26: 2017-10-01 | B26: 18946386.41 | C26: 19169899.67 | E26: 18955855.38
A27: 2017-11-01 | B27: 20284291.66 | C27: 20523020.65 | E27: 20295421.01
A28: 2017-12-01 | B28: 22497491.26 | C28: 22764446.93 | E28: 22510869.11 | G28: =SUM(E17:E28) -> 238169585.8
A29: 2018-01-01 | B29: 23911803.07 | C29: 24199728.42 | E29: 23926993.53
A30: 2018-02-01 | B30: 20530766.24 | C30: 20774413.23 | E30: 20543060.89
A31: 2018-03-01 | B31: 21377614.66 | C31: 21630301.75 | E31: 21389943.51
A32: 2018-04-01 | B32: 20164994.35 | C32: 20399707.74 | E32: 20175553.09
A33: 2018-05-01 | B33: 19089969.62 | C33: 19312211.11 | E33: 19098635.89
A34: 2018-06-01 | B34: 19049122.42 | C34: 19271102.34 | E34: 19057522.98
A35: 2018-07-01 | B35: 22050041.46 | C35: 22315542.32 | E35: 22061034.05
A36: 2018-08-01 | B36: 22528657.98 | C36: 22796549.65 | E36: 22539963.3
A37: 2018-09-01 | B37: 20348435.11 | C37: 20589196.16 | E37: 20358548.39
A38: 2018-10-01 | B38: 20181291.78 | C38: 20418669.98 | E38: 20192182.21
A39: 2018-11-01 | B39: 21135545.77 | C39: 21385719.47 | E39: 21148072.07
A40: 2018-12-01 | B40: 21223487.68 | C40: 21478920.59 | E40: 21236189.78 | G40: =SUM(E29:E40) -> 251727699.7
A41: 2019-01-01 | B41: 24129795.6 | C41: 24419266.41 | E41: 24145305.05
A42: 2019-02-01 | B42: 21385566.15 | C42: 21639060.11 | E42: 21398682.48
A43: 2019-03-01 | B43: 22347614.47 | C43: 22609798.2 | E43: 22360479.21
A44: 2019-04-01 | B44: 19534726.42 | C44: 19763861.69 | E44: 19544511.06
A45: 2019-05-01 | B45: 18898490.42 | C45: 19117222.02 | E45: 18907303.98
A46: 2019-06-01 | B46: 18659851.16 | C46: 18873505.42 | E46: 18667603.25
A47: 2019-07-01 | B47: 22315251.31 | C47: 22579118.72 | E47: 22326158.12
A48: 2019-08-01 | B48: 20784899.74 | C48: 21027212.23 | E48: 20794420.88
A49: 2019-09-01 | B49: 18961716.69 | C49: 19179693.86 | E49: 18971022.19
A50: 2019-10-01 | B50: 19002876.55 | C50: 19223336.24 | E50: 19012970.61
A51: 2019-11-01 | B51: 21224685.74 | C51: 21470270.41 | E51: 21236823.85
A52: 2019-12-01 | B52: 21514135.12 | C52: 21761942.46 | E52: 21526414.43 | G52: =SUM(E41:E52) -> 248891695.1
A53: 2020-01-01 | B53: 22676740.54 | C53: 22935455.46 | E53: 22690646.3 | F53: 22935081.7
A54: 2020-02-01 | B54: 21283350.38 | C54: 21525121.31 | E54: 21296233.15 | F54: 21524767.62
A55: 2020-03-01 | B55: 20682651.45 | C55: 20920094.81 | E55: 20694662.95 | F55: 20919697.16
A56: 2020-04-01 | B56: 17430532.7 | C56: 17632387.76 | E56: 17448835.34 | F56: 17635424.93
A57: 2020-05-01 | B57: 17595692.45 | C57: 17797566.58 | E57: 17603802.59 | F57: 17776925.01
A58: 2020-06-01 | B58: 19675063.12 | C58: 19901090.13 | E58: 19834351.97 | F58: 20041953.73
A59: 2020-07-01 | B59: 22935477.49 | C59: 23204286.68 | E59: 22948221.18 | F59: 23203249.16
A60: 2020-08-01 | B60: 21123350.29 | C60: 21371300.27 | E60: 21134527.23 | F60: 21370514.68
A61: 2020-09-01 | B61: 18924099.61 | C61: 19144081.04 | E61: 18933263.59 | F61: 19143332.14
A62: 2020-10-01 | B62: 19369985.73 | C62: 19601040.06 | E62: 19378191.99 | F62: 19598332.19
A63: 2020-11-01 | B63: 19794819.37 | C63: 20038200.67 | E63: 19806512.16 | F63: 20037555.06
A64: 2020-12-01 | B64: 21462875.62 | C64: 21720444.33 | E64: 21476405.56 | F64: 21719779.54 | G64: =SUM(E53:E64) -> 243245654 | H64: =SUM(F53:F64) -> 245906612.9
A65: 2021-01-01 | B65: 22506951.32 | C65: 22772296.9 | E65: 22520739.91 | F65: 22771615.95
A66: 2021-02-01 | B66: 21405909.89 | C66: 21656645.61 | E66: 21419071.58 | F66: 21656055.1
A67: 2021-03-01 | B67: 21310624.62 | C67: 21559866.18 | E67: 21323024.3 | F67: 21559168.55
A68: 2021-04-01 | B68: 18490555.51 | C68: 18707176.61 | E68: 18500418.87 | F68: 18706464.01
A69: 2021-05-01 | B69: 18175071.69 | C69: 18402126.27 | E69: 18183990.48 | F69: 18401063.92
A70: 2021-06-01 | B70: 19223413.38 | C70: 19575898.99 | E70: 19233839.84 | F70: 19575559.6
A71: 2021-07-01 | B71: 20444305.14 | C71: 20717087.88 | E71: 20455070.15 | F71: 20716429.67
A72: 2021-08-01 | B72: 22698097.7 | C72: 22975629.79 | E72: 22711582.54 | F72: 22974900.83
A73: 2021-09-01 | B73: 18566775.58 | C73: 18789684.21 | E73: 18577062.69 | F73: 18788959.51
A74: 2021-10-01 | B74: 19039688.81 | C74: 19267875.26 | E74: 19050459 | F74: 19267105.62
A75: 2021-11-01 | B75: 20059870.78 | C75: 20301834.18 | E75: 20073180.63 | F75: 20301206.54
A76: 2021-12-01 | B76: 21556583.36 | C76: 21818494.07 | E76: 21571148.6 | F76: 21817859.1 | G76: =SUM(E65:E76) -> 243619588.6 | H76: =SUM(F65:F76) -> 246536388.4
A77: 2022-01-01 | B77: 24403205.58 | C77: 24694883.36 | E77: 24417231.32 | F77: 24691018.76
A78: 2022-02-01 | B78: 21909900.78 | C78: 22162903.58 | E78: 21919603.43 | F78: 22162370.71
A79: 2022-03-01 | B79: 22880344.8 | C79: 23152612.67 | E79: 22889653.74 | F79: 23151967.37
A80: 2022-04-01 | B80: 19528479.84 | C80: 19766030.37 | E80: 19534291.81 | F80: 19765226.71
A81: 2022-05-01 | B81: 19069568.2 | C81: 19301363.58 | E81: 19074156.39 | F81: 19300533.16
A82: 2022-06-01 | B82: 19278078.31 | C82: 19514440.71 | E82: 19283498.63 | F82: 19513694.7
A83: 2022-07-01 | B83: 20802698.23 | C83: 21059294.96 | E83: 20809203.44 | F83: 21058539.16
A84: 2022-08-01 | B84: 22204993.58 | C84: 22479210.07 | E84: 22213048.16 | F84: 22478492.32
A85: 2022-09-01 | B85: 19212002.12 | C85: 19445297.55 | E85: 19217568.52 | F85: 19444627.5
A86: 2022-10-01 | B86: 18764012.46 | C86: 19032558.69 | E86: 18769593.14 | F86: 19032051.14
A87: 2022-11-01 | B87: 20449533.02 | C87: 20702388.33 | E87: 20457408.48 | F87: 20701788.99
A88: 2022-12-01 | B88: 21373463.16 | C88: 21635081.68 | E88: 21382190.12 | F88: 21634449.32 | G88: =SUM(E77:E88) -> 249967447.2 | H88: =SUM(F77:F88) -> 252934759.8
A89: 2023-01-01 | B89: 23186865.51 | C89: 23465037.47 | E89: 23197281.51 | F89: 23465743.59
A90: 2023-02-01 | B90: 21172589.41 | C90: 21426634.92 | E90: 21182250.55 | F90: 21426110.26
A91: 2023-03-01 | B91: 22354192.11 | C91: 22622284.26 | E91: 22364072.37 | F91: 22621707.36
A92: 2023-04-01 | B92: 18636427.35 | C92: 18859274.65 | E92: 18641615 | F92: 18858600.59
A93: 2023-05-01 | B93: 18227999.78 | C93: 18442520.2 | E93: 18228640.12 | F93: 18441710.01
A94: 2023-06-01 | B94: 18817578.76 | C94: 19092291.22 | E94: 18814559.75 | F94: 19091276.85
A95: 2023-07-01 | B95: 20559240.51 | C95: 20872036.29 | E95: 20557221.62 | F95: 20870980.4
A96: 2023-08-01 | B96: 19641553.29 | C96: 19942911.8 | E96: 19639476.5 | F96: 19941880.43
A97: 2023-09-01 | B97: 18058875.26 | C97: 18296506.78 | E97: 18056113.69 | F97: 18294925.21
A98: 2023-10-01 | B98: 18037970.63 | C98: 18253021.4 | E98: 18035612.18 | F98: 18252032.46
A99: 2023-11-01 | B99: 19263295.93 | C99: 19495266.01 | E99: 19262692.75 | F99: 19494329.98
A100: 2023-12-01 | B100: 19526809.37 | C100: 19766507.8 | E100: 19526810.25 | F100: 19765605.06 | G100: =SUM(E89:E100) -> 237506346.3 | H100: =SUM(F89:F100) -> 240524902.2
A101: 2024-01-01 | B101: 22395092.44 | C101: 22681599.54 | E101: 22396390.63 | F101: 22680683.47
A102: 2024-02-01 | B102: 19553033.53 | C102: 19786236.4 | E102: 19553177.37 | F102: 19785419.82
A103: 2024-03-01 | B103: 19699255.77 | C103: 19932273.4 | E103: 19698219.58 | F103: 19931391.96
A104: 2024-04-01 | B104: 18439562.15 | C104: 18682596.46 | E104: 18436891.92 | F104: 18681847.47
A105: 2024-05-01 | B105: 17855280.89 | C105: 18083120.24 | E105: 17851572.36 | F105: 18082298.57
A106: 2024-06-01 | B106: 18944192.23 | C106: 19164715.52 | E106: 18941335.35 | F106: 19163756.23
A107: 2024-07-01 | B107: 21855144.54 | C107: 22112393.53 | E107: 21853500.65 | F107: 22111387.24
A108: 2024-08-01 | B108: 20678509.15 | C108: 20922953.81 | E108: 20676973.63 | F108: 20921984.33
A109: 2024-09-01 | B109: 18616644.64 | C109: 18834783.53 | E109: 18614608.05 | F109: 18833860.89
A110: 2024-10-01 | B110: 18471341.05 | C110: 18685900.83 | E110: 18469100.78 | F110: 18684974.34
A111: 2024-11-01 | B111: 19080556.37 | C111: 19325698.97 | E111: 19078281.94 | F111: 19324678.28
A112: 2024-12-01 | B112: 21022924.08 | C112: 21293241.07 | E112: 21023641.42 | F112: 21292281.61 | G112: =SUM(E101:E112) -> 236593693.7 | H112: =SUM(F101:F112) -> 239494564.2
A113: 2025-01-01 | B113: 23602189.24 | C113: 23879084.25 | E113: 23603889.24 | F113: 23878189
A114: 2025-02-01 | B114: 21286357.93 | C114: 21534413.53 | E114: 21287860.76 | F114: 21533600.03
A115: 2025-03-01 | B115: 20693574.67 | C115: 20935177.73 | E115: 20693391.39 | F115: 20934190.64
A116: 2025-04-01 | B116: 18415526.37 | C116: 18635845.55 | E116: 18413521.39 | F116: 18634957.67
A117: 2025-05-01 | B117: 17393164.98 | C117: 17628789.59 | E117: 17389835.35 | F117: 17628075.26
A118: 2025-06-01 | B118: 18899450.48 | C118: 19119553.8 | E118: 18896927.21 | F118: 19118606.32
A119: 2025-07-01 | B119: 22839327.35 | C119: 23113261.82 | E119: 22838218.4 | F119: 23112224.16
A120: 2025-08-01 | B120: 21175441.2 | C120: 21424278.64 | E120: 21173810.05 | F120: 21423283.62
A121: 2025-09-01 | B121: 18711183 | C121: 18929814.06 | E121: 18709263.22 | F121: 18928889.56
A122: 2025-10-01 | B122: 18958699.99 | C122: 19186300.71 | E122: 18956675.88 | F122: 19185256.19
A123: 2025-11-01 | B123: 20411978.17 | C123: 20672307.78 | E123: 20411470.79 | F123: 20671400.74
A124: 2025-12-01 | B124: 22740079.17 | C124: 23015691.03 | E124: 22740746.48 | F124: 23014751.77 | G124: =SUM(E113:E124) -> 245115610.2 | H124: =SUM(F113:F124) -> 248063425

Sheet Wholesale Analysis2
B8: W H O L E S A L E T O T A L | N8: kWh Purchased VS kWh Adjsuted
B9: Month | C9: ='Monthly Load & Cust Input'!C135 -> 2016 | D9: ='Monthly Load & Cust Input'!D135 -> 2017 | E9: ='Monthly Load & Cust Input'!E135 -> 2018 | F9: ='Monthly Load & Cust Input'!F135 -> 2019 | G9: ='Monthly Load & Cust Input'!G135 -> 2020 | H9: ='Monthly Load & Cust Input'!H135 -> 2021 | I9: ='Monthly Load & Cust Input'!I135 -> 2022 | J9: ='Monthly Load & Cust Input'!J135 -> 2023 | K9: ='Monthly Load & Cust Input'!K135 -> 2024 | L9: ='Monthly Load & Cust Input'!L135 -> 2025 | N9: Year | O9: Wholesale | P9: year over year | Q9: Adjusted | R9: year over year | S9: Wholesale VS Adj.
B10: January | C10: ='Monthly Load & Cust Input'!C136 -> 22128983.59 | D10: ='Monthly Load & Cust Input'!D136 -> 21675233.3 | E10: ='Monthly Load & Cust Input'!E136 -> 23926993.53 | F10: ='Monthly Load & Cust Input'!F136 -> 24145305.05 | G10: ='Monthly Load & Cust Input'!G136 -> 22690646.3 | H10: ='Monthly Load & Cust Input'!H136 -> 22520739.91 | I10: ='Monthly Load & Cust Input'!I136 -> 24417231.32 | J10: ='Monthly Load & Cust Input'!J136 -> 23197281.51 | K10: ='Monthly Load & Cust Input'!K136 -> 22396390.63 | L10: ='Monthly Load & Cust Input'!L136 -> 23603889.24 | N10: ='Weather Sensitive Forecast'!B12 -> 2016 | O10: ='Weather Sensitive Forecast'!D12 -> 199999008.1 | Q10: ='Weather Sensitive Forecast'!F12 -> 202865510.6 | S10: =Q10-O10 -> 2866502.492
B11: February | C11: ='Monthly Load & Cust Input'!C137 -> 20791079.84 | D11: ='Monthly Load & Cust Input'!D137 -> 19655486.64 | E11: ='Monthly Load & Cust Input'!E137 -> 20543060.89 | F11: ='Monthly Load & Cust Input'!F137 -> 21398682.48 | G11: ='Monthly Load & Cust Input'!G137 -> 21296233.15 | H11: ='Monthly Load & Cust Input'!H137 -> 21419071.58 | I11: ='Monthly Load & Cust Input'!I137 -> 21919603.43 | J11: ='Monthly Load & Cust Input'!J137 -> 21182250.55 | K11: ='Monthly Load & Cust Input'!K137 -> 19553177.37 | L11: ='Monthly Load & Cust Input'!L137 -> 21287860.76 | N11: ='Weather Sensitive Forecast'!B13 -> 2017 | O11: ='Weather Sensitive Forecast'!D13 -> 200335765.8 | P11: =O11/O10+1 -> 2.001683797 | Q11: ='Weather Sensitive Forecast'!F13 -> 198804131.6 | R11: =Q11/Q10+1 -> 1.979979944 | S11: =Q11-O11 -> -1531634.159
B12: March | C12: ='Monthly Load & Cust Input'!C138 -> 20729495.02 | D12: ='Monthly Load & Cust Input'!D138 -> 21768044.61 | E12: ='Monthly Load & Cust Input'!E138 -> 21389943.51 | F12: ='Monthly Load & Cust Input'!F138 -> 22360479.21 | G12: ='Monthly Load & Cust Input'!G138 -> 20694662.95 | H12: ='Monthly Load & Cust Input'!H138 -> 21323024.3 | I12: ='Monthly Load & Cust Input'!I138 -> 22889653.74 | J12: ='Monthly Load & Cust Input'!J138 -> 22364072.37 | K12: ='Monthly Load & Cust Input'!K138 -> 19698219.58 | L12: ='Monthly Load & Cust Input'!L138 -> 20693391.39 | N12: ='Weather Sensitive Forecast'!B14 -> 2018 | O12: ='Weather Sensitive Forecast'!D14 -> 211041664.7 | P12: =O12/O11+1 -> 2.053439778 | Q12: ='Weather Sensitive Forecast'!F14 -> 205995674.4 | R12: =Q12/Q11+1 -> 2.036174011 | S12: -5045990.273
B13: April | C13: ='Monthly Load & Cust Input'!C139 -> 18914746.61 | D13: ='Monthly Load & Cust Input'!D139 -> 18282963.48 | E13: ='Monthly Load & Cust Input'!E139 -> 20175553.09 | F13: ='Monthly Load & Cust Input'!F139 -> 19544511.06 | G13: ='Monthly Load & Cust Input'!G139 -> 17448835.34 | H13: ='Monthly Load & Cust Input'!H139 -> 18500418.87 | I13: ='Monthly Load & Cust Input'!I139 -> 19534291.81 | J13: ='Monthly Load & Cust Input'!J139 -> 18641615 | K13: ='Monthly Load & Cust Input'!K139 -> 18436891.92 | L13: ='Monthly Load & Cust Input'!L139 -> 18413521.39 | N13: ='Weather Sensitive Forecast'!B15 -> 2019 | O13: ='Weather Sensitive Forecast'!D15 -> 201030028.1 | P13: 1.952560853 | Q13: ='Weather Sensitive Forecast'!F15 -> 203831780 | R13: 1.989495438 | S13: 2801751.898
B14: May | C14: ='Monthly Load & Cust Input'!C140 -> 18623767.87 | D14: ='Monthly Load & Cust Input'!D140 -> 18324755.43 | E14: ='Monthly Load & Cust Input'!E140 -> 19098635.89 | F14: ='Monthly Load & Cust Input'!F140 -> 18907303.98 | G14: ='Monthly Load & Cust Input'!G140 -> 17603802.59 | H14: ='Monthly Load & Cust Input'!H140 -> 18183990.48 | I14: ='Monthly Load & Cust Input'!I140 -> 19074156.39 | J14: ='Monthly Load & Cust Input'!J140 -> 18228640.12 | K14: ='Monthly Load & Cust Input'!K140 -> 17851572.36 | L14: ='Monthly Load & Cust Input'!L140 -> 17389835.35 | N14: ='Weather Sensitive Forecast'!B16 -> 2020 | O14: ='Weather Sensitive Forecast'!D16 -> 199380264 | P14: 1.991793444 | Q14: ='Weather Sensitive Forecast'!F16 -> 202276245.7 | R14: 1.992368539 | S14: 2895981.7
B15: June | C15: ='Monthly Load & Cust Input'!C141 -> 18879367.37 | D15: ='Monthly Load & Cust Input'!D141 -> 18320340 | E15: ='Monthly Load & Cust Input'!E141 -> 19057522.98 | F15: ='Monthly Load & Cust Input'!F141 -> 18667603.25 | G15: ='Monthly Load & Cust Input'!G141 -> 19834351.97 | H15: ='Monthly Load & Cust Input'!H141 -> 19233839.84 | I15: ='Monthly Load & Cust Input'!I141 -> 19283498.63 | J15: ='Monthly Load & Cust Input'!J141 -> 18814559.75 | K15: ='Monthly Load & Cust Input'!K141 -> 18941335.35 | L15: ='Monthly Load & Cust Input'!L141 -> 18896927.21 | N15: ='Weather Sensitive Forecast'!B17 -> 2021 | O15: ='Weather Sensitive Forecast'!D17 -> 202057693.6 | P15: 2.013428759 | Q15: ='Weather Sensitive Forecast'!F17 -> 199597510.7 | R15: 1.986757046 | S15: -2460182.937
B16: July | C16: ='Monthly Load & Cust Input'!C142 -> 20415103.31 | D16: ='Monthly Load & Cust Input'!D142 -> 19587017.26 | E16: ='Monthly Load & Cust Input'!E142 -> 22061034.05 | F16: ='Monthly Load & Cust Input'!F142 -> 22326158.12 | G16: ='Monthly Load & Cust Input'!G142 -> 22948221.18 | H16: ='Monthly Load & Cust Input'!H142 -> 20455070.15 | I16: ='Monthly Load & Cust Input'!I142 -> 20809203.44 | J16: ='Monthly Load & Cust Input'!J142 -> 20557221.62 | K16: ='Monthly Load & Cust Input'!K142 -> 21853500.65 | L16: ='Monthly Load & Cust Input'!L142 -> 22838218.4 | N16: ='Weather Sensitive Forecast'!B18 -> 2022 | O16: ='Weather Sensitive Forecast'!D18 -> 209210496.2 | P16: 2.035399803 | Q16: ='Weather Sensitive Forecast'!F18 -> 205904667.2 | R16: 2.031599375 | S16: -3305829.025
B17: August | C17: ='Monthly Load & Cust Input'!C143 -> 22505106.31 | D17: ='Monthly Load & Cust Input'!D143 -> 20134470.87 | E17: ='Monthly Load & Cust Input'!E143 -> 22539963.3 | F17: ='Monthly Load & Cust Input'!F143 -> 20794420.88 | G17: ='Monthly Load & Cust Input'!G143 -> 21134527.23 | H17: ='Monthly Load & Cust Input'!H143 -> 22711582.54 | I17: ='Monthly Load & Cust Input'!I143 -> 22213048.16 | J17: ='Monthly Load & Cust Input'!J143 -> 19639476.5 | K17: ='Monthly Load & Cust Input'!K143 -> 20676973.63 | L17: ='Monthly Load & Cust Input'!L143 -> 21173810.05 | N17: ='Weather Sensitive Forecast'!B19 -> 2023 | O17: ='Weather Sensitive Forecast'!D19 -> 203944264.3 | P17: 1.97482807 | Q17: ='Weather Sensitive Forecast'!F19 -> 203955172.3 | R17: 1.990532051 | S17: 10908.01284
B18: September | C18: ='Monthly Load & Cust Input'!C144 -> 19119452.39 | D18: ='Monthly Load & Cust Input'!D144 -> 18659128.71 | E18: ='Monthly Load & Cust Input'!E144 -> 20358548.39 | F18: ='Monthly Load & Cust Input'!F144 -> 18971022.19 | G18: ='Monthly Load & Cust Input'!G144 -> 18933263.59 | H18: ='Monthly Load & Cust Input'!H144 -> 18577062.69 | I18: ='Monthly Load & Cust Input'!I144 -> 19217568.52 | J18: ='Monthly Load & Cust Input'!J144 -> 18056113.69 | K18: ='Monthly Load & Cust Input'!K144 -> 18614608.05 | L18: ='Monthly Load & Cust Input'!L144 -> 18709263.22 | N18: ='Weather Sensitive Forecast'!B20 -> 2024 | O18: ='Weather Sensitive Forecast'!D20 -> 200756131.7 | P18: 1.984367628 | Q18: ='Weather Sensitive Forecast'!F20 -> 207382788.6 | R18: 2.016805733 | S18: 6626656.884
B19: October | C19: ='Monthly Load & Cust Input'!C145 -> 18469062.56 | D19: ='Monthly Load & Cust Input'!D145 -> 18955855.38 | E19: ='Monthly Load & Cust Input'!E145 -> 20192182.21 | F19: ='Monthly Load & Cust Input'!F145 -> 19012970.61 | G19: ='Monthly Load & Cust Input'!G145 -> 19378191.99 | H19: ='Monthly Load & Cust Input'!H145 -> 19050459 | I19: ='Monthly Load & Cust Input'!I145 -> 18769593.14 | J19: ='Monthly Load & Cust Input'!J145 -> 18035612.18 | K19: ='Monthly Load & Cust Input'!K145 -> 18469100.78 | L19: ='Monthly Load & Cust Input'!L145 -> 18956675.88 | N19: ='Weather Sensitive Forecast'!B21 -> 2025 | O19: ='Weather Sensitive Forecast'!D21 -> 218282472.2 | P19: 2.087301645 | Q19: ='Weather Sensitive Forecast'!F21 -> 215424304.9 | R19: 2.038776199 | S19: -2858167.254
B20: November | C20: ='Monthly Load & Cust Input'!C146 -> 19212109.23 | D20: ='Monthly Load & Cust Input'!D146 -> 20295421.01 | E20: ='Monthly Load & Cust Input'!E146 -> 21148072.07 | F20: ='Monthly Load & Cust Input'!F146 -> 21236823.85 | G20: ='Monthly Load & Cust Input'!G146 -> 19806512.16 | H20: ='Monthly Load & Cust Input'!H146 -> 20073180.63 | I20: ='Monthly Load & Cust Input'!I146 -> 20457408.48 | J20: ='Monthly Load & Cust Input'!J146 -> 19262692.75 | K20: ='Monthly Load & Cust Input'!K146 -> 19078281.94 | L20: ='Monthly Load & Cust Input'!L146 -> 20411470.79 | N20: ='Weather Sensitive Forecast'!B23 -> 2026 | O20: ='Weather Sensitive Forecast'!F23 -> 215151150.8 | P20: 1.985654728 | Q20: ='Weather Sensitive Forecast'!F23 -> 215151150.8 | R20: 1.998732018 | S20: 0
B21: December | C21: ='Monthly Load & Cust Input'!C147 -> 21217584.99 | D21: ='Monthly Load & Cust Input'!D147 -> 22510869.11 | E21: ='Monthly Load & Cust Input'!E147 -> 21236189.78 | F21: ='Monthly Load & Cust Input'!F147 -> 21526414.43 | G21: ='Monthly Load & Cust Input'!G147 -> 21476405.56 | H21: ='Monthly Load & Cust Input'!H147 -> 21571148.6 | I21: ='Monthly Load & Cust Input'!I147 -> 21382190.12 | J21: ='Monthly Load & Cust Input'!J147 -> 19526810.25 | K21: ='Monthly Load & Cust Input'!K147 -> 21023641.42 | L21: ='Monthly Load & Cust Input'!L147 -> 22740746.48 | N21: ='Weather Sensitive Forecast'!B24 -> 2027 | O21: ='Weather Sensitive Forecast'!F24 -> 216836495.1 | P21: =O21/O20+1 -> 2.007833304 | Q21: ='Weather Sensitive Forecast'!F24 -> 216836495.1 | R21: =Q21/Q20+1 -> 2.007833304 | S21: =Q21-O21 -> 0
B22: Total | C22: =SUM(C10:C21) -> 241005859.1 | D22: =SUM(D10:D21) -> 238169585.8 | E22: 251727699.7 | F22: 248891695.1 | G22: 243245654 | H22: 243619588.6 | I22: 249967447.2 | J22: 237506346.3 | K22: 236593693.7 | L22: 245115610.2
B25: W H O L E S A L E T O T A L | N25: Period | O25: Actual | P25: Forecast | Q25: Error | R25: Absolute Value of Error | S25: Square of Error | T25: Absolute Values of Errors Divided by Actual Values.
C26: =C9 -> 2016 | D26: =D9 -> 2017 | E26: 2018 | F26: 2019 | G26: 2020 | H26: 2021 | I26: 2022 | J26: 2023 | K26: 2024 | L26: 2025 | N26: t | O26: At | P26: Ft | Q26: At -Ft | R26: | At -Ft| | S26: ( At -Ft)^2 | T26: | (At -Ft)/At|
B27: RRR excl. losses (delivery/sold) | N27: 1 | O27: =O10 -> 199999008.1 | P27: =Q10 -> 202865510.6 | Q27: =O27-P27 -> -2866502.492 | R27: =ABS(O27-P27) -> 2866502.492 | S27: =Q27^2 -> 8.216836539e+12 | T27: =ABS((O27-P27)/O27) -> 0.01433258355
B28: RRR Total Distribution Losses (kWh) | N28: 2 | O28: =O11 -> 200335765.8 | P28: =Q11 -> 198804131.6 | Q28: =O28-P28 -> 1531634.159 | R28: =ABS(O28-P28) -> 1531634.159 | S28: =Q28^2 -> 2.345903197e+12 | T28: =ABS((O28-P28)/O28) -> 0.007645335584
B29: Embedded Gen | N29: 3 | O29: 211041664.7 | P29: 205995674.4 | Q29: 5045990.273 | R29: 5045990.273 | S29: 2.546201783e+13 | T29: 0.02390992452
B30: Load Transfer | N30: 4 | O30: 201030028.1 | P30: 203831780 | Q30: -2801751.898 | R30: 2801751.898 | S30: 7.849813696e+12 | T30: 0.01393698207
B31: Total kWh Purchased | N31: 5 | O31: 199380264 | P31: 202276245.7 | Q31: -2895981.7 | R31: 2895981.7 | S31: 8.386710006e+12 | T31: 0.01452491657
B32: Difference | N32: 6 | O32: 202057693.6 | P32: 199597510.7 | Q32: 2460182.937 | R32: 2460182.937 | S32: 6.052500082e+12 | T32: 0.01217564594
N33: 7 | O33: 209210496.2 | P33: 205904667.2 | Q33: 3305829.025 | R33: 3305829.025 | S33: 1.092850554e+13 | T33: 0.01580144919
N34: 8 | O34: 203944264.3 | P34: 203955172.3 | Q34: -10908.01284 | R34: 10908.01284 | S34: 118984744.1 | T34: 5.348526412e-05
B35: R E T A I L T O T A L | N35: 9 | O35: 200756131.7 | P35: 207382788.6 | Q35: -6626656.884 | R35: 6626656.884 | S35: 4.391258145e+13 | T35: 0.03300849059
B36: Retail | C36: =C9 -> 2016 | D36: 2017 | E36: 2018 | F36: 2019 | G36: 2020 | H36: 2021 | I36: 2022 | J36: 2023 | K36: 2024 | L36: 2025 | N36: 10 | O36: 218282472.2 | P36: 215424304.9 | Q36: 2858167.254 | R36: 2858167.254 | S36: 8.169120054e+12 | T36: 0.01309389263
B37: =Controls!B15 -> Residential | N37: 11 | O37: 215151150.8 | P37: 215151150.8 | Q37: 0 | R37: 0 | S37: 0 | T37: 0
B38: kWh | C38: ='Monthly Load & Cust Input'!C155 -> 71073210.17 | D38: ='Monthly Load & Cust Input'!D155 -> 74351451.01 | E38: ='Monthly Load & Cust Input'!E155 -> 74029700.57 | F38: ='Monthly Load & Cust Input'!F155 -> 74597043.98 | G38: ='Monthly Load & Cust Input'!G155 -> 78520098.43 | H38: ='Monthly Load & Cust Input'!H155 -> 78681799.62 | I38: ='Monthly Load & Cust Input'!I155 -> 78715212.81 | J38: ='Monthly Load & Cust Input'!J155 -> 77834518.9 | K38: ='Monthly Load & Cust Input'!K155 -> 80620889.17 | L38: ='Monthly Load & Cust Input'!L155 -> 85280217.78 | N38: 12 | O38: 216836495.1 | P38: 216836495.1 | Q38: 0 | R38: 0 | S38: 0 | T38: 0
S39: MAPE | T39: =AVERAGE(T27:T36) -> 0.01484827059
B40: =Controls!B16 -> General Service < 50 kW
B41: kWh | C41: ='Monthly Load & Cust Input'!C159 -> 32497800.97 | D41: ='Monthly Load & Cust Input'!D159 -> 31513523.36 | E41: ='Monthly Load & Cust Input'!E159 -> 34673895.87 | F41: ='Monthly Load & Cust Input'!F159 -> 34516322.71 | G41: ='Monthly Load & Cust Input'!G159 -> 31865479.66 | H41: ='Monthly Load & Cust Input'!H159 -> 34235080.14 | I41: ='Monthly Load & Cust Input'!I159 -> 35526990.74 | J41: ='Monthly Load & Cust Input'!J159 -> 32960487.41 | K41: ='Monthly Load & Cust Input'!K159 -> 35493354.9 | L41: ='Monthly Load & Cust Input'!L159 -> 37327804.5
B43: =Controls!B17 -> General Service > 50 to 4999 kW
B44: kWh | C44: ='Monthly Load & Cust Input'!C163 -> 132906747.3 | D44: ='Monthly Load & Cust Input'!D163 -> 130939628.4 | E44: ='Monthly Load & Cust Input'!E163 -> 137227858.2 | F44: ='Monthly Load & Cust Input'!F163 -> 135821999.8 | G44: ='Monthly Load & Cust Input'!G163 -> 127771103.7 | H44: ='Monthly Load & Cust Input'!H163 -> 128129271.7 | I44: ='Monthly Load & Cust Input'!I163 -> 129967241.4 | J44: ='Monthly Load & Cust Input'!J163 -> 122128432.7 | K44: ='Monthly Load & Cust Input'!K163 -> 118425675.5 | L44: ='Monthly Load & Cust Input'!L163 -> 117760761.4
B45: kW | C45: ='Monthly Load & Cust Input'!C164 -> 318586.57 | D45: ='Monthly Load & Cust Input'!D164 -> 304006.62 | E45: ='Monthly Load & Cust Input'!E164 -> 323335.56 | F45: ='Monthly Load & Cust Input'!F164 -> 311073.23 | G45: ='Monthly Load & Cust Input'!G164 -> 313905.84 | H45: ='Monthly Load & Cust Input'!H164 -> 324430.94 | I45: ='Monthly Load & Cust Input'!I164 -> 331603.14 | J45: ='Monthly Load & Cust Input'!J164 -> 326897.86 | K45: ='Monthly Load & Cust Input'!K164 -> 333737.28 | L45: ='Monthly Load & Cust Input'!L164 -> 363319.34
B47: =Controls!B18 -> Unmetered Scattered Load
B48: kWh | C48: ='Monthly Load & Cust Input'!C168 -> 608763.04 | D48: ='Monthly Load & Cust Input'!D168 -> 615578.35 | E48: ='Monthly Load & Cust Input'!E168 -> 574951.71 | F48: ='Monthly Load & Cust Input'!F168 -> 612608.33 | G48: ='Monthly Load & Cust Input'!G168 -> 612731.3 | H48: ='Monthly Load & Cust Input'!H168 -> 619714.37 | I48: ='Monthly Load & Cust Input'!I168 -> 621174.33 | J48: ='Monthly Load & Cust Input'!J168 -> 621936 | K48: ='Monthly Load & Cust Input'!K168 -> 622522 | L48: ='Monthly Load & Cust Input'!L168 -> 622332
B50: =Controls!B19 -> Sentinel
B51: kWh | C51: ='Monthly Load & Cust Input'!C173 -> 45435.56 | D51: ='Monthly Load & Cust Input'!D173 -> 45349.88 | E51: ='Monthly Load & Cust Input'!E173 -> 44653.45 | F51: ='Monthly Load & Cust Input'!F173 -> 44613.33 | G51: ='Monthly Load & Cust Input'!G173 -> 43222.1 | H51: ='Monthly Load & Cust Input'!H173 -> 44023.97 | I51: ='Monthly Load & Cust Input'!I173 -> 44006.48 | J51: ='Monthly Load & Cust Input'!J173 -> 42967.08 | K51: ='Monthly Load & Cust Input'!K173 -> 43308.42 | L51: ='Monthly Load & Cust Input'!L173 -> 42831.55
B52: kW | C52: ='Monthly Load & Cust Input'!C174 -> 118.8 | D52: ='Monthly Load & Cust Input'!D174 -> 118.8 | E52: ='Monthly Load & Cust Input'!E174 -> 116.1 | F52: ='Monthly Load & Cust Input'!F174 -> 114.9 | G52: ='Monthly Load & Cust Input'!G174 -> 112.5 | H52: ='Monthly Load & Cust Input'!H174 -> 114.3 | I52: ='Monthly Load & Cust Input'!I174 -> 104.4 | J52: ='Monthly Load & Cust Input'!J174 -> 111.6 | K52: ='Monthly Load & Cust Input'!K174 -> 111.6 | L52: ='Monthly Load & Cust Input'!L174 -> 108
B53: Cust Count | C53: ='Monthly Load & Cust Input'!C175 -> 48 | D53: ='Monthly Load & Cust Input'!D175 -> 48 | E53: ='Monthly Load & Cust Input'!E175 -> 49 | F53: ='Monthly Load & Cust Input'!F175 -> 46 | G53: ='Monthly Load & Cust Input'!G175 -> 50 | H53: ='Monthly Load & Cust Input'!H175 -> 51 | I53: ='Monthly Load & Cust Input'!I175 -> 51 | J53: ='Monthly Load & Cust Input'!J175 -> 51 | K53: ='Monthly Load & Cust Input'!K175 -> 49.33333333 | L53: ='Monthly Load & Cust Input'!L175 -> 49
B55: =Controls!B20 -> StreetLights
B56: kWh | C56: ='Monthly Load & Cust Input'!C178 -> 1080613.28 | D56: ='Monthly Load & Cust Input'!D178 -> 1759702.439 | E56: ='Monthly Load & Cust Input'!E178 -> 1077264.333 | F56: ='Monthly Load & Cust Input'!F178 -> 1068726.626 | G56: ='Monthly Load & Cust Input'!G178 -> 1080613.269 | H56: ='Monthly Load & Cust Input'!H178 -> 1077951.963 | I56: ='Monthly Load & Cust Input'!I178 -> 1081156.258 | J56: ='Monthly Load & Cust Input'!J178 -> 1081156.258 | K56: ='Monthly Load & Cust Input'!K178 -> 1083844.348 | L56: ='Monthly Load & Cust Input'!L178 -> 1081156.25
B57: kW | C57: ='Monthly Load & Cust Input'!C179 -> 2948.95 | D57: ='Monthly Load & Cust Input'!D179 -> 2922.71 | E57: ='Monthly Load & Cust Input'!E179 -> 2922.72 | F57: ='Monthly Load & Cust Input'!F179 -> 2948.95 | G57: ='Monthly Load & Cust Input'!G179 -> 2922.72 | H57: ='Monthly Load & Cust Input'!H179 -> 2923.53 | I57: ='Monthly Load & Cust Input'!I179 -> 2932.44 | J57: ='Monthly Load & Cust Input'!J179 -> 2932.44 | K57: ='Monthly Load & Cust Input'!K179 -> 2932.44 | L57: ='Monthly Load & Cust Input'!L179 -> 3176.81
B59: Total
B60: kWh | C60: =C38+C41+C44+C48+C51+C56 -> 238212570.4 | D60: 239225233.4 | E60: 247628324.2 | F60: 246661314.8 | G60: 239893248.5 | H60: 242787841.8 | I60: 245955782 | J60: 234669498.3 | K60: 236289594.3 | L60: 242115103.5
B61: kW | C61: 321654.32 | D61: 307048.13 | E61: 326374.38 | F61: 314137.08 | G61: 316941.06 | H61: 327468.77 | I61: 334639.98 | J61: 329941.9 | K61: 336781.32 | L61: 366604.15
C66: 2016 | D66: 2017 | E66: 2018 | F66: 2019 | G66: 2020
B67: January | C67: 18621894 | D67: 18475099 | E67: 20381789 | F67: 20005327 | G67: 19062250
B68: February | C68: 17766598 | D68: 16835972 | E68: 17538186 | F68: 18000068 | G68: 18054186
B69: March | C69: 17315447 | D69: 18718356 | E69: 18049529 | F69: 18255192 | G69: 17080401
B70: April | C70: 15629498 | D70: 15594743 | E70: 17058772 | F70: 15793905 | G70: 13578418
B71: May | C71: 15103137 | D71: 14823601 | E71: 15289336 | F71: 14827475 | G71: 13770513
B72: June | C72: 14905961 | D72: 14757124 | E72: 15348979 | F72: 14113635 | G72: 15929183
B73: July | C73: 18234560 | D73: 17595924 | E73: 19818720 | F73: 17591279 | G73: 18578169
B74: August | C74: 18162718 | D74: 16406842 | E74: 18583414 | F74: 16458815 | G74: 17519696
B75: September | C75: 15375827 | D75: 11836475 | E75: 16548231 | F75: 14482095 | G75: 15149968
B76: October | C76: 15008827 | D76: 15234037 | E76: 16350756 | F76: 15033076 | G76: 15951245
B77: November | C77: 15822617 | D77: 16727591 | E77: 17481588 | F77: 17159099 | G77: 16426818
B78: December | C78: 18051924 | D78: 20330001 | E78: 18592365 | F78: 19310061 | G78: 18279417
B79: Total | C79: =SUM(C67:C78) -> 199999008 | D79: =SUM(D67:D78) -> 197335765 | E79: =SUM(E67:E78) -> 211041665 | F79: =SUM(F67:F78) -> 201030027 | G79: =SUM(G67:G78) -> 199380264
C81: 2021 | D81: 2022 | E81: 2023 | F81: 2024 | G81: 2025
B82: January | C82: 18673833 | D82: 21090790 | E82: 19990911 | F82: 19239709 | G82: 21309579
B83: February | C83: 17822374 | D83: 18895852 | E83: 18049403 | F83: 16942104 | G83: 19363149
B84: March | C84: 17103306 | D84: 19554498 | E84: 19011298 | F84: 16618259 | G84: 18440644
B85: April | C85: 15014311 | D85: 16452459 | E85: 15893201 | F85: 15010269 | G85: 16095586
B86: May | C86: 14823860 | D86: 15587980 | E86: 15004067 | F86: 14287133 | G86: 14877360
B87: June | C87: 16036298 | D87: 15641479 | E87: 15924610 | F87: 16228706 | G87: 16033042
B88: July | C88: 16886345 | D88: 17948916 | E88: 18076484 | F88: 18262762 | G88: 19633757
B89: August | C89: 18783755 | D89: 18104928 | E89: 17316266 | F89: 17394426 | G89: 18141709
B90: September | C90: 15871132 | D90: 15358719 | E90: 16034213 | F90: 15335893 | G90: 16022360
B91: October | C91: 15676718 | D91: 15016366 | E91: 15141241 | F91: 15271810 | G91: 17065815
B92: November | C92: 16799506 | D92: 16969272 | E92: 16171020 | F92: 16473722 | G92: 18940218
B93: December | C93: 18566257 | D93: 18589236 | E93: 17331552 | F93: 19691339 | G93: 22359251
B94: Total | C94: =SUM(C82:C93) -> 202057695 | D94: =SUM(D82:D93) -> 209210495 | E94: =SUM(E82:E93) -> 203944266 | F94: =SUM(F82:F93) -> 200756132 | G94: =SUM(G82:G93) -> 218282470
B96: Year | C96: Adj Wholesale | D96: %change
B97: =C66 -> 2016 | C97: =C79 -> 199999008
B98: =D66 -> 2017 | C98: =D79 -> 197335765 | D98: =(C98-C97)/C97 -> -0.01331628105
B99: =E66 -> 2018 | C99: =E79 -> 211041665 | D99: 0.06945471846
B100: =F66 -> 2019 | C100: =F79 -> 201030027 | D100: -0.04743915378
B101: =G66 -> 2020 | C101: =G79 -> 199380264 | D101: -0.008206550159
B102: =C81 -> 2021 | C102: =C94 -> 202057695 | D102: 0.01342876645
B103: =D81 -> 2022 | C103: =D94 -> 209210495 | D103: 0.03539979014
B104: =E81 -> 2023 | C104: =E94 -> 203944266 | D104: -0.02517191597
B105: =F81 -> 2024 | C105: =F94 -> 200756132 | D105: -0.0156323787
B106: =G81 -> 2025 | C106: =G94 -> 218282470 | D106: 0.08730163221

Sheet DW (hidden)
A1: LOWER | B1: 2 | C1: 3 | D1: 4 | E1: 5 | F1: 6 | G1: 7 | H1: 8 | I1: 9 | J1: 10 | K1: 11 | L1: 12 | M1: 13 | N1: 14 | O1: 15 | P1: 16 | Q1: 17 | R1: 18 | S1: 19 | T1: 20 | U1: 21 | W1: UPPER | X1: 2 | Y1: 3 | Z1: 4 | AA1: 5 | AB1: 6 | AC1: 7 | AD1: 8 | AE1: 9 | AF1: 10 | AG1: 11 | AH1: 12 | AI1: 13 | AJ1: 14 | AK1: 15 | AL1: 16 | AM1: 17 | AN1: 18 | AO1: 19 | AP1: 20 | AQ1: 21
A2: 5 | B2: 0.61018 | C2: 0.46723 | D2: 0.36744 | E2: 0.29571 | F2: 0.24269 | G2: 0.20253 | H2: 0.17144 | I2: 0.14693 | J2: 0.12726 | K2: 0.11127 | L2: 0.09809 | M2: 0.08711 | N2: 0.07786 | O2: 0.07001 | P2: 0.06327 | Q2: 0.05747 | R2: 0.05242 | S2: 0.04801 | T2: 0.04413 | U2: 0.0407 | W2: 5 | X2: 1.31988 | Y2: 1.69926 | Z2: 2.12816 | AA2: 2.5881 | AB2: 2.29593 | AC2: 2.57158 | AD2: 2.84769 | AE2: 3.11121 | AF2: 3.36038 | AG2: 2.97399 | AH2: 3.1593 | AI2: 3.33481 | AJ2: 3.49566 | AK2: 3.64241 | AL2: 3.327 | AM2: 3.45402 | AN2: 3.57167 | AO2: 3.67769 | AP2: 3.77297 | AQ2: 3.52786
A3: 10 | B3: 0.87913 | C3: 0.69715 | D3: 0.52534 | E3: 0.37602 | F3: 0.24269 | G3: 0.20253 | H3: 0.17144 | I3: 0.14693 | J3: 0.12726 | K3: 0.11127 | L3: 0.09809 | M3: 0.08711 | N3: 0.07786 | O3: 0.07001 | P3: 0.06327 | Q3: 0.05747 | R3: 0.05242 | S3: 0.04801 | T3: 0.04413 | U3: 0.0407 | W3: 10 | X3: 1.31971 | Y3: 1.55066 | Z3: 1.77882 | AA3: 2.02955 | AB3: 2.29593 | AC3: 2.57158 | AD3: 2.84769 | AE3: 3.11121 | AF3: 3.36038 | AG3: 2.97399 | AH3: 3.1593 | AI3: 3.33481 | AJ3: 3.49566 | AK3: 3.64241 | AL3: 3.327 | AM3: 3.45402 | AN3: 3.57167 | AO3: 3.67769 | AP3: 3.77297 | AQ3: 3.52786
A4: 15 | B4: 1.07697 | C4: 0.94554 | D4: 0.81396 | E4: 0.68519 | F4: 0.56197 | G4: 0.44707 | H4: 0.3429 | I4: 0.2509 | J4: 0.17531 | K4: 0.11127 | L4: 0.09809 | M4: 0.08711 | N4: 0.07786 | O4: 0.07001 | P4: 0.06327 | Q4: 0.05747 | R4: 0.05242 | S4: 0.04801 | T4: 0.04413 | U4: 0.0407 | W4: 15 | X4: 1.36054 | Y4: 1.53525 | Z4: 1.68509 | AA4: 1.84815 | AB4: 2.02262 | AC4: 2.20614 | AD4: 2.39602 | AE4: 2.58939 | AF4: 2.78312 | AG4: 2.97399 | AH4: 3.1593 | AI4: 3.33481 | AJ4: 3.49566 | AK4: 3.64241 | AL4: 3.327 | AM4: 3.45402 | AN4: 3.57167 | AO4: 3.67769 | AP4: 3.77297 | AQ4: 3.52786
A5: 20 | B5: 1.20149 | C5: 1.1004 | D5: 0.99755 | E5: 0.89425 | F5: 0.79179 | G5: 0.69146 | H5: 0.59454 | I5: 0.5022 | J5: 0.41559 | K5: 0.33571 | L5: 0.26349 | M5: 0.19978 | N5: 0.14472 | O5: 0.10024 | P5: 0.06327 | Q5: 0.05747 | R5: 0.05242 | S5: 0.04801 | T5: 0.04413 | U5: 0.0407 | W5: 20 | X5: 1.41073 | Y5: 1.53668 | Z5: 1.65649 | AA5: 1.77526 | AB5: 1.90184 | AC5: 2.03522 | AD5: 2.17427 | AE5: 2.31774 | AF5: 2.46431 | AG5: 2.6126 | AH5: 2.76111 | AI5: 2.90835 | AJ5: 3.05282 | AK5: 3.19285 | AL5: 3.327 | AM5: 3.45402 | AN5: 3.57167 | AO5: 3.67769 | AP5: 3.77297 | AQ5: 3.52786
A6: 25 | B6: 1.28791 | C6: 1.20625 | D6: 1.12276 | E6: 1.03811 | F6: 0.95297 | G6: 0.86803 | H6: 0.784 | I6: 0.70154 | J6: 0.62133 | K6: 0.54401 | L6: 0.47019 | M6: 0.40046 | N6: 0.33536 | O6: 0.27536 | P6: 0.2209 | Q6: 0.17231 | R6: 0.12995 | S6: 0.09371 | T6: 0.06465 | U6: 0.0407 | W6: 25 | X6: 1.45371 | Y6: 1.54954 | Z6: 1.64987 | AA6: 1.7426 | AB6: 1.84088 | AC6: 1.9442 | AD6: 2.05196 | AE6: 2.16358 | AF6: 2.27837 | AG6: 2.39562 | AH6: 2.51459 | AI6: 2.63447 | AJ6: 2.75449 | AK6: 2.87381 | AL6: 2.9916 | AM6: 3.107 | AN6: 3.21917 | AO6: 3.32728 | AP6: 3.43042 | AQ6: 3.52786
A7: 30 | B7: 1.35204 | C7: 1.28373 | D7: 1.2138 | E7: 1.14262 | F7: 1.0706 | G7: 0.99815 | H7: 0.92564 | I7: 0.85351 | J7: 0.78217 | K7: 0.71202 | L7: 0.64345 | M7: 0.57685 | N7: 0.51259 | O7: 0.45105 | P7: 0.39255 | Q7: 0.3374 | R7: 0.2859 | S7: 0.2383 | T7: 0.19485 | U7: 0.15572 | W7: 30 | X7: 1.48936 | Y7: 1.56661 | Z7: 1.64981 | AA7: 1.7277 | AB7: 1.80758 | AC7: 1.89129 | AD7: 1.97849 | AE7: 2.06882 | AF7: 2.1619 | AG7: 2.25735 | AH7: 2.35473 | AI7: 2.45359 | AJ7: 2.55348 | AK7: 2.65392 | AL7: 2.75442 | AM7: 2.85449 | AN7: 2.95361 | AO7: 3.05127 | AP7: 3.14697 | AQ7: 3.2402
A8: 35 | B8: 1.40194 | C8: 1.34332 | D8: 1.2833 | E8: 1.22214 | F8: 1.16007 | G8: 1.09735 | H8: 1.03424 | I8: 0.97099 | J8: 0.90788 | K8: 0.84516 | L8: 0.78311 | M8: 0.72197 | N8: 0.662 | O8: 0.60346 | P8: 0.54659 | Q8: 0.49162 | R8: 0.43878 | S8: 0.38829 | T8: 0.34034 | U8: 0.29513 | W8: 35 | X8: 1.51914 | Y8: 1.58382 | Z8: 1.65282 | AA8: 1.72152 | AB8: 1.78863 | AC8: 1.8587 | AD8: 1.93153 | AE8: 2.00692 | AF8: 2.0846 | AG8: 2.16437 | AH8: 2.24594 | AI8: 2.32904 | AJ8: 2.4134 | AK8: 2.49872 | AL8: 2.58469 | AM8: 2.671 | AN8: 2.75733 | AO8: 2.84336 | AP8: 2.92876 | AQ8: 3.0132
A9: 40 | B9: 1.44214 | C9: 1.39083 | D9: 1.33835 | E9: 1.28484 | F9: 1.23047 | G9: 1.17541 | H9: 1.11983 | I9: 1.06391 | J9: 1.00782 | K9: 0.95174 | L9: 0.89585 | M9: 0.84035 | N9: 0.78539 | O9: 0.73115 | P9: 0.67782 | Q9: 0.62556 | R9: 0.57454 | S9: 0.52492 | T9: 0.47687 | U9: 0.43054 | W9: 40 | X9: 1.54436 | Y9: 1.59999 | Z9: 1.65889 | AA9: 1.71996 | AB9: 1.77772 | AC9: 1.83784 | AD9: 1.90017 | AE9: 1.9646 | AF9: 2.03095 | AG9: 2.09907 | AH9: 2.16881 | AI9: 2.23997 | AJ9: 2.31237 | AK9: 2.38581 | AL9: 2.46011 | AM9: 2.53505 | AN9: 2.61043 | AO9: 2.68601 | AP9: 2.76161 | AQ9: 2.83698
A10: 45 | B10: 1.47538 | C10: 1.4298 | D10: 1.3832 | E10: 1.33571 | F10: 1.28744 | G10: 1.23849 | H10: 1.18899 | I10: 1.13907 | J10: 1.08886 | K10: 1.03846 | L10: 0.98802 | M10: 0.93765 | N10: 0.8875 | O10: 0.83769 | P10: 0.78833 | Q10: 0.73955 | R10: 0.69149 | S10: 0.64427 | T10: 0.59801 | U10: 0.55282 | W10: 45 | X10: 1.56602 | Y10: 1.61482 | Z10: 1.66618 | AA10: 1.71999 | AB10: 1.77159 | AC10: 1.82415 | AD10: 1.87852 | AE10: 1.93463 | AF10: 1.99236 | AG10: 2.0516 | AH10: 2.11224 | AI10: 2.17415 | AJ10: 2.23723 | AK10: 2.30131 | AL10: 2.36628 | AM10: 2.43199 | AN10: 2.49829 | AO10: 2.56505 | AP10: 2.63211 | AQ10: 2.6993
A11: 50 | B11: 1.50345 | C11: 1.46246 | D11: 1.42059 | E11: 1.37793 | F11: 1.33457 | G11: 1.29059 | H11: 1.24607 | I11: 1.2011 | J11: 1.15579 | K11: 1.11021 | L11: 1.06445 | M11: 1.01862 | N11: 0.9728 | O11: 0.92709 | P11: 0.88159 | Q11: 0.83638 | R11: 0.79156 | S11: 0.74723 | T11: 0.70348 | U11: 0.6604 | W11: 50 | X11: 1.58486 | Y11: 1.62833 | Z11: 1.67385 | AA11: 1.72135 | AB11: 1.76844 | AC11: 1.81508 | AD11: 1.86324 | AE11: 1.91283 | AF11: 1.96381 | AG11: 2.01609 | AH11: 2.06959 | AI11: 2.1242 | AJ11: 2.17987 | AK11: 2.23647 | AL11: 2.29392 | AM11: 2.35213 | AN11: 2.41097 | AO11: 2.47036 | AP11: 2.53019 | AQ11: 2.59033
A12: 55 | B12: 1.52755 | C12: 1.49031 | D12: 1.45232 | E12: 1.41362 | F12: 1.37431 | G12: 1.33442 | H12: 1.29403 | I12: 1.25319 | J12: 1.21199 | K12: 1.17049 | L12: 1.12875 | M12: 1.08685 | N12: 1.04485 | O12: 1.00284 | P12: 0.96087 | Q12: 0.91902 | R12: 0.87736 | S12: 0.83597 | T12: 0.79492 | U12: 0.75427 | W12: 55 | X12: 1.60144 | Y12: 1.64062 | Z12: 1.68149 | AA12: 1.72399 | AB12: 1.7672 | AC12: 1.80908 | AD12: 1.85226 | AE12: 1.89665 | AF12: 1.94223 | AG12: 1.98893 | AH12: 2.03668 | AI12: 2.08543 | AJ12: 2.1351 | AK12: 2.18564 | AL12: 2.23698 | AM12: 2.28902 | AN12: 2.34171 | AO12: 2.39495 | AP12: 2.44869 | AQ12: 2.50283
A13: 60 | B13: 1.54853 | C13: 1.51442 | D13: 1.47965 | E13: 1.44427 | F13: 1.40832 | G13: 1.37186 | H13: 1.33493 | I13: 1.29758 | J13: 1.25987 | K13: 1.22183 | L13: 1.18354 | M13: 1.14505 | N13: 1.1064 | O13: 1.06764 | P13: 1.02885 | Q13: 0.99007 | R13: 0.95135 | S13: 0.91276 | T13: 0.87435 | U13: 0.83616 | W13: 60 | X13: 1.61617 | Y13: 1.65184 | Z13: 1.68891 | AA13: 1.72735 | AB13: 1.76708 | AC13: 1.8052 | AD13: 1.84429 | AE13: 1.88444 | AF13: 1.92561 | AG13: 1.96775 | AH13: 2.01081 | AI13: 2.05475 | AJ13: 2.09952 | AK13: 2.14507 | AL13: 2.19134 | AM13: 2.23829 | AN13: 2.28584 | AO13: 2.33395 | AP13: 2.38255 | AQ13: 2.43159
A14: 65 | B14: 1.56699 | C14: 1.53553 | D14: 1.50349 | E14: 1.47092 | F14: 1.43782 | G14: 1.40426 | H14: 1.37027 | I14: 1.33589 | J14: 1.30115 | K14: 1.26611 | L14: 1.2308 | M14: 1.19525 | N14: 1.15952 | O14: 1.12364 | P14: 1.08767 | Q14: 1.05165 | R14: 1.0156 | S14: 0.9796 | T14: 0.94367 | U14: 0.90785 | W14: 65 | X14: 1.62936 | Y14: 1.6621 | Z14: 1.69602 | AA14: 1.7311 | AB14: 1.76731 | AC14: 1.80279 | AD14: 1.83849 | AE14: 1.87512 | AF14: 1.91262 | AG14: 1.95098 | AH14: 1.99014 | AI14: 2.03009 | AJ14: 2.07078 | AK14: 2.11216 | AL14: 2.15421 | AM14: 2.19688 | AN14: 2.24012 | AO14: 2.28388 | AP14: 2.32813 | AQ14: 2.37281
A15: 70 | B15: 1.58341 | C15: 1.55422 | D15: 1.52452 | E15: 1.49434 | F15: 1.46369 | G15: 1.43262 | H15: 1.40115 | I15: 1.36932 | J15: 1.33716 | K15: 1.30469 | L15: 1.27196 | M15: 1.23899 | N15: 1.20582 | O15: 1.17249 | P15: 1.13902 | Q15: 1.10544 | R15: 1.07182 | S15: 1.03816 | T15: 1.00451 | U15: 0.97091 | W15: 70 | X15: 1.64127 | Y15: 1.67152 | Z15: 1.70278 | AA15: 1.73505 | AB15: 1.76827 | AC15: 1.80144 | AD15: 1.83429 | AE15: 1.86793 | AF15: 1.90235 | AG15: 1.93752 | AH15: 1.97341 | AI15: 2.01 | AJ15: 2.04724 | AK15: 2.08511 | AL15: 2.12359 | AM15: 2.16263 | AN15: 2.2022 | AO15: 2.24227 | AP15: 2.2828 | AQ15: 2.32375
A16: 75 | B16: 1.59813 | C16: 1.57091 | D16: 1.54323 | E16: 1.51511 | F16: 1.48659 | G16: 1.45767 | H16: 1.4284 | I16: 1.39877 | J16: 1.36884 | K16: 1.33863 | L16: 1.30815 | M16: 1.27744 | N16: 1.24652 | O16: 1.21542 | P16: 1.18418 | Q16: 1.15281 | R16: 1.12135 | S16: 1.08982 | T16: 1.05825 | U16: 1.02668 | W16: 75 | X16: 1.65209 | Y16: 1.6802 | Z16: 1.7092 | AA16: 1.73904 | AB16: 1.76975 | AC16: 1.80086 | AD16: 1.83126 | AE16: 1.86237 | AF16: 1.89416 | AG16: 1.92661 | AH16: 1.9597 | AI16: 1.99342 | AJ16: 2.02773 | AK16: 2.06261 | AL16: 2.09804 | AM16: 2.13398 | AN16: 2.17041 | AO16: 2.2073 | AP16: 2.24464 | AQ16: 2.28237
A17: 80 | B17: 1.61143 | C17: 1.58592 | D17: 1.56001 | E17: 1.5337 | F17: 1.50703 | G17: 1.47999 | H17: 1.45262 | I17: 1.42495 | J17: 1.39698 | K17: 1.36873 | L17: 1.34024 | M17: 1.31151 | N17: 1.28259 | O17: 1.25348 | P17: 1.22422 | Q17: 1.19481 | R17: 1.16529 | S17: 1.13568 | T17: 1.106 | U17: 1.07628 | W17: 80 | X17: 1.66197 | Y17: 1.68823 | Z17: 1.71526 | AA17: 1.74304 | AB17: 1.77156 | AC17: 1.80079 | AD17: 1.82912 | AE17: 1.85804 | AF17: 1.88756 | AG17: 1.91768 | AH17: 1.94837 | AI17: 1.97962 | AJ17: 2.0114 | AK17: 2.0437 | AL17: 2.07649 | AM17: 2.10976 | AN17: 2.14348 | AO17: 2.17762 | AP17: 2.21218 | AQ17: 2.24712
A18: 85 | B18: 1.6235 | C18: 1.59952 | D18: 1.57516 | E18: 1.55045 | F18: 1.5254 | G18: 1.50003 | H18: 1.47434 | I18: 1.44837 | J18: 1.42212 | K18: 1.39562 | L18: 1.36889 | M18: 1.34194 | N18: 1.31477 | O18: 1.28744 | P18: 1.25993 | Q18: 1.23229 | R18: 1.20451 | S18: 1.17664 | T18: 1.14868 | U18: 1.12064 | W18: 85 | X18: 1.67105 | Y18: 1.69568 | Z18: 1.721 | AA18: 1.74697 | AB18: 1.77361 | AC18: 1.80089 | AD18: 1.82768 | AE18: 1.85469 | AF18: 1.88223 | AG18: 1.91032 | AH18: 1.93892 | AI18: 1.96802 | AJ18: 1.9976 | AK18: 2.02766 | AL18: 2.05816 | AM18: 2.0891 | AN18: 2.12046 | AO18: 2.15221 | AP18: 2.18434 | AQ18: 2.21683
A19: 90 | B19: 1.63454 | C19: 1.6119 | D19: 1.58893 | E19: 1.56564 | F19: 1.54202 | G19: 1.51812 | H19: 1.49393 | I19: 1.46947 | J19: 1.44476 | K19: 1.41982 | L19: 1.39464 | M19: 1.36926 | N19: 1.34368 | O19: 1.31792 | P19: 1.292 | Q19: 1.26594 | R19: 1.23974 | S19: 1.21344 | T19: 1.18703 | U19: 1.16053 | W19: 90 | X19: 1.67942 | Y19: 1.70262 | Z19: 1.72642 | AA19: 1.75082 | AB19: 1.7758 | AC19: 1.80135 | AD19: 1.82675 | AE19: 1.85209 | AF19: 1.87791 | AG19: 1.90421 | AH19: 1.93097 | AI19: 1.9582 | AJ19: 1.98586 | AK19: 2.01394 | AL19: 2.04244 | AM19: 2.07134 | AN19: 2.10062 | AO19: 2.13027 | AP19: 2.16027 | AQ19: 2.19061
A20: 95 | B20: 1.64469 | C20: 1.62325 | D20: 1.60152 | E20: 1.57948 | F20: 1.55715 | G20: 1.53456 | H20: 1.51171 | I20: 1.48861 | J20: 1.46527 | K20: 1.44171 | L20: 1.41793 | M20: 1.39395 | N20: 1.3698 | O20: 1.34546 | P20: 1.32096 | Q20: 1.29632 | R20: 1.27155 | S20: 1.24666 | T20: 1.22166 | U20: 1.19657 | W20: 95 | X20: 1.68717 | Y20: 1.7091 | Z20: 1.73156 | AA20: 1.75455 | AB20: 1.77807 | AC20: 1.8021 | AD20: 1.82625 | AE20: 1.8501 | AF20: 1.87439 | AG20: 1.89911 | AH20: 1.92426 | AI20: 1.94982 | AJ20: 1.97578 | AK20: 2.00213 | AL20: 2.02886 | AM20: 2.05596 | AN20: 2.08341 | AO20: 2.1112 | AP20: 2.13931 | AQ20: 2.16774
A21: 100 | B21: 1.65404 | C21: 1.63369 | D21: 1.61306 | E21: 1.59216 | F21: 1.571 | G21: 1.54958 | H21: 1.52793 | I21: 1.50604 | J21: 1.48394 | K21: 1.46162 | L21: 1.4391 | M21: 1.41639 | N21: 1.3935 | O21: 1.37045 | P21: 1.34724 | Q21: 1.3239 | R21: 1.30041 | S21: 1.2768 | T21: 1.2531 | U21: 1.22928 | W21: 100 | X21: 1.69439 | Y21: 1.71517 | Z21: 1.73643 | AA21: 1.75818 | AB21: 1.78039 | AC21: 1.80306 | AD21: 1.82607 | AE21: 1.84859 | AF21: 1.87152 | AG21: 1.89484 | AH21: 1.91855 | AI21: 1.94263 | AJ21: 1.96709 | AK21: 1.9919 | AL21: 2.01706 | AM21: 2.04255 | AN21: 2.06836 | AO21: 2.0945 | AP21: 2.12095 | AQ21: 2.14768
A22: 105 | B22: 1.66271 | C22: 1.64334 | D22: 1.62371 | E22: 1.60383 | F22: 1.58372 | G22: 1.56336 | H22: 1.54279 | I22: 1.522 | J22: 1.50101 | K22: 1.47981 | L22: 1.45843 | M22: 1.43687 | N22: 1.41514 | O22: 1.39325 | P22: 1.3712 | Q22: 1.34903 | R22: 1.32672 | S22: 1.30428 | T22: 1.28174 | U22: 1.2591 | W22: 105 | X22: 1.70111 | Y22: 1.72087 | Z22: 1.74106 | AA22: 1.76168 | AB22: 1.78273 | AC22: 1.80419 | AD22: 1.82606 | AE22: 1.84749 | AF22: 1.86919 | AG22: 1.89126 | AH22: 1.91368 | AI22: 1.93644 | AJ22: 1.95954 | AK22: 1.98298 | AL22: 2.00672 | AM22: 2.03079 | AN22: 2.05515 | AO22: 2.07981 | AP22: 2.10475 | AQ22: 2.12997
A23: 110 | B23: 1.67076 | C23: 1.65228 | D23: 1.63357 | E23: 1.61462 | F23: 1.59545 | G23: 1.57606 | H23: 1.55647 | I23: 1.53667 | J23: 1.51668 | K23: 1.49651 | L23: 1.47617 | M23: 1.45564 | N23: 1.43496 | O23: 1.41412 | P23: 1.39315 | Q23: 1.37203 | R23: 1.35079 | S23: 1.32943 | T23: 1.30796 | U23: 1.28639 | W23: 110 | X23: 1.70741 | Y23: 1.72623 | Z23: 1.74545 | AA23: 1.76506 | AB23: 1.78506 | AC23: 1.80543 | AD23: 1.82618 | AE23: 1.84669 | AF23: 1.8673 | AG23: 1.88824 | AH23: 1.9095 | AI23: 1.93108 | AJ23: 1.95297 | AK23: 1.97516 | AL23: 1.99765 | AM23: 2.02042 | AN23: 2.04348 | AO23: 2.06681 | AP23: 2.0904 | AQ23: 2.11426
A24: 115 | B24: 1.67828 | C24: 1.66061 | D24: 1.64272 | E24: 1.62462 | F24: 1.60632 | G24: 1.58781 | H24: 1.56911 | I24: 1.55022 | J24: 1.53115 | K24: 1.5119 | L24: 1.4925 | M24: 1.47293 | N24: 1.4532 | O24: 1.43333 | P24: 1.41332 | Q24: 1.39318 | R24: 1.37291 | S24: 1.35254 | T24: 1.33205 | U24: 1.31146 | W24: 115 | X24: 1.71333 | Y24: 1.73129 | Z24: 1.74963 | AA24: 1.76832 | AB24: 1.78737 | AC24: 1.80676 | AD24: 1.8265 | AE24: 1.84616 | AF24: 1.86577 | AG24: 1.88569 | AH24: 1.90591 | AI24: 1.92641 | AJ24: 1.94721 | AK24: 1.96828 | AL24: 1.98963 | AM24: 2.01124 | AN24: 2.03312 | AO24: 2.05525 | AP24: 2.07763 | AQ24: 2.10024
A25: 120 | B25: 1.68531 | C25: 1.66839 | D25: 1.65126 | E25: 1.63394 | F25: 1.61642 | G25: 1.59872 | H25: 1.58083 | I25: 1.56276 | J25: 1.54454 | K25: 1.52615 | L25: 1.50759 | M25: 1.48889 | N25: 1.47004 | O25: 1.45106 | P25: 1.43193 | Q25: 1.41269 | R25: 1.39332 | S25: 1.37385 | T25: 1.35425 | U25: 1.33457 | W25: 120 | X25: 1.71889 | Y25: 1.73608 | Z25: 1.75361 | AA25: 1.77146 | AB25: 1.78964 | AC25: 1.80815 | AD25: 1.82696 | AE25: 1.84584 | AF25: 1.86455 | AG25: 1.88354 | AH25: 1.90281 | AI25: 1.92234 | AJ25: 1.94215 | AK25: 1.96221 | AL25: 1.98252 | AM25: 2.00308 | AN25: 2.02388 | AO25: 2.04493 | AP25: 2.0662 | AQ25: 2.0877
A26: 125 | B26: 1.69191 | C26: 1.67567 | D26: 1.65924 | E26: 1.64263 | F26: 1.62584 | G26: 1.60887 | H26: 1.59173 | I26: 1.57443 | J26: 1.55697 | K26: 1.53936 | L26: 1.5216 | M26: 1.50369 | N26: 1.48565 | O26: 1.46747 | P26: 1.44916 | Q26: 1.43074 | R26: 1.4122 | S26: 1.39355 | T26: 1.3748 | U26: 1.35595 | W26: 125 | X26: 1.72413 | Y26: 1.74061 | Z26: 1.7574 | AA26: 1.7745 | AB26: 1.79189 | AC26: 1.80958 | AD26: 1.82755 | AE26: 1.84571 | AF26: 1.86359 | AG26: 1.88173 | AH26: 1.90013 | AI26: 1.91878 | AJ26: 1.93768 | AK26: 1.95682 | AL26: 1.97619 | AM26: 1.99579 | AN26: 2.01562 | AO26: 2.03568 | AP26: 2.05594 | AQ26: 2.07642
A27: 130 | B27: 1.69811 | C27: 1.6825 | D27: 1.66672 | E27: 1.65076 | F27: 1.63464 | G27: 1.61836 | H27: 1.60191 | I27: 1.58531 | J27: 1.56856 | K27: 1.55166 | L27: 1.53462 | M27: 1.51745 | N27: 1.50015 | O27: 1.48272 | P27: 1.46516 | Q27: 1.4475 | R27: 1.42972 | S27: 1.41184 | T27: 1.39386 | U27: 1.37577 | W27: 130 | X27: 1.72909 | Y27: 1.74492 | Z27: 1.76103 | AA27: 1.77743 | AB27: 1.79409 | AC27: 1.81103 | AD27: 1.82823 | AE27: 1.84569 | AF27: 1.86285 | AG27: 1.88021 | AH27: 1.89782 | AI27: 1.91565 | AJ27: 1.93372 | AK27: 1.95201 | AL27: 1.97053 | AM27: 1.98925 | AN27: 2.0082 | AO27: 2.02734 | AP27: 2.04669 | AQ27: 2.06623
A28: 135 | B28: 1.70397 | C28: 1.68894 | D28: 1.67375 | E28: 1.6584 | F28: 1.6429 | G28: 1.62723 | H28: 1.61142 | I28: 1.59547 | J28: 1.57937 | K28: 1.56315 | L28: 1.54677 | M28: 1.53028 | N28: 1.51367 | O28: 1.49692 | P28: 1.48007 | Q28: 1.4631 | R28: 1.44604 | S28: 1.42885 | T28: 1.41158 | U28: 1.39422 | W28: 135 | X28: 1.73379 | Y28: 1.74902 | Z28: 1.7645 | AA28: 1.78024 | AB28: 1.79624 | AC28: 1.8125 | AD28: 1.82899 | AE28: 1.84573 | AF28: 1.86228 | AG28: 1.87893 | AH28: 1.89581 | AI28: 1.91291 | AJ28: 1.93022 | AK28: 1.94773 | AL28: 1.96545 | AM28: 1.98337 | AN28: 2.0015 | AO28: 2.01981 | AP28: 2.03832 | AQ28: 2.05701
A29: 140 | B29: 1.7095 | C29: 1.69501 | D29: 1.68038 | E29: 1.66559 | F29: 1.65066 | G29: 1.63557 | H29: 1.62036 | I29: 1.605 | J29: 1.58951 | K29: 1.57389 | L29: 1.55815 | M29: 1.54228 | N29: 1.52629 | O29: 1.5102 | P29: 1.49399 | Q29: 1.47767 | R29: 1.46125 | S29: 1.44473 | T29: 1.42813 | U29: 1.41143 | W29: 140 | X29: 1.73824 | Y29: 1.75291 | Z29: 1.76782 | AA29: 1.78297 | AB29: 1.79836 | AC29: 1.81397 | AD29: 1.82981 | AE29: 1.84589 | AF29: 1.86188 | AG29: 1.87787 | AH29: 1.89408 | AI29: 1.91048 | AJ29: 1.92709 | AK29: 1.94389 | AL29: 1.96089 | AM29: 1.97808 | AN29: 1.99544 | AO29: 2.01299 | AP29: 2.03073 | AQ29: 2.04864
A30: 145 | B30: 1.71473 | C30: 1.70075 | D30: 1.68663 | E30: 1.67236 | F30: 1.65796 | G30: 1.64343 | H30: 1.62875 | I30: 1.61395 | J30: 1.59902 | K30: 1.58398 | L30: 1.56881 | M30: 1.55352 | N30: 1.53813 | O30: 1.52263 | P30: 1.50702 | Q30: 1.49131 | R30: 1.4755 | S30: 1.45959 | T30: 1.44359 | U30: 1.42751 | W30: 145 | X30: 1.74247 | Y30: 1.75663 | Z30: 1.771 | AA30: 1.78559 | AB30: 1.8004 | AC30: 1.81544 | AD30: 1.83069 | AE30: 1.84615 | AF30: 1.8616 | AG30: 1.87699 | AH30: 1.89257 | AI30: 1.90834 | AJ30: 1.9243 | AK30: 1.94044 | AL30: 1.95677 | AM30: 1.97327 | AN30: 1.98995 | AO30: 2.0068 | AP30: 2.02382 | AQ30: 2.041
A31: 150 | B31: 1.7197 | C31: 1.70619 | D31: 1.69255 | E31: 1.67877 | F31: 1.66486 | G31: 1.65082 | H31: 1.63666 | I31: 1.62238 | J31: 1.60799 | K31: 1.59346 | L31: 1.57883 | M31: 1.56409 | N31: 1.54925 | O31: 1.5343 | P31: 1.51925 | Q31: 1.5041 | R31: 1.48885 | S31: 1.47352 | T31: 1.45809 | U31: 1.44259 | W31: 150 | X31: 1.74652 | Y31: 1.76018 | Z31: 1.77406 | AA31: 1.78814 | AB31: 1.80242 | AC31: 1.8169 | AD31: 1.83159 | AE31: 1.84648 | AF31: 1.86144 | AG31: 1.87627 | AH31: 1.89127 | AI31: 1.90645 | AJ31: 1.92182 | AK31: 1.93735 | AL31: 1.95305 | AM31: 1.96892 | AN31: 1.98496 | AO31: 2.00116 | AP31: 2.01751 | AQ31: 2.03402
A32: 155 | B32: 1.72442 | C32: 1.71135 | D32: 1.69815 | E32: 1.68483 | F32: 1.67139 | G32: 1.65782 | H32: 1.64413 | I32: 1.63034 | J32: 1.61643 | K32: 1.60241 | L32: 1.58827 | M32: 1.57404 | N32: 1.55971 | O32: 1.54527 | P32: 1.53074 | Q32: 1.51612 | R32: 1.50139 | S32: 1.48659 | T32: 1.47171 | U32: 1.45674 | W32: 155 | X32: 1.75036 | Y32: 1.76358 | Z32: 1.77698 | AA32: 1.79058 | AB32: 1.80437 | AC32: 1.81836 | AD32: 1.83253 | AE32: 1.84688 | AF32: 1.86138 | AG32: 1.87568 | AH32: 1.89015 | AI32: 1.90478 | AJ32: 1.91959 | AK32: 1.93455 | AL32: 1.94968 | AM32: 1.96497 | AN32: 1.9804 | AO32: 1.996 | AP32: 2.01174 | AQ32: 2.02763
A33: 160 | B33: 1.7289 | C33: 1.71625 | D33: 1.70348 | E33: 1.69058 | F33: 1.67756 | G33: 1.66444 | H33: 1.65121 | I33: 1.63786 | J33: 1.62441 | K33: 1.61084 | L33: 1.59718 | M33: 1.58343 | N33: 1.56957 | O33: 1.55562 | P33: 1.54158 | Q33: 1.52744 | R33: 1.51322 | S33: 1.49892 | T33: 1.48452 | U33: 1.47006 | W33: 160 | X33: 1.75405 | Y33: 1.76683 | Z33: 1.7798 | AA33: 1.79296 | AB33: 1.80629 | AC33: 1.8198 | AD33: 1.83348 | AE33: 1.84734 | AF33: 1.86138 | AG33: 1.8752 | AH33: 1.88918 | AI33: 1.90331 | AJ33: 1.91759 | AK33: 1.93204 | AL33: 1.94662 | AM33: 1.96136 | AN33: 1.97624 | AO33: 1.99127 | AP33: 2.00644 | AQ33: 2.02175
A34: 165 | B34: 1.73319 | C34: 1.72092 | D34: 1.70854 | E34: 1.69604 | F34: 1.68344 | G34: 1.67073 | H34: 1.65791 | I34: 1.64498 | J34: 1.63195 | K34: 1.61883 | L34: 1.60561 | M34: 1.5923 | N34: 1.57889 | O34: 1.56539 | P34: 1.5518 | Q34: 1.53813 | R34: 1.52437 | S34: 1.51053 | T34: 1.49661 | U34: 1.48262 | W34: 165 | X34: 1.75756 | Y34: 1.76995 | Z34: 1.78251 | AA34: 1.79525 | AB34: 1.80815 | AC34: 1.82122 | AD34: 1.83445 | AE34: 1.84785 | AF34: 1.86141 | AG34: 1.87484 | AH34: 1.88835 | AI34: 1.902 | AJ34: 1.91581 | AK34: 1.92975 | AL34: 1.94383 | AM34: 1.95806 | AN34: 1.97244 | AO34: 1.98694 | AP34: 2.00158 | AQ34: 2.01635
A35: 170 | B35: 1.73728 | C35: 1.72537 | D35: 1.71336 | E35: 1.70124 | F35: 1.68902 | G35: 1.67669 | H35: 1.66427 | I35: 1.65174 | J35: 1.63912 | K35: 1.62641 | L35: 1.61359 | M35: 1.60069 | N35: 1.5877 | O35: 1.57464 | P35: 1.56147 | Q35: 1.54823 | R35: 1.53491 | S35: 1.52151 | T35: 1.50803 | U35: 1.49449 | W35: 170 | X35: 1.76093 | Y35: 1.77295 | Z35: 1.78512 | AA35: 1.79747 | AB35: 1.80997 | AC35: 1.82262 | AD35: 1.83543 | AE35: 1.84839 | AF35: 1.86151 | AG35: 1.87456 | AH35: 1.88764 | AI35: 1.90085 | AJ35: 1.91419 | AK35: 1.92768 | AL35: 1.9413 | AM35: 1.95506 | AN35: 1.96894 | AO35: 1.98296 | AP35: 1.9971 | AQ35: 2.01136
A36: 175 | B36: 1.74119 | C36: 1.72963 | D36: 1.71796 | E36: 1.7062 | F36: 1.69433 | G36: 1.68237 | H36: 1.67031 | I36: 1.65817 | J36: 1.64593 | K36: 1.63359 | L36: 1.62117 | M36: 1.60867 | N36: 1.59607 | O36: 1.58339 | P36: 1.57064 | Q36: 1.5578 | R36: 1.54489 | S36: 1.5319 | T36: 1.51885 | U36: 1.50572 | W36: 175 | X36: 1.76416 | Y36: 1.77583 | Z36: 1.78765 | AA36: 1.79961 | AB36: 1.81174 | AC36: 1.824 | AD36: 1.83641 | AE36: 1.84898 | AF36: 1.86168 | AG36: 1.87437 | AH36: 1.88703 | AI36: 1.89982 | AJ36: 1.91275 | AK36: 1.9258 | AL36: 1.93899 | AM36: 1.95229 | AN36: 1.96573 | AO36: 1.97928 | AP36: 1.99296 | AQ36: 2.00675
A37: 180 | B37: 1.74493 | C37: 1.73369 | D37: 1.72236 | E37: 1.71092 | F37: 1.6994 | G37: 1.68779 | H37: 1.67608 | I37: 1.66428 | J37: 1.65239 | K37: 1.64043 | L37: 1.62837 | M37: 1.61623 | N37: 1.60401 | O37: 1.59171 | P37: 1.57934 | Q37: 1.56688 | R37: 1.55436 | S37: 1.54176 | T37: 1.5291 | U37: 1.51636 | W37: 180 | X37: 1.76726 | Y37: 1.7786 | Z37: 1.79007 | AA37: 1.8017 | AB37: 1.81346 | AC37: 1.82536 | AD37: 1.8374 | AE37: 1.84959 | AF37: 1.8619 | AG37: 1.87425 | AH37: 1.88652 | AI37: 1.89892 | AJ37: 1.91145 | AK37: 1.9241 | AL37: 1.93687 | AM37: 1.94976 | AN37: 1.96276 | AO37: 1.97588 | AP37: 1.98912 | AQ37: 2.00248
A38: 185 | B38: 1.74851 | C38: 1.73759 | D38: 1.72656 | E38: 1.71545 | F38: 1.70424 | G38: 1.69295 | H38: 1.68157 | I38: 1.6701 | J38: 1.65856 | K38: 1.64693 | L38: 1.63522 | M38: 1.62343 | N38: 1.61156 | O38: 1.59962 | P38: 1.5876 | Q38: 1.57551 | R38: 1.56335 | S38: 1.55112 | T38: 1.53882 | U38: 1.52646 | W38: 185 | X38: 1.77024 | Y38: 1.78127 | Z38: 1.79242 | AA38: 1.80371 | AB38: 1.81514 | AC38: 1.8267 | AD38: 1.83838 | AE38: 1.85021 | AF38: 1.86215 | AG38: 1.87419 | AH38: 1.8861 | AI38: 1.89813 | AJ38: 1.91028 | AK38: 1.92255 | AL38: 1.93493 | AM38: 1.94743 | AN38: 1.96003 | AO38: 1.97275 | AP38: 1.98558 | AQ38: 1.99852
A39: 190 | B39: 1.75196 | C39: 1.74132 | D39: 1.73059 | E39: 1.71977 | F39: 1.70887 | G39: 1.69789 | H39: 1.68682 | I39: 1.67567 | J39: 1.66444 | K39: 1.65313 | L39: 1.64175 | M39: 1.63028 | N39: 1.61875 | O39: 1.60714 | P39: 1.59547 | Q39: 1.58372 | R39: 1.5719 | S39: 1.56001 | T39: 1.54807 | U39: 1.53605 | W39: 190 | X39: 1.77311 | Y39: 1.78383 | Z39: 1.79468 | AA39: 1.80567 | AB39: 1.81678 | AC39: 1.82801 | AD39: 1.83937 | AE39: 1.85086 | AF39: 1.86246 | AG39: 1.87417 | AH39: 1.88575 | AI39: 1.89743 | AJ39: 1.90923 | AK39: 1.92114 | AL39: 1.93315 | AM39: 1.94529 | AN39: 1.95752 | AO39: 1.96985 | AP39: 1.9823 | AQ39: 1.99484
A40: 195 | B40: 1.75526 | C40: 1.7449 | D40: 1.73445 | E40: 1.72392 | F40: 1.7133 | G40: 1.70261 | H40: 1.69183 | I40: 1.68099 | J40: 1.67005 | K40: 1.65905 | L40: 1.64798 | M40: 1.63683 | N40: 1.62561 | O40: 1.61432 | P40: 1.60296 | Q40: 1.59154 | R40: 1.58005 | S40: 1.56849 | T40: 1.55687 | U40: 1.5452 | W40: 195 | X40: 1.77586 | Y40: 1.78632 | Z40: 1.79688 | AA40: 1.80757 | AB40: 1.81838 | AC40: 1.8293 | AD40: 1.84035 | AE40: 1.85151 | AF40: 1.86279 | AG40: 1.87418 | AH40: 1.88547 | AI40: 1.89683 | AJ40: 1.90828 | AK40: 1.91985 | AL40: 1.93152 | AM40: 1.9433 | AN40: 1.95518 | AO40: 1.96716 | AP40: 1.97923 | AQ40: 1.99141
A41: 200 | B41: 1.75844 | C41: 1.74833 | D41: 1.73815 | E41: 1.72789 | F41: 1.71755 | G41: 1.70713 | H41: 1.69663 | I41: 1.68607 | J41: 1.67543 | K41: 1.66471 | L41: 1.65394 | M41: 1.64308 | N41: 1.63216 | O41: 1.62117 | P41: 1.61011 | Q41: 1.599 | R41: 1.58781 | S41: 1.57657 | T41: 1.56527 | U41: 1.5539 | W41: 200 | X41: 1.77852 | Y41: 1.78871 | Z41: 1.79901 | AA41: 1.80942 | AB41: 1.81994 | AC41: 1.83057 | AD41: 1.84133 | AE41: 1.85219 | AF41: 1.86316 | AG41: 1.87423 | AH41: 1.88541 | AI41: 1.89671 | AJ41: 1.9081 | AK41: 1.91961 | AL41: 1.93122 | AM41: 1.94292 | AN41: 1.95473 | AO41: 1.96665 | AP41: 1.97865 | AQ41: 1.99075
A42: 210 | B42: 1.76445 | C42: 1.75483 | D42: 1.74513 | E42: 1.73537 | F42: 1.72554 | G42: 1.71563 | H42: 1.70566 | I42: 1.69561 | J42: 1.6855 | K42: 1.67532 | L42: 1.66508 | M42: 1.65478 | N42: 1.64441 | O42: 1.63398 | P42: 1.62348 | Q42: 1.61293 | R42: 1.60232 | S42: 1.59165 | T42: 1.58094 | U42: 1.57015 | W42: 210 | X42: 1.78358 | Y42: 1.79326 | Z42: 1.80305 | AA42: 1.81295 | AB42: 1.82294 | AC42: 1.83305 | AD42: 1.84325 | AE42: 1.85355 | AF42: 1.86394 | AG42: 1.87445 | AH42: 1.88505 | AI42: 1.89574 | AJ42: 1.90653 | AK42: 1.91742 | AL42: 1.92839 | AM42: 1.93947 | AN42: 1.95063 | AO42: 1.96188 | AP42: 1.97323 | AQ42: 1.98467
A43: 220 | B43: 1.77003 | C43: 1.76086 | D43: 1.75161 | E43: 1.74229 | F43: 1.73292 | G43: 1.72348 | H43: 1.71398 | I43: 1.70441 | J43: 1.69477 | K43: 1.68509 | L43: 1.67533 | M43: 1.66552 | N43: 1.65566 | O43: 1.64573 | P43: 1.63575 | Q43: 1.62571 | R43: 1.61562 | S43: 1.60547 | T43: 1.59527 | U43: 1.58503 | W43: 220 | X43: 1.78829 | Y43: 1.79753 | Z43: 1.80686 | AA43: 1.81628 | AB43: 1.82581 | AC43: 1.83543 | AD43: 1.84513 | AE43: 1.85492 | AF43: 1.86482 | AG43: 1.87479 | AH43: 1.88486 | AI43: 1.89502 | AJ43: 1.90526 | AK43: 1.91559 | AL43: 1.92601 | AM43: 1.93651 | AN43: 1.9471 | AO43: 1.95776 | AP43: 1.96852 | AQ43: 1.97935
A44: 230 | B44: 1.77525 | C44: 1.76647 | D44: 1.75763 | E44: 1.74873 | F44: 1.73977 | G44: 1.73075 | H44: 1.72168 | I44: 1.71254 | J44: 1.70335 | K44: 1.6941 | L44: 1.68479 | M44: 1.67544 | N44: 1.66602 | O44: 1.65655 | P44: 1.64703 | Q44: 1.63746 | R44: 1.62784 | S44: 1.61816 | T44: 1.60844 | U44: 1.59868 | W44: 230 | X44: 1.7927 | Y44: 1.80154 | Z44: 1.81045 | AA44: 1.81945 | AB44: 1.82854 | AC44: 1.83771 | AD44: 1.84697 | AE44: 1.85632 | AF44: 1.86574 | AG44: 1.87524 | AH44: 1.88483 | AI44: 1.8945 | AJ44: 1.90424 | AK44: 1.91407 | AL44: 1.92398 | AM44: 1.93397 | AN44: 1.94403 | AO44: 1.95417 | AP44: 1.96439 | AQ44: 1.97467
A45: 240 | B45: 1.78012 | C45: 1.77171 | D45: 1.76325 | E45: 1.75473 | F45: 1.74616 | G45: 1.73752 | H45: 1.72883 | I45: 1.72009 | J45: 1.71129 | K45: 1.70245 | L45: 1.69356 | M45: 1.6846 | N45: 1.67561 | O45: 1.66656 | P45: 1.65746 | Q45: 1.64832 | R45: 1.63913 | S45: 1.62988 | T45: 1.6206 | U45: 1.61128 | W45: 240 | X45: 1.79685 | Y45: 1.8053 | Z45: 1.81384 | AA45: 1.82246 | AB45: 1.83115 | AC45: 1.83992 | AD45: 1.84876 | AE45: 1.85769 | AF45: 1.86669 | AG45: 1.87576 | AH45: 1.88492 | AI45: 1.89415 | AJ45: 1.90345 | AK45: 1.91282 | AL45: 1.92226 | AM45: 1.93178 | AN45: 1.94137 | AO45: 1.95102 | AP45: 1.96075 | AQ45: 1.97055
A46: 250 | B46: 1.78469 | C46: 1.77662 | D46: 1.76851 | E46: 1.76033 | F46: 1.75211 | G46: 1.74383 | H46: 1.7355 | I46: 1.72713 | J46: 1.7187 | K46: 1.71022 | L46: 1.7017 | M46: 1.69312 | N46: 1.68451 | O46: 1.67584 | P46: 1.66714 | Q46: 1.65838 | R46: 1.64959 | S46: 1.64074 | T46: 1.63186 | U46: 1.62293 | W46: 250 | X46: 1.80075 | Y46: 1.80887 | Z46: 1.81706 | AA46: 1.82531 | AB46: 1.83364 | AC46: 1.84204 | AD46: 1.85051 | AE46: 1.85906 | AF46: 1.86768 | AG46: 1.87636 | AH46: 1.88511 | AI46: 1.89393 | AJ46: 1.90282 | AK46: 1.91178 | AL46: 1.9208 | AM46: 1.92989 | AN46: 1.93904 | AO46: 1.94827 | AP46: 1.95755 | AQ46: 1.9669
A47: 260 | B47: 1.789 | C47: 1.78125 | D47: 1.77344 | E47: 1.76558 | F47: 1.75768 | G47: 1.74973 | H47: 1.74173 | I47: 1.73369 | J47: 1.72561 | K47: 1.71747 | L47: 1.70928 | M47: 1.70107 | N47: 1.6928 | O47: 1.68449 | P47: 1.67613 | Q47: 1.66774 | R47: 1.6593 | S47: 1.65082 | T47: 1.64231 | U47: 1.63375 | W47: 260 | X47: 1.80444 | Y47: 1.81223 | Z47: 1.8201 | AA47: 1.82803 | AB47: 1.83603 | AC47: 1.84409 | AD47: 1.85222 | AE47: 1.86041 | AF47: 1.86867 | AG47: 1.87699 | AH47: 1.88538 | AI47: 1.89383 | AJ47: 1.90234 | AK47: 1.91092 | AL47: 1.91956 | AM47: 1.92826 | AN47: 1.93702 | AO47: 1.94583 | AP47: 1.95471 | AQ47: 1.96366
A48: 270 | B48: 1.79306 | C48: 1.7856 | D48: 1.77808 | E48: 1.77052 | F48: 1.76292 | G48: 1.75528 | H48: 1.74758 | I48: 1.73984 | J48: 1.73207 | K48: 1.72425 | L48: 1.71638 | M48: 1.70849 | N48: 1.70054 | O48: 1.69256 | P48: 1.68453 | Q48: 1.67647 | R48: 1.66836 | S48: 1.66022 | T48: 1.65204 | U48: 1.64382 | W48: 270 | X48: 1.80792 | Y48: 1.81543 | Z48: 1.823 | AA48: 1.83062 | AB48: 1.83831 | AC48: 1.84606 | AD48: 1.85387 | AE48: 1.86174 | AF48: 1.86967 | AG48: 1.87767 | AH48: 1.88572 | AI48: 1.89382 | AJ48: 1.902 | AK48: 1.91023 | AL48: 1.91851 | AM48: 1.92684 | AN48: 1.93524 | AO48: 1.94369 | AP48: 1.9522 | AQ48: 1.96077
A49: 280 | B49: 1.7969 | C49: 1.7897 | D49: 1.78245 | E49: 1.77517 | F49: 1.76784 | G49: 1.76048 | H49: 1.75307 | I49: 1.74563 | J49: 1.73814 | K49: 1.73061 | L49: 1.72304 | M49: 1.71543 | N49: 1.70778 | O49: 1.70011 | P49: 1.69238 | Q49: 1.68463 | R49: 1.67682 | S49: 1.669 | T49: 1.66113 | U49: 1.65323 | W49: 280 | X49: 1.81123 | Y49: 1.81846 | Z49: 1.82575 | AA49: 1.83309 | AB49: 1.84051 | AC49: 1.84797 | AD49: 1.85549 | AE49: 1.86305 | AF49: 1.87068 | AG49: 1.87837 | AH49: 1.88611 | AI49: 1.8939 | AJ49: 1.90175 | AK49: 1.90965 | AL49: 1.91761 | AM49: 1.92562 | AN49: 1.93368 | AO49: 1.9418 | AP49: 1.94996 | AQ49: 1.95819
A50: 290 | B50: 1.80053 | C50: 1.79358 | D50: 1.7866 | E50: 1.77956 | F50: 1.7725 | G50: 1.76539 | H50: 1.75825 | I50: 1.75106 | J50: 1.74384 | K50: 1.73659 | L50: 1.72929 | M50: 1.72196 | N50: 1.71459 | O50: 1.70718 | P50: 1.69975 | Q50: 1.69227 | R50: 1.68477 | S50: 1.67722 | T50: 1.66964 | U50: 1.66204 | W50: 290 | X50: 1.81436 | Y50: 1.82134 | Z50: 1.82838 | AA50: 1.83546 | AB50: 1.84261 | AC50: 1.8498 | AD50: 1.85704 | AE50: 1.86434 | AF50: 1.87169 | AG50: 1.87909 | AH50: 1.88655 | AI50: 1.89405 | AJ50: 1.90161 | AK50: 1.90921 | AL50: 1.91686 | AM50: 1.92456 | AN50: 1.93232 | AO50: 1.94012 | AP50: 1.94798 | AQ50: 1.95587
A51: 300 | B51: 1.80398 | C51: 1.79726 | D51: 1.79051 | E51: 1.78371 | F51: 1.77689 | G51: 1.77003 | H51: 1.76313 | I51: 1.75619 | J51: 1.74921 | K51: 1.74222 | L51: 1.73518 | M51: 1.7281 | N51: 1.72099 | O51: 1.71385 | P51: 1.70667 | Q51: 1.69946 | R51: 1.69221 | S51: 1.68494 | T51: 1.67764 | U51: 1.6703 | W51: 300 | X51: 1.81735 | Y51: 1.8241 | Z51: 1.83088 | AA51: 1.83773 | AB51: 1.84463 | AC51: 1.85157 | AD51: 1.85856 | AE51: 1.8656 | AF51: 1.87269 | AG51: 1.87983 | AH51: 1.88702 | AI51: 1.89425 | AJ51: 1.90152 | AK51: 1.90885 | AL51: 1.91623 | AM51: 1.92365 | AN51: 1.93111 | AO51: 1.93863 | AP51: 1.94619 | AQ51: 1.95379
A52: 310 | B52: 1.80725 | C52: 1.80076 | D52: 1.79422 | E52: 1.78766 | F52: 1.78105 | G52: 1.77441 | H52: 1.76774 | I52: 1.76104 | J52: 1.7543 | K52: 1.74753 | L52: 1.74072 | M52: 1.73389 | N52: 1.72703 | O52: 1.72012 | P52: 1.71319 | Q52: 1.70622 | R52: 1.69923 | S52: 1.69221 | T52: 1.68516 | U52: 1.67807 | W52: 310 | X52: 1.82019 | Y52: 1.82672 | Z52: 1.83329 | AA52: 1.83991 | AB52: 1.84657 | AC52: 1.85328 | AD52: 1.86003 | AE52: 1.86683 | AF52: 1.87368 | AG52: 1.88058 | AH52: 1.88751 | AI52: 1.89449 | AJ52: 1.90152 | AK52: 1.90859 | AL52: 1.91571 | AM52: 1.92286 | AN52: 1.93006 | AO52: 1.93731 | AP52: 1.94459 | AQ52: 1.95192
A53: 320 | B53: 1.81037 | C53: 1.80408 | D53: 1.79775 | E53: 1.79139 | F53: 1.785 | G53: 1.77857 | H53: 1.77211 | I53: 1.76563 | J53: 1.75911 | K53: 1.75256 | L53: 1.74598 | M53: 1.73937 | N53: 1.73272 | O53: 1.72605 | P53: 1.71935 | Q53: 1.71262 | R53: 1.70585 | S53: 1.69906 | T53: 1.69225 | U53: 1.6854 | W53: 320 | X53: 1.82291 | Y53: 1.82922 | Z53: 1.83559 | AA53: 1.84199 | AB53: 1.84844 | AC53: 1.85494 | AD53: 1.86147 | AE53: 1.86804 | AF53: 1.87466 | AG53: 1.88133 | AH53: 1.88804 | AI53: 1.89478 | AJ53: 1.90156 | AK53: 1.9084 | AL53: 1.91527 | AM53: 1.92218 | AN53: 1.92913 | AO53: 1.93613 | AP53: 1.94316 | AQ53: 1.95024
A54: 330 | B54: 1.81335 | C54: 1.80724 | D54: 1.80111 | E54: 1.79495 | F54: 1.78876 | G54: 1.78252 | H54: 1.77627 | I54: 1.76999 | J54: 1.76367 | K54: 1.75733 | L54: 1.75095 | M54: 1.74455 | N54: 1.73812 | O54: 1.73165 | P54: 1.72517 | Q54: 1.71865 | R54: 1.7121 | S54: 1.70554 | T54: 1.69893 | U54: 1.69231 | W54: 330 | X54: 1.8255 | Y54: 1.83162 | Z54: 1.83779 | AA54: 1.844 | AB54: 1.85024 | AC54: 1.85653 | AD54: 1.86286 | AE54: 1.86923 | AF54: 1.87563 | AG54: 1.88209 | AH54: 1.88857 | AI54: 1.8951 | AJ54: 1.90167 | AK54: 1.90827 | AL54: 1.91492 | AM54: 1.92159 | AN54: 1.92832 | AO54: 1.93507 | AP54: 1.94187 | AQ54: 1.9487
A55: 340 | B55: 1.81618 | C55: 1.81026 | D55: 1.80432 | E55: 1.79834 | F55: 1.79233 | G55: 1.78629 | H55: 1.78022 | I55: 1.77413 | J55: 1.768 | K55: 1.76185 | L55: 1.75567 | M55: 1.74947 | N55: 1.74323 | O55: 1.73697 | P55: 1.73068 | Q55: 1.72437 | R55: 1.71803 | S55: 1.71166 | T55: 1.70527 | U55: 1.69885 | W55: 340 | X55: 1.82799 | Y55: 1.83392 | Z55: 1.8399 | AA55: 1.84592 | AB55: 1.85198 | AC55: 1.85808 | AD55: 1.8642 | AE55: 1.87038 | AF55: 1.87659 | AG55: 1.88284 | AH55: 1.88913 | AI55: 1.89545 | AJ55: 1.9018 | AK55: 1.90819 | AL55: 1.91463 | AM55: 1.92109 | AN55: 1.9276 | AO55: 1.93414 | AP55: 1.94072 | AQ55: 1.94732
A56: 350 | B56: 1.8189 | C56: 1.81315 | D56: 1.80737 | E56: 1.80157 | F56: 1.79573 | G56: 1.78987 | H56: 1.78398 | I56: 1.77806 | J56: 1.77211 | K56: 1.76615 | L56: 1.76015 | M56: 1.75414 | N56: 1.74808 | O56: 1.74201 | P56: 1.73592 | Q56: 1.72979 | R56: 1.72364 | S56: 1.71747 | T56: 1.71127 | U56: 1.70505 | W56: 350 | X56: 1.83036 | Y56: 1.83613 | Z56: 1.84193 | AA56: 1.84778 | AB56: 1.85366 | AC56: 1.85957 | AD56: 1.86553 | AE56: 1.87151 | AF56: 1.87753 | AG56: 1.88359 | AH56: 1.88969 | AI56: 1.89581 | AJ56: 1.90198 | AK56: 1.90818 | AL56: 1.91441 | AM56: 1.92068 | AN56: 1.92698 | AO56: 1.93331 | AP56: 1.93967 | AQ56: 1.94608
A57: 360 | B57: 1.8215 | C57: 1.81591 | D57: 1.81029 | E57: 1.80465 | F57: 1.79898 | G57: 1.79328 | H57: 1.78756 | I57: 1.78182 | J57: 1.77604 | K57: 1.77025 | L57: 1.76442 | M57: 1.75858 | N57: 1.7527 | O57: 1.74681 | P57: 1.74089 | Q57: 1.73494 | R57: 1.72898 | S57: 1.72299 | T57: 1.71697 | U57: 1.71094 | W57: 360 | X57: 1.83264 | Y57: 1.83825 | Z57: 1.84389 | AA57: 1.84957 | AB57: 1.85527 | AC57: 1.86102 | AD57: 1.86681 | AE57: 1.87261 | AF57: 1.87846 | AG57: 1.88434 | AH57: 1.89026 | AI57: 1.8962 | AJ57: 1.90218 | AK57: 1.90819 | AL57: 1.91424 | AM57: 1.92032 | AN57: 1.92643 | AO57: 1.93257 | AP57: 1.93874 | AQ57: 1.94494
A58: 370 | B58: 1.82399 | C58: 1.81855 | D58: 1.81309 | E58: 1.8076 | F58: 1.80209 | G58: 1.79655 | H58: 1.79098 | I58: 1.7854 | J58: 1.77978 | K58: 1.77415 | L58: 1.76849 | M58: 1.76281 | N58: 1.75711 | O58: 1.75137 | P58: 1.74562 | Q58: 1.73985 | R58: 1.73406 | S58: 1.72824 | T58: 1.7224 | U58: 1.71653 | W58: 370 | X58: 1.83483 | Y58: 1.84029 | Z58: 1.84577 | AA58: 1.85129 | AB58: 1.85685 | AC58: 1.86242 | AD58: 1.86805 | AE58: 1.87369 | AF58: 1.87938 | AG58: 1.88509 | AH58: 1.89083 | AI58: 1.8966 | AJ58: 1.90241 | AK58: 1.90825 | AL58: 1.91412 | AM58: 1.92002 | AN58: 1.92595 | AO58: 1.93191 | AP58: 1.93789 | AQ58: 1.94392
A59: 380 | B59: 1.82639 | C59: 1.82109 | D59: 1.81577 | E59: 1.81043 | F59: 1.80506 | G59: 1.79967 | H59: 1.79426 | I59: 1.78883 | J59: 1.78336 | K59: 1.77788 | L59: 1.77238 | M59: 1.76685 | N59: 1.7613 | O59: 1.75573 | P59: 1.75014 | Q59: 1.74452 | R59: 1.73889 | S59: 1.73323 | T59: 1.72755 | U59: 1.72186 | W59: 380 | X59: 1.83694 | Y59: 1.84225 | Z59: 1.84758 | AA59: 1.85296 | AB59: 1.85836 | AC59: 1.86379 | AD59: 1.86925 | AE59: 1.87475 | AF59: 1.88027 | AG59: 1.88582 | AH59: 1.89141 | AI59: 1.89702 | AJ59: 1.90266 | AK59: 1.90834 | AL59: 1.91404 | AM59: 1.91977 | AN59: 1.92553 | AO59: 1.93132 | AP59: 1.93714 | AQ59: 1.94298
A60: 390 | B60: 1.82868 | C60: 1.82352 | D60: 1.81834 | E60: 1.81314 | F60: 1.80791 | G60: 1.80266 | H60: 1.79739 | I60: 1.7921 | J60: 1.78678 | K60: 1.78145 | L60: 1.77609 | M60: 1.77071 | N60: 1.76532 | O60: 1.75989 | P60: 1.75445 | Q60: 1.74898 | R60: 1.74351 | S60: 1.738 | T60: 1.73248 | U60: 1.72693 | W60: 390 | X60: 1.83896 | Y60: 1.84413 | Z60: 1.84933 | AA60: 1.85457 | AB60: 1.85982 | AC60: 1.86512 | AD60: 1.87043 | AE60: 1.87578 | AF60: 1.88115 | AG60: 1.88656 | AH60: 1.892 | AI60: 1.89746 | AJ60: 1.90294 | AK60: 1.90846 | AL60: 1.91401 | AM60: 1.91957 | AN60: 1.92517 | AO60: 1.9308 | AP60: 1.93646 | AQ60: 1.94213
A61: 400 | B61: 1.83089 | C61: 1.82586 | D61: 1.82081 | E61: 1.81574 | F61: 1.81064 | G61: 1.80553 | H61: 1.80039 | I61: 1.79524 | J61: 1.79006 | K61: 1.78486 | L61: 1.77964 | M61: 1.7744 | N61: 1.76915 | O61: 1.76387 | P61: 1.75856 | Q61: 1.75324 | R61: 1.74791 | S61: 1.74255 | T61: 1.73717 | U61: 1.73177 | W61: 400 | X61: 1.84091 | Y61: 1.84596 | Z61: 1.85103 | AA61: 1.85612 | AB61: 1.86124 | AC61: 1.8664 | AD61: 1.87158 | AE61: 1.87678 | AF61: 1.88202 | AG61: 1.88728 | AH61: 1.89258 | AI61: 1.89789 | AJ61: 1.90323 | AK61: 1.9086 | AL61: 1.914 | AM61: 1.91942 | AN61: 1.92486 | AO61: 1.93034 | AP61: 1.93584 | AQ61: 1.94136
A62: 410 | B62: 1.83301 | C62: 1.82811 | D62: 1.82318 | E62: 1.81824 | F62: 1.81327 | G62: 1.80828 | H62: 1.80327 | I62: 1.79825 | J62: 1.7932 | K62: 1.78814 | L62: 1.78305 | M62: 1.77794 | N62: 1.77281 | O62: 1.76767 | P62: 1.7625 | Q62: 1.75732 | R62: 1.75212 | S62: 1.7469 | T62: 1.74166 | U62: 1.7364 | W62: 410 | X62: 1.84279 | Y62: 1.84771 | Z62: 1.85265 | AA62: 1.85763 | AB62: 1.86263 | AC62: 1.86765 | AD62: 1.87269 | AE62: 1.87777 | AF62: 1.88287 | AG62: 1.888 | AH62: 1.89315 | AI62: 1.89833 | AJ62: 1.90354 | AK62: 1.90877 | AL62: 1.91401 | AM62: 1.9193 | AN62: 1.9246 | AO62: 1.92993 | AP62: 1.93528 | AQ62: 1.94066
A63: 420 | B63: 1.83507 | C63: 1.83028 | D63: 1.82546 | E63: 1.82064 | F63: 1.81579 | G63: 1.81093 | H63: 1.80604 | I63: 1.80114 | J63: 1.79621 | K63: 1.79127 | L63: 1.78631 | M63: 1.78133 | N63: 1.77633 | O63: 1.77132 | P63: 1.76628 | Q63: 1.76122 | R63: 1.75615 | S63: 1.75107 | T63: 1.74596 | U63: 1.74083 | W63: 420 | X63: 1.84461 | Y63: 1.84941 | Z63: 1.85423 | AA63: 1.85908 | AB63: 1.86396 | AC63: 1.86886 | AD63: 1.87379 | AE63: 1.87874 | AF63: 1.88371 | AG63: 1.88871 | AH63: 1.89373 | AI63: 1.89878 | AJ63: 1.90385 | AK63: 1.90895 | AL63: 1.91407 | AM63: 1.91922 | AN63: 1.92438 | AO63: 1.92957 | AP63: 1.93478 | AQ63: 1.94003
A64: 430 | B64: 1.83704 | C64: 1.83236 | D64: 1.82767 | E64: 1.82296 | F64: 1.81823 | G64: 1.81348 | H64: 1.80871 | I64: 1.80392 | J64: 1.79911 | K64: 1.79429 | L64: 1.78944 | M64: 1.78458 | N64: 1.77971 | O64: 1.77481 | P64: 1.7699 | Q64: 1.76497 | R64: 1.76002 | S64: 1.75506 | T64: 1.75007 | U64: 1.74508 | W64: 430 | X64: 1.84636 | Y64: 1.85105 | Z64: 1.85576 | AA64: 1.8605 | AB64: 1.86525 | AC64: 1.87004 | AD64: 1.87484 | AE64: 1.87967 | AF64: 1.88453 | AG64: 1.88941 | AH64: 1.89431 | AI64: 1.89923 | AJ64: 1.90417 | AK64: 1.90915 | AL64: 1.91414 | AM64: 1.91915 | AN64: 1.9242 | AO64: 1.92925 | AP64: 1.93433 | AQ64: 1.93944
A65: 440 | B65: 1.83895 | C65: 1.83438 | D65: 1.82979 | E65: 1.82518 | F65: 1.82056 | G65: 1.81592 | H65: 1.81126 | I65: 1.80659 | J65: 1.80189 | K65: 1.79718 | L65: 1.79245 | M65: 1.7877 | N65: 1.78295 | O65: 1.77817 | P65: 1.77337 | Q65: 1.76856 | R65: 1.76373 | S65: 1.75888 | T65: 1.75403 | U65: 1.74914 | W65: 440 | X65: 1.84805 | Y65: 1.85264 | Z65: 1.85724 | AA65: 1.86187 | AB65: 1.86651 | AC65: 1.87119 | AD65: 1.87588 | AE65: 1.8806 | AF65: 1.88533 | AG65: 1.8901 | AH65: 1.89488 | AI65: 1.89968 | AJ65: 1.90451 | AK65: 1.90937 | AL65: 1.91424 | AM65: 1.91913 | AN65: 1.92404 | AO65: 1.92898 | AP65: 1.93393 | AQ65: 1.93891
A66: 450 | B66: 1.84079 | C66: 1.83632 | D66: 1.83184 | E66: 1.82734 | F66: 1.82282 | G66: 1.81828 | H66: 1.81373 | I66: 1.80916 | J66: 1.80457 | K66: 1.79997 | L66: 1.79535 | M66: 1.79071 | N66: 1.78607 | O66: 1.78139 | P66: 1.77671 | Q66: 1.77201 | R66: 1.7673 | S66: 1.76256 | T66: 1.75781 | U66: 1.75305 | W66: 450 | X66: 1.8497 | Y66: 1.85418 | Z66: 1.85867 | AA66: 1.8632 | AB66: 1.86774 | AC66: 1.8723 | AD66: 1.87688 | AE66: 1.8815 | AF66: 1.88612 | AG66: 1.89077 | AH66: 1.89545 | AI66: 1.90014 | AJ66: 1.90485 | AK66: 1.90959 | AL66: 1.91434 | AM66: 1.91912 | AN66: 1.92392 | AO66: 1.92874 | AP66: 1.93358 | AQ66: 1.93844
A67: 460 | B67: 1.84257 | C67: 1.8382 | D67: 1.83381 | E67: 1.82941 | F67: 1.82499 | G67: 1.82056 | H67: 1.81611 | I67: 1.81163 | J67: 1.80716 | K67: 1.80265 | L67: 1.79813 | M67: 1.79361 | N67: 1.78906 | O67: 1.7845 | P67: 1.77992 | Q67: 1.77532 | R67: 1.77072 | S67: 1.7661 | T67: 1.76145 | U67: 1.7568 | W67: 460 | X67: 1.85128 | Y67: 1.85567 | Z67: 1.86007 | AA67: 1.86449 | AB67: 1.86893 | AC67: 1.87339 | AD67: 1.87787 | AE67: 1.88238 | AF67: 1.8869 | AG67: 1.89144 | AH67: 1.89601 | AI67: 1.9006 | AJ67: 1.9052 | AK67: 1.90983 | AL67: 1.91447 | AM67: 1.91914 | AN67: 1.92382 | AO67: 1.92853 | AP67: 1.93325 | AQ67: 1.938
A68: 470 | B68: 1.84429 | C68: 1.84002 | D68: 1.83572 | E68: 1.83142 | F68: 1.82709 | G68: 1.82275 | H68: 1.8184 | I68: 1.81403 | J68: 1.80964 | K68: 1.80524 | L68: 1.80083 | M68: 1.7964 | N68: 1.79195 | O68: 1.78749 | P68: 1.78301 | Q68: 1.77852 | R68: 1.77401 | S68: 1.76949 | T68: 1.76496 | U68: 1.76041 | W68: 470 | X68: 1.85282 | Y68: 1.85711 | Z68: 1.86141 | AA68: 1.86574 | AB68: 1.87009 | AC68: 1.87445 | AD68: 1.87883 | AE68: 1.88324 | AF68: 1.88767 | AG68: 1.89211 | AH68: 1.89657 | AI68: 1.90105 | AJ68: 1.90556 | AK68: 1.91008 | AL68: 1.91461 | AM68: 1.91918 | AN68: 1.92376 | AO68: 1.92835 | AP68: 1.93296 | AQ68: 1.9376
A69: 480 | B69: 1.84596 | C69: 1.84177 | D69: 1.83757 | E69: 1.83336 | F69: 1.82912 | G69: 1.82488 | H69: 1.82061 | I69: 1.81634 | J69: 1.81205 | K69: 1.80774 | L69: 1.80341 | M69: 1.79908 | N69: 1.79473 | O69: 1.79036 | P69: 1.78599 | Q69: 1.78159 | R69: 1.77719 | S69: 1.77276 | T69: 1.76833 | U69: 1.76388 | W69: 480 | X69: 1.85431 | Y69: 1.85851 | Z69: 1.86272 | AA69: 1.86695 | AB69: 1.87121 | AC69: 1.87548 | AD69: 1.87977 | AE69: 1.88408 | AF69: 1.88841 | AG69: 1.89276 | AH69: 1.89712 | AI69: 1.90151 | AJ69: 1.90591 | AK69: 1.91034 | AL69: 1.91477 | AM69: 1.91923 | AN69: 1.92371 | AO69: 1.9282 | AP69: 1.93271 | AQ69: 1.93725
A70: 490 | B70: 1.84758 | C70: 1.84348 | D70: 1.83937 | E70: 1.83523 | F70: 1.83109 | G70: 1.82693 | H70: 1.82275 | I70: 1.81857 | J70: 1.81437 | K70: 1.81015 | L70: 1.80592 | M70: 1.80167 | N70: 1.79741 | O70: 1.79314 | P70: 1.78885 | Q70: 1.78456 | R70: 1.78024 | S70: 1.77592 | T70: 1.77157 | U70: 1.76722 | W70: 490 | X70: 1.85576 | Y70: 1.85987 | Z70: 1.86399 | AA70: 1.86814 | AB70: 1.87231 | AC70: 1.87649 | AD70: 1.88069 | AE70: 1.88491 | AF70: 1.88915 | AG70: 1.8934 | AH70: 1.89767 | AI70: 1.90197 | AJ70: 1.90628 | AK70: 1.91059 | AL70: 1.91494 | AM70: 1.9193 | AN70: 1.92368 | AO70: 1.92807 | AP70: 1.93249 | AQ70: 1.93692
A71: 500 | B71: 1.84914 | C71: 1.84513 | D71: 1.8411 | E71: 1.83705 | F71: 1.83298 | G71: 1.82892 | H71: 1.82482 | I71: 1.82072 | J71: 1.81661 | K71: 1.81247 | L71: 1.80834 | M71: 1.80417 | N71: 1.80001 | O71: 1.79582 | P71: 1.79163 | Q71: 1.78742 | R71: 1.78319 | S71: 1.77896 | T71: 1.77471 | U71: 1.77044 | W71: 500 | X71: 1.85716 | Y71: 1.86119 | Z71: 1.86523 | AA71: 1.86929 | AB71: 1.87337 | AC71: 1.87747 | AD71: 1.88158 | AE71: 1.88572 | AF71: 1.88986 | AG71: 1.89403 | AH71: 1.89821 | AI71: 1.90242 | AJ71: 1.90663 | AK71: 1.91087 | AL71: 1.91512 | AM71: 1.91938 | AN71: 1.92368 | AO71: 1.92798 | AP71: 1.93229 | AQ71: 1.93663
A72: 550 | B72: 1.85632 | C72: 1.85267 | D72: 1.84901 | E72: 1.84533 | F72: 1.84165 | G72: 1.83794 | H72: 1.83423 | I72: 1.83051 | J72: 1.82678 | K72: 1.82303 | L72: 1.81928 | M72: 1.81551 | N72: 1.81173 | O72: 1.80794 | P72: 1.80414 | Q72: 1.80033 | R72: 1.79651 | S72: 1.79268 | T72: 1.78883 | U72: 1.78497 | W72: 550 | X72: 1.86361 | Y72: 1.86727 | Z72: 1.87094 | AA72: 1.87462 | AB72: 1.87833 | AC72: 1.88204 | AD72: 1.88578 | AE72: 1.88952 | AF72: 1.89327 | AG72: 1.89705 | AH72: 1.90084 | AI72: 1.90464 | AJ72: 1.90845 | AK72: 1.91228 | AL72: 1.91613 | AM72: 1.91998 | AN72: 1.92386 | AO72: 1.92774 | AP72: 1.93164 | AQ72: 1.93555
A73: 600 | B73: 1.86257 | C73: 1.85922 | D73: 1.85587 | E73: 1.8525 | F73: 1.84913 | G73: 1.84574 | H73: 1.84235 | I73: 1.83894 | J73: 1.83552 | K73: 1.8321 | L73: 1.82866 | M73: 1.82522 | N73: 1.82177 | O73: 1.8183 | P73: 1.81483 | Q73: 1.81134 | R73: 1.80785 | S73: 1.80435 | T73: 1.80085 | U73: 1.79733 | W73: 600 | X73: 1.86925 | Y73: 1.87259 | Z73: 1.87596 | AA73: 1.87934 | AB73: 1.88273 | AC73: 1.88612 | AD73: 1.88954 | AE73: 1.89296 | AF73: 1.8964 | AG73: 1.89984 | AH73: 1.90331 | AI73: 1.90677 | AJ73: 1.91026 | AK73: 1.91375 | AL73: 1.91727 | AM73: 1.92078 | AN73: 1.92431 | AO73: 1.92786 | AP73: 1.93141 | AQ73: 1.93497
A74: 650 | B74: 1.86807 | C74: 1.86498 | D74: 1.86189 | E74: 1.85878 | F74: 1.85567 | G74: 1.85254 | H74: 1.84942 | I74: 1.84627 | J74: 1.84313 | K74: 1.83997 | L74: 1.83681 | M74: 1.83364 | N74: 1.83045 | O74: 1.82727 | P74: 1.82408 | Q74: 1.82087 | R74: 1.81766 | S74: 1.81444 | T74: 1.8112 | U74: 1.80797 | W74: 650 | X74: 1.87423 | Y74: 1.87733 | Z74: 1.88043 | AA74: 1.88354 | AB74: 1.88667 | AC74: 1.8898 | AD74: 1.89295 | AE74: 1.8961 | AF74: 1.89926 | AG74: 1.90244 | AH74: 1.90562 | AI74: 1.90882 | AJ74: 1.91202 | AK74: 1.91523 | AL74: 1.91846 | AM74: 1.92169 | AN74: 1.92494 | AO74: 1.92819 | AP74: 1.93145 | AQ74: 1.93473
A75: 700 | B75: 1.87297 | C75: 1.8701 | D75: 1.86722 | E75: 1.86435 | F75: 1.86145 | G75: 1.85856 | H75: 1.85566 | I75: 1.85274 | J75: 1.84982 | K75: 1.8469 | L75: 1.84397 | M75: 1.84102 | N75: 1.83808 | O75: 1.83513 | P75: 1.83217 | Q75: 1.8292 | R75: 1.82622 | S75: 1.82324 | T75: 1.82025 | U75: 1.81726 | W75: 700 | X75: 1.87869 | Y75: 1.88156 | Z75: 1.88443 | AA75: 1.88732 | AB75: 1.89022 | AC75: 1.89313 | AD75: 1.89604 | AE75: 1.89897 | AF75: 1.9019 | AG75: 1.90484 | AH75: 1.90779 | AI75: 1.91074 | AJ75: 1.91371 | AK75: 1.91669 | AL75: 1.91967 | AM75: 1.92267 | AN75: 1.92567 | AO75: 1.92868 | AP75: 1.93169 | AQ75: 1.93473
A76: 750 | B76: 1.87736 | C76: 1.87468 | D76: 1.872 | E76: 1.86931 | F76: 1.86662 | G76: 1.86391 | H76: 1.86121 | I76: 1.8585 | J76: 1.85578 | K76: 1.85305 | L76: 1.85031 | M76: 1.84758 | N76: 1.84483 | O76: 1.84208 | P76: 1.83933 | Q76: 1.83656 | R76: 1.83378 | S76: 1.83102 | T76: 1.82823 | U76: 1.82545 | W76: 750 | X76: 1.8827 | Y76: 1.88537 | Z76: 1.88806 | AA76: 1.89076 | AB76: 1.89346 | AC76: 1.89616 | AD76: 1.89888 | AE76: 1.90161 | AF76: 1.90434 | AG76: 1.90708 | AH76: 1.90982 | AI76: 1.91258 | AJ76: 1.91534 | AK76: 1.91811 | AL76: 1.92088 | AM76: 1.92367 | AN76: 1.92647 | AO76: 1.92927 | AP76: 1.93207 | AQ76: 1.93489
A77: 800 | B77: 1.88132 | C77: 1.87882 | D77: 1.8763 | E77: 1.87379 | F77: 1.87126 | G77: 1.86873 | H77: 1.86619 | I77: 1.86365 | J77: 1.8611 | K77: 1.85855 | L77: 1.85599 | M77: 1.85343 | N77: 1.85086 | O77: 1.84829 | P77: 1.84571 | Q77: 1.84312 | R77: 1.84053 | S77: 1.83794 | T77: 1.83533 | U77: 1.83273 | W77: 800 | X77: 1.88633 | Y77: 1.88884 | Z77: 1.89135 | AA77: 1.89388 | AB77: 1.89641 | AC77: 1.89894 | AD77: 1.90149 | AE77: 1.90404 | AF77: 1.9066 | AG77: 1.90916 | AH77: 1.91174 | AI77: 1.91431 | AJ77: 1.9169 | AK77: 1.91948 | AL77: 1.92208 | AM77: 1.92468 | AN77: 1.9273 | AO77: 1.92991 | AP77: 1.93253 | AQ77: 1.93516
A78: 850 | B78: 1.88494 | C78: 1.88258 | D78: 1.88021 | E78: 1.87784 | F78: 1.87546 | G78: 1.87308 | H78: 1.8707 | I78: 1.86831 | J78: 1.86591 | K78: 1.86351 | L78: 1.86111 | M78: 1.8587 | N78: 1.85629 | O78: 1.85387 | P78: 1.85144 | Q78: 1.84901 | R78: 1.84657 | S78: 1.84414 | T78: 1.8417 | U78: 1.83925 | W78: 850 | X78: 1.88964 | Y78: 1.89201 | Z78: 1.89437 | AA78: 1.89675 | AB78: 1.89912 | AC78: 1.90151 | AD78: 1.90391 | AE78: 1.9063 | AF78: 1.90871 | AG78: 1.91112 | AH78: 1.91353 | AI78: 1.91595 | AJ78: 1.91838 | AK78: 1.92081 | AL78: 1.92325 | AM78: 1.9257 | AN78: 1.92814 | AO78: 1.9306 | AP78: 1.93306 | AQ78: 1.93553
A79: 900 | B79: 1.88823 | C79: 1.88601 | D79: 1.88377 | E79: 1.88153 | F79: 1.87929 | G79: 1.87705 | H79: 1.8748 | I79: 1.87254 | J79: 1.87028 | K79: 1.86802 | L79: 1.86575 | M79: 1.86347 | N79: 1.8612 | O79: 1.85892 | P79: 1.85663 | Q79: 1.85434 | R79: 1.85204 | S79: 1.84974 | T79: 1.84744 | U79: 1.84513 | W79: 900 | X79: 1.89268 | Y79: 1.89491 | Z79: 1.89714 | AA79: 1.89939 | AB79: 1.90163 | AC79: 1.90389 | AD79: 1.90614 | AE79: 1.9084 | AF79: 1.91067 | AG79: 1.91294 | AH79: 1.91522 | AI79: 1.9175 | AJ79: 1.91979 | AK79: 1.92209 | AL79: 1.92438 | AM79: 1.92668 | AN79: 1.929 | AO79: 1.93131 | AP79: 1.93363 | AQ79: 1.93596
A80: 950 | B80: 1.89127 | C80: 1.88915 | D80: 1.88704 | E80: 1.88492 | F80: 1.88279 | G80: 1.88067 | H80: 1.87854 | I80: 1.8764 | J80: 1.87426 | K80: 1.87212 | L80: 1.86998 | M80: 1.86782 | N80: 1.86567 | O80: 1.86351 | P80: 1.86135 | Q80: 1.85919 | R80: 1.85701 | S80: 1.85483 | T80: 1.85266 | U80: 1.85048 | W80: 950 | X80: 1.89548 | Y80: 1.8976 | Z80: 1.89971 | AA80: 1.90184 | AB80: 1.90396 | AC80: 1.90609 | AD80: 1.90823 | AE80: 1.91036 | AF80: 1.91251 | AG80: 1.91466 | AH80: 1.91682 | AI80: 1.91897 | AJ80: 1.92115 | AK80: 1.92331 | AL80: 1.92548 | AM80: 1.92766 | AN80: 1.92984 | AO80: 1.93203 | AP80: 1.93423 | AQ80: 1.93642
A81: 1000 | B81: 1.89407 | C81: 1.89206 | D81: 1.89005 | E81: 1.88804 | F81: 1.88602 | G81: 1.884 | H81: 1.88198 | I81: 1.87995 | J81: 1.87792 | K81: 1.87589 | L81: 1.87386 | M81: 1.87181 | N81: 1.86976 | O81: 1.86772 | P81: 1.86567 | Q81: 1.86361 | R81: 1.86155 | S81: 1.85949 | T81: 1.85742 | U81: 1.85535 | W81: 1000 | X81: 1.89807 | Y81: 1.90008 | Z81: 1.90209 | AA81: 1.9041 | AB81: 1.90612 | AC81: 1.90815 | AD81: 1.91018 | AE81: 1.91221 | AF81: 1.91424 | AG81: 1.91628 | AH81: 1.91832 | AI81: 1.92037 | AJ81: 1.92243 | AK81: 1.92448 | AL81: 1.92655 | AM81: 1.92861 | AN81: 1.93069 | AO81: 1.93276 | AP81: 1.93483 | AQ81: 1.93692
A82: 1050 | B82: 1.89666 | C82: 1.89475 | D82: 1.89284 | E82: 1.89093 | F82: 1.889 | G82: 1.88708 | H82: 1.88516 | I82: 1.88322 | J82: 1.8813 | K82: 1.87936 | L82: 1.87741 | M82: 1.87548 | N82: 1.87353 | O82: 1.87158 | P82: 1.86963 | Q82: 1.86768 | R82: 1.86571 | S82: 1.86376 | T82: 1.86179 | U82: 1.85982 | W82: 1050 | X82: 1.90048 | Y82: 1.90238 | Z82: 1.9043 | AA82: 1.90621 | AB82: 1.90814 | AC82: 1.91007 | AD82: 1.912 | AE82: 1.91393 | AF82: 1.91587 | AG82: 1.91781 | AH82: 1.91975 | AI82: 1.9217 | AJ82: 1.92366 | AK82: 1.92562 | AL82: 1.92758 | AM82: 1.92954 | AN82: 1.93151 | AO82: 1.93348 | AP82: 1.93546 | AQ82: 1.93743
A83: 1100 | B83: 1.89907 | C83: 1.89725 | D83: 1.89543 | E83: 1.8936 | F83: 1.89177 | G83: 1.88993 | H83: 1.88809 | I83: 1.88625 | J83: 1.88441 | K83: 1.88256 | L83: 1.88071 | M83: 1.87886 | N83: 1.877 | O83: 1.87514 | P83: 1.87328 | Q83: 1.87143 | R83: 1.86956 | S83: 1.86769 | T83: 1.86581 | U83: 1.86394 | W83: 1100 | X83: 1.90271 | Y83: 1.90454 | Z83: 1.90636 | AA83: 1.9082 | AB83: 1.91003 | AC83: 1.91187 | AD83: 1.91371 | AE83: 1.91555 | AF83: 1.91741 | AG83: 1.91926 | AH83: 1.92111 | AI83: 1.92297 | AJ83: 1.92483 | AK83: 1.92669 | AL83: 1.92856 | AM83: 1.93043 | AN83: 1.93232 | AO83: 1.9342 | AP83: 1.93608 | AQ83: 1.93796
A84: 1150 | B84: 1.90133 | C84: 1.89959 | D84: 1.89784 | E84: 1.89609 | F84: 1.89435 | G84: 1.89259 | H84: 1.89083 | I84: 1.88907 | J84: 1.88731 | K84: 1.88554 | L84: 1.88378 | M84: 1.882 | N84: 1.88023 | O84: 1.87846 | P84: 1.87667 | Q84: 1.87489 | R84: 1.87311 | S84: 1.87132 | T84: 1.86953 | U84: 1.86774 | W84: 1150 | X84: 1.90481 | Y84: 1.90655 | Z84: 1.90831 | AA84: 1.91005 | AB84: 1.9118 | AC84: 1.91356 | AD84: 1.91533 | AE84: 1.91709 | AF84: 1.91885 | AG84: 1.92062 | AH84: 1.92239 | AI84: 1.92417 | AJ84: 1.92595 | AK84: 1.92773 | AL84: 1.92952 | AM84: 1.93131 | AN84: 1.9331 | AO84: 1.93489 | AP84: 1.9367 | AQ84: 1.9385
A85: 1200 | B85: 1.90344 | C85: 1.90177 | D85: 1.90009 | E85: 1.89842 | F85: 1.89674 | G85: 1.89507 | H85: 1.89338 | I85: 1.8917 | J85: 1.89001 | K85: 1.88832 | L85: 1.88662 | M85: 1.88492 | N85: 1.88323 | O85: 1.88152 | P85: 1.87983 | Q85: 1.87811 | R85: 1.87641 | S85: 1.87471 | T85: 1.87299 | U85: 1.87128 | W85: 1200 | X85: 1.90678 | Y85: 1.90844 | Z85: 1.91012 | AA85: 1.9118 | AB85: 1.91348 | AC85: 1.91516 | AD85: 1.91684 | AE85: 1.91854 | AF85: 1.92023 | AG85: 1.92192 | AH85: 1.92362 | AI85: 1.92532 | AJ85: 1.92702 | AK85: 1.92873 | AL85: 1.93044 | AM85: 1.93215 | AN85: 1.93387 | AO85: 1.93559 | AP85: 1.9373 | AQ85: 1.93902
A86: 1250 | B86: 1.90542 | C86: 1.90382 | D86: 1.90221 | E86: 1.90061 | F86: 1.89899 | G86: 1.89739 | H86: 1.89577 | I86: 1.89415 | J86: 1.89253 | K86: 1.89091 | L86: 1.88928 | M86: 1.88766 | N86: 1.88602 | O86: 1.8844 | P86: 1.88276 | Q86: 1.88113 | R86: 1.87948 | S86: 1.87785 | T86: 1.87621 | U86: 1.87456 | W86: 1250 | X86: 1.90862 | Y86: 1.91023 | Z86: 1.91183 | AA86: 1.91344 | AB86: 1.91506 | AC86: 1.91667 | AD86: 1.91828 | AE86: 1.91991 | AF86: 1.92153 | AG86: 1.92316 | AH86: 1.92478 | AI86: 1.92642 | AJ86: 1.92805 | AK86: 1.92969 | AL86: 1.93132 | AM86: 1.93297 | AN86: 1.93462 | AO86: 1.93626 | AP86: 1.93791 | AQ86: 1.93957
A87: 1300 | B87: 1.90729 | C87: 1.90574 | D87: 1.9042 | E87: 1.90266 | F87: 1.90111 | G87: 1.89955 | H87: 1.898 | I87: 1.89645 | J87: 1.89489 | K87: 1.89333 | L87: 1.89177 | M87: 1.89021 | N87: 1.88864 | O87: 1.88708 | P87: 1.88551 | Q87: 1.88394 | R87: 1.88236 | S87: 1.88079 | T87: 1.87921 | U87: 1.87763 | W87: 1300 | X87: 1.91036 | Y87: 1.91191 | Z87: 1.91345 | AA87: 1.915 | AB87: 1.91655 | AC87: 1.9181 | AD87: 1.91966 | AE87: 1.92121 | AF87: 1.92277 | AG87: 1.92433 | AH87: 1.9259 | AI87: 1.92747 | AJ87: 1.92903 | AK87: 1.93061 | AL87: 1.93218 | AM87: 1.93376 | AN87: 1.93534 | AO87: 1.93692 | AP87: 1.93851 | AQ87: 1.94009
A88: 1350 | B88: 1.90905 | C88: 1.90756 | D88: 1.90607 | E88: 1.90459 | F88: 1.90309 | G88: 1.9016 | H88: 1.90011 | I88: 1.89861 | J88: 1.89711 | K88: 1.89561 | L88: 1.89411 | M88: 1.8926 | N88: 1.8911 | O88: 1.88959 | P88: 1.88808 | Q88: 1.88657 | R88: 1.88505 | S88: 1.88354 | T88: 1.88201 | U88: 1.88049 | W88: 1350 | X88: 1.91201 | Y88: 1.91349 | Z88: 1.91498 | AA88: 1.91648 | AB88: 1.91796 | AC88: 1.91946 | AD88: 1.92095 | AE88: 1.92246 | AF88: 1.92395 | AG88: 1.92546 | AH88: 1.92696 | AI88: 1.92847 | AJ88: 1.92998 | AK88: 1.9315 | AL88: 1.93301 | AM88: 1.93453 | AN88: 1.93605 | AO88: 1.93757 | AP88: 1.93909 | AQ88: 1.94062
A89: 1400 | B89: 1.9107 | C89: 1.90927 | D89: 1.90784 | E89: 1.90641 | F89: 1.90497 | G89: 1.90353 | H89: 1.90209 | I89: 1.90065 | J89: 1.8992 | K89: 1.89776 | L89: 1.89631 | M89: 1.89486 | N89: 1.89341 | O89: 1.89195 | P89: 1.8905 | Q89: 1.88904 | R89: 1.88758 | S89: 1.88612 | T89: 1.88466 | U89: 1.88319 | W89: 1400 | X89: 1.91357 | Y89: 1.915 | Z89: 1.91643 | AA89: 1.91787 | AB89: 1.9193 | AC89: 1.92074 | AD89: 1.92219 | AE89: 1.92364 | AF89: 1.92509 | AG89: 1.92653 | AH89: 1.92799 | AI89: 1.92944 | AJ89: 1.93089 | AK89: 1.93235 | AL89: 1.93381 | AM89: 1.93527 | AN89: 1.93674 | AO89: 1.9382 | AP89: 1.93967 | AQ89: 1.94114
A90: 1450 | B90: 1.91229 | C90: 1.9109 | D90: 1.90952 | E90: 1.90813 | F90: 1.90675 | G90: 1.90535 | H90: 1.90396 | I90: 1.90257 | J90: 1.90118 | K90: 1.89979 | L90: 1.89838 | M90: 1.89699 | N90: 1.89559 | O90: 1.89419 | P90: 1.89277 | Q90: 1.89137 | R90: 1.88996 | S90: 1.88856 | T90: 1.88715 | U90: 1.88573 | W90: 1450 | X90: 1.91505 | Y90: 1.91643 | Z90: 1.91781 | AA90: 1.9192 | AB90: 1.92059 | AC90: 1.92197 | AD90: 1.92337 | AE90: 1.92476 | AF90: 1.92616 | AG90: 1.92755 | AH90: 1.92895 | AI90: 1.93035 | AJ90: 1.93177 | AK90: 1.93317 | AL90: 1.93458 | AM90: 1.93599 | AN90: 1.9374 | AO90: 1.93882 | AP90: 1.94023 | AQ90: 1.94165
A91: 1500 | B91: 1.91378 | C91: 1.91244 | D91: 1.9111 | E91: 1.90976 | F91: 1.90842 | G91: 1.90708 | H91: 1.90574 | I91: 1.9044 | J91: 1.90305 | K91: 1.9017 | L91: 1.90035 | M91: 1.89899 | N91: 1.89764 | O91: 1.89629 | P91: 1.89493 | Q91: 1.89357 | R91: 1.89221 | S91: 1.89085 | T91: 1.88948 | U91: 1.88812 | W91: 1500 | X91: 1.91645 | Y91: 1.91779 | Z91: 1.91912 | AA91: 1.92046 | AB91: 1.92181 | AC91: 1.92314 | AD91: 1.92449 | AE91: 1.92584 | AF91: 1.92718 | AG91: 1.92854 | AH91: 1.9299 | AI91: 1.93124 | AJ91: 1.9326 | AK91: 1.93397 | AL91: 1.93532 | AM91: 1.93669 | AN91: 1.93805 | AO91: 1.93941 | AP91: 1.94079 | AQ91: 1.94215
A92: 1550 | B92: 1.9152 | C92: 1.91391 | D92: 1.91261 | E92: 1.91132 | F92: 1.91002 | G92: 1.90872 | H92: 1.90742 | I92: 1.90612 | J92: 1.90482 | K92: 1.90352 | L92: 1.90221 | M92: 1.9009 | N92: 1.89959 | O92: 1.89828 | P92: 1.89696 | Q92: 1.89565 | R92: 1.89433 | S92: 1.89302 | T92: 1.8917 | U92: 1.89038 | W92: 1550 | X92: 1.91778 | Y92: 1.91908 | Z92: 1.92037 | AA92: 1.92167 | AB92: 1.92297 | AC92: 1.92426 | AD92: 1.92556 | AE92: 1.92687 | AF92: 1.92818 | AG92: 1.92948 | AH92: 1.93079 | AI92: 1.9321 | AJ92: 1.93341 | AK92: 1.93473 | AL92: 1.93604 | AM92: 1.93736 | AN92: 1.93868 | AO92: 1.94 | AP92: 1.94132 | AQ92: 1.94265
A93: 1600 | B93: 1.91655 | C93: 1.91531 | D93: 1.91405 | E93: 1.91279 | F93: 1.91154 | G93: 1.91028 | H93: 1.90902 | I93: 1.90776 | J93: 1.9065 | K93: 1.90523 | L93: 1.90397 | M93: 1.9027 | N93: 1.90143 | O93: 1.90016 | P93: 1.89889 | Q93: 1.89762 | R93: 1.89634 | S93: 1.89507 | T93: 1.8938 | U93: 1.89252 | W93: 1600 | X93: 1.91905 | Y93: 1.92031 | Z93: 1.92156 | AA93: 1.92282 | AB93: 1.92407 | AC93: 1.92534 | AD93: 1.92659 | AE93: 1.92786 | AF93: 1.92912 | AG93: 1.93038 | AH93: 1.93165 | AI93: 1.93293 | AJ93: 1.93419 | AK93: 1.93547 | AL93: 1.93674 | AM93: 1.93801 | AN93: 1.93929 | AO93: 1.94057 | AP93: 1.94185 | AQ93: 1.94314
A94: 1650 | B94: 1.91785 | C94: 1.91663 | D94: 1.91542 | E94: 1.9142 | F94: 1.91298 | G94: 1.91176 | H94: 1.91054 | I94: 1.90932 | J94: 1.9081 | K94: 1.90687 | L94: 1.90565 | M94: 1.90442 | N94: 1.90319 | O94: 1.90196 | P94: 1.90073 | Q94: 1.89949 | R94: 1.89826 | S94: 1.89702 | T94: 1.89578 | U94: 1.89455 | W94: 1650 | X94: 1.92028 | Y94: 1.92149 | Z94: 1.9227 | AA94: 1.92392 | AB94: 1.92514 | AC94: 1.92636 | AD94: 1.92758 | AE94: 1.92881 | AF94: 1.93003 | AG94: 1.93126 | AH94: 1.93249 | AI94: 1.93371 | AJ94: 1.93495 | AK94: 1.93618 | AL94: 1.93741 | AM94: 1.93865 | AN94: 1.93989 | AO94: 1.94113 | AP94: 1.94237 | AQ94: 1.94361
A95: 1700 | B95: 1.91908 | C95: 1.9179 | D95: 1.91672 | E95: 1.91554 | F95: 1.91436 | G95: 1.91318 | H95: 1.91199 | I95: 1.91081 | J95: 1.90962 | K95: 1.90843 | L95: 1.90724 | M95: 1.90605 | N95: 1.90486 | O95: 1.90366 | P95: 1.90247 | Q95: 1.90127 | R95: 1.90007 | S95: 1.89887 | T95: 1.89767 | U95: 1.89647 | W95: 1700 | X95: 1.92143 | Y95: 1.92261 | Z95: 1.9238 | AA95: 1.92498 | AB95: 1.92616 | AC95: 1.92734 | AD95: 1.92853 | AE95: 1.92971 | AF95: 1.9309 | AG95: 1.9321 | AH95: 1.93329 | AI95: 1.93448 | AJ95: 1.93567 | AK95: 1.93687 | AL95: 1.93807 | AM95: 1.93926 | AN95: 1.94047 | AO95: 1.94167 | AP95: 1.94287 | AQ95: 1.94407
A96: 1750 | B96: 1.92026 | C96: 1.91912 | D96: 1.91797 | E96: 1.91682 | F96: 1.91568 | G96: 1.91452 | H96: 1.91337 | I96: 1.91222 | J96: 1.91107 | K96: 1.90991 | L96: 1.90876 | M96: 1.90761 | N96: 1.90644 | O96: 1.90528 | P96: 1.90413 | Q96: 1.90297 | R96: 1.9018 | S96: 1.90064 | T96: 1.89947 | U96: 1.89831 | W96: 1750 | X96: 1.92255 | Y96: 1.92369 | Z96: 1.92483 | AA96: 1.92598 | AB96: 1.92714 | AC96: 1.92829 | AD96: 1.92944 | AE96: 1.93059 | AF96: 1.93174 | AG96: 1.9329 | AH96: 1.93406 | AI96: 1.93522 | AJ96: 1.93637 | AK96: 1.93753 | AL96: 1.9387 | AM96: 1.93987 | AN96: 1.94103 | AO96: 1.9422 | AP96: 1.94336 | AQ96: 1.94453
A97: 1800 | B97: 1.92139 | C97: 1.92028 | D97: 1.91916 | E97: 1.91805 | F97: 1.91693 | G97: 1.91582 | H97: 1.9147 | I97: 1.91358 | J97: 1.91245 | K97: 1.91133 | L97: 1.91021 | M97: 1.90909 | N97: 1.90796 | O97: 1.90683 | P97: 1.9057 | Q97: 1.90458 | R97: 1.90345 | S97: 1.90232 | T97: 1.90118 | U97: 1.90005 | W97: 1800 | X97: 1.92361 | Y97: 1.92473 | Z97: 1.92584 | AA97: 1.92695 | AB97: 1.92807 | AC97: 1.92919 | AD97: 1.93031 | AE97: 1.93144 | AF97: 1.93255 | AG97: 1.93367 | AH97: 1.9348 | AI97: 1.93593 | AJ97: 1.93706 | AK97: 1.93818 | AL97: 1.93931 | AM97: 1.94044 | AN97: 1.94158 | AO97: 1.94271 | AP97: 1.94384 | AQ97: 1.94498
A98: 1850 | B98: 1.92247 | C98: 1.92139 | D98: 1.92031 | E98: 1.91922 | F98: 1.91814 | G98: 1.91705 | H98: 1.91596 | I98: 1.91487 | J98: 1.91378 | K98: 1.91269 | L98: 1.9116 | M98: 1.91051 | N98: 1.90941 | O98: 1.90831 | P98: 1.90722 | Q98: 1.90612 | R98: 1.90502 | S98: 1.90392 | T98: 1.90282 | U98: 1.90171 | W98: 1850 | X98: 1.92463 | Y98: 1.92572 | Z98: 1.92681 | AA98: 1.92789 | AB98: 1.92897 | AC98: 1.93006 | AD98: 1.93115 | AE98: 1.93225 | AF98: 1.93334 | AG98: 1.93443 | AH98: 1.93552 | AI98: 1.93661 | AJ98: 1.93772 | AK98: 1.93881 | AL98: 1.93991 | AM98: 1.94101 | AN98: 1.94211 | AO98: 1.94321 | AP98: 1.94432 | AQ98: 1.94542
A99: 1900 | B99: 1.92352 | C99: 1.92246 | D99: 1.92141 | E99: 1.92035 | F99: 1.91929 | G99: 1.91823 | H99: 1.91717 | I99: 1.91611 | J99: 1.91505 | K99: 1.91399 | L99: 1.91292 | M99: 1.91186 | N99: 1.91079 | O99: 1.90973 | P99: 1.90866 | Q99: 1.9076 | R99: 1.90652 | S99: 1.90546 | T99: 1.90438 | U99: 1.90331 | W99: 1900 | X99: 1.92562 | Y99: 1.92668 | Z99: 1.92773 | AA99: 1.92878 | AB99: 1.92985 | AC99: 1.9309 | AD99: 1.93196 | AE99: 1.93303 | AF99: 1.93409 | AG99: 1.93515 | AH99: 1.93622 | AI99: 1.93728 | AJ99: 1.93835 | AK99: 1.93942 | AL99: 1.94048 | AM99: 1.94156 | AN99: 1.94263 | AO99: 1.9437 | AP99: 1.94478 | AQ99: 1.94585
A100: 1950 | B100: 1.92451 | C100: 1.92349 | D100: 1.92246 | E100: 1.92142 | F100: 1.9204 | G100: 1.91937 | H100: 1.91833 | I100: 1.9173 | J100: 1.91627 | K100: 1.91523 | L100: 1.91419 | M100: 1.91316 | N100: 1.91212 | O100: 1.91108 | P100: 1.91005 | Q100: 1.909 | R100: 1.90796 | S100: 1.90692 | T100: 1.90588 | U100: 1.90483 | W100: 1950 | X100: 1.92656 | Y100: 1.92759 | Z100: 1.92862 | AA100: 1.92965 | AB100: 1.93068 | AC100: 1.93171 | AD100: 1.93274 | AE100: 1.93377 | AF100: 1.93482 | AG100: 1.93585 | AH100: 1.93688 | AI100: 1.93793 | AJ100: 1.93896 | AK100: 1.94 | AL100: 1.94105 | AM100: 1.94209 | AN100: 1.94313 | AO100: 1.94418 | AP100: 1.94522 | AQ100: 1.94627
A101: 2000 | B101: 1.92548 | C101: 1.92447 | D101: 1.92347 | E101: 1.92246 | F101: 1.92146 | G101: 1.92046 | H101: 1.91945 | I101: 1.91844 | J101: 1.91744 | K101: 1.91643 | L101: 1.91542 | M101: 1.91441 | N101: 1.9134 | O101: 1.91239 | P101: 1.91137 | Q101: 1.91036 | R101: 1.90934 | S101: 1.90833 | T101: 1.90731 | U101: 1.90629 | W101: 2000 | X101: 1.92747 | Y101: 1.92847 | Z101: 1.92947 | AA101: 1.93049 | AB101: 1.93149 | AC101: 1.93249 | AD101: 1.9335 | AE101: 1.93451 | AF101: 1.93552 | AG101: 1.93652 | AH101: 1.93753 | AI101: 1.93854 | AJ101: 1.93957 | AK101: 1.94058 | AL101: 1.94159 | AM101: 1.94261 | AN101: 1.94363 | AO101: 1.94464 | AP101: 1.94566 | AQ101: 1.94668
